Workbook

Sheet 2023
I1: moyenen/course | K1: =K2/H2 -> 6.280757098 | L1: =L2/H2 -> 288.7148566 | M1: =M2/H2 -> 23.14518903 | N1: =N2/H2 -> 55.30681703 | O1: =O2/H2 -> -32.161628
B2: 0 | E2: Total | F2: =SUBTOTAL(3,F5:F4976) -> 5 | G2: =SUBTOTAL(3,G5:G5894) -> 0 | H2: =SUBTOTAL(3,H5:H5894) -> 317 | K2: =SUBTOTAL(9,K5:K5894) -> 1991 | L2: =SUBTOTAL(9,L5:L5894) -> 91522.60955 | M2: =SUBTOTAL(9,M5:M5894) -> 7337.024924 | N2: =SUBTOTAL(9,N5:N5894) -> 17532.261 | O2: =M2-N2 -> -10195.23608
A4: Jour | B4: Date | C4: Course | D4: Discipline | E4: Hippodrome | F4: Jeu | G4: COND. | H4: conditions | I4: Cat | J4: Age | K4: Pts | L4: enjeux | M4: retour net | N4: alloc distrib. | O4: résultat
A5: =WEEKDAY(B5) -> 1900-01-01 | B5: 2023-01-01 | C5: C1 | D5: obstacle | E5: CAGNES-SUR-MER | H5: Réclamers | J5: 5ans | K5: 10 | L5: 310.581 | M5: 24.84648 | N5: 21.752 | O5: =M5-N5 -> 3.09448
A6: 1900-01-01 | B6: 2023-01-01 | C6: C2 | D6: obstacle | E6: CAGNES-SUR-MER | H6: Conditions | I6: C4 | J6: 5anset+ | K6: 8 | L6: 318.571 | M6: 25.48568 | N6: 37.782 | O6: =M6-N6 -> -12.29632
A7: 1900-01-01 | B7: 2023-01-01 | C7: C3 | D7: obstacle | E7: CAGNES-SUR-MER | H7: Réclamers | J7: 6anset+ | K7: 12 | L7: 451.335 | M7: 36.1068 | N7: 21.491 | O7: =M7-N7 -> 14.6158
A8: 1900-01-01 | B8: 2023-01-01 | C8: C4 | D8: obstacle | E8: CAGNES-SUR-MER | H8: Conditions | I8: C4 | J8: 6anset+ | K8: 7 | L8: 342.192 | M8: 27.37536 | N8: 37.782 | O8: -10.40664
A9: 1900-01-01 | B9: 2023-01-01 | C9: C5 | D9: obstacle | E9: CAGNES-SUR-MER | H9: Conditions | I9: C2 | J9: 4ans | K9: 8 | L9: 407.133 | M9: 32.57064 | N9: 42.626 | O9: -10.05536
A10: 1900-01-01 | B10: 2023-01-01 | C10: C6 | D10: obstacle | E10: CAGNES-SUR-MER | H10: Réclamers | J10: 4ans | K10: 13 | L10: 473.145 | M10: 37.8516 | N10: 23.2 | O10: 14.6516
A11: 1900-01-01 | B11: 2023-01-01 | C11: C7 | D11: obstacle | E11: CAGNES-SUR-MER | H11: Conditions | I11: C3 | J11: 5anset+ | K11: 9 | L11: 455.652 | M11: 36.45216 | N11: 40.074 | O11: -3.62184
A12: 1900-01-02 | B12: 2023-01-02 | C12: C1 | D12: obstacle | E12: PAU | H12: Conditions | I12: aqps | J12: 6ans AQPS | K12: 7 | L12: 259.964 | M12: 20.79712 | N12: 41.216 | O12: -20.41888
A13: 1900-01-02 | B13: 2023-01-02 | C13: C2 | D13: obstacle | E13: PAU | H13: Réclamers | J13: 4ans | K13: 9 | L13: 401.678 | M13: 32.13424 | N13: 23.2 | O13: 8.93424
A14: 1900-01-02 | B14: 2023-01-02 | C14: C3 | D14: plat | E14: PAU | H14: Conditions | I14: C3 | J14: 4anset+ | K14: 7 | L14: 527.395 | M14: 42.1916 | N14: 28.645 | O14: 13.5466
A15: 1900-01-02 | B15: 2023-01-02 | C15: C4 | D15: obstacle | E15: PAU | F15: TQQ+ | H15: Hdcp | J15: 6anset+ | K15: 15 | L15: 6931.527 | M15: 554.52216 | N15: 120.222 | O15: 434.30016
A16: 1900-01-02 | B16: 2023-01-02 | C16: C5 | D16: plat | E16: PAU | H16: Réclamers | J16: 3ans | K16: 10 | L16: 717.599 | M16: 57.40792 | N16: 23.321 | O16: 34.08692
A17: 1900-01-02 | B17: 2023-01-02 | C17: C6 | D17: obstacle | E17: PAU | H17: Conditions | J17: 4ans AQPS | K17: 16 | L17: 742.817 | M17: 59.42536 | N17: 39.437 | O17: 19.98836
A18: 1900-01-02 | B18: 2023-01-02 | C18: C7 | D18: plat | E18: PAU | H18: Hdcp | I18: C3 | J18: 4ans | K18: 14 | L18: 900.749 | M18: 72.05992 | N18: 35.472 | O18: 36.58792
A19: 1900-01-02 | B19: 2023-01-02 | C19: C8 | D19: obstacle | E19: PAU | H19: Hdcp | J19: 6anset+ | K19: 15 | L19: 1087.829 | M19: 87.02632 | N19: 68.699 | O19: 18.32732
A20: 1900-01-02 | B20: 2023-01-02 | C20: C1 | D20: plat | E20: MARSEILLE PONT DE VIVAUX | H20: Hdcp | J20: 3ans | K20: 9 | L20: 602.399 | M20: 48.19192 | N20: 34.773 | O20: 13.41892
A21: 1900-01-02 | B21: 2023-01-02 | C21: C2 | D21: plat | E21: MARSEILLE PONT DE VIVAUX | H21: Hdcp | I21: C4 | J21: 4anset+ | K21: 13 | L21: 647.378 | M21: 51.79024 | N21: 23.132 | O21: 28.65824
A22: 1900-01-02 | B22: 2023-01-02 | C22: C3 | D22: plat | E22: MARSEILLE PONT DE VIVAUX | H22: Hdcp | I22: C3 | J22: 4anset+ | K22: 14 | L22: 846.624 | M22: 67.72992 | N22: 27.136 | O22: 40.59392
A23: 1900-01-02 | B23: 2023-01-02 | C23: C4 | D23: plat | E23: MARSEILLE PONT DE VIVAUX | H23: Maiden | J23: 3ans | K23: 7 | L23: 500.635 | M23: 40.0508 | N23: 36.116 | O23: 3.9348
A24: 1900-01-02 | B24: 2023-01-02 | C24: C5 | D24: plat | E24: MARSEILLE PONT DE VIVAUX | H24: Conditions | I24: C3 | J24: 5anset+ | K24: 7 | L24: 405.625 | M24: 32.45 | N24: 24.191 | O24: 8.259
A25: 1900-01-02 | B25: 2023-01-02 | C25: C6 | D25: plat | E25: MARSEILLE PONT DE VIVAUX | H25: Réclamers | J25: 3ans | K25: 7 | L25: 317.997 | M25: 25.43976 | N25: 23.321 | O25: 2.11876
A26: 1900-01-02 | B26: 2023-01-02 | C26: C7 | D26: plat | E26: MARSEILLE PONT DE VIVAUX | H26: Réclamers | I26: C4 | J26: 5anset+ | K26: 6 | L26: 212.364 | M26: 16.98912 | N26: 19.232 | O26: -2.24288
A27: 1900-01-02 | B27: 2023-01-02 | C27: C8 | D27: plat | E27: MARSEILLE PONT DE VIVAUX | H27: Maiden | J27: 3ans | K27: 6 | L27: 233.462 | M27: 18.67696 | N27: 36.705 | O27: -18.02804
A28: 1900-01-03 | B28: 2023-01-03 | C28: C1 | D28: plat | E28: PORNICHET | H28: Conditions | I28: C4 | J28: 5anset+ | K28: 11 | L28: 851.703 | M28: 68.13624 | N28: 23.291 | O28: 44.84524
A29: 1900-01-03 | B29: 2023-01-03 | C29: C2 | D29: plat | E29: PORNICHET | H29: Hdcp | I29: C3 | J29: 5anset+ | K29: 15 | L29: 931.162 | M29: 74.49296 | N29: 21.08 | O29: 53.41296
A30: 1900-01-03 | B30: 2023-01-03 | C30: C3 | D30: plat | E30: PORNICHET | H30: Hdcp | I30: C4 | J30: 5anset+ | K30: 15 | L30: 788.051 | M30: 63.04408 | N30: 23.149 | O30: 39.89508
A31: 1900-01-03 | B31: 2023-01-03 | C31: C4 | D31: plat | E31: PORNICHET | H31: Hdcp | I31: C4 | J31: 5anset+ | K31: 15 | L31: 903.414 | M31: 72.27312 | N31: 18.697 | O31: 53.57612
A32: 1900-01-03 | B32: 2023-01-03 | C32: C5 | D32: plat | E32: PORNICHET | H32: Hdcp | I32: C4 | J32: 5anset+ | K32: 13 | L32: 590.136 | M32: 47.21088 | N32: 15.779 | O32: 31.43188
A33: 1900-01-03 | B33: 2023-01-03 | C33: C6 | D33: plat | E33: PORNICHET | H33: Hdcp | J33: 3ans | K33: 9 | L33: 501.517 | M33: 40.12136 | N33: 31.586 | O33: 8.53536
A34: 1900-01-03 | B34: 2023-01-03 | C34: C7 | D34: plat | E34: PORNICHET | H34: Hdcp | I34: C3 | J34: 4ans | K34: 14 | L34: 436.4 | M34: 34.912 | N34: 28.714 | O34: 6.198
A35: 1900-01-03 | B35: 2023-01-03 | C35: C8 | D35: plat | E35: PORNICHET | H35: Maiden | J35: 3ans | K35: 8 | L35: 267.572 | M35: 21.40576 | N35: 36.926 | O35: -15.52024
A36: 1900-01-03 | B36: 2023-01-03 | C36: C9 | D36: plat | E36: PORNICHET | H36: Maiden | J36: 3ans | K36: 7 | L36: 241.928 | M36: 19.35424 | N36: 36.852 | O36: -17.49776
A37: 1900-01-04 | B37: 2023-01-04 | C37: C1 | D37: obstacle | E37: PAU | H37: Conditions | I37: C2 | J37: 4ans | K37: 5 | L37: 213.698 | M37: 17.09584 | N37: 40.111 | O37: -23.01516
A38: 1900-01-04 | B38: 2023-01-04 | C38: C2 | D38: obstacle | E38: PAU | H38: Réclamers | J38: 4ans | K38: 9 | L38: 399.913 | M38: 31.99304 | N38: 23.2 | O38: 8.79304
A39: 1900-01-04 | B39: 2023-01-04 | C39: C3 | D39: obstacle | E39: PAU | H39: Inédits | J39: 4ans AQPS | K39: 11 | L39: 499.517 | M39: 39.96136 | N39: 39.437 | O39: 0.52436
A40: 1900-01-04 | B40: 2023-01-04 | C40: C4 | D40: plat | E40: PAU | H40: Hdcp | I40: C4 | J40: 5anset+ | K40: 13 | L40: 677.424 | M40: 54.19392 | N40: 22.046 | O40: 32.14792
A41: 1900-01-04 | B41: 2023-01-04 | C41: C5 | D41: obstacle | E41: PAU | H41: Réclamers | J41: 5anset+ | K41: 11 | L41: 620.502 | M41: 49.64016 | N41: 21.752 | O41: 27.88816
A42: 1900-01-04 | B42: 2023-01-04 | C42: C6 | D42: plat | E42: PAU | H42: Hdcp | I42: C3 | J42: 5anset+ | K42: 14 | L42: 957.239 | M42: 76.57912 | N42: 24.355 | O42: 52.22412
A43: 1900-01-04 | B43: 2023-01-04 | C43: C7 | D43: obstacle | E43: PAU | H43: Conditions | I43: C3 | J43: 5ans | K43: 10 | L43: 683.162 | M43: 54.65296 | N43: 40.074 | O43: 14.57896
A44: 1900-01-04 | B44: 2023-01-04 | C44: C8 | D44: plat | E44: PAU | H44: Hdcp | I44: C3 | J44: 5anset+ | K44: 15 | L44: 826.174 | M44: 66.09392 | N44: 32.008 | O44: 34.08592
A45: 1900-01-05 | B45: 2023-01-05 | C45: C1 | D45: plat | E45: LYON LA SOIE | H45: Maiden | J45: 4ans | K45: 9 | L45: 921.831 | M45: 73.74648 | N45: 17.215 | O45: 56.53148
A46: 1900-01-05 | B46: 2023-01-05 | C46: C2 | D46: plat | E46: LYON LA SOIE | H46: Hdcp | I46: C4 | J46: 4anset+ | K46: 13 | L46: 775.701 | M46: 62.05608 | N46: 22.891 | O46: 39.16508
A47: 1900-01-05 | B47: 2023-01-05 | C47: C3 | D47: plat | E47: LYON LA SOIE | H47: Maiden | J47: 3ans | K47: 11 | L47: 673.793 | M47: 53.90344 | N47: 32.445 | O47: 21.45844
A48: 1900-01-05 | B48: 2023-01-05 | C48: C4 | D48: plat | E48: LYON LA SOIE | H48: Hdcp | I48: C3 | J48: 4anset+ | K48: 14 | L48: 964.507 | M48: 77.16056 | N48: 20.539 | O48: 56.62156
A49: 1900-01-05 | B49: 2023-01-05 | C49: C5 | D49: plat | E49: LYON LA SOIE | H49: Réclamers | I49: C4 | J49: 5anset+ | K49: 10 | L49: 768.173 | M49: 61.45384 | N49: 15.307 | O49: 46.14684
A50: 1900-01-05 | B50: 2023-01-05 | C50: C6 | D50: plat | E50: LYON LA SOIE | H50: Hdcp | I50: C3 | J50: 4anset+ | K50: 9 | L50: 647.894 | M50: 51.83152 | N50: 26.945 | O50: 24.88652
A51: 1900-01-05 | B51: 2023-01-05 | C51: C7 | D51: plat | E51: LYON LA SOIE | H51: Maiden | J51: 3ans | K51: 6 | L51: 413.324 | M51: 33.06592 | N51: 36.779 | O51: -3.71308
A52: 1900-01-05 | B52: 2023-01-05 | C52: C8 | D52: plat | E52: LYON LA SOIE | H52: Conditions | I52: C3 | J52: 5anset+ | K52: 6 | L52: 295.22 | M52: 23.6176 | N52: 24.573 | O52: -0.9554
A53: 1900-01-06 | B53: 2023-01-06 | C53: C1 | D53: obstacle | E53: CAGNES-SUR-MER | H53: Réclamers | J53: 4ans | K53: 9 | L53: 385.007 | M53: 30.80056 | N53: 22.464 | O53: 8.33656
A54: 1900-01-06 | B54: 2023-01-06 | C54: C2 | D54: obstacle | E54: CAGNES-SUR-MER | H54: Réclamers | J54: 4ans | K54: 8 | L54: 374.946 | M54: 29.99568 | N54: 23.2 | O54: 6.79568
A55: 1900-01-06 | B55: 2023-01-06 | C55: C3 | D55: obstacle | E55: CAGNES-SUR-MER | H55: Conditions | I55: C4 | J55: 5ans | K55: 8 | L55: 508.109 | M55: 40.64872 | N55: 38.928 | O55: 1.72072
A56: 1900-01-06 | B56: 2023-01-06 | C56: C4 | D56: obstacle | E56: CAGNES-SUR-MER | H56: Réclamers | J56: 5anset+ | K56: 11 | L56: 355.567 | M56: 28.44536 | N56: 21.491 | O56: 6.95436
A57: 1900-01-06 | B57: 2023-01-06 | C57: C5 | D57: obstacle | E57: CAGNES-SUR-MER | H57: Conditions | I57: C4 | J57: 4ans | K57: 12 | L57: 490.363 | M57: 39.22904 | N57: 39.437 | O57: -0.20796
A58: 1900-01-06 | B58: 2023-01-06 | C58: C6 | D58: obstacle | E58: CAGNES-SUR-MER | H58: Conditions | I58: C3 | J58: 5anset+ | K58: 12 | L58: 865.01 | M58: 69.2008 | N58: 40.074 | O58: 29.1268
A59: 1900-01-06 | B59: 2023-01-06 | C59: C7 | D59: obstacle | E59: CAGNES-SUR-MER | H59: Hdcp | J59: 5ans | K59: 12 | L59: 912.47 | M59: 72.9976 | N59: 42.175 | O59: 30.8226
A60: 1900-01-07 | B60: 2023-01-07 | C60: C1 | D60: plat | E60: DEAUVILLE | H60: Hdcp | J60: 3ans | K60: 13 | L60: 985.48383 | M60: 78.8387064 | N60: 33.494 | O60: 45.3447064
A61: 1900-01-07 | B61: 2023-01-07 | C61: C2 | D61: plat | E61: DEAUVILLE | H61: Hdcp | I61: C3 | J61: 4ans | K61: 12 | L61: 837.36111 | M61: 66.9888888 | N61: 35.472 | O61: 31.5168888
A62: 1900-01-07 | B62: 2023-01-07 | C62: C3 | D62: plat | E62: DEAUVILLE | H62: Hdcp | I62: C3 | J62: 4ans | K62: 13 | L62: 936.03658 | M62: 74.8829264 | N62: 31.439 | O62: 43.4439264
A63: 1900-01-07 | B63: 2023-01-07 | C63: C4 | D63: plat | E63: DEAUVILLE | H63: Conditions | I63: C3 | J63: 4anset+ | K63: 12 | L63: 868.54859 | M63: 69.4838872 | N63: 34.149 | O63: 35.3348872
A64: 1900-01-07 | B64: 2023-01-07 | C64: C5 | D64: plat | E64: DEAUVILLE | H64: Hdcp | I64: C3 | J64: 4anset+ | K64: 15 | L64: 726.4394 | M64: 58.115152 | N64: 25.674 | O64: 32.441152
A65: 1900-01-07 | B65: 2023-01-07 | C65: C6 | D65: plat | E65: DEAUVILLE | H65: Conditions | I65: C3 | J65: 4ans | K65: 11 | L65: 610.73738 | M65: 48.8589904 | N65: 27.923 | O65: 20.9359904
A66: 1900-01-07 | B66: 2023-01-07 | C66: C7 | D66: plat | E66: DEAUVILLE | H66: Réclamers | I66: C3 | J66: 4anset+ | K66: 9 | L66: 502.82647 | M66: 40.2261176 | N66: 29.647 | O66: 10.5791176
A67: 1900-01-07 | B67: 2023-01-07 | C67: C8 | D67: plat | E67: DEAUVILLE | H67: Conditions | I67: C3 | J67: 5anset+ | K67: 11 | L67: 469.61359 | M67: 37.5690872 | N67: 34.276 | O67: 3.2930872
A68: 1900-01-07 | B68: 2023-01-07 | C68: C1 | D68: obstacle | E68: PAU | H68: Conditions | I68: C1 | J68: 6anset+ | K68: 5 | L68: 245.40699 | M68: 19.6325592 | N68: 51.392 | O68: -31.7594408
A69: =WEEKDAY(B69) -> 1900-01-07 | B69: 2023-01-07 | C69: C2 | D69: obstacle | E69: PAU | H69: Conditions | I69: C3 | J69: 5ans AQPS | K69: 8 | L69: 500.29813 | M69: 40.0238504 | N69: 41.216 | O69: -1.1921496
A70: 1900-01-07 | B70: 2023-01-07 | C70: C3 | D70: obstacle | E70: PAU | H70: Listed | J70: 5anset+ | K70: 7 | L70: 391.28326 | M70: 31.3026608 | N70: 75.567 | O70: -44.2643392
A71: 1900-01-07 | B71: 2023-01-07 | C71: C4 | D71: obstacle | E71: PAU | H71: Conditions | J71: 4ans AA | K71: 8 | L71: 648.35607 | M71: 51.8684856 | N71: 50.956 | O71: =M71-N71 -> 0.9124856
A72: 1900-01-07 | B72: 2023-01-07 | C72: C5 | D72: obstacle | E72: PAU | H72: Conditions | I72: C1 | J72: 5anset+ | K72: 8 | L72: 620.59268 | M72: 49.6474144 | N72: 45.8 | O72: 3.8474144
A73: 1900-01-07 | B73: 2023-01-07 | C73: C6 | D73: plat | E73: PAU | H73: Réclamers | I73: C4 | J73: 5anset+ | K73: 13 | L73: 1042.84617 | M73: 83.4276936 | N73: 18.921 | O73: 64.5066936
A74: 1900-01-07 | B74: 2023-01-07 | C74: C7 | D74: obstacle | E74: PAU | H74: Conditions | I74: C2 | J74: 4ans | K74: 11 | L74: 995.06482 | M74: 79.6051856 | N74: 42.739 | O74: 36.8661856
A75: 1900-01-07 | B75: 2023-01-07 | C75: C8 | D75: plat | E75: PAU | H75: Hdcp | I75: C3 | J75: 4anset+ | K75: 12 | L75: 956.71626 | M75: 76.5373008 | N75: 27.487 | O75: 49.0503008
A76: 1900-01-01 | B76: 2023-01-08 | C76: C1 | D76: obstacle | E76: CAGNES-SUR-MER | H76: Hdcp | J76: 5anset+ | K76: 11 | L76: 415.147 | M76: 33.21176 | N76: 42.094 | O76: -8.88224
A77: 1900-01-01 | B77: 2023-01-08 | C77: C2 | D77: obstacle | E77: CAGNES-SUR-MER | H77: Conditions | I77: C2 | J77: 4ans | K77: 12 | L77: 565.72111 | M77: 45.2576888 | N77: 49.932 | O77: -4.6743112
A78: 1900-01-01 | B78: 2023-01-08 | C78: C3 | D78: obstacle | E78: CAGNES-SUR-MER | H78: Listed | J78: 4ans | K78: 11 | L78: 649.51973 | M78: 51.9615784 | N78: 81.2 | O78: -29.2384216
A79: 1900-01-01 | B79: 2023-01-08 | C79: C4 | D79: obstacle | E79: CAGNES-SUR-MER | H79: Listed | J79: 4ans | K79: 9 | L79: 738.02725 | M79: 59.04218 | N79: 88.804 | O79: -29.76182
A80: 1900-01-01 | B80: 2023-01-08 | C80: C5 | D80: obstacle | E80: CAGNES-SUR-MER | H80: Listed | J80: 5anset+ | K80: 10 | L80: 631.698 | M80: 50.53584 | N80: 92.144 | O80: -41.60816
A81: 1900-01-01 | B81: 2023-01-08 | C81: C6 | D81: obstacle | E81: CAGNES-SUR-MER | H81: GROUPES | I81: III | J81: 5anset+ | K81: 12 | L81: 878.53265 | M81: 70.282612 | N81: 176.326 | O81: -106.043388
A82: 1900-01-01 | B82: 2023-01-08 | C82: C7 | D82: obstacle | E82: CAGNES-SUR-MER | H82: Hdcp | J82: 6anset+ | K82: 12 | L82: 523.11534 | M82: 41.8492272 | N82: 48.087 | O82: -6.2377728
A83: 1900-01-01 | B83: 2023-01-08 | C83: C1 | D83: plat | E83: PORNICHET | H83: Hdcp | I83: C3 | J83: 4anset+ | K83: 16 | L83: 899.576 | M83: 71.96608 | N83: 26.554 | O83: 45.41208
A84: 1900-01-01 | B84: 2023-01-08 | C84: C2 | D84: plat | E84: PORNICHET | H84: Hdcp | I84: C4 | J84: 4anset+ | K84: 16 | L84: 650.87956 | M84: 52.0703648 | N84: 21.361 | O84: 30.7093648
A85: 1900-01-01 | B85: 2023-01-08 | C85: C3 | D85: plat | E85: PORNICHET | H85: Conditions | J85: 4ans | K85: 11 | L85: 750.35111 | M85: 60.0280888 | N85: 20.649 | O85: 39.3790888
A86: 1900-01-01 | B86: 2023-01-08 | C86: C4 | D86: plat | E86: PORNICHET | H86: Maiden | J86: 4ans | K86: 11 | L86: 651.79842 | M86: 52.1438736 | N86: 21.913 | O86: 30.2308736
A87: 1900-01-01 | B87: 2023-01-08 | C87: C5 | D87: plat | E87: PORNICHET | H87: Maiden | J87: 4ans | K87: 11 | L87: 610.56663 | M87: 48.8453304 | N87: 14.342 | O87: 34.5033304
A88: 1900-01-01 | B88: 2023-01-08 | C88: C6 | D88: plat | E88: PORNICHET | H88: Réclamers | J88: 3ans | K88: 7 | L88: 305.79447 | M88: 24.4635576 | N88: 19.878 | O88: 4.5855576
A89: 1900-01-01 | B89: 2023-01-08 | C89: C7 | D89: plat | E89: PORNICHET | H89: Maiden | J89: 3ans | K89: 6 | L89: 311.55794 | M89: 24.9246352 | N89: 33.943 | O89: -9.0183648
A90: 1900-01-02 | B90: 2023-01-09 | C90: C1 | D90: obstacle | E90: PAU | H90: Réclamers | J90: 4ans | K90: 7 | L90: 195.64779 | M90: 15.6518232 | N90: 24.551 | O90: -8.8991768
A91: 1900-01-02 | B91: 2023-01-09 | C91: C2 | D91: plat | E91: PAU | H91: Maiden | J91: 3ans | K91: 9 | L91: 413.94479 | M91: 33.1155832 | N91: 35.895 | O91: -2.7794168
A92: 1900-01-02 | B92: 2023-01-09 | C92: C3 | D92: obstacle | E92: PAU | H92: Conditions | I92: C2 | J92: 4ans | K92: 10 | L92: 461.87849 | M92: 36.9502792 | N92: 42.644 | O92: -5.6937208
A93: 1900-01-02 | B93: 2023-01-09 | C93: C4 | D93: plat | E93: PAU | H93: Hdcp | I93: C4 | J93: 5anset+ | K93: 13 | L93: 589.77555 | M93: 47.182044 | N93: 22.508 | O93: 24.674044
A94: 1900-01-02 | B94: 2023-01-09 | C94: C5 | D94: obstacle | E94: PAU | H94: Conditions | I94: C1 | J94: 5ans | K94: 8 | L94: 583.51969 | M94: 46.6815752 | N94: 48.088 | O94: -1.4064248
A95: 1900-01-02 | B95: 2023-01-09 | C95: C6 | D95: plat | E95: PAU | H95: Hdcp | I95: C3 | J95: 5anset+ | K95: 13 | L95: 849.31124 | M95: 67.9448992 | N95: 27.717 | O95: 40.2278992
A96: 1900-01-02 | B96: 2023-01-09 | C96: C7 | D96: plat | E96: PAU | H96: Maiden | J96: 3ans | K96: 12 | L96: 973.14628 | M96: 77.8517024 | N96: 36.926 | O96: 40.9257024
A97: 1900-01-02 | B97: 2023-01-09 | C97: C8 | D97: plat | E97: PAU | H97: Hdcp | I97: C3 | J97: 5anset+ | K97: 14 | L97: 901.63476 | M97: 72.1307808 | N97: 33.869 | O97: 38.2617808
A98: 1900-01-03 | B98: 2023-01-10 | C98: C1 | D98: plat | E98: MARSEILLE PONT DE VIVAUX | H98: Hdcp | I98: C3 | J98: 4anset+ | K98: 12 | L98: 854.61027 | M98: 68.3688216 | N98: 27.894 | O98: 40.4748216
A99: 1900-01-03 | B99: 2023-01-10 | C99: C2 | D99: plat | E99: MARSEILLE PONT DE VIVAUX | H99: Hdcp | I99: C4 | J99: 4anset+ | K99: 12 | L99: 800.0993 | M99: 64.007944 | N99: 18.877 | O99: 45.130944
A100: 1900-01-03 | B100: 2023-01-10 | C100: C3 | D100: plat | E100: MARSEILLE PONT DE VIVAUX | H100: Hdcp | I100: C4 | J100: 4anset+ | K100: 13 | L100: 900.77915 | M100: 72.062332 | N100: 19.461 | O100: 52.601332
A101: 1900-01-03 | B101: 2023-01-10 | C101: C4 | D101: plat | E101: MARSEILLE PONT DE VIVAUX | H101: Réclamers | I101: C4 | J101: 4anset+ | K101: 11 | L101: 1015.674 | M101: 81.25392 | N101: 19.744 | O101: 61.50992
A102: 1900-01-03 | B102: 2023-01-10 | C102: C5 | D102: plat | E102: MARSEILLE PONT DE VIVAUX | H102: Hdcp | I102: C4 | J102: 4anset+ | K102: 12 | L102: 599.35639 | M102: 47.9485112 | N102: 22.579 | O102: 25.3695112
A103: 1900-01-03 | B103: 2023-01-10 | C103: C6 | D103: plat | E103: MARSEILLE PONT DE VIVAUX | H103: Réclamers | I103: C3 | J103: 5anset+ | K103: 9 | L103: 617.21154 | M103: 49.3769232 | N103: 20.211 | O103: 29.1659232
A104: 1900-01-03 | B104: 2023-01-10 | C104: C7 | D104: plat | E104: MARSEILLE PONT DE VIVAUX | H104: Réclamers | J104: 3ans | K104: 8 | L104: 407.23632 | M104: 32.5789056 | N104: 23.321 | O104: 9.2579056
A105: 1900-01-03 | B105: 2023-01-10 | C105: C8 | D105: plat | E105: MARSEILLE PONT DE VIVAUX | H105: Conditions | I105: C3 | J105: 5anset+ | K105: 7 | L105: 292.93588 | M105: 23.4348704 | N105: 23.446 | O105: -0.0111296
A106: 1900-01-04 | B106: 2023-01-11 | C106: C1 | D106: plat | E106: PAU | H106: Conditions | I106: C2 | J106: 3ans | K106: 6 | L106: 386.24304 | M106: 30.8994432 | N106: 41.564 | O106: -10.6645568
A107: 1900-01-04 | B107: 2023-01-11 | C107: C2 | D107: obstacle | E107: PAU | F107: TQQ+ | H107: Hdcp | J107: 5ans | K107: 14 | L107: 7454.59391 | M107: 596.3675128 | N107: 120.222 | O107: 476.1455128
A108: 1900-01-04 | B108: 2023-01-11 | C108: C3 | D108: plat | E108: PAU | H108: Conditions | J108: 5anset+ | K108: 9 | L108: 657.80708 | M108: 52.6245664 | N108: 28.368 | O108: 24.2565664
A109: 1900-01-04 | B109: 2023-01-11 | C109: C4 | D109: obstacle | E109: PAU | H109: Conditions | I109: C1 | J109: 4ans | K109: 8 | L109: 601.05895 | M109: 48.084716 | N109: 45.846 | O109: 2.238716
A110: 1900-01-04 | B110: 2023-01-11 | C110: C5 | D110: obstacle | E110: PAU | H110: Conditions | I110: C2 | J110: 5ans | K110: 13 | L110: 724.67439 | M110: 57.9739512 | N110: 35.493 | O110: 22.4809512
A111: 1900-01-04 | B111: 2023-01-11 | C111: C6 | D111: plat | E111: PAU | H111: Hdcp | I111: C3 | J111: 4ans | K111: 16 | L111: 1028.11377 | M111: 82.2491016 | N111: 34.044 | O111: 48.2051016
A112: 1900-01-04 | B112: 2023-01-11 | C112: C7 | D112: obstacle | E112: PAU | H112: Conditions | I112: C3 | J112: 5ans | K112: 14 | L112: 741.82831 | M112: 59.3462648 | N112: 40.074 | O112: 19.2722648
A113: 1900-01-04 | B113: 2023-01-11 | C113: C8 | D113: obstacle | E113: PAU | H113: Hdcp | J113: 5ans | K113: 14 | L113: 996.959 | M113: 79.75672 | N113: 66.785 | O113: 12.97172
A114: 1900-01-05 | B114: 2023-01-12 | C114: C1 | D114: plat | E114: LYON LA SOIE | H114: Maiden | J114: 3ans | K114: 11 | L114: 893.509 | M114: 71.48072 | N114: 35.147 | O114: 36.33372
A115: 1900-01-05 | B115: 2023-01-12 | C115: C2 | D115: plat | E115: LYON LA SOIE | H115: Hdcp | I115: C3 | J115: 4anset+ | K115: 13 | L115: 913.41804 | M115: 73.0734432 | N115: 27.304 | O115: 45.7694432
A116: 1900-01-05 | B116: 2023-01-12 | C116: C3 | D116: plat | E116: LYON LA SOIE | H116: Maiden | J116: 3ans | K116: 11 | L116: 893.48911 | M116: 71.4791288 | N116: 27.962 | O116: 43.5171288
A117: 1900-01-05 | B117: 2023-01-12 | C117: C4 | D117: plat | E117: LYON LA SOIE | H117: Hdcp | I117: C4 | J117: 4anset+ | K117: 11 | L117: 928.89785 | M117: 74.311828 | N117: 21.046 | O117: 53.265828
A118: 1900-01-05 | B118: 2023-01-12 | C118: C5 | D118: plat | E118: LYON LA SOIE | H118: Conditions | I118: C3 | J118: 4ans | K118: 9 | L118: 771.13389 | M118: 61.6907112 | N118: 24.82 | O118: 36.8707112
A119: 1900-01-05 | B119: 2023-01-12 | C119: C6 | D119: plat | E119: LYON LA SOIE | H119: Conditions | I119: C4 | J119: 5anset+ | K119: 12 | L119: 761.49494 | M119: 60.9195952 | N119: 18.262 | O119: 42.6575952
A120: 1900-01-05 | B120: 2023-01-12 | C120: C7 | D120: plat | E120: LYON LA SOIE | H120: Conditions | I120: C3 | J120: 5anset+ | K120: 8 | L120: 556.6488 | M120: 44.531904 | N120: 25.336 | O120: 19.195904
A121: 1900-01-06 | B121: 2023-01-13 | C121: C1 | D121: plat | E121: DEAUVILLE | H121: Hdcp | I121: C3 | J121: 4anset+ | K121: 16 | L121: 854.47025 | M121: 68.35762 | N121: 23.972 | O121: 44.38562
A122: 1900-01-06 | B122: 2023-01-13 | C122: C2 | D122: plat | E122: DEAUVILLE | H122: Hdcp | J122: 3ans | K122: 10 | L122: 904.01818 | M122: 72.3214544 | N122: 43.989 | O122: 28.3324544
A123: 1900-01-06 | B123: 2023-01-13 | C123: C3 | D123: plat | E123: DEAUVILLE | H123: Hdcp | I123: C3 | J123: 4anset+ | K123: 15 | L123: 990.47192 | M123: 79.2377536 | N123: 31.288 | O123: 47.9497536
A124: 1900-01-06 | B124: 2023-01-13 | C124: C4 | D124: plat | E124: DEAUVILLE | H124: Hdcp | I124: C3 | J124: 4anset+ | K124: 13 | L124: 802.35592 | M124: 64.1884736 | N124: 25.915 | O124: 38.2734736
A125: 1900-01-06 | B125: 2023-01-13 | C125: C5 | D125: plat | E125: DEAUVILLE | H125: Hdcp | I125: C3 | J125: 4anset+ | K125: 16 | L125: 1073.62202 | M125: 85.8897616 | N125: 41.206 | O125: 44.6837616
A126: 1900-01-06 | B126: 2023-01-13 | C126: C6 | D126: plat | E126: DEAUVILLE | H126: Maiden | J126: 3ans | K126: 12 | L126: 766.07335 | M126: 61.285868 | N126: 49.738 | O126: 11.547868
A127: 1900-01-06 | B127: 2023-01-13 | C127: C7 | D127: plat | E127: DEAUVILLE | H127: Hdcp | I127: C3 | J127: 4anset+ | K127: 16 | L127: 783.03567 | M127: 62.6428536 | N127: 22.28 | O127: 40.3628536
A128: 1900-01-06 | B128: 2023-01-13 | C128: C8 | D128: plat | E128: DEAUVILLE | F128: TQQ+ | H128: Hdcp | I128: C2 | J128: 4anset+ | K128: 16 | L128: 9497.83204 | M128: 759.8265632 | N128: 79.968 | O128: 679.8585632
A129: 1900-01-06 | B129: 2023-01-13 | C129: C9 | D129: plat | E129: DEAUVILLE | H129: Maiden | J129: 3ans | K129: 6 | L129: 312.53911 | M129: 25.0031288 | N129: 49.927 | O129: -24.9238712
A130: 1900-01-06 | B130: 2023-01-13 | C130: C1 | D130: obstacle | E130: PAU | H130: Réclamers | J130: 4ans | K130: 8 | L130: 372.71012 | M130: 29.8168096 | N130: 23.2 | O130: 6.6168096
A131: 1900-01-06 | B131: 2023-01-13 | C131: C2 | D131: plat | E131: PAU | H131: Réclamers | J131: 3ans | K131: 10 | L131: 510.79757 | M131: 40.8638056 | N131: 23.321 | O131: 17.5428056
A132: 1900-01-06 | B132: 2023-01-13 | C132: C3 | D132: obstacle | E132: PAU | H132: Conditions | I132: C4 | J132: 4et5ans | K132: 11 | L132: 522.20711 | M132: 41.7765688 | N132: 39.776 | O132: 2.0005688
A133: =WEEKDAY(B133) -> 1900-01-06 | B133: 2023-01-13 | C133: C4 | D133: obstacle | E133: PAU | H133: Conditions | I133: C2 | J133: 6anset+ | K133: 12 | L133: 543.90326 | M133: 43.5122608 | N133: 35.493 | O133: 8.0192608
A134: 1900-01-06 | B134: 2023-01-13 | C134: C5 | D134: plat | E134: PAU | H134: Réclamers | I134: C4 | J134: 4anset+ | K134: 14 | L134: 727.54094 | M134: 58.2032752 | N134: 20.189 | O134: 38.0142752
A135: 1900-01-06 | B135: 2023-01-13 | C135: C6 | D135: obstacle | E135: PAU | H135: Réclamers | J135: 6anset+ | K135: 14 | L135: 717.26369 | M135: 57.3810952 | N135: 21.752 | O135: =M135-N135 -> 35.6290952
A136: 1900-01-06 | B136: 2023-01-13 | C136: C7 | D136: plat | E136: PAU | H136: Conditions | I136: C3 | J136: 5anset+ | K136: 12 | L136: 817.97077 | M136: 65.4376616 | N136: 27.858 | O136: 37.5796616
A137: 1900-01-06 | B137: 2023-01-13 | C137: C8 | D137: plat | E137: PAU | H137: Hdcp | I137: C3 | J137: 4ans | K137: 15 | L137: 878.37633 | M137: 70.2701064 | N137: 35.472 | O137: 34.7981064
A138: 1900-01-07 | B138: 2023-01-14 | C138: C1 | D138: plat | E138: CHANTILLY | H138: Hdcp | I138: C3 | J138: 4ans | K138: 8 | L138: 504.82477 | M138: 40.3859816 | N138: 35.472 | O138: 4.9139816
A139: 1900-01-07 | B139: 2023-01-14 | C139: C2 | D139: plat | E139: CHANTILLY | H139: Maiden | J139: 3ans | K139: 11 | L139: 698.04209 | M139: 55.8433672 | N139: 50.888 | O139: 4.9553672
A140: 1900-01-07 | B140: 2023-01-14 | C140: C3 | D140: plat | E140: CHANTILLY | H140: Hdcp | I140: C3 | J140: 4anset+ | K140: 16 | L140: 808.48547 | M140: 64.6788376 | N140: 23.167 | O140: 41.5118376
A141: 1900-01-07 | B141: 2023-01-14 | C141: C4 | D141: plat | E141: CHANTILLY | H141: Conditions | I141: C3 | J141: 4anset+ | K141: 11 | L141: 807.52705 | M141: 64.602164 | N141: 24.874 | O141: 39.728164
A142: 1900-01-07 | B142: 2023-01-14 | C142: C5 | D142: plat | E142: CHANTILLY | H142: Maiden | J142: 3ans | K142: 12 | L142: 776.30448 | M142: 62.1043584 | N142: 51.22 | O142: 10.8843584
A143: 1900-01-07 | B143: 2023-01-14 | C143: C6 | D143: plat | E143: CHANTILLY | H143: Hdcp | I143: C3 | J143: 4ans | K143: 16 | L143: 1077.56616 | M143: 86.2052928 | N143: 32.093 | O143: 54.1122928
A144: 1900-01-07 | B144: 2023-01-14 | C144: C7 | D144: plat | E144: CHANTILLY | H144: Réclamers | J144: 3ans | K144: 17 | L144: 1138.91575 | M144: 91.11326 | N144: 33.194 | O144: 57.91926
A145: 1900-01-07 | B145: 2023-01-14 | C145: C8 | D145: plat | E145: CHANTILLY | H145: Hdcp | I145: C3 | J145: 4ans | K145: 16 | L145: 988.53914 | M145: 79.0831312 | N145: 32.577 | O145: 46.5061312
A146: 1900-01-01 | B146: 2023-01-15 | C146: C1 | D146: plat | E146: PAU | H146: Conditions | I146: C2 | J146: 3ans | K146: 5 | L146: 280.58374 | M146: 22.4466992 | N146: 38.604 | O146: -16.1573008
A147: 1900-01-01 | B147: 2023-01-15 | C147: C2 | D147: obstacle | E147: PAU | H147: Conditions | J147: 5anset+ AA | K147: 9 | L147: 447.62435 | M147: 35.809948 | N147: 57.249 | O147: -21.439052
A148: 1900-01-01 | B148: 2023-01-15 | C148: C3 | D148: obstacle | E148: PAU | H148: Conditions | I148: C3 | J148: 4ans | K148: 12 | L148: 541.38996 | M148: 43.3111968 | N148: 46.511 | O148: -3.1998032
A149: 1900-01-01 | B149: 2023-01-15 | C149: C4 | D149: plat | E149: PAU | H149: Maiden | J149: 3ans | K149: 10 | L149: 595.68269 | M149: 47.6546152 | N149: 36.632 | O149: 11.0226152
A150: 1900-01-01 | B150: 2023-01-15 | C150: C5 | D150: obstacle | E150: PAU | H150: Réclamers | J150: 5ans | K150: 10 | L150: 538.37951 | M150: 43.0703608 | N150: 21.752 | O150: 21.3183608
A151: 1900-01-01 | B151: 2023-01-15 | C151: C6 | D151: obstacle | E151: PAU | H151: Conditions | I151: C3 | J151: 5anset+ | K151: 11 | L151: 535.04176 | M151: 42.8033408 | N151: 40.074 | O151: 2.7293408
A152: 1900-01-01 | B152: 2023-01-15 | C152: C7 | D152: plat | E152: PAU | H152: Maiden | J152: 3ans | K152: 12 | L152: 815.69377 | M152: 65.2555016 | N152: 36.632 | O152: 28.6235016
A153: 1900-01-01 | B153: 2023-01-15 | C153: C8 | D153: obstacle | E153: PAU | H153: Hdcp | J153: 5ans | K153: 10 | L153: 530.10822 | M153: 42.4086576 | N153: 59.537 | O153: -17.1283424
A154: 1900-01-02 | B154: 2023-01-16 | C154: C1 | D154: plat | E154: CAGNES-SUR-MER | H154: Hdcp | I154: C3 | J154: 4ans | K154: 12 | L154: 624.8506 | M154: 49.988048 | N154: 28.085 | O154: 21.903048
A155: 1900-01-02 | B155: 2023-01-16 | C155: C2 | D155: plat | E155: CAGNES-SUR-MER | F155: TQQ+ | H155: Hdcp | I155: C2 | J155: 5anset+ | K155: 16 | L155: 7028.44871 | M155: 562.2758968 | N155: 78.391 | O155: 483.8848968
A156: 1900-01-02 | B156: 2023-01-16 | C156: C3 | D156: plat | E156: CAGNES-SUR-MER | H156: Maiden | J156: 3ans | K156: 12 | L156: 792.29211 | M156: 63.3833688 | N156: 44.701 | O156: 18.6823688
A157: 1900-01-02 | B157: 2023-01-16 | C157: C4 | D157: plat | E157: CAGNES-SUR-MER | H157: Maiden | J157: 3ans | K157: 11 | L157: 728.64076 | M157: 58.2912608 | N157: 44.701 | O157: 13.5902608
A158: 1900-01-02 | B158: 2023-01-16 | C158: C5 | D158: plat | E158: CAGNES-SUR-MER | H158: Hdcp | I158: C3 | J158: 4ans | K158: 12 | L158: 746.90253 | M158: 59.7522024 | N158: 31.947 | O158: 27.8052024
A159: 1900-01-02 | B159: 2023-01-16 | C159: C6 | D159: plat | E159: CAGNES-SUR-MER | H159: Conditions | I159: C2 | J159: 4anset+ | K159: 12 | L159: 1076.91405 | M159: 86.153124 | N159: 41.204 | O159: 44.949124
A160: 1900-01-02 | B160: 2023-01-16 | C160: C7 | D160: plat | E160: CAGNES-SUR-MER | H160: Hdcp | I160: C3 | J160: 5anset+ | K160: 16 | L160: 774.43032 | M160: 61.9544256 | N160: 28.848 | O160: 33.1064256
A161: 1900-01-02 | B161: 2023-01-16 | C161: C8 | D161: plat | E161: CAGNES-SUR-MER | H161: Hdcp | I161: C3 | J161: 5anset+ | K161: 16 | L161: 986.09474 | M161: 78.8875792 | N161: 29.654 | O161: 49.2335792
A162: 1900-01-03 | B162: 2023-01-17 | C162: C1 | D162: obstacle | E162: PAU | H162: Conditions | I162: C2 | J162: 6ans | K162: 7 | L162: 235.973 | M162: 18.87784 | N162: 35.493 | O162: -16.61516
A163: 1900-01-03 | B163: 2023-01-17 | C163: C2 | D163: obstacle | E163: PAU | H163: Réclamers | J163: 5ans | K163: 9 | L163: 309.258 | M163: 24.74064 | N163: 21.752 | O163: 2.98864
A164: 1900-01-03 | B164: 2023-01-17 | C164: C3 | D164: obstacle | E164: PAU | H164: Conditions | J164: 5ans AA | K164: 9 | L164: 440.209 | M164: 35.21672 | N164: 40.457 | O164: -5.24028
A165: 1900-01-03 | B165: 2023-01-17 | C165: C4 | D165: obstacle | E165: PAU | H165: Conditions | I165: C3 | J165: 6anset+ | K165: 8 | L165: 456.798 | M165: 36.54384 | N165: 37.782 | O165: -1.23816
A166: 1900-01-03 | B166: 2023-01-17 | C166: C5 | D166: plat | E166: PAU | H166: Hdcp | I166: C4 | J166: 5anset+ | K166: 13 | L166: 571.973 | M166: 45.75784 | N166: 21.993 | O166: 23.76484
A167: 1900-01-03 | B167: 2023-01-17 | C167: C6 | D167: obstacle | E167: PAU | H167: Conditions | I167: C3 | J167: 4ans | K167: 8 | L167: 460.565 | M167: 36.8452 | N167: 39.808 | O167: -2.9628
A168: 1900-01-03 | B168: 2023-01-17 | C168: C7 | D168: plat | E168: PAU | H168: Hdcp | I168: C3 | J168: 5anset+ | K168: 14 | L168: 742.225 | M168: 59.378 | N168: 21.73 | O168: 37.648
A169: 1900-01-03 | B169: 2023-01-17 | C169: C8 | D169: obstacle | E169: PAU | H169: Réclamers | J169: 4ans | K169: 12 | L169: 675.737 | M169: 54.05896 | N169: 26.281 | O169: 27.77796
A170: 1900-01-03 | B170: 2023-01-17 | C170: C9 | D170: plat | E170: PAU | H170: Hdcp | I170: C3 | J170: 5anset+ | K170: 14 | L170: 923.618 | M170: 73.88944 | N170: 33.632 | O170: 40.25744
A171: 1900-01-04 | B171: 2023-01-18 | C171: C1 | D171: plat | E171: CAGNES-SUR-MER | H171: Conditions | I171: C2 | J171: 3ans | K171: 5 | L171: 241.854 | M171: 19.34832 | N171: 45.846 | O171: -26.49768
A172: 1900-01-04 | B172: 2023-01-18 | C172: C2 | D172: plat | E172: CAGNES-SUR-MER | H172: Maiden | J172: 3ans | K172: 8 | L172: 466.02 | M172: 37.2816 | N172: 43.811 | O172: -6.5294
A173: 1900-01-04 | B173: 2023-01-18 | C173: C3 | D173: plat | E173: CAGNES-SUR-MER | H173: Maiden | J173: 3ans | K173: 8 | L173: 786.49 | M173: 62.9192 | N173: 44.345 | O173: 18.5742
A174: 1900-01-04 | B174: 2023-01-18 | C174: C4 | D174: plat | E174: CAGNES-SUR-MER | F174: TQQ+ | H174: Hdcp | I174: C2 | J174: 4ans | K174: 16 | L174: 7100.066 | M174: 568.00528 | N174: 82.512 | O174: 485.49328
A175: 1900-01-04 | B175: 2023-01-18 | C175: C5 | D175: plat | E175: CAGNES-SUR-MER | H175: Hdcp | I175: C3 | J175: 5anset+ | K175: 13 | L175: 891.437 | M175: 71.31496 | N175: 21.259 | O175: 50.05596
A176: 1900-01-04 | B176: 2023-01-18 | C176: C6 | D176: plat | E176: CAGNES-SUR-MER | H176: Hdcp | I176: C3 | J176: 5anset+ | K176: 14 | L176: 789.366 | M176: 63.14928 | N176: 33.617 | O176: 29.53228
A177: 1900-01-04 | B177: 2023-01-18 | C177: C7 | D177: plat | E177: CAGNES-SUR-MER | H177: Hdcp | I177: C3 | J177: 4ans | K177: 17 | L177: 839.997 | M177: 67.19976 | N177: 42.195 | O177: 25.00476
A178: 1900-01-05 | B178: 2023-01-19 | C178: C1 | D178: plat | E178: CAGNES-SUR-MER | H178: Conditions | I178: C2 | J178: 4ans | K178: 5 | L178: 213.492 | M178: 17.07936 | N178: 43.657 | O178: -26.57764
A179: 1900-01-05 | B179: 2023-01-19 | C179: C2 | D179: plat | E179: CAGNES-SUR-MER | H179: Inédits | J179: 3ans | K179: 8 | L179: 360.172 | M179: 28.81376 | N179: 42.815 | O179: -14.00124
A180: 1900-01-05 | B180: 2023-01-19 | C180: C3 | D180: plat | E180: CAGNES-SUR-MER | H180: Inédits | J180: 3ans | K180: 8 | L180: 519.273 | M180: 41.54184 | N180: 42.175 | O180: -0.63316
A181: 1900-01-05 | B181: 2023-01-19 | C181: C4 | D181: plat | E181: CAGNES-SUR-MER | H181: Conditions | I181: C2 | J181: 5anset+ | K181: 9 | L181: 611.109 | M181: 48.88872 | N181: 42.516 | O181: 6.37272
A182: 1900-01-05 | B182: 2023-01-19 | C182: C5 | D182: plat | E182: CAGNES-SUR-MER | H182: Hdcp | J182: 3ans | K182: 11 | L182: 643.776 | M182: 51.50208 | N182: 34.565 | O182: 16.93708
A183: 1900-01-05 | B183: 2023-01-19 | C183: C6 | D183: plat | E183: CAGNES-SUR-MER | H183: Hdcp | I183: C3 | J183: 4anset+ | K183: 11 | L183: 832.621 | M183: 66.60968 | N183: 31.091 | O183: 35.51868
A184: 1900-01-05 | B184: 2023-01-19 | C184: C7 | D184: plat | E184: CAGNES-SUR-MER | H184: Hdcp | I184: C3 | J184: 4anset+ | K184: 18 | L184: 884.74 | M184: 70.7792 | N184: 33.073 | O184: 37.7062
A185: 1900-01-05 | B185: 2023-01-19 | C185: C8 | D185: plat | E185: CAGNES-SUR-MER | H185: Hdcp | I185: C3 | J185: 4anset+ | K185: 15 | L185: 984.132 | M185: 78.73056 | N185: 34.986 | O185: 43.74456
A186: 1900-01-06 | B186: 2023-01-20 | C186: C1 | D186: obstacle | E186: PAU | H186: Conditions | J186: 6anset+ | K186: 6 | L186: 200.605 | M186: 16.0484 | N186: 57.249 | O186: -41.2006
A187: 1900-01-06 | B187: 2023-01-20 | C187: C2 | D187: obstacle | E187: PAU | H187: Conditions | I187: C3 | J187: 5ans | K187: 9 | L187: 316.743 | M187: 25.33944 | N187: 40.074 | O187: -14.73456
A188: 1900-01-06 | B188: 2023-01-20 | C188: C3 | D188: obstacle | E188: PAU | H188: Réclamers | J188: 6anset+ | K188: 9 | L188: 342.105 | M188: 27.3684 | N188: 20.774 | O188: 6.5944
A189: 1900-01-06 | B189: 2023-01-20 | C189: C4 | D189: obstacle | E189: PAU | H189: Réclamers | J189: 4ans | K189: 10 | L189: 410.102 | M189: 32.80816 | N189: 23.2 | O189: 9.60816
A190: 1900-01-06 | B190: 2023-01-20 | C190: C5 | D190: obstacle | E190: PAU | H190: Conditions | I190: C3 | J190: 5anset+ | K190: 11 | L190: 428.412 | M190: 34.27296 | N190: 37.782 | O190: -3.50904
A191: 1900-01-06 | B191: 2023-01-20 | C191: C6 | D191: plat | E191: PAU | H191: Hdcp | J191: 3ans | K191: 11 | L191: 509.502 | M191: 40.76016 | N191: 26.212 | O191: 14.54816
A192: 1900-01-06 | B192: 2023-01-20 | C192: C7 | D192: obstacle | E192: PAU | H192: Conditions | I192: C3 | J192: 4ans | K192: 9 | L192: 438.961 | M192: 35.11688 | N192: 41.13 | O192: -6.01312
A193: 1900-01-06 | B193: 2023-01-20 | C193: C8 | D193: plat | E193: PAU | H193: Hdcp | I193: C3 | J193: 4anset+ | K193: 12 | L193: 642.926 | M193: 51.43408 | N193: 35.258 | O193: 16.17608
A194: 1900-01-06 | B194: 2023-01-20 | C194: C1 | D194: plat | E194: DEAUVILLE | H194: Hdcp | J194: 3ans | K194: 13 | L194: 753.925 | M194: 60.314 | N194: 44.701 | O194: 15.613
A195: 1900-01-06 | B195: 2023-01-20 | C195: C2 | D195: plat | E195: DEAUVILLE | H195: Hdcp | I195: C3 | J195: 4anset+ | K195: 15 | L195: 692.004 | M195: 55.36032 | N195: 30.221 | O195: 25.13932
A196: 1900-01-06 | B196: 2023-01-20 | C196: C3 | D196: plat | E196: DEAUVILLE | H196: Conditions | I196: C3 | J196: 4ans | K196: 14 | L196: 944.603 | M196: 75.56824 | N196: 25.444 | O196: 50.12424
A197: =WEEKDAY(B197) -> 1900-01-06 | B197: 2023-01-20 | C197: C4 | D197: plat | E197: DEAUVILLE | H197: Hdcp | I197: C3 | J197: 4anset+ | K197: 16 | L197: 771.339 | M197: 61.70712 | N197: 26.568 | O197: 35.13912
A198: 1900-01-06 | B198: 2023-01-20 | C198: C5 | D198: plat | E198: DEAUVILLE | H198: Hdcp | I198: C3 | J198: 4anset+ | K198: 14 | L198: 800.126 | M198: 64.01008 | N198: 35.925 | O198: 28.08508
A199: 1900-01-06 | B199: 2023-01-20 | C199: C6 | D199: plat | E199: DEAUVILLE | H199: Hdcp | I199: C3 | J199: 4anset+ | K199: 15 | L199: 822.888 | M199: 65.83104 | N199: 23.985 | O199: =M199-N199 -> 41.84604
A200: 1900-01-06 | B200: 2023-01-20 | C200: C7 | D200: plat | E200: DEAUVILLE | H200: Réclamers | I200: C3 | J200: 4anset+ | K200: 11 | L200: 681.733 | M200: 54.53864 | N200: 27.12 | O200: 27.41864
A201: 1900-01-06 | B201: 2023-01-20 | C201: C8 | D201: plat | E201: DEAUVILLE | F201: TQQ+ | H201: Hdcp | I201: C2 | J201: 4anset+ | K201: 16 | L201: 8360.687 | M201: 668.85496 | N201: 71.732 | O201: 597.12296
... 4876 more rows

Sheet Synthèse
C3: Hippodromes
D5: Hors Quintés | F5: Neuf Hippodromes structurellement déficitaires dont Longchamp (-24 000 eruos par course - vivement l'Arc)
F7: Les quintés permettent à quelques hippodromes de se remettre en positif
F8: (12 hippodromes ont bénéficié de Quintés)
C10: Courses
D12: Les courses rassemblant moins de 9 partants en plat et 11 partants en obstacles sont structurellement déficitaires
D14: En plat comme en obstacle les courses de groupes et Listed présentent un déficit important
D15: Seul l'Arc de triomphe semble présenter un résulat positif (base 2018)
D17: Sachant que nous en sommes au 4eme mois de l'année et que le déficit est actuelle de +/- 4 M d'euros, il faut s'attendre à un déficit de plus de 12 M sur l'année
D18: Vivement l'Arc (espérance de gain de 1M d'euros ?)
D20: Obstacle
D21: L'obstacle est sauvé par les Handicap et réclamers (pourvu que le nombre de 10 à 11 partants soit atteint)
D22: EN obstacle encore les courses à conditions sont déficitaires
D24: Plat
D25: Les courses à conditions sont positives à partir de 9 partants
D26: Les Maiden donnent des résultats correct
C28: La classification par age ne donne pas de résultat significatifs
C30: On en revient toujours à la même conclusion
D31: Les gains sont directement liés au nombre de partants peu importe la qualité des chevaux
D33: L'enjeu est de faire coincider la mission de France Galop (amélioration de l'élevage) avec le besoin du PMU d'avoir des pelotons fournis
D35: Voies à explorer
E36: - Programmes pour des chevaux agés (?)
E37: - introduction de nouveaux jeux type instantanés (combinaison "sages" "risquées...?)
E38: - faire revenir le public sur l'hippodrome: tirage au sort d'un lot prestigieux pour les visiteurs

Sheet 2024 (2)
A1: A:A | K1: =+L4/0.88 -> 568703.8207 | L1: =+L4-K1 -> -68244.45849 | M1: =+L1/5*12 -> -163786.7004 | N1: =+M1*0.08 -> -13102.93603
E2: Moyenne par partant | L2: =+L4/K4 -> 72.76233821 | M2: =+M4/K4 -> 5.813659369 | N2: =+N4/K4 -> 3.451394402 | O2: =+O4/K4 -> 2.362264966
E3: Moyenne/course | K3: =K4/H4 -> 11.12944984 | L3: =+L4/H4 -> 809.8047933 | M3: =+M4/H4 -> 64.70283032 | N3: =+N4/H4 -> 38.41212087 | O3: =+O4/H4 -> 26.29070945
B4: 0 | E4: Total | F4: =SUBTOTAL(3,F7:F5105) -> 21 | G4: =SUBTOTAL(3,G7:G5105) -> 0 | H4: =SUBTOTAL(3,H7:H5105) -> 618 | K4: =SUBTOTAL(9,K7:K5105) -> 6878 | L4: =SUBTOTAL(9,L7:L5105) -> 500459.3622 | M4: =SUBTOTAL(9,M7:M5105) -> 39986.34914 | N4: =SUBTOTAL(9,N7:N5105) -> 23738.6907 | O4: =M4-N4 -> 16247.65844 | Q4: =SUBTOTAL(9,Q7:Q5105) -> 238871.168 | S4: =SUM(#REF!) ->  | T4: =SUM(#REF!) ->  | U4: =(T4-S4)/S4 ->  | W4: Nombre de réunions | Y4: =MAX(#REF!) ->  | AE4: =SUM(AE9:AE67) -> 0
AE5: Programme
A6: Jour | B6: Date | C6: Course | D6: Discipline | E6: Hippodrome | F6: Jeu | G6: COND. | H6: conditions | I6: Cat | J6: Age | K6: Pts | L6: enjeux | M6: retour net | N6: alloc distrib. | O6: résultat | Q6: enj 2023 | R6: alloc etr | S6: enj 2019 | T6: enj 2020 | U6: Ecart | V6: TQQ + 2018 | W6: ecart 2019/2018 | Y6: N° réunions | Z6: alloc 2019 | AA6: alloc 2018
A7: =WEEKDAY(B7) -> 1900-01-02 | B7: 2024-01-01 | C7: C1 | D7: obstacle | E7: CAGNES-SUR-MER | H7: Conditions | I7: C4 | J7: 4ans | K7: 11 | L7: 337.37 | M7: 26.9896 | N7: 40.977 | O7: =M7-N7 -> -13.9874 | AE7: Live et ReplayCôté Courses
A8: 1900-01-02 | B8: 2024-01-01 | C8: C2 | D8: obstacle | E8: CAGNES-SUR-MER | H8: Réclamers | J8: 6anset+ | K8: 10 | L8: 430.054 | M8: 34.40432 | N8: 22.899 | O8: =M8-N8 -> 11.50532 | AE8: actualité
A9: 1900-01-02 | B9: 2024-01-01 | C9: C3 | D9: obstacle | E9: CAGNES-SUR-MER | H9: Réclamers | J9: 4ans | K9: 9 | L9: 389.96 | M9: 31.1968 | N9: 24.3747 | O9: =M9-N9 -> 6.8221
A10: 1900-01-02 | B10: 2024-01-01 | C10: C4 | D10: obstacle | E10: CAGNES-SUR-MER | H10: Conditions | I10: C4 | J10: 6anset+ | K10: 7 | L10: 382.884 | M10: 30.63072 | N10: 41.878 | O10: -11.24728
A11: 1900-01-02 | B11: 2024-01-01 | C11: C5 | D11: obstacle | E11: CAGNES-SUR-MER | H11: Conditions | I11: C2 | J11: 4ans | K11: 8 | L11: 413.318 | M11: 33.06544 | N11: 45.704 | O11: -12.63856
A12: 1900-01-02 | B12: 2024-01-01 | C12: C6 | D12: obstacle | E12: CAGNES-SUR-MER | H12: Réclamers | J12: 5ans | K12: 11 | L12: 471.023 | M12: 37.68184 | N12: 22.899 | O12: 14.78284
A13: 1900-01-02 | B13: 2024-01-01 | C13: C7 | D13: obstacle | E13: CAGNES-SUR-MER | H13: Conditions | I13: C3 | J13: 5anset+ | K13: 11 | L13: 608.021 | M13: 48.64168 | N13: 39.733 | O13: 8.90868
A14: 1900-01-03 | B14: 2024-01-02 | C14: C1 | D14: obstacle | E14: PAU | H14: Réclamers | J14: 5anset+ | K14: 10 | L14: 493.208 | M14: 39.45664 | N14: 22.899 | O14: 16.55764
A15: 1900-01-03 | B15: 2024-01-02 | C15: C2 | D15: obstacle | E15: PAU | H15: Réclamers | J15: 5anset+ | K15: 12 | L15: 537.497 | M15: 42.99976 | N15: 26.327 | O15: 16.67276
A16: 1900-01-03 | B16: 2024-01-02 | C16: C3 | D16: obstacle | E16: PAU | F16: TQQ+ | H16: Hdcp | J16: 6anset+ | K16: 15 | L16: 6645.483 | M16: 531.63864 | N16: 125.947 | O16: 405.69164
A17: 1900-01-03 | B17: 2024-01-02 | C17: C4 | D17: plat | E17: PAU | H17: Maiden | J17: 3ans | K17: 12 | L17: 842.788 | M17: 67.42304 | N17: 40.813 | O17: 26.61004
A18: 1900-01-03 | B18: 2024-01-02 | C18: C5 | D18: obstacle | E18: PAU | H18: Inédits | J18: 4ans AQPS | K18: 14 | L18: 734.132 | M18: 58.73056 | N18: 42.916 | O18: 15.81456
A19: 1900-01-03 | B19: 2024-01-02 | C19: C6 | D19: plat | E19: PAU | H19: Maiden | J19: 3ans | K19: 13 | L19: 875.17 | M19: 70.0136 | N19: 36.85 | O19: 33.1636
A20: 1900-01-03 | B20: 2024-01-02 | C20: C7 | D20: plat | E20: PAU | H20: Conditions | I20: C2 | J20: 3ans | K20: 9 | L20: 990.931 | M20: 79.27448 | N20: 34.566 | O20: 44.70848
A21: 1900-01-03 | B21: 2024-01-02 | C21: C8 | D21: obstacle | E21: PAU | H21: Hdcp | J21: 6anset+ | K21: 11 | L21: 879.517 | M21: 70.36136 | N21: 70.986 | O21: -0.62464
A22: 1900-01-04 | B22: 2024-01-03 | C22: C1 | D22: obstacle | E22: CAGNES-SUR-MER | H22: Réclamers | J22: 4ans | K22: 7 | L22: 222.795 | M22: 17.8236 | N22: 22.064 | O22: -4.2404
A23: 1900-01-04 | B23: 2024-01-03 | C23: C2 | D23: obstacle | E23: CAGNES-SUR-MER | H23: Réclamers | J23: 4ans | K23: 9 | L23: 354.746 | M23: 28.37968 | N23: 23.104 | O23: 5.27568
A24: 1900-01-04 | B24: 2024-01-03 | C24: C3 | D24: obstacle | E24: CAGNES-SUR-MER | H24: Conditions | I24: C3 | J24: 5anset+ | K24: 8 | L24: 432.82 | M24: 34.6256 | N24: 41.181 | O24: -6.5554
A25: 1900-01-04 | B25: 2024-01-03 | C25: C4 | D25: obstacle | E25: CAGNES-SUR-MER | H25: Conditions | I25: C4 | J25: 5ans | K25: 9 | L25: 533.256 | M25: 42.66048 | N25: 40.072 | O25: 2.58848
A26: 1900-01-04 | B26: 2024-01-03 | C26: C5 | D26: obstacle | E26: CAGNES-SUR-MER | H26: Réclamers | J26: 5anset+ | K26: 11 | L26: 689.599 | M26: 55.16792 | N26: 22.812 | O26: 32.35592
A27: 1900-01-04 | B27: 2024-01-03 | C27: C6 | D27: obstacle | E27: CAGNES-SUR-MER | H27: Conditions | I27: C4 | J27: 4ans | K27: 12 | L27: 606.989 | M27: 48.55912 | N27: 42.652 | O27: 5.90712
A28: 1900-01-04 | B28: 2024-01-03 | C28: C7 | D28: obstacle | E28: CAGNES-SUR-MER | H28: Hdcp | J28: 5ans | K28: 12 | L28: 712.047 | M28: 56.96376 | N28: 44.651 | O28: 12.31276
A29: 1900-01-04 | B29: 2024-01-03 | C29: C1 | D29: plat | E29: LYON LA SOIE | H29: Maiden | J29: 3ans | K29: 12 | L29: 946.186 | M29: 75.69488 | N29: 36.606 | O29: 39.08888
A30: 1900-01-04 | B30: 2024-01-03 | C30: C2 | D30: plat | E30: LYON LA SOIE | H30: Maiden | J30: 3ans | K30: 15 | L30: 786.383 | M30: 62.91064 | N30: 27.934 | O30: 34.97664
A31: 1900-01-04 | B31: 2024-01-03 | C31: C3 | D31: plat | E31: LYON LA SOIE | H31: Hdcp | I31: C3 | J31: 4anset+ | K31: 15 | L31: 87.842 | M31: 7.02736 | N31: 29.869 | O31: -22.84164
A32: 1900-01-04 | B32: 2024-01-03 | C32: C4 | D32: plat | E32: LYON LA SOIE | H32: Hdcp | I32: C4 | J32: 4anset+ | K32: 12 | L32: 713.854 | M32: 57.10832 | N32: 25.807 | O32: 31.30132
A33: 1900-01-04 | B33: 2024-01-03 | C33: C5 | D33: plat | E33: LYON LA SOIE | H33: Réclamers | I33: C4 | J33: 4anset+ | K33: 9 | L33: 591.054 | M33: 47.28432 | N33: 19.241 | O33: 28.04332
A34: 1900-01-04 | B34: 2024-01-03 | C34: C6 | D34: plat | E34: LYON LA SOIE | H34: Hdcp | I34: C3 | J34: 4anset+ | K34: 12 | L34: 804.319 | M34: 64.34552 | N34: 30.272 | O34: 34.07352
A35: 1900-01-04 | B35: 2024-01-03 | C35: C7 | D35: plat | E35: LYON LA SOIE | H35: Conditions | I35: C4 | J35: 4ans | K35: 8 | L35: 631.606 | M35: 50.52848 | N35: 20.961 | O35: 29.56748
A36: 1900-01-05 | B36: 2024-01-04 | C36: C1 | D36: obstacle | E36: PAU | H36: Conditions | I36: C2 | J36: 4ans | K36: 8 | L36: 400.608 | M36: 32.04864 | N36: 49.399 | O36: -17.35036
A37: 1900-01-05 | B37: 2024-01-04 | C37: C2 | D37: obstacle | E37: PAU | H37: Inédits | J37: 4ans AQPS | K37: 17 | L37: 526.581 | M37: 42.12648 | N37: 48.705 | O37: -6.57852
A38: 1900-01-05 | B38: 2024-01-04 | C38: C3 | D38: obstacle | E38: PAU | H38: Réclamers | J38: 4ans | K38: 10 | L38: 590.395 | M38: 47.2316 | N38: 23.2 | O38: 24.0316
A39: 1900-01-05 | B39: 2024-01-04 | C39: C4 | D39: plat | E39: PAU | H39: Hdcp | I39: C4 | J39: 5anset+ | K39: 15 | L39: 698.38 | M39: 55.8704 | N39: 24.844 | O39: 31.0264
A40: 1900-01-05 | B40: 2024-01-04 | C40: C5 | D40: obstacle | E40: PAU | H40: Conditions | I40: C3 | J40: 5ans AQPS | K40: 14 | L40: 668.998 | M40: 53.51984 | N40: 42.36 | O40: 11.15984
A41: 1900-01-05 | B41: 2024-01-04 | C41: C6 | D41: obstacle | E41: PAU | H41: Conditions | J41: 6anset+ AQPS | K41: 10 | L41: 758.208 | M41: 60.65664 | N41: 42.36 | O41: 18.29664
A42: 1900-01-05 | B42: 2024-01-04 | C42: C7 | D42: plat | E42: PAU | H42: Hdcp | I42: C3 | J42: 5anset+ | K42: 16 | L42: 693.925 | M42: 55.514 | N42: 28.786 | O42: 26.728
A43: 1900-01-05 | B43: 2024-01-04 | C43: C8 | D43: plat | E43: PAU | H43: Hdcp | I43: C3 | J43: 5anset+ | K43: 16 | L43: 762.566 | M43: 61.00528 | N43: 37.917 | O43: 23.08828
A44: 1900-01-05 | B44: 2024-01-04 | C44: C1 | D44: plat | E44: MARSEILLE PONT DE VIVAUX | H44: Maiden | J44: 4ans | K44: 12 | L44: 848.147 | M44: 67.85176 | N44: 21.018 | O44: 46.83376
A45: 1900-01-05 | B45: 2024-01-04 | C45: C2 | D45: plat | E45: MARSEILLE PONT DE VIVAUX | H45: Hdcp | I45: C3 | J45: 4anset+ | K45: 8 | L45: 645.936 | M45: 51.67488 | N45: 33.111 | O45: 18.56388
A46: 1900-01-05 | B46: 2024-01-04 | C46: C3 | D46: plat | E46: MARSEILLE PONT DE VIVAUX | H46: Hdcp | J46: 3ans | K46: 12 | L46: 817.439 | M46: 65.39512 | N46: 35.963 | O46: 29.43212
A47: 1900-01-05 | B47: 2024-01-04 | C47: C4 | D47: plat | E47: MARSEILLE PONT DE VIVAUX | H47: Hdcp | I47: C4 | J47: 4ans | K47: 10 | L47: 832.742 | M47: 66.61936 | N47: 29.543 | O47: 37.07636
A48: 1900-01-05 | B48: 2024-01-04 | C48: C5 | D48: plat | E48: MARSEILLE PONT DE VIVAUX | H48: Hdcp | I48: C3 | J48: 5anset+ | K48: 9 | L48: 616.363 | M48: 49.30904 | N48: 31.291 | O48: 18.01804
A49: 1900-01-05 | B49: 2024-01-04 | C49: C6 | D49: plat | E49: MARSEILLE PONT DE VIVAUX | H49: Maiden | J49: 4ans | K49: 11 | L49: 620.69 | M49: 49.6552 | N49: 20.034 | O49: 29.6212
A50: 1900-01-05 | B50: 2024-01-04 | C50: C7 | D50: plat | E50: MARSEILLE PONT DE VIVAUX | H50: Réclamers | I50: C4 | J50: 4anset+ | K50: 9 | L50: 506.455 | M50: 40.5164 | N50: 24.587 | O50: 15.9294
A51: 1900-01-05 | B51: 2024-01-04 | C51: C8 | D51: plat | E51: MARSEILLE PONT DE VIVAUX | H51: Maiden | J51: 3ans | K51: 9 | L51: 432.298 | M51: 34.58384 | N51: 40.651 | O51: -6.06716
A52: 1900-01-06 | B52: 2024-01-05 | C52: C1 | D52: plat | E52: DEAUVILLE | H52: Réclamers | J52: 3ans | K52: 13 | L52: 955.386 | M52: 76.43088 | N52: 43.455 | O52: 32.97588
A53: 1900-01-06 | B53: 2024-01-05 | C53: C2 | D53: plat | E53: DEAUVILLE | H53: Hdcp | I53: C3 | J53: 4anset+ | K53: 15 | L53: 990.257 | M53: 79.22056 | N53: 32.227 | O53: 46.99356
A54: 1900-01-06 | B54: 2024-01-05 | C54: C3 | D54: plat | E54: DEAUVILLE | H54: Conditions | I54: C3 | J54: 4anset+ | K54: 11 | L54: 1121.933 | M54: 89.75464 | N54: 29.511 | O54: 60.24364
A55: 1900-01-06 | B55: 2024-01-05 | C55: C4 | D55: plat | E55: DEAUVILLE | H55: Hdcp | I55: C3 | J55: 4anset+ | K55: 16 | L55: 955.409 | M55: 76.43272 | N55: 35.012 | O55: 41.42072
A56: 1900-01-06 | B56: 2024-01-05 | C56: C5 | D56: plat | E56: DEAUVILLE | H56: Hdcp | I56: C3 | J56: 4anset+ | K56: 15 | L56: 991.234 | M56: 79.29872 | N56: 43.361 | O56: 35.93772
A57: 1900-01-06 | B57: 2024-01-05 | C57: C6 | D57: plat | E57: DEAUVILLE | H57: Réclamers | I57: C4 | J57: 4anset+ | K57: 8 | L57: 718.635 | M57: 57.4908 | N57: 25.919 | O57: 31.5718
A58: 1900-01-06 | B58: 2024-01-05 | C58: C7 | D58: plat | E58: DEAUVILLE | F58: TQQ+ | H58: Hdcp | I58: C2 | J58: 4anset+ | K58: 16 | L58: 8657.372 | M58: 692.58976 | N58: 86.062 | O58: 606.52776
A59: 1900-01-06 | B59: 2024-01-05 | C59: C8 | D59: plat | E59: DEAUVILLE | H59: Conditions | I59: C3 | J59: 4ans | K59: 11 | L59: 578.959 | M59: 46.31672 | N59: 31.646 | O59: 14.67072
A60: 1900-01-07 | B60: 2024-01-06 | C60: C1 | D60: plat | E60: DEAUVILLE | H60: Hdcp | I60: C3 | J60: 5anset+ | K60: 16 | L60: 157.924 | M60: 12.63392 | N60: 34.215 | O60: -21.58108
A61: 1900-01-07 | B61: 2024-01-06 | C61: C2 | D61: plat | E61: DEAUVILLE | H61: Hdcp | I61: C3 | J61: 4ans | K61: 15 | L61: 142.717 | M61: 11.41736 | N61: 37.69 | O61: -26.27264
A62: 1900-01-07 | B62: 2024-01-06 | C62: C3 | D62: plat | E62: DEAUVILLE | H62: Hdcp | I62: C3 | J62: 4ans | K62: 15 | L62: 176.793 | M62: 14.14344 | N62: 26.073 | O62: -11.92956
A63: 1900-01-07 | B63: 2024-01-06 | C63: C4 | D63: plat | E63: DEAUVILLE | H63: Réclamers | I63: C3 | J63: 4anset+ | K63: 12 | L63: 988.053 | M63: 79.04424 | N63: 27.222 | O63: 51.82224
A64: 1900-01-07 | B64: 2024-01-06 | C64: C5 | D64: plat | E64: DEAUVILLE | H64: Hdcp | I64: C3 | J64: 5anset+ | K64: 16 | L64: 896.425 | M64: 71.714 | N64: 27.328 | O64: 44.386
A65: 1900-01-07 | B65: 2024-01-06 | C65: C6 | D65: plat | E65: DEAUVILLE | H65: Hdcp | I65: C4 | J65: 5anset+ | K65: 15 | L65: 715.368 | M65: 57.22944 | N65: 25.249 | O65: 31.98044
A66: 1900-01-07 | B66: 2024-01-06 | C66: C7 | D66: plat | E66: DEAUVILLE | H66: Hdcp | J66: 3ans | K66: 10 | L66: 476 | M66: 38.08 | N66: 60.459 | O66: -22.379
A67: 1900-01-07 | B67: 2024-01-06 | C67: C8 | D67: plat | E67: DEAUVILLE | H67: Conditions | I67: C3 | J67: 4anset+ | K67: 10 | L67: 391.54 | M67: 31.3232 | N67: 27.089 | O67: 4.2342
A68: 1900-01-07 | B68: 2024-01-06 | C68: C9 | D68: plat | E68: DEAUVILLE | H68: Hdcp | I68: C4 | J68: 5anset+ | K68: 16 | L68: 401.173 | M68: 32.09384 | N68: 22.935 | O68: 9.15884
A69: 1900-01-07 | B69: 2024-01-06 | C69: C1 | D69: obstacle | E69: PAU | H69: Listed | J69: 5anset+ | K69: 6 | L69: 346.195 | M69: 27.6956 | N69: 80.072 | O69: -52.3764
A70: 1900-01-07 | B70: 2024-01-06 | C70: C2 | D70: plat | E70: PAU | H70: Conditions | I70: C2 | J70: 3ans | K70: 6 | L70: 439.089 | M70: 35.12712 | N70: 32.121 | O70: 3.00612
A71: =WEEKDAY(B71) -> 1900-01-07 | B71: 2024-01-06 | C71: C3 | D71: obstacle | E71: PAU | H71: Conditions | I71: C1 | J71: 6anset+ | K71: 7 | L71: 522.039 | M71: 41.76312 | N71: 56.859 | O71: -15.09588
A72: 1900-01-07 | B72: 2024-01-06 | C72: C4 | D72: obstacle | E72: PAU | H72: Réclamers | J72: 5ans | K72: 8 | L72: 577.757 | M72: 46.22056 | N72: 22.556 | O72: 23.66456
A73: 1900-01-07 | B73: 2024-01-06 | C73: C5 | D73: obstacle | E73: PAU | H73: Conditions | I73: C2 | J73: 4ans | K73: 9 | L73: 661.073 | M73: 52.88584 | N73: 52.659 | O73: =M73-N73 -> 0.22684
A74: 1900-01-07 | B74: 2024-01-06 | C74: C6 | D74: obstacle | E74: PAU | H74: Conditions | I74: C1 | J74: 5anset+ | K74: 8 | L74: 669.889 | M74: 53.59112 | N74: 73.998 | O74: -20.40688
A75: 1900-01-07 | B75: 2024-01-06 | C75: C7 | D75: obstacle | E75: PAU | H75: Conditions | I75: C3 | J75: 5ans | K75: 14 | L75: 864.481 | M75: 69.15848 | N75: 41.216 | O75: 27.94248
A76: 1900-01-07 | B76: 2024-01-06 | C76: C8 | D76: plat | E76: PAU | H76: Hdcp | I76: C3 | J76: 4anset+ | K76: 11 | L76: 1039.031 | M76: 83.12248 | N76: 28.079 | O76: 55.04348
A77: 1900-01-01 | B77: 2024-01-07 | C77: C1 | D77: obstacle | E77: CAGNES-SUR-MER | H77: Conditions | I77: C2 | J77: 4ans | K77: 9 | L77: 493.149 | M77: 39.45192 | N77: 52.659 | O77: -13.20708
A78: 1900-01-01 | B78: 2024-01-07 | C78: C2 | D78: obstacle | E78: CAGNES-SUR-MER | H78: Listed | J78: 4ans | K78: 9 | L78: 534.377 | M78: 42.75016 | N78: 84.699 | O78: -41.94884
A79: 1900-01-01 | B79: 2024-01-07 | C79: C3 | D79: obstacle | E79: CAGNES-SUR-MER | H79: Listed | J79: 4ans | K79: 10 | L79: 501.13 | M79: 40.0904 | N79: 87.977 | O79: -47.8866
A80: 1900-01-01 | B80: 2024-01-07 | C80: C4 | D80: obstacle | E80: CAGNES-SUR-MER | H80: Hdcp | J80: 6anset+ | K80: 13 | L80: 610.397 | M80: 48.83176 | N80: 48.975 | O80: -0.14324
A81: 1900-01-01 | B81: 2024-01-07 | C81: C5 | D81: obstacle | E81: CAGNES-SUR-MER | H81: Listed | J81: 5anset+ | K81: 11 | L81: 744.229 | M81: 59.53832 | N81: 97.044 | O81: -37.50568
A82: 1900-01-01 | B82: 2024-01-07 | C82: C6 | D82: obstacle | E82: CAGNES-SUR-MER | H82: GROUPES | I82: III | J82: 5anset+ | K82: 16 | L82: 670.945 | M82: 53.6756 | N82: 176.326 | O82: -122.6504
A83: 1900-01-01 | B83: 2024-01-07 | C83: C7 | D83: obstacle | E83: CAGNES-SUR-MER | H83: Hdcp | J83: 5anset+ | K83: 14 | L83: 697.66 | M83: 55.8128 | N83: 52.667 | O83: 3.1458
A84: 1900-01-01 | B84: 2024-01-07 | C84: C1 | D84: plat | E84: PORNICHET | H84: Maiden | J84: 4ans | K84: 14 | L84: 810.959 | M84: 64.87672 | N84: 21.782 | O84: 43.09472
A85: 1900-01-01 | B85: 2024-01-07 | C85: C2 | D85: plat | E85: PORNICHET | H85: Maiden | J85: 3ans | K85: 15 | L85: 827.25 | M85: 66.18 | N85: 39.579 | O85: 26.601
A86: 1900-01-01 | B86: 2024-01-07 | C86: C3 | D86: plat | E86: PORNICHET | H86: Hdcp | I86: C3 | J86: 4ans | K86: 13 | L86: 676.194 | M86: 54.09552 | N86: 31.007 | O86: 23.08852
A87: 1900-01-01 | B87: 2024-01-07 | C87: C4 | D87: plat | E87: PORNICHET | H87: Hdcp | I87: C4 | J87: 4anset+ | K87: 16 | L87: 522.838 | M87: 41.82704 | N87: 29.123 | O87: 12.70404
A88: 1900-01-01 | B88: 2024-01-07 | C88: C5 | D88: plat | E88: PORNICHET | H88: Hdcp | I88: C4 | J88: 4anset+ | K88: 15 | L88: 528.521 | M88: 42.28168 | N88: 24.571 | O88: 17.71068
A89: 1900-01-01 | B89: 2024-01-07 | C89: C6 | D89: plat | E89: PORNICHET | H89: Hdcp | I89: C3 | J89: 4anset+ | K89: 14 | L89: 458.324 | M89: 36.66592 | N89: 30.012 | O89: 6.65392
A90: 1900-01-01 | B90: 2024-01-07 | C90: C7 | D90: plat | E90: PORNICHET | H90: Hdcp | I90: C4 | J90: 4anset+ | K90: 15 | L90: 371.92 | M90: 29.7536 | N90: 26.376 | O90: 3.3776
A91: 1900-01-01 | B91: 2024-01-07 | C91: C8 | D91: plat | E91: PORNICHET | H91: Hdcp | J91: 3ans | K91: 10 | L91: 309.056 | M91: 24.72448 | N91: 38.561 | O91: -13.83652
A92: 1900-01-02 | B92: 2024-01-08 | C92: C1 | D92: obstacle | E92: PAU | H92: Réclamers | J92: 4ans | K92: 6 | L92: 215.375 | M92: 17.23 | N92: 23.853 | O92: -6.623
A93: 1900-01-02 | B93: 2024-01-08 | C93: C2 | D93: obstacle | E93: PAU | H93: Conditions | I93: C1 | J93: 5ans | K93: 10 | L93: 440.198 | M93: 35.21584 | N93: 50.749 | O93: -15.53316
A94: 1900-01-02 | B94: 2024-01-08 | C94: C3 | D94: plat | E94: PAU | H94: Maiden | J94: 3ans | K94: 9 | L94: 518.991 | M94: 41.51928 | N94: 36.85 | O94: 4.66928
A95: 1900-01-02 | B95: 2024-01-08 | C95: C4 | D95: obstacle | E95: PAU | H95: Conditions | I95: C2 | J95: 4ans | K95: 9 | L95: 490.28 | M95: 39.2224 | N95: 46.4 | O95: -7.1776
A96: 1900-01-02 | B96: 2024-01-08 | C96: C5 | D96: plat | E96: PAU | H96: Conditions | J96: 5anset+ PA | K96: 8 | L96: 594.298 | M96: 47.54384 | N96: 26.111 | O96: 21.43284
A97: 1900-01-02 | B97: 2024-01-08 | C97: C6 | D97: plat | E97: PAU | H97: Maiden | J97: 3ans | K97: 9 | L97: 843.037 | M97: 67.44296 | N97: 36.038 | O97: 31.40496
A98: 1900-01-02 | B98: 2024-01-08 | C98: C7 | D98: plat | E98: PAU | H98: Réclamers | I98: C4 | J98: 5anset+ | K98: 14 | L98: 861.292 | M98: 68.90336 | N98: 16.384 | O98: 52.51936
A99: 1900-01-02 | B99: 2024-01-08 | C99: C8 | D99: plat | E99: PAU | H99: Hdcp | I99: C3 | J99: 4ans | K99: 15 | L99: 890.915 | M99: 71.2732 | N99: 30.615 | O99: 40.6582
A100: 1900-01-03 | B100: 2024-01-09 | C100: C1 | D100: plat | E100: MARSEILLE PONT DE VIVAUX | H100: Hdcp | I100: C4 | J100: 4anset+ | K100: 13 | L100: 797.134 | M100: 63.77072 | N100: 16.536 | O100: 47.23472
A101: 1900-01-03 | B101: 2024-01-09 | C101: C2 | D101: plat | E101: MARSEILLE PONT DE VIVAUX | H101: Hdcp | I101: C4 | J101: 4anset+ | K101: 12 | L101: 812.178 | M101: 64.97424 | N101: 23.434 | O101: 41.54024
A102: 1900-01-03 | B102: 2024-01-09 | C102: C3 | D102: plat | E102: MARSEILLE PONT DE VIVAUX | H102: Hdcp | I102: C4 | J102: 5anset+ | K102: 14 | L102: 803.104 | M102: 64.24832 | N102: 29.615 | O102: 34.63332
A103: 1900-01-03 | B103: 2024-01-09 | C103: C4 | D103: plat | E103: MARSEILLE PONT DE VIVAUX | H103: Hdcp | I103: C4 | J103: 5anset+ | K103: 14 | L103: 869.249 | M103: 69.53992 | N103: 22.886 | O103: 46.65392
A104: 1900-01-03 | B104: 2024-01-09 | C104: C5 | D104: plat | E104: MARSEILLE PONT DE VIVAUX | H104: Réclamers | I104: C4 | J104: 5anset+ | K104: 11 | L104: 663.842 | M104: 53.10736 | N104: 15.85 | O104: 37.25736
A105: 1900-01-03 | B105: 2024-01-09 | C105: C6 | D105: plat | E105: MARSEILLE PONT DE VIVAUX | H105: Réclamers | J105: 3ans | K105: 9 | L105: 616.348 | M105: 49.30784 | N105: 28.455 | O105: 20.85284
A106: 1900-01-03 | B106: 2024-01-09 | C106: C7 | D106: plat | E106: MARSEILLE PONT DE VIVAUX | H106: Hdcp | I106: C3 | J106: 4ans | K106: 10 | L106: 511.031 | M106: 40.88248 | N106: 30.759 | O106: 10.12348
A107: 1900-01-03 | B107: 2024-01-09 | C107: C8 | D107: plat | E107: MARSEILLE PONT DE VIVAUX | H107: Maiden | J107: 3ans | K107: 7 | L107: 349.675 | M107: 27.974 | N107: 40.407 | O107: -12.433
A108: 1900-01-04 | B108: 2024-01-10 | C108: C1 | D108: obstacle | E108: PAU | H108: Conditions | I108: C1 | J108: 4ans | K108: 5 | L108: 357.376 | M108: 28.59008 | N108: 66.413 | O108: -37.82292
A109: 1900-01-04 | B109: 2024-01-10 | C109: C2 | D109: obstacle | E109: PAU | F109: TQQ+ | H109: Hdcp | J109: 5ans | K109: 15 | L109: 6960.532 | M109: 556.84256 | N109: 125.947 | O109: 430.89556
A110: 1900-01-04 | B110: 2024-01-10 | C110: C3 | D110: obstacle | E110: PAU | H110: Conditions | I110: C2 | J110: 5ans | K110: 10 | L110: 711.93 | M110: 6.55456 | N110: 39.471 | O110: -32.91644
A111: 1900-01-04 | B111: 2024-01-10 | C111: C4 | D111: plat | E111: PAU | H111: Hdcp | I111: C4 | J111: 5anset+ | K111: 14 | L111: 774.615 | M111: 61.9692 | N111: 25.038 | O111: 36.9312
A112: 1900-01-04 | B112: 2024-01-10 | C112: C5 | D112: obstacle | E112: PAU | H112: Conditions | I112: C3 | J112: 5ans | K112: 17 | L112: 768.925 | M112: 61.514 | N112: 42.36 | O112: 19.154
A113: 1900-01-04 | B113: 2024-01-10 | C113: C6 | D113: plat | E113: PAU | H113: Hdcp | I113: C3 | J113: 5anset+ | K113: 13 | L113: 872.586 | M113: 69.80688 | N113: 31.354 | O113: 38.45288
A114: 1900-01-04 | B114: 2024-01-10 | C114: C7 | D114: obstacle | E114: PAU | H114: Hdcp | J114: 5ans | K114: 11 | L114: 677.362 | M114: 54.18896 | N114: 70.986 | O114: -16.79704
A115: 1900-01-04 | B115: 2024-01-10 | C115: C8 | D115: plat | E115: PAU | H115: Hdcp | I115: C3 | J115: 5anset+ | K115: 14 | L115: 1075.349 | M115: 86.02792 | N115: 34.277 | O115: 51.75092
A116: 1900-01-05 | B116: 2024-01-11 | C116: C1 | D116: plat | E116: LYON LA SOIE | H116: Réclamers | I116: C4 | J116: 5anset+ | K116: 12 | L116: 928.089 | M116: 74.24712 | N116: 23.394 | O116: 50.85312
A117: 1900-01-05 | B117: 2024-01-11 | C117: C2 | D117: plat | E117: LYON LA SOIE | H117: Hdcp | I117: C4 | J117: 5anset+ | K117: 16 | L117: 959.451 | M117: 76.75608 | N117: 28.232 | O117: 48.52408
A118: 1900-01-05 | B118: 2024-01-11 | C118: C3 | D118: plat | E118: LYON LA SOIE | H118: Hdcp | I118: C3 | J118: 4ans | K118: 13 | L118: 724.399 | M118: 57.95192 | N118: 23.582 | O118: 34.36992
A119: 1900-01-05 | B119: 2024-01-11 | C119: C4 | D119: plat | E119: LYON LA SOIE | H119: Hdcp | I119: C4 | J119: 5anset+ | K119: 15 | L119: 1000.681 | M119: 80.05448 | N119: 19.785 | O119: 60.26948
A120: 1900-01-05 | B120: 2024-01-11 | C120: C5 | D120: plat | E120: LYON LA SOIE | H120: Hdcp | I120: C3 | J120: 4ans | K120: 16 | L120: 856.825 | M120: 68.546 | N120: 30.13 | O120: 38.416
A121: 1900-01-05 | B121: 2024-01-11 | C121: C6 | D121: plat | E121: LYON LA SOIE | H121: Conditions | I121: C4 | J121: 4anset+ | K121: 14 | L121: 806.782 | M121: 64.54256 | N121: 20.23 | O121: 44.31256
A122: 1900-01-05 | B122: 2024-01-11 | C122: C7 | D122: plat | E122: LYON LA SOIE | H122: Maiden | J122: 3ans | K122: 10 | L122: 505.402 | M122: 40.43216 | N122: 39.823 | O122: 0.60916
A123: 1900-01-05 | B123: 2024-01-11 | C123: C8 | D123: plat | E123: LYON LA SOIE | H123: Maiden | J123: 3ans | K123: 8 | L123: 427.815 | M123: 34.2252 | N123: 35.86 | O123: -1.6348
A124: 1900-01-06 | B124: 2024-01-12 | C124: C1 | D124: plat | E124: PAU | H124: Hdcp | I124: C4 | J124: 4anset+ | K124: 12 | L124: 429.869 | M124: 34.38952 | N124: 19.555 | O124: 14.83452
A125: 1900-01-06 | B125: 2024-01-12 | C125: C2 | D125: plat | E125: PAU | H125: Réclamers | J125: 3ans | K125: 14 | L125: 467.216 | M125: 37.37728 | N125: 23.182 | O125: 14.19528
A126: 1900-01-06 | B126: 2024-01-12 | C126: C3 | D126: obstacle | E126: PAU | H126: Conditions | I126: C2 | J126: 6anset+ | K126: 9 | L126: 533.237 | M126: 42.65896 | N126: 40.072 | O126: 2.58696
A127: 1900-01-06 | B127: 2024-01-12 | C127: C4 | D127: obstacle | E127: PAU | H127: Réclamers | J127: 6anset+ | K127: 9 | L127: 471.435 | M127: 37.7148 | N127: 22.556 | O127: 15.1588
A128: 1900-01-06 | B128: 2024-01-12 | C128: C5 | D128: obstacle | E128: PAU | H128: Hdcp | J128: 5ans | K128: 12 | L128: 626.303 | M128: 50.10424 | N128: 58.303 | O128: -8.19876
A129: 1900-01-06 | B129: 2024-01-12 | C129: C6 | D129: obstacle | E129: PAU | H129: Conditions | I129: C4 | J129: 4ans | K129: 16 | L129: 679.974 | M129: 54.39792 | N129: 46.073 | O129: 8.32492
A130: 1900-01-06 | B130: 2024-01-12 | C130: C7 | D130: plat | E130: PAU | H130: Hdcp | I130: C3 | J130: 4ans | K130: 12 | L130: 683.599 | M130: 54.68792 | N130: 38.85 | O130: 15.83792
A131: 1900-01-06 | B131: 2024-01-12 | C131: C8 | D131: plat | E131: PAU | H131: Conditions | I131: C3 | J131: 4anset+ | K131: 11 | L131: 771.902 | M131: 61.75216 | N131: 28.941 | O131: 32.81116
A132: 1900-01-06 | B132: 2024-01-12 | C132: C1 | D132: plat | E132: DEAUVILLE | H132: Conditions | I132: C3 | J132: 5anset+ | K132: 9 | L132: 855.441 | M132: 68.43528 | N132: 28.367 | O132: 40.06828
A133: 1900-01-06 | B133: 2024-01-12 | C133: C2 | D133: plat | E133: DEAUVILLE | H133: Maiden | J133: 3ans | K133: 10 | L133: 885.174 | M133: 70.81392 | N133: 52.161 | O133: 18.65292
A134: 1900-01-06 | B134: 2024-01-12 | C134: C3 | D134: plat | E134: DEAUVILLE | H134: Hdcp | I134: C3 | J134: 4anset+ | K134: 16 | L134: 1037.878 | M134: 83.03024 | N134: 35.063 | O134: 47.96724
A135: =WEEKDAY(B135) -> 1900-01-06 | B135: 2024-01-12 | C135: C4 | D135: plat | E135: DEAUVILLE | H135: Hdcp | I135: C3 | J135: 4anset+ | K135: 16 | L135: 790.651 | M135: 63.25208 | N135: 30.221 | O135: 33.03108
A136: 1900-01-06 | B136: 2024-01-12 | C136: C5 | D136: plat | E136: DEAUVILLE | H136: Hdcp | I136: C3 | J136: 4anset+ | K136: 16 | L136: 887.479 | M136: 70.99832 | N136: 34.891 | O136: 36.10732
A137: 1900-01-06 | B137: 2024-01-12 | C137: C6 | D137: plat | E137: DEAUVILLE | H137: Hdcp | I137: C4 | J137: 4anset+ | K137: 16 | L137: 697.561 | M137: 55.80488 | N137: 28.2 | O137: =M137-N137 -> 27.60488
A138: 1900-01-06 | B138: 2024-01-12 | C138: C7 | D138: plat | E138: DEAUVILLE | F138: TQQ+ | H138: Hdcp | I138: C2 | J138: 4anset+ | K138: 16 | L138: 8823.724 | M138: 705.89792 | N138: 86.378 | O138: 619.51992
A139: 1900-01-06 | B139: 2024-01-12 | C139: C8 | D139: plat | E139: DEAUVILLE | H139: Maiden | J139: 3ans | K139: 7 | L139: 435.185 | M139: 34.8148 | N139: 49.196 | O139: -14.3812 | P139: 7pts; 1np
A140: 1900-01-07 | B140: 2024-01-13 | C140: C1 | D140: plat | E140: CHANTILLY | H140: Conditions | I140: C2 | J140: 3ans | K140: 5 | L140: 359.76 | M140: 28.7808 | N140: 53.099 | O140: -24.3182
A141: 1900-01-07 | B141: 2024-01-13 | C141: C2 | D141: plat | E141: CHANTILLY | H141: Conditions | I141: C3 | J141: 5anset+ | K141: 9 | L141: 570.505 | M141: 45.6404 | N141: 31.513 | O141: 14.1274
A142: 1900-01-07 | B142: 2024-01-13 | C142: C3 | D142: plat | E142: CHANTILLY | H142: Réclamers | J142: 3ans | K142: 16 | L142: 622.788 | M142: 49.82304 | N142: 36.926 | O142: 12.89704
A143: 1900-01-07 | B143: 2024-01-13 | C143: C4 | D143: plat | E143: CHANTILLY | H143: Hdcp | I143: C3 | J143: 4ans | K143: 13 | L143: 668.126 | M143: 53.45008 | N143: 35.472 | O143: 17.97808
A144: 1900-01-07 | B144: 2024-01-13 | C144: C5 | D144: plat | E144: CHANTILLY | H144: Hdcp | I144: C3 | J144: 4ans | K144: 13 | L144: 750.043 | M144: 60.00344 | N144: 30.538 | O144: 29.46544
A145: 1900-01-07 | B145: 2024-01-13 | C145: C6 | D145: plat | E145: CHANTILLY | H145: Hdcp | J145: 3ans | K145: 16 | L145: 1075.567 | M145: 86.04536 | N145: 41.415 | O145: 44.63036
A146: 1900-01-07 | B146: 2024-01-13 | C146: C7 | D146: plat | E146: CHANTILLY | H146: Hdcp | I146: C3 | J146: 4ans | K146: 14 | L146: 1067.828 | M146: 85.42624 | N146: 33.107 | O146: 52.31924
A147: 1900-01-07 | B147: 2024-01-13 | C147: C8 | D147: plat | E147: CHANTILLY | H147: Hdcp | I147: C3 | J147: 4ans | K147: 16 | L147: 938.488 | M147: 75.07904 | N147: 35.39 | O147: 39.68904
A148: 1900-01-01 | B148: 2024-01-14 | C148: C1 | D148: obstacle | E148: PAU | H148: Conditions | J148: 5anset+ AA | K148: 6 | L148: 254.00974 | M148: 20.3207792 | N148: 58.645 | O148: -38.3242208
A149: 1900-01-01 | B149: 2024-01-14 | C149: C2 | D149: obstacle | E149: PAU | H149: Hdcp | J149: 4ans | K149: 7 | L149: 249.07324 | M149: 19.9258592 | N149: 48.425 | O149: -28.4991408
A150: 1900-01-01 | B150: 2024-01-14 | C150: C3 | D150: obstacle | E150: PAU | H150: Conditions | I150: C4 | J150: 4et5ans | K150: 10 | L150: 469.75599 | M150: 37.5804792 | N150: 40.763 | O150: -3.1825208
A151: 1900-01-01 | B151: 2024-01-14 | C151: C4 | D151: obstacle | E151: PAU | H151: Conditions | I151: C2 | J151: 6ans | K151: 8 | L151: 501.08972 | M151: 40.0871776 | N151: 40.072 | O151: 0.0151776
A152: 1900-01-01 | B152: 2024-01-14 | C152: C5 | D152: plat | E152: PAU | H152: Hdcp | I152: C4 | J152: 5anset+ | K152: 12 | L152: 606.56597 | M152: 48.5252776 | N152: 24.503 | O152: 24.0222776
A153: 1900-01-01 | B153: 2024-01-14 | C153: C6 | D153: obstacle | E153: PAU | H153: Conditions | I153: C3 | J153: 5anset+ | K153: 10 | L153: 580.40013 | M153: 46.4320104 | N153: 42.36 | O153: 4.0720104
A154: 1900-01-01 | B154: 2024-01-14 | C154: C7 | D154: plat | E154: PAU | H154: Hdcp | I154: C3 | J154: 5anset+ | K154: 12 | L154: 670.92179 | M154: 53.6737432 | N154: 30.101 | O154: 23.5727432
A155: 1900-01-01 | B155: 2024-01-14 | C155: C8 | D155: plat | E155: PAU | H155: Hdcp | I155: C3 | J155: 5anset+ | K155: 12 | L155: 602.66952 | M155: 48.2135616 | N155: 29.893 | O155: 18.3205616
A156: 1900-01-02 | B156: 2024-01-15 | C156: C1 | D156: plat | E156: CAGNES-SUR-MER | H156: Conditions | I156: C2 | J156: 3ans | K156: 10 | L156: 606.61654 | M156: 48.5293232 | N156: 37.762 | O156: 10.7673232
A157: 1900-01-02 | B157: 2024-01-15 | C157: C2 | D157: plat | E157: CAGNES-SUR-MER | F157: TQQ+ | H157: Hdcp | I157: C2 | J157: 5anset+ | K157: 16 | L157: 6680.77449 | M157: 534.4619592 | N157: 77.465 | O157: 456.9969592
A158: 1900-01-02 | B158: 2024-01-15 | C158: C3 | D158: plat | E158: CAGNES-SUR-MER | H158: Hdcp | I158: C3 | J158: 5anset+ | K158: 12 | L158: 770.19577 | M158: 61.6156616 | N158: 28.375 | O158: 33.2406616
A159: 1900-01-02 | B159: 2024-01-15 | C159: C4 | D159: plat | E159: CAGNES-SUR-MER | H159: Conditions | I159: C2 | J159: 4ans | K159: 9 | L159: 652.45537 | M159: 52.1964296 | N159: 43.744 | O159: 8.4524296
A160: 1900-01-02 | B160: 2024-01-15 | C160: C5 | D160: plat | E160: CAGNES-SUR-MER | H160: Hdcp | I160: C3 | J160: 5anset+ | K160: 16 | L160: 762.23912 | M160: 60.9791296 | N160: 31.05 | O160: 29.9291296
A161: 1900-01-02 | B161: 2024-01-15 | C161: C6 | D161: plat | E161: CAGNES-SUR-MER | H161: Hdcp | I161: C3 | J161: 5anset+ | K161: 18 | L161: 1027.92585 | M161: 82.234068 | N161: 41.847 | O161: 40.387068
A162: 1900-01-02 | B162: 2024-01-15 | C162: C7 | D162: plat | E162: CAGNES-SUR-MER | H162: Hdcp | I162: C3 | J162: 5anset+ | K162: 12 | L162: 810.14591 | M162: 64.8116728 | N162: 41.569 | O162: 23.2426728
A163: 1900-01-03 | B163: 2024-01-16 | C163: C1 | D163: obstacle | E163: PAU | H163: Conditions | J163: 5ans AA | K163: 7 | L163: 367.40244 | M163: 29.3921952 | N163: 47.366 | O163: -17.9738048
A164: 1900-01-03 | B164: 2024-01-16 | C164: C2 | D164: obstacle | E164: PAU | H164: Conditions | J164: 4ans AA | K164: 9 | L164: 429.05867 | M164: 34.3246936 | N164: 54.186 | O164: -19.8613064
A165: 1900-01-03 | B165: 2024-01-16 | C165: C3 | D165: obstacle | E165: PAU | H165: Conditions | I165: C3 | J165: 4ans | K165: 8 | L165: 451.724 | M165: 36.13792 | N165: 41.815 | O165: -5.67708
A166: 1900-01-03 | B166: 2024-01-16 | C166: C4 | D166: plat | E166: PAU | H166: Conditions | I166: C3 | J166: 5anset+ | K166: 7 | L166: 352.80968 | M166: 28.2247744 | N166: 28.125 | O166: 0.0997744
A167: 1900-01-03 | B167: 2024-01-16 | C167: C5 | D167: obstacle | E167: PAU | H167: Réclamers | J167: 4ans | K167: 11 | L167: 491.62794 | M167: 39.3302352 | N167: 26.327 | O167: 13.0032352
A168: 1900-01-03 | B168: 2024-01-16 | C168: C6 | D168: obstacle | E168: PAU | H168: Conditions | I168: C3 | J168: 6anset+ | K168: 8 | L168: 613.97892 | M168: 49.1183136 | N168: 42.36 | O168: 6.7583136
A169: 1900-01-03 | B169: 2024-01-16 | C169: C7 | D169: plat | E169: PAU | H169: Réclamers | I169: C4 | J169: 4anset+ | K169: 12 | L169: 654.68807 | M169: 52.3750456 | N169: 20.242 | O169: 32.1330456
A170: 1900-01-03 | B170: 2024-01-16 | C170: C8 | D170: obstacle | E170: PAU | H170: Réclamers | J170: 5ans | K170: 10 | L170: 710.31896 | M170: 56.8255168 | N170: 22.556 | O170: 34.2695168
A171: 1900-01-04 | B171: 2024-01-17 | C171: C1 | D171: plat | E171: CAGNES-SUR-MER | H171: Maiden | J171: 3ans | K171: 10 | L171: 489.003 | M171: 39.12024 | N171: 33.316 | O171: 5.80424
A172: 1900-01-04 | B172: 2024-01-17 | C172: C2 | D172: plat | E172: CAGNES-SUR-MER | H172: Maiden | J172: 3ans | K172: 9 | L172: 484.90423 | M172: 38.7923384 | N172: 40.272 | O172: -1.4796616
A173: 1900-01-04 | B173: 2024-01-17 | C173: C3 | D173: plat | E173: CAGNES-SUR-MER | F173: TQQ+ | H173: Hdcp | I173: C2 | J173: 4ans | K173: 16 | L173: 7021.85235 | M173: 561.748188 | N173: 86.175 | O173: 475.573188
A174: 1900-01-04 | B174: 2024-01-17 | C174: C4 | D174: plat | E174: CAGNES-SUR-MER | H174: Hdcp | I174: C3 | J174: 4anset+ | K174: 12 | L174: 763.61442 | M174: 61.0891536 | N174: 35.045 | O174: 26.0441536
A175: 1900-01-04 | B175: 2024-01-17 | C175: C5 | D175: plat | E175: CAGNES-SUR-MER | H175: Conditions | I175: C2 | J175: 5anset+ | K175: 8 | L175: 652.09609 | M175: 52.1676872 | N175: 41.037 | O175: 11.1306872
A176: 1900-01-04 | B176: 2024-01-17 | C176: C6 | D176: plat | E176: CAGNES-SUR-MER | H176: Hdcp | I176: C3 | J176: 4ans | K176: 15 | L176: 818.53236 | M176: 65.4825888 | N176: 31.465 | O176: 34.0175888
A177: 1900-01-04 | B177: 2024-01-17 | C177: C7 | D177: plat | E177: CAGNES-SUR-MER | H177: Hdcp | I177: C3 | J177: 4anset+ | K177: 11 | L177: 826.91045 | M177: 66.152836 | N177: 38.149 | O177: 28.003836
A178: 1900-01-04 | B178: 2024-01-17 | C178: C8 | D178: plat | E178: CAGNES-SUR-MER | H178: Hdcp | I178: C3 | J178: 4ans | K178: 18 | L178: 987.20906 | M178: 78.9767248 | N178: 35.882 | O178: 43.0947248
A179: 1900-01-05 | B179: 2024-01-18 | C179: C1 | D179: plat | E179: CAGNES-SUR-MER | H179: Réclamers | I179: C4 | J179: 4anset+ | K179: 9 | L179: 531.60627 | M179: 42.5285016 | N179: 23.542 | O179: 18.9865016
A180: 1900-01-05 | B180: 2024-01-18 | C180: C2 | D180: plat | E180: CAGNES-SUR-MER | H180: Réclamers | J180: 3ans | K180: 10 | L180: 560.4478 | M180: 44.835824 | N180: 31.094 | O180: 13.741824
A181: 1900-01-05 | B181: 2024-01-18 | C181: C3 | D181: plat | E181: CAGNES-SUR-MER | H181: Réclamers | J181: 3ans | K181: 9 | L181: 562.3368 | M181: 44.986944 | N181: 31.094 | O181: 13.892944
A182: 1900-01-05 | B182: 2024-01-18 | C182: C4 | D182: plat | E182: CAGNES-SUR-MER | H182: Réclamers | I182: C4 | J182: 5anset+ | K182: 11 | L182: 693.53694 | M182: 55.4829552 | N182: 20.701 | O182: 34.7819552
A183: 1900-01-05 | B183: 2024-01-18 | C183: C5 | D183: plat | E183: CAGNES-SUR-MER | H183: Hdcp | I183: C3 | J183: 5anset+ | K183: 12 | L183: 834.50122 | M183: 66.7600976 | N183: 39.751 | O183: 27.0090976
A184: 1900-01-05 | B184: 2024-01-18 | C184: C6 | D184: plat | E184: CAGNES-SUR-MER | H184: Hdcp | I184: C3 | J184: 5anset+ | K184: 11 | L184: 778.26933 | M184: 62.2615464 | N184: 45.948 | O184: 16.3135464
A185: 1900-01-05 | B185: 2024-01-18 | C185: C7 | D185: plat | E185: CAGNES-SUR-MER | H185: Hdcp | I185: C3 | J185: 4ans | K185: 14 | L185: 775.43143 | M185: 62.0345144 | N185: 38.888 | O185: 23.1465144
A186: 1900-01-05 | B186: 2024-01-18 | C186: C8 | D186: plat | E186: CAGNES-SUR-MER | H186: Hdcp | I186: C3 | J186: 4ans | K186: 13 | L186: 752.81443 | M186: 60.2251544 | N186: 45.982 | O186: 14.2431544
A187: 1900-01-05 | B187: 2024-01-18 | C187: C1 | D187: plat | E187: PORNICHET | H187: Hdcp | I187: C4 | J187: 4anset+ | K187: 16 | L187: 644.62868 | M187: 51.5702944 | N187: 25.574 | O187: 25.9962944
A188: 1900-01-05 | B188: 2024-01-18 | C188: C2 | D188: plat | E188: PORNICHET | H188: Hdcp | I188: C3 | J188: 4anset+ | K188: 16 | L188: 33.2485 | M188: 2.65988 | N188: 31.74 | O188: -29.08012
A189: 1900-01-05 | B189: 2024-01-18 | C189: C3 | D189: plat | E189: PORNICHET | H189: Hdcp | I189: C4 | J189: 4anset+ | K189: 16 | L189: 695.14575 | M189: 55.61166 | N189: 22.437 | O189: 33.17466
A190: 1900-01-05 | B190: 2024-01-18 | C190: C4 | D190: plat | E190: PORNICHET | H190: Maiden | J190: 4ans | K190: 13 | L190: 641.3998 | M190: 51.311984 | N190: 17.171 | O190: 34.140984
A191: 1900-01-05 | B191: 2024-01-18 | C191: C5 | D191: plat | E191: PORNICHET | H191: Maiden | J191: 3ans | K191: 11 | L191: 484.11279 | M191: 38.7290232 | N191: 26.943 | O191: 11.7860232
A192: 1900-01-05 | B192: 2024-01-18 | C192: C6 | D192: plat | E192: PORNICHET | H192: Réclamers | I192: C4 | J192: 4anset+ | K192: 10 | L192: 402.61504 | M192: 32.2092032 | N192: 20.633 | O192: 11.5762032
A193: 1900-01-05 | B193: 2024-01-18 | C193: C7 | D193: plat | E193: PORNICHET | H193: Conditions | J193: 4ans AQPS | K193: 9 | L193: 305.77945 | M193: 24.462356 | N193: 20.649 | O193: 3.813356
A194: 1900-01-06 | B194: 2024-01-19 | C194: C1 | D194: obstacle | E194: PAU | H194: Conditions | J194: 6anset+ AA | K194: 7 | L194: 259.68463 | M194: 20.7747704 | N194: 56.389 | O194: -35.6142296
A195: 1900-01-06 | B195: 2024-01-19 | C195: C2 | D195: obstacle | E195: PAU | H195: Conditions | I195: C4 | J195: 4ans AQPS | K195: 7 | L195: 263.21927 | M195: 21.0575416 | N195: 40.763 | O195: -19.7054584
A196: 1900-01-06 | B196: 2024-01-19 | C196: C3 | D196: obstacle | E196: PAU | H196: Réclamers | J196: 5anset+ | K196: 8 | L196: 432.98805 | M196: 34.639044 | N196: 22.856 | O196: 11.783044
A197: 1900-01-06 | B197: 2024-01-19 | C197: C4 | D197: obstacle | E197: PAU | H197: Conditions | I197: C3 | J197: 5anset+ | K197: 7 | L197: 433.57925 | M197: 34.68634 | N197: 40.455 | O197: -5.76866
A198: 1900-01-06 | B198: 2024-01-19 | C198: C5 | D198: obstacle | E198: PAU | H198: Réclamers | J198: 4ans | K198: 13 | L198: 501.6484 | M198: 40.131872 | N198: 23.2 | O198: 16.931872
A199: =WEEKDAY(B199) -> 1900-01-06 | B199: 2024-01-19 | C199: C6 | D199: plat | E199: PAU | H199: Hdcp | J199: 3ans | K199: 9 | L199: 539.72485 | M199: 43.177988 | N199: 30.634 | O199: 12.543988
A200: 1900-01-06 | B200: 2024-01-19 | C200: C7 | D200: plat | E200: PAU | H200: Réclamers | I200: C4 | J200: 5anset+ | K200: 14 | L200: 743.27979 | M200: 59.4623832 | N200: 21.379 | O200: 38.0833832
... 4905 more rows

Sheet 2025
A1: A:A | K1: =+L4/0.88 -> 1288662.534 | L1: =+L4-K1 -> -154639.5041 | M1: =+L1/5*12 -> -371134.8098 | N1: =+M1*0.08 -> -29690.78479 | P1: -0.8240623043
E2: Moyenne par partant | L2: =+L4/K4 -> 70.33137125 | M2: =+M4/K4 -> 5.6265097 | N2: =+N4/K4 -> 3.83805681 | O2: =+O4/K4 -> 1.78845289
E3: Moyenne/course | K3: =K4/H4 -> 11.11233632 | L3: =+L4/H4 -> 781.5458511 | M3: =+M4/H4 -> 62.52366809 | N3: =+N4/H4 -> 42.64977808 | O3: =+O4/H4 -> 19.87389001
B4: 0 | E4: Total | F4: =SUBTOTAL(3,F7:F5119) -> 69 | G4: =SUBTOTAL(3,G7:G2044) -> 0 | H4: =SUBTOTAL(3,H7:H5119) -> 1451 | K4: =SUBTOTAL(9,K7:K5119) -> 16124 | L4: =SUBTOTAL(9,L7:L5119) -> 1134023.03 | M4: =SUBTOTAL(9,M7:M5119) -> 90721.8424 | N4: =SUBTOTAL(9,N7:N5119) -> 61884.828 | O4: =M4-N4 -> 28837.0144 | Q4: =SUBTOTAL(9,Q7:Q2048) -> 211128.565 | S4: =SUM(#REF!) ->  | T4: =SUM(#REF!) ->  | U4: =(T4-S4)/S4 ->  | W4: Nombre de réunions | Y4: =MAX(#REF!) ->  | AE4: =SUM(AE9:AE66) -> 0
AE5: Programme
A6: Jour | B6: Date | C6: Course | D6: Discipline | E6: Hippodrome | F6: Jeu | G6: COND. | H6: conditions | I6: Cat | J6: Age | K6: Pts | L6: enjeux | M6: retour net | N6: alloc distrib. | O6: résultat | Q6: alloc etr | R6: res reun 2020 | S6: enj 2019 | T6: enj 2020 | U6: Ecart | V6: TQQ + 2018 | W6: ecart 2019/2018 | Y6: N° réunions | Z6: alloc 2019 | AA6: alloc 2018
A7: =WEEKDAY(B7) -> 1900-01-04 | B7: 2025-01-01 | C7: C1 | D7: obstacle | E7: CAGNES-SUR-MER | H7: Conditions | I7: C4 | J7: 6anset+ | K7: 5 | L7: 198.134 | M7: 15.85072 | N7: 39.758 | O7: =M7-N7 -> -23.90728 | AE7: Live et ReplayCôté Courses
A8: =WEEKDAY(B8) -> 1900-01-04 | B8: 2025-01-01 | C8: C2 | D8: obstacle | E8: CAGNES-SUR-MER | H8: Conditions | I8: C2 | J8: 4ans | K8: 7 | L8: 255.19 | M8: 20.4152 | N8: 46.4 | O8: =M8-N8 -> -25.9848 | AE8: actualité
A9: 1900-01-04 | B9: 2025-01-01 | C9: C3 | D9: obstacle | E9: CAGNES-SUR-MER | H9: Conditions | J9: 6anset+ | K9: 11 | L9: 340.351 | M9: 27.22808 | N9: 22.899 | O9: 4.32908
A10: 1900-01-04 | B10: 2025-01-01 | C10: C4 | D10: obstacle | E10: CAGNES-SUR-MER | H10: Conditions | I10: C3 | J10: 5anset+ | K10: 7 | L10: 302.575 | M10: 24.206 | N10: 44.774 | O10: -20.568
A11: 1900-01-04 | B11: 2025-01-01 | C11: C5 | D11: obstacle | E11: CAGNES-SUR-MER | H11: Réclamers | J11: 4ans | K11: 10 | L11: 417.625 | M11: 33.41 | N11: 26.677 | O11: 6.733
A12: 1900-01-04 | B12: 2025-01-01 | C12: C6 | D12: obstacle | E12: CAGNES-SUR-MER | H12: Réclamers | J12: 5ans | K12: 9 | L12: 362.195 | M12: 28.9756 | N12: 25.39 | O12: 3.5856
A13: 1900-01-04 | B13: 2025-01-01 | C13: C7 | D13: obstacle | E13: CAGNES-SUR-MER | H13: Conditions | I13: C4 | J13: 4ans | K13: 11 | L13: 588.102 | M13: 47.04816 | N13: 46.684 | O13: 0.36416
A14: 1900-01-05 | B14: 2025-01-02 | C14: C1 | D14: plat | E14: PAU | H14: Maiden | J14: 3ans | K14: 7 | L14: 328.422 | M14: 26.27376 | N14: 31.26 | O14: -4.98624
A15: 1900-01-05 | B15: 2025-01-02 | C15: C2 | D15: obstacle | E15: PAU | H15: Réclamers | J15: 4ans | K15: 6 | L15: 277.706 | M15: 22.21648 | N15: 23.112 | O15: -0.89552
A16: 1900-01-05 | B16: 2025-01-02 | C16: C3 | D16: plat | E16: PAU | H16: Maiden | J16: 3ans | K16: 9 | L16: 703.196 | M16: 56.25568 | N16: 41.523 | O16: 14.73268
A17: 1900-01-05 | B17: 2025-01-02 | C17: C4 | D17: obstacle | E17: PAU | F17: TQQ+ | H17: Hdcp | J17: 6anset+ | K17: 16 | L17: 6294.979 | M17: 503.59832 | N17: 125.947 | O17: 377.65132
A18: 1900-01-05 | B18: 2025-01-02 | C18: C5 | D18: obstacle | E18: PAU | H18: Conditions | I18: C2 | J18: 5ans | K18: 13 | L18: 826.36 | M18: 66.1088 | N18: 43.107 | O18: 23.0018
A19: 1900-01-05 | B19: 2025-01-02 | C19: C6 | D19: obstacle | E19: PAU | H19: Conditions | J19: 4ans | K19: 11 | L19: 665.413 | M19: 53.23304 | N19: 42.916 | O19: 10.31704
A20: 1900-01-05 | B20: 2025-01-02 | C20: C7 | D20: obstacle | E20: PAU | H20: Conditions | I20: C3 | J20: 6anset+ | K20: 7 | L20: 612.812 | M20: 49.02496 | N20: 41.725 | O20: 7.29996
A21: 1900-01-05 | B21: 2025-01-02 | C21: C8 | D21: obstacle | E21: PAU | H21: Hdcp | J21: 6anset+ | K21: 18 | L21: 1075.62 | M21: 86.0496 | N21: 69.818 | O21: 16.2316
A22: 1900-01-05 | B22: 2025-01-02 | C22: C1 | D22: plat | E22: MARSEILLE PONT DE VIVAUX | H22: Hdcp | I22: C3 | J22: 5anset+ | K22: 11 | L22: 769.108 | M22: 61.52864 | N22: 32.368 | O22: 29.16064
A23: 1900-01-05 | B23: 2025-01-02 | C23: C2 | D23: plat | E23: MARSEILLE PONT DE VIVAUX | H23: Hdcp | I23: C4 | J23: 5anset+ | K23: 14 | L23: 772.815 | M23: 61.8252 | N23: 26.214 | O23: 35.6112
A24: 1900-01-05 | B24: 2025-01-02 | C24: C3 | D24: plat | E24: MARSEILLE PONT DE VIVAUX | H24: Hdcp | I24: C4 | J24: 4anset+ | K24: 12 | L24: 823.45 | M24: 65.876 | N24: 29.324 | O24: 36.552
A25: 1900-01-05 | B25: 2025-01-02 | C25: C4 | D25: plat | E25: MARSEILLE PONT DE VIVAUX | H25: Hdcp | I25: C4 | J25: 4anset+ | K25: 13 | L25: 722.84 | M25: 57.8272 | N25: 26.13 | O25: 31.6972
A26: 1900-01-05 | B26: 2025-01-02 | C26: C5 | D26: plat | E26: MARSEILLE PONT DE VIVAUX | H26: Maiden | J26: 3ans | K26: 9 | L26: 599.071 | M26: 47.92568 | N26: 41.441 | O26: 6.48468
A27: 1900-01-05 | B27: 2025-01-02 | C27: C6 | D27: plat | E27: MARSEILLE PONT DE VIVAUX | H27: Réclamers | I27: C4 | J27: 5anset+ | K27: 12 | L27: 465.947 | M27: 37.27576 | N27: 19.269 | O27: 18.00676
A28: 1900-01-05 | B28: 2025-01-02 | C28: C7 | D28: plat | E28: MARSEILLE PONT DE VIVAUX | H28: Hdcp | J28: 3ans | K28: 13 | L28: 404.03 | M28: 32.3224 | N28: 36.513 | O28: -4.1906
A29: 1900-01-05 | B29: 2025-01-02 | C29: C8 | D29: plat | E29: MARSEILLE PONT DE VIVAUX | H29: Hdcp | I29: C3 | J29: 4ans | K29: 10 | L29: 381.246 | M29: 30.49968 | N29: 30.799 | O29: -0.29932
A30: 1900-01-06 | B30: 2025-01-03 | C30: C1 | D30: plat | E30: DEAUVILLE | H30: Hdcp | I30: C3 | J30: 4ans | K30: 14 | L30: 765.202 | M30: 61.21616 | N30: 33.317 | O30: 27.89916
A31: 1900-01-06 | B31: 2025-01-03 | C31: C2 | D31: plat | E31: DEAUVILLE | H31: Hdcp | I31: C3 | J31: 4ans | K31: 14 | L31: 827.156 | M31: 66.17248 | N31: 37.68 | O31: 28.49248
A32: 1900-01-06 | B32: 2025-01-03 | C32: C3 | D32: plat | E32: DEAUVILLE | H32: Réclamers | I32: C4 | J32: 5anset+ | K32: 7 | L32: 559.135 | M32: 44.7308 | N32: 26.11 | O32: 18.6208
A33: 1900-01-06 | B33: 2025-01-03 | C33: C4 | D33: plat | E33: DEAUVILLE | H33: Hdcp | J33: 3ans | K33: 10 | L33: 895.734 | M33: 71.65872 | N33: 47.937 | O33: 23.72172
A34: 1900-01-06 | B34: 2025-01-03 | C34: C5 | D34: plat | E34: DEAUVILLE | H34: Conditions | I34: C3 | J34: 5anset+ | K34: 11 | L34: 824.712 | M34: 65.97696 | N34: 27.473 | O34: 38.50396
A35: 1900-01-06 | B35: 2025-01-03 | C35: C6 | D35: plat | E35: DEAUVILLE | H35: Hdcp | J35: 3ans | K35: 14 | L35: 1010.518 | M35: 80.84144 | N35: 61.589 | O35: 19.25244
A36: 1900-01-06 | B36: 2025-01-03 | C36: C7 | D36: plat | E36: DEAUVILLE | H36: Hdcp | I36: C3 | J36: 4ans | K36: 13 | L36: 918.771 | M36: 73.50168 | N36: 33.278 | O36: 40.22368
A37: 1900-01-06 | B37: 2025-01-03 | C37: C8 | D37: plat | E37: DEAUVILLE | H37: Hdcp | I37: C3 | J37: 4ans | K37: 15 | L37: 977.816 | M37: 78.22528 | N37: 34.846 | O37: 43.37928
A38: 1900-01-07 | B38: 2025-01-04 | C38: C1 | D38: obstacle | E38: PAU | H38: Conditions | I38: C1 | J38: 4ans | K38: 7 | L38: 218.137 | M38: 17.45096 | N38: 62.777 | O38: -45.32604
A39: 1900-01-07 | B39: 2025-01-04 | C39: C2 | D39: obstacle | E39: PAU | H39: Conditions | I39: C2 | J39: 6anset+ | K39: 9 | L39: 419.85 | M39: 33.588 | N39: 40.072 | O39: -6.484
A40: 1900-01-07 | B40: 2025-01-04 | C40: C3 | D40: obstacle | E40: PAU | H40: Conditions | I40: C2 | J40: 4ans | K40: 8 | L40: 417.983 | M40: 33.43864 | N40: 46.504 | O40: -13.06536
A41: 1900-01-07 | B41: 2025-01-04 | C41: C4 | D41: obstacle | E41: PAU | H41: Conditions | J41: 4ans AQPS | K41: 11 | L41: 503.986 | M41: 40.31888 | N41: 48.611 | O41: -8.29212
A42: 1900-01-07 | B42: 2025-01-04 | C42: C5 | D42: plat | E42: PAU | H42: Conditions | J42: 5anset+ PA | K42: 8 | L42: 577.051 | M42: 46.16408 | N42: 27.851 | O42: 18.31308
A43: 1900-01-07 | B43: 2025-01-04 | C43: C6 | D43: obstacle | E43: PAU | H43: Conditions | I43: C3 | J43: 6ans | K43: 10 | L43: 677.431 | M43: 54.19448 | N43: 42.36 | O43: 11.83448
A44: 1900-01-07 | B44: 2025-01-04 | C44: C7 | D44: plat | E44: PAU | H44: Maiden | J44: 3ans | K44: 10 | L44: 774.199 | M44: 61.93592 | N44: 41.358 | O44: 20.57792
A45: 1900-01-07 | B45: 2025-01-04 | C45: C8 | D45: obstacle | E45: PAU | H45: Conditions | I45: C3 | J45: 5ans | K45: 13 | L45: 784.024 | M45: 62.72192 | N45: 47.401 | O45: 15.32092
A46: 1900-01-07 | B46: 2025-01-04 | C46: C1 | D46: plat | E46: DEAUVILLE | H46: Conditions | I46: C4 | J46: 5anset+ | K46: 12 | L46: 997.04 | M46: 79.7632 | N46: 26.214 | O46: 53.5492
A47: 1900-01-07 | B47: 2025-01-04 | C47: C2 | D47: plat | E47: DEAUVILLE | H47: Hdcp | I47: C3 | J47: 4ans | K47: 14 | L47: 992.648 | M47: 79.41184 | N47: 30.188 | O47: 49.22384
A48: 1900-01-07 | B48: 2025-01-04 | C48: C3 | D48: plat | E48: DEAUVILLE | H48: Hdcp | I48: C3 | J48: 4ans | K48: 13 | L48: 926.859 | M48: 74.14872 | N48: 27.392 | O48: 46.75672
A49: 1900-01-07 | B49: 2025-01-04 | C49: C4 | D49: plat | E49: DEAUVILLE | H49: Conditions | I49: C4 | J49: 5anset+ | K49: 15 | L49: 927.518 | M49: 74.20144 | N49: 26.214 | O49: 47.98744
A50: 1900-01-07 | B50: 2025-01-04 | C50: C5 | D50: plat | E50: DEAUVILLE | H50: Maiden | J50: 4anset+ | K50: 12 | L50: 779.343 | M50: 62.34744 | N50: 25.469 | O50: 36.87844
A51: 1900-01-07 | B51: 2025-01-04 | C51: C6 | D51: plat | E51: DEAUVILLE | H51: Réclamers | I51: C4 | J51: 4anset+ | K51: 12 | L51: 690.727 | M51: 55.25816 | N51: 23.546 | O51: 31.71216
A52: 1900-01-07 | B52: 2025-01-04 | C52: C7 | D52: plat | E52: DEAUVILLE | H52: Réclamers | J52: 3ans | K52: 11 | L52: 538.284 | M52: 43.06272 | N52: 34.785 | O52: 8.27772
A53: 1900-01-07 | B53: 2025-01-04 | C53: C8 | D53: plat | E53: DEAUVILLE | H53: Hdcp | I53: C3 | J53: 4anset+ | K53: 10 | L53: 476.054 | M53: 38.08432 | N53: 48.495 | O53: -10.41068
A54: 1900-01-01 | B54: 2025-01-05 | C54: C1 | D54: obstacle | E54: CAGNES-SUR-MER | H54: Conditions | I54: C2 | J54: 4ans | K54: 7 | L54: 380.732 | M54: 30.45856 | N54: 52.556 | O54: -22.09744
A55: 1900-01-01 | B55: 2025-01-05 | C55: C2 | D55: obstacle | E55: CAGNES-SUR-MER | H55: Listed | J55: 4ans | K55: 9 | L55: 438.641 | M55: 35.09128 | N55: 90.522 | O55: -55.43072
A56: 1900-01-01 | B56: 2025-01-05 | C56: C3 | D56: obstacle | E56: CAGNES-SUR-MER | H56: Listed | J56: 4ans | K56: 7 | L56: 494.462 | M56: 39.55696 | N56: 93.853 | O56: -54.29604
A57: 1900-01-01 | B57: 2025-01-05 | C57: C4 | D57: obstacle | E57: CAGNES-SUR-MER | H57: Conditions | I57: C4 | J57: 5ans | K57: 10 | L57: 531.042 | M57: 42.48336 | N57: 41.378 | O57: 1.10536
A58: 1900-01-01 | B58: 2025-01-05 | C58: C5 | D58: obstacle | E58: CAGNES-SUR-MER | H58: Réclamers | J58: 5anset+ | K58: 12 | L58: 528.726 | M58: 42.29808 | N58: 22.682 | O58: 19.61608
A59: 1900-01-01 | B59: 2025-01-05 | C59: C6 | D59: obstacle | E59: CAGNES-SUR-MER | H59: GROUPES | I59: III | J59: 5anset+ | K59: 10 | L59: 693.429 | M59: 55.47432 | N59: 164.036 | O59: -108.56168
A60: 1900-01-01 | B60: 2025-01-05 | C60: C7 | D60: obstacle | E60: CAGNES-SUR-MER | H60: Listed | J60: 5anset+ | K60: 13 | L60: 825.277 | M60: 66.02216 | N60: 100.046 | O60: -34.02384
A61: 1900-01-01 | B61: 2025-01-05 | C61: C1 | D61: plat | E61: PORNICHET | H61: Maiden | J61: 5anset+ | K61: 16 | L61: 798.09 | M61: 63.8472 | N61: 20.874 | O61: 42.9732
A62: 1900-01-01 | B62: 2025-01-05 | C62: C2 | D62: plat | E62: PORNICHET | H62: Maiden | J62: 3ans | K62: 13 | L62: 543.027 | M62: 43.44216 | N62: 39.471 | O62: 3.97116
A63: 1900-01-01 | B63: 2025-01-05 | C63: C3 | D63: plat | E63: PORNICHET | H63: Maiden | J63: 3ans | K63: 12 | L63: 550.099 | M63: 44.00792 | N63: 41.523 | O63: 2.48492
A64: 1900-01-01 | B64: 2025-01-05 | C64: C4 | D64: plat | E64: PORNICHET | H64: Maiden | J64: 5anset+ | K64: 14 | L64: 699.846 | M64: 55.98768 | N64: 17.106 | O64: 38.88168
A65: 1900-01-01 | B65: 2025-01-05 | C65: C5 | D65: plat | E65: PORNICHET | H65: Hdcp | I65: C4 | J65: 4anset+ | K65: 12 | L65: 578.12 | M65: 46.2496 | N65: 27.851 | O65: 18.3986
A66: 1900-01-01 | B66: 2025-01-05 | C66: C6 | D66: plat | E66: PORNICHET | H66: Hdcp | I66: C4 | J66: 4anset+ | K66: 12 | L66: 418.162 | M66: 33.45296 | N66: 24.15 | O66: 9.30296
A67: 1900-01-01 | B67: 2025-01-05 | C67: C7 | D67: plat | E67: PORNICHET | H67: Hdcp | I67: C4 | J67: 4anset+ | K67: 12 | L67: 340.948 | M67: 27.27584 | N67: 21.298 | O67: 5.97784
A68: 1900-01-02 | B68: 2025-01-06 | C68: C1 | D68: plat | E68: LYON LA SOIE | H68: Réclamers | J68: 3ans | K68: 9 | L68: 371.204 | M68: 29.69632 | N68: 23.729 | O68: 5.96732
A69: 1900-01-02 | B69: 2025-01-06 | C69: C2 | D69: plat | E69: LYON LA SOIE | H69: Conditions | I69: C3 | J69: 4ans | K69: 6 | L69: 303.143 | M69: 24.25144 | N69: 19.492 | O69: 4.75944
A70: 1900-01-02 | B70: 2025-01-06 | C70: C3 | D70: plat | E70: LYON LA SOIE | H70: Maiden | J70: 3ans | K70: 10 | L70: 469.711 | M70: 37.57688 | N70: 41.523 | O70: -3.94612
A71: 1900-01-02 | B71: 2025-01-06 | C71: C4 | D71: plat | E71: LYON LA SOIE | H71: Réclamers | I71: C4 | J71: 5anset+ | K71: 10 | L71: 507.772 | M71: 40.62176 | N71: 17.148 | O71: 23.47376
A72: =WEEKDAY(B72) -> 1900-01-02 | B72: 2025-01-06 | C72: C5 | D72: plat | E72: LYON LA SOIE | H72: Hdcp | I72: C3 | J72: 4anset+ | K72: 11 | L72: 743.123 | M72: 59.44984 | N72: 32.15 | O72: =M72-N72 -> 27.29984
A73: 1900-01-02 | B73: 2025-01-06 | C73: C6 | D73: plat | E73: LYON LA SOIE | H73: Hdcp | I73: C4 | J73: 4ans | K73: 11 | L73: 722.448 | M73: 57.79584 | N73: 25.665 | O73: 32.13084
A74: 1900-01-02 | B74: 2025-01-06 | C74: C7 | D74: plat | E74: LYON LA SOIE | H74: Hdcp | I74: C4 | J74: 4anset+ | K74: 11 | L74: 675.024 | M74: 54.00192 | N74: 25.386 | O74: 28.61592
A75: 1900-01-02 | B75: 2025-01-06 | C75: C8 | D75: plat | E75: LYON LA SOIE | H75: Hdcp | I75: C4 | J75: 4anset+ | K75: 12 | L75: 826.077 | M75: 66.08616 | N75: 28.82 | O75: 37.26616
A76: 1900-01-03 | B76: 2025-01-07 | C76: C1 | D76: obstacle | E76: CAGNES-SUR-MER | H76: Conditions | J76: 4ans | K76: 7 | L76: 286.468 | M76: 22.91744 | N76: 23.2 | O76: -0.28256
A77: 1900-01-03 | B77: 2025-01-07 | C77: C2 | D77: obstacle | E77: CAGNES-SUR-MER | H77: Conditions | I77: C3 | J77: 5anset+ | K77: 12 | L77: 454.532 | M77: 36.36256 | N77: 42.703 | O77: -6.34044
A78: 1900-01-03 | B78: 2025-01-07 | C78: C3 | D78: obstacle | E78: CAGNES-SUR-MER | H78: Réclamers | J78: 4ans | K78: 8 | L78: 372.612 | M78: 29.80896 | N78: 25.373 | O78: 4.43596
A79: 1900-01-03 | B79: 2025-01-07 | C79: C4 | D79: obstacle | E79: CAGNES-SUR-MER | H79: Conditions | I79: C4 | J79: 4ans | K79: 10 | L79: 467.265 | M79: 37.3812 | N79: 42.301 | O79: -4.9198
A80: 1900-01-03 | B80: 2025-01-07 | C80: C5 | D80: obstacle | E80: CAGNES-SUR-MER | H80: Hdcp | J80: 5anset+ | K80: 10 | L80: 575.959 | M80: 46.07672 | N80: 48.799 | O80: -2.72228
A81: 1900-01-03 | B81: 2025-01-07 | C81: C6 | D81: obstacle | E81: CAGNES-SUR-MER | H81: Conditions | J81: 6anset+ | K81: 13 | L81: 777.715 | M81: 62.2172 | N81: 48.975 | O81: 13.2422
A82: 1900-01-03 | B82: 2025-01-07 | C82: C7 | D82: obstacle | E82: CAGNES-SUR-MER | H82: Hdcp | J82: 5ans | K82: 11 | L82: 853.511 | M82: 68.28088 | N82: 48.936 | O82: 19.34488
A83: 1900-01-03 | B83: 2025-01-07 | C83: C1 | D83: plat | E83: PORNICHET | H83: Hdcp | I83: C4 | J83: 4anset+ | K83: 13 | L83: 800.361 | M83: 64.02888 | N83: 27.662 | O83: 36.36688
A84: 1900-01-03 | B84: 2025-01-07 | C84: C2 | D84: plat | E84: PORNICHET | H84: Hdcp | I84: C4 | J84: 5anset+ | K84: 14 | L84: 835.119 | M84: 66.80952 | N84: 27.092 | O84: 39.71752
A85: 1900-01-03 | B85: 2025-01-07 | C85: C3 | D85: plat | E85: PORNICHET | H85: Hdcp | I85: C4 | J85: 5anset+ | K85: 13 | L85: 791.926 | M85: 63.35408 | N85: 24.083 | O85: 39.27108
A86: 1900-01-03 | B86: 2025-01-07 | C86: C4 | D86: plat | E86: PORNICHET | H86: Hdcp | I86: C4 | J86: 4anset+ | K86: 13 | L86: 836.772 | M86: 66.94176 | N86: 24.573 | O86: 42.36876
A87: 1900-01-03 | B87: 2025-01-07 | C87: C5 | D87: plat | E87: PORNICHET | H87: Réclamers | I87: C4 | J87: 5anset+ | K87: 13 | L87: 889.198 | M87: 71.13584 | N87: 19.386 | O87: 51.74984
A88: 1900-01-03 | B88: 2025-01-07 | C88: C6 | D88: plat | E88: PORNICHET | H88: Hdcp | I88: C4 | J88: 4ans | K88: 12 | L88: 772.57 | M88: 61.8056 | N88: 27.207 | O88: 34.5986
A89: 1900-01-03 | B89: 2025-01-07 | C89: C7 | D89: plat | E89: PORNICHET | H89: Réclamers | J89: 3ans | K89: 8 | L89: 414.818 | M89: 33.18544 | N89: 29.068 | O89: 4.11744
A90: 1900-01-03 | B90: 2025-01-07 | C90: C8 | D90: plat | E90: PORNICHET | H90: Conditions | I90: C3 | J90: 4ans | K90: 6 | L90: 366.828 | M90: 29.34624 | N90: 18.35 | O90: 10.99624
A91: 1900-01-04 | B91: 2025-01-08 | C91: C1 | D91: obstacle | E91: PAU | H91: Conditions | J91: 4ans AA | K91: 8 | L91: 468.587 | M91: 37.48696 | N91: 57.014 | O91: -19.52704
A92: 1900-01-04 | B92: 2025-01-08 | C92: C2 | D92: obstacle | E92: PAU | F92: TQQ+ | H92: Hdcp | J92: 5anset+ | K92: 15 | L92: 6244.574 | M92: 499.56592 | N92: 125.947 | O92: 373.61892
A93: 1900-01-04 | B93: 2025-01-08 | C93: C3 | D93: obstacle | E93: PAU | H93: Conditions | I93: C4 | J93: 4et5ans | K93: 10 | L93: 694.099 | M93: 55.52792 | N93: 46.684 | O93: 8.84392
A94: 1900-01-04 | B94: 2025-01-08 | C94: C4 | D94: plat | E94: PAU | H94: Hdcp | I94: C4 | J94: 5anset+ | K94: 15 | L94: 802.344 | M94: 64.18752 | N94: 25.671 | O94: 38.51652
A95: 1900-01-04 | B95: 2025-01-08 | C95: C5 | D95: obstacle | E95: PAU | H95: Hdcp | J95: 5ans | K95: 12 | L95: 800.167 | M95: 64.01336 | N95: 64.098 | O95: -0.08464
A96: 1900-01-04 | B96: 2025-01-08 | C96: C6 | D96: plat | E96: PAU | H96: Hdcp | I96: C3 | J96: 5anset+ | K96: 16 | L96: 1018.552 | M96: 81.48416 | N96: 30.119 | O96: 51.36516
A97: 1900-01-04 | B97: 2025-01-08 | C97: C7 | D97: obstacle | E97: PAU | H97: Hdcp | J97: 5anset+ | K97: 16 | L97: 1008.96 | M97: 80.7168 | N97: 71.518 | O97: 9.1988
A98: 1900-01-04 | B98: 2025-01-08 | C98: C8 | D98: plat | E98: PAU | H98: Hdcp | I98: C3 | J98: 5anset+ | K98: 15 | L98: 1324.997 | M98: 105.99976 | N98: 34.084 | O98: 71.91576
A99: 1900-01-05 | B99: 2025-01-09 | C99: C1 | D99: plat | E99: LYON LA SOIE | H99: Hdcp | I99: C4 | J99: 5anset+ | K99: 12 | L99: 919.159 | M99: 73.53272 | N99: 19.992 | O99: 53.54072
A100: 1900-01-05 | B100: 2025-01-09 | C100: C2 | D100: plat | E100: LYON LA SOIE | H100: Hdcp | I100: C4 | J100: 4ans | K100: 11 | L100: 765.179 | M100: 61.21432 | N100: 27.417 | O100: 33.79732
A101: 1900-01-05 | B101: 2025-01-09 | C101: C3 | D101: plat | E101: LYON LA SOIE | H101: Hdcp | I101: C4 | J101: 5anset+ | K101: 11 | L101: 925.667 | M101: 74.05336 | N101: 24.288 | O101: 49.76536
A102: 1900-01-05 | B102: 2025-01-09 | C102: C4 | D102: plat | E102: LYON LA SOIE | H102: Conditions | I102: C4 | J102: 5anset+ | K102: 15 | L102: 773.938 | M102: 61.91504 | N102: 21.277 | O102: 40.63804
A103: 1900-01-05 | B103: 2025-01-09 | C103: C5 | D103: plat | E103: LYON LA SOIE | H103: Maiden | J103: 3ans | K103: 12 | L103: 806.056 | M103: 64.48448 | N103: 27.155 | O103: 37.32948
A104: 1900-01-05 | B104: 2025-01-09 | C104: C6 | D104: plat | E104: LYON LA SOIE | H104: Maiden | J104: 5anset+ | K104: 12 | L104: 858.175 | M104: 68.654 | N104: 18.384 | O104: 50.27
A105: 1900-01-05 | B105: 2025-01-09 | C105: C7 | D105: plat | E105: LYON LA SOIE | H105: Maiden | J105: 3ans | K105: 8 | L105: 579.575 | M105: 46.366 | N105: 40.448 | O105: 5.918
A106: 1900-01-05 | B106: 2025-01-09 | C106: C8 | D106: plat | E106: LYON LA SOIE | H106: Maiden | J106: 5anset+ | K106: 6 | L106: 347.783 | M106: 27.82264 | N106: 20.299 | O106: 7.52364
A107: 1900-01-06 | B107: 2025-01-10 | C107: C1 | D107: obstacle | E107: PAU | H107: Conditions | J107: 5anset+ AA | K107: 8 | L107: 374.796 | M107: 29.98368 | N107: 59.538 | O107: -29.55432
A108: 1900-01-06 | B108: 2025-01-10 | C108: C2 | D108: obstacle | E108: PAU | H108: Conditions | I108: C3 | J108: 6anset+ | K108: 9 | L108: 352.147 | M108: 28.17176 | N108: 36.637 | O108: -8.46524
A109: 1900-01-06 | B109: 2025-01-10 | C109: C3 | D109: obstacle | E109: PAU | H109: Conditions | J109: 6anset+ | K109: 9 | L109: 495.462 | M109: 39.63696 | N109: 22.899 | O109: 16.73796
A110: 1900-01-06 | B110: 2025-01-10 | C110: C4 | D110: plat | E110: PAU | H110: Hdcp | I110: C3 | J110: 4anset+ | K110: 12 | L110: 656.776 | M110: 52.54208 | N110: 32.044 | O110: 20.49808
A111: 1900-01-06 | B111: 2025-01-10 | C111: C5 | D111: obstacle | E111: PAU | H111: Conditions | I111: C4 | J111: 4ans | K111: 11 | L111: 563.064 | M111: 45.04512 | N111: 46.684 | O111: -1.63888
A112: 1900-01-06 | B112: 2025-01-10 | C112: C6 | D112: plat | E112: PAU | H112: Hdcp | I112: C4 | J112: 4anset+ | K112: 15 | L112: 698.433 | M112: 55.87464 | N112: 26.214 | O112: 29.66064
A113: 1900-01-06 | B113: 2025-01-10 | C113: C7 | D113: plat | E113: PAU | H113: Hdcp | I113: C3 | J113: 4anset+ | K113: 15 | L113: 749.964 | M113: 59.99712 | N113: 31.127 | O113: 28.87012
A114: 1900-01-06 | B114: 2025-01-10 | C114: C8 | D114: plat | E114: PAU | H114: Hdcp | I114: C3 | J114: 4anset+ | K114: 14 | L114: 858.759 | M114: 68.70072 | N114: 35.371 | O114: 33.32972
A115: 1900-01-06 | B115: 2025-01-10 | C115: C1 | D115: plat | E115: DEAUVILLE | H115: Conditions | I115: C3 | J115: 5anset+ | K115: 11 | L115: 823.688 | M115: 65.89504 | N115: 30.509 | O115: 35.38604
A116: 1900-01-06 | B116: 2025-01-10 | C116: C2 | D116: plat | E116: DEAUVILLE | H116: Réclamers | I116: C3 | J116: 5anset+ | K116: 15 | L116: 1051.436 | M116: 84.11488 | N116: 22.638 | O116: 61.47688
A117: 1900-01-06 | B117: 2025-01-10 | C117: C3 | D117: plat | E117: DEAUVILLE | H117: Maiden | J117: 3ans | K117: 8 | L117: 752.756 | M117: 60.22048 | N117: 49.432 | O117: 10.78848
A118: 1900-01-06 | B118: 2025-01-10 | C118: C4 | D118: plat | E118: DEAUVILLE | H118: Hdcp | I118: C3 | J118: 4anset+ | K118: 15 | L118: 1156.095 | M118: 92.4876 | N118: 34.076 | O118: 58.4116
A119: 1900-01-06 | B119: 2025-01-10 | C119: C5 | D119: plat | E119: DEAUVILLE | H119: Hdcp | I119: C4 | J119: 4anset+ | K119: 15 | L119: 971.771 | M119: 77.74168 | N119: 27.306 | O119: 50.43568
A120: 1900-01-06 | B120: 2025-01-10 | C120: C6 | D120: plat | E120: DEAUVILLE | H120: Hdcp | I120: C3 | J120: 4anset+ | K120: 16 | L120: 1162.369 | M120: 92.98952 | N120: 38.547 | O120: 54.44252
A121: 1900-01-06 | B121: 2025-01-10 | C121: C7 | D121: plat | E121: DEAUVILLE | H121: Maiden | J121: 3ans | K121: 9 | L121: 663.818 | M121: 53.10544 | N121: 51.902 | O121: 1.20344
A122: 1900-01-06 | B122: 2025-01-10 | C122: C8 | D122: plat | E122: DEAUVILLE | F122: TQQ+ | H122: Hdcp | I122: C2 | J122: 4anset+ | K122: 14 | L122: 7864.282 | M122: 629.14256 | N122: 84.623 | O122: 544.51956
A123: 1900-01-06 | B123: 2025-01-10 | C123: C9 | D123: plat | E123: DEAUVILLE | H123: Conditions | I123: C3 | J123: 4ans | K123: 7 | L123: 362.568 | M123: 29.00544 | N123: 29.062 | O123: -0.05656
A124: 1900-01-07 | B124: 2025-01-11 | C124: C1 | D124: plat | E124: CHANTILLY | H124: Conditions | I124: C4 | J124: 4ans | K124: 11 | L124: 428.041 | M124: 34.24328 | N124: 20.793 | O124: 13.45028
A125: 1900-01-07 | B125: 2025-01-11 | C125: C2 | D125: plat | E125: CHANTILLY | H125: Réclamers | I125: C4 | J125: 4anset+ | K125: 13 | L125: 557.774 | M125: 44.62192 | N125: 24.683 | O125: 19.93892
A126: 1900-01-07 | B126: 2025-01-11 | C126: C3 | D126: plat | E126: CHANTILLY | H126: Conditions | I126: C2 | J126: 3ans | K126: 5 | L126: 391.04 | M126: 31.2832 | N126: 52.191 | O126: -20.9078
A127: 1900-01-07 | B127: 2025-01-11 | C127: C4 | D127: plat | E127: CHANTILLY | H127: Hdcp | I127: C4 | J127: 5anset+ | K127: 16 | L127: 787.202 | M127: 62.97616 | N127: 20.755 | O127: 42.22116
A128: 1900-01-07 | B128: 2025-01-11 | C128: C5 | D128: plat | E128: CHANTILLY | H128: Conditions | I128: C3 | J128: 5anset+ | K128: 13 | L128: 914.795 | M128: 73.1836 | N128: 22.36 | O128: 50.8236
A129: 1900-01-07 | B129: 2025-01-11 | C129: C6 | D129: plat | E129: CHANTILLY | H129: Maiden | J129: 5anset+ | K129: 17 | L129: 1001.59 | M129: 80.1272 | N129: 24.32 | O129: 55.8072
A130: 1900-01-07 | B130: 2025-01-11 | C130: C7 | D130: plat | E130: CHANTILLY | H130: Hdcp | I130: C4 | J130: 5anset+ | K130: 16 | L130: 1012.814 | M130: 81.02512 | N130: 21.374 | O130: 59.65112
A131: 1900-01-07 | B131: 2025-01-11 | C131: C8 | D131: plat | E131: CHANTILLY | H131: Hdcp | I131: C4 | J131: 5anset+ | K131: 16 | L131: 1022.801 | M131: 81.82408 | N131: 28.227 | O131: 53.59708
A132: 1900-01-01 | B132: 2025-01-12 | C132: C1 | D132: plat | E132: PAU | H132: Conditions | I132: C3 | J132: 5anset+ | K132: 9 | L132: 597.53 | M132: 47.8024 | N132: 28.785 | O132: 19.0174
A133: 1900-01-01 | B133: 2025-01-12 | C133: C2 | D133: obstacle | E133: PAU | H133: Hdcp | J133: 4ans | K133: 8 | L133: 518.645 | M133: 41.4916 | N133: 55.799 | O133: -14.3074
A134: 1900-01-01 | B134: 2025-01-12 | C134: C3 | D134: plat | E134: PAU | H134: Hdcp | I134: C3 | J134: 4ans | K134: 10 | L134: 657.941 | M134: 52.63528 | N134: 37.409 | O134: 15.22628
A135: 1900-01-01 | B135: 2025-01-12 | C135: C4 | D135: obstacle | E135: PAU | H135: Conditions | I135: C1 | J135: 6anset+ | K135: 6 | L135: 424.331 | M135: 33.94648 | N135: 58.645 | O135: -24.69852
A136: =WEEKDAY(B136) -> 1900-01-01 | B136: 2025-01-12 | C136: C5 | D136: obstacle | E136: PAU | H136: Conditions | I136: C3 | J136: 5anset+ | K136: 9 | L136: 487.219 | M136: 38.97752 | N136: 42.455 | O136: =M136-N136 -> -3.47748
A137: 1900-01-01 | B137: 2025-01-12 | C137: C6 | D137: obstacle | E137: PAU | H137: Conditions | J137: 5ans AQPS | K137: 14 | L137: 699.399 | M137: 55.95192 | N137: 49.372 | O137: 6.57992
A138: 1900-01-01 | B138: 2025-01-12 | C138: C7 | D138: plat | E138: PAU | H138: Inédits | J138: 3ans | K138: 10 | L138: 555.101 | M138: 44.40808 | N138: 38.28 | O138: 6.12808
A139: 1900-01-01 | B139: 2025-01-12 | C139: C8 | D139: obstacle | E139: PAU | H139: Conditions | I139: C4 | J139: 4ans | K139: 14 | L139: 751.978 | M139: 60.15824 | N139: 40.6 | O139: 19.55824
A140: 1900-01-02 | B140: 2025-01-13 | C140: C1 | D140: plat | E140: CAGNES-SUR-MER | H140: Inédits | J140: 3ans | K140: 8 | L140: 409.655 | M140: 32.7724 | N140: 45.208 | O140: -12.4356
A141: 1900-01-02 | B141: 2025-01-13 | C141: C2 | D141: plat | E141: CAGNES-SUR-MER | F141: TQQ+ | H141: Hdcp | I141: C2 | J141: 4ans | K141: 15 | L141: 6451.575 | M141: 516.126 | N141: 86.179 | O141: 429.947
A142: 1900-01-02 | B142: 2025-01-13 | C142: C3 | D142: plat | E142: CAGNES-SUR-MER | H142: Conditions | I142: C2 | J142: 4ans | K142: 7 | L142: 567.465 | M142: 45.3972 | N142: 40.987 | O142: 4.4102
A143: 1900-01-02 | B143: 2025-01-13 | C143: C4 | D143: plat | E143: CAGNES-SUR-MER | H143: Inédits | J143: 3ans | K143: 10 | L143: 762.372 | M143: 60.98976 | N143: 29.29 | O143: 31.69976
A144: 1900-01-02 | B144: 2025-01-13 | C144: C5 | D144: plat | E144: CAGNES-SUR-MER | H144: Conditions | I144: C2 | J144: 3ans | K144: 10 | L144: 758.536 | M144: 60.68288 | N144: 50.389 | O144: 10.29388
A145: 1900-01-02 | B145: 2025-01-13 | C145: C6 | D145: plat | E145: CAGNES-SUR-MER | H145: Hdcp | J145: 3ans | K145: 11 | L145: 894.262 | M145: 71.54096 | N145: 49.02 | O145: 22.52096
A146: 1900-01-02 | B146: 2025-01-13 | C146: C7 | D146: plat | E146: CAGNES-SUR-MER | H146: Hdcp | I146: C3 | J146: 4ans | K146: 10 | L146: 881.295 | M146: 70.5036 | N146: 41.821 | O146: 28.6826
A147: 1900-01-03 | B147: 2025-01-14 | C147: C1 | D147: plat | E147: PAU | H147: Conditions | I147: C2 | J147: 3ans | K147: 7 | L147: 277.054 | M147: 22.16432 | N147: 43.33 | O147: -21.16568
A148: 1900-01-03 | B148: 2025-01-14 | C148: C2 | D148: obstacle | E148: PAU | H148: Conditions | J148: 4ans AQPS | K148: 4 | L148: 163.897 | M148: 13.11176 | N148: 35.483 | O148: -22.37124
A149: 1900-01-03 | B149: 2025-01-14 | C149: C3 | D149: obstacle | E149: PAU | H149: Conditions | I149: C2 | J149: 6ans | K149: 6 | L149: 228.789 | M149: 18.30312 | N149: 38.269 | O149: -19.96588
A150: 1900-01-03 | B150: 2025-01-14 | C150: C4 | D150: plat | E150: PAU | H150: Hdcp | J150: 3ans | K150: 8 | L150: 492.845 | M150: 39.4276 | N150: 38.742 | O150: 0.6856
A151: 1900-01-03 | B151: 2025-01-14 | C151: C5 | D151: obstacle | E151: PAU | H151: Réclamers | J151: 5anset+ | K151: 12 | L151: 486.924 | M151: 38.95392 | N151: 22.899 | O151: 16.05492
A152: 1900-01-03 | B152: 2025-01-14 | C152: C6 | D152: plat | E152: PAU | H152: Réclamers | I152: C4 | J152: 5anset+ | K152: 10 | L152: 646.961 | M152: 51.75688 | N152: 25.274 | O152: 26.48288
A153: 1900-01-03 | B153: 2025-01-14 | C153: C7 | D153: obstacle | E153: PAU | H153: Conditions | I153: C3 | J153: 5anset+ | K153: 10 | L153: 744.062 | M153: 59.52496 | N153: 42.36 | O153: 17.16496
A154: 1900-01-03 | B154: 2025-01-14 | C154: C8 | D154: plat | E154: PAU | H154: Hdcp | I154: C3 | J154: 4ans | K154: 14 | L154: 863.338 | M154: 69.06704 | N154: 37.65 | O154: 31.41704
A155: 1900-01-04 | B155: 2025-01-15 | C155: C1 | D155: plat | E155: CAGNES-SUR-MER | H155: Conditions | I155: C2 | J155: 5anset+ | K155: 10 | L155: 548.364 | M155: 43.86912 | N155: 39.195 | O155: 4.67412
A156: 1900-01-04 | B156: 2025-01-15 | C156: C2 | D156: plat | E156: CAGNES-SUR-MER | F156: TQQ+ | H156: Hdcp | I156: C2 | J156: 5anset+ | K156: 16 | L156: 6347.134 | M156: 507.77072 | N156: 76.564 | O156: 431.20672
A157: 1900-01-04 | B157: 2025-01-15 | C157: C3 | D157: plat | E157: CAGNES-SUR-MER | H157: Maiden | J157: 3ans | K157: 10 | L157: 882.788 | M157: 70.62304 | N157: 45.479 | O157: 25.14404
A158: 1900-01-04 | B158: 2025-01-15 | C158: C4 | D158: plat | E158: CAGNES-SUR-MER | H158: Maiden | J158: 3ans | K158: 12 | L158: 748.337 | M158: 59.86696 | N158: 45.298 | O158: 14.56896
A159: 1900-01-04 | B159: 2025-01-15 | C159: C5 | D159: plat | E159: CAGNES-SUR-MER | H159: Hdcp | I159: C3 | J159: 4anset+ | K159: 14 | L159: 994.61 | M159: 79.5688 | N159: 33.292 | O159: 46.2768
A160: 1900-01-04 | B160: 2025-01-15 | C160: C6 | D160: plat | E160: CAGNES-SUR-MER | H160: Hdcp | I160: C3 | J160: 4anset+ | K160: 16 | L160: 1009.679 | M160: 80.77432 | N160: 40.828 | O160: 39.94632
A161: 1900-01-04 | B161: 2025-01-15 | C161: C7 | D161: plat | E161: CAGNES-SUR-MER | H161: Hdcp | I161: C3 | J161: 5anset+ | K161: 15 | L161: 1004.2 | M161: 80.336 | N161: 42.949 | O161: 37.387
A162: 1900-01-05 | B162: 2025-01-16 | C162: C1 | D162: plat | E162: CHANTILLY | H162: Maiden | J162: 3ans | K162: 10 | L162: 465.874 | M162: 37.26992 | N162: 46.836 | O162: -9.56608
A163: 1900-01-05 | B163: 2025-01-16 | C163: C2 | D163: plat | E163: CHANTILLY | H163: Maiden | J163: 3ans | K163: 13 | L163: 544.592 | M163: 43.56736 | N163: 50.326 | O163: -6.75864
A164: 1900-01-05 | B164: 2025-01-16 | C164: C3 | D164: plat | E164: CHANTILLY | H164: Réclamers | J164: 3ans | K164: 10 | L164: 469.257 | M164: 37.54056 | N164: 27.206 | O164: 10.33456
A165: 1900-01-05 | B165: 2025-01-16 | C165: C4 | D165: plat | E165: CHANTILLY | H165: Conditions | I165: C2 | J165: 4anset+ | K165: 10 | L165: 582.14 | M165: 46.5712 | N165: 41.65 | O165: 4.9212
A166: 1900-01-05 | B166: 2025-01-16 | C166: C5 | D166: plat | E166: CHANTILLY | H166: Réclamers | J166: 3ans | K166: 13 | L166: 576.683 | M166: 46.13464 | N166: 37.271 | O166: 8.86364
A167: 1900-01-05 | B167: 2025-01-16 | C167: C6 | D167: plat | E167: CHANTILLY | H167: Hdcp | I167: C4 | J167: 5anset+ | K167: 15 | L167: 864.167 | M167: 69.13336 | N167: 24.553 | O167: 44.58036
A168: 1900-01-05 | B168: 2025-01-16 | C168: C7 | D168: plat | E168: CHANTILLY | H168: Hdcp | I168: C4 | J168: 5anset+ | K168: 16 | L168: 845.071 | M168: 67.60568 | N168: 29.301 | O168: 38.30468
A169: 1900-01-05 | B169: 2025-01-16 | C169: C8 | D169: plat | E169: CHANTILLY | H169: Conditions | I169: C2 | J169: 4anset+ | K169: 11 | L169: 948.901 | M169: 75.91208 | N169: 42.424 | O169: 33.48808
A170: 1900-01-06 | B170: 2025-01-17 | C170: C1 | D170: plat | E170: PAU | H170: Conditions | I170: C3 | J170: 4anset+ | K170: 6 | L170: 275.608 | M170: 22.04864 | N170: 21.446 | O170: 0.60264
A171: 1900-01-06 | B171: 2025-01-17 | C171: C2 | D171: plat | E171: PAU | H171: Conditions | I171: C4 | J171: 4ans | K171: 15 | L171: 514.638 | M171: 41.17104 | N171: 22.935 | O171: 18.23604
A172: 1900-01-06 | B172: 2025-01-17 | C172: C3 | D172: obstacle | E172: PAU | H172: Conditions | I172: C1 | J172: 4ans | K172: 6 | L172: 294.315 | M172: 23.5452 | N172: 56.497 | O172: -32.9518
A173: 1900-01-06 | B173: 2025-01-17 | C173: C4 | D173: obstacle | E173: PAU | H173: Réclamers | J173: 5ans | K173: 18 | L173: 512.803 | M173: 41.02424 | N173: 25.527 | O173: 15.49724
A174: 1900-01-06 | B174: 2025-01-17 | C174: C5 | D174: obstacle | E174: PAU | H174: Conditions | J174: 6ans | K174: 8 | L174: 308.444 | M174: 24.67552 | N174: 42.36 | O174: -17.68448
A175: 1900-01-06 | B175: 2025-01-17 | C175: C6 | D175: plat | E175: PAU | H175: Hdcp | I175: C3 | J175: 5anset+ | K175: 16 | L175: 667.61 | M175: 53.4088 | N175: 31.077 | O175: 22.3318
A176: 1900-01-06 | B176: 2025-01-17 | C176: C7 | D176: obstacle | E176: PAU | H176: Hdcp | J176: 5ans | K176: 14 | L176: 678.209 | M176: 54.25672 | N176: 63.783 | O176: -9.52628
A177: 1900-01-06 | B177: 2025-01-17 | C177: C8 | D177: plat | E177: PAU | H177: Hdcp | I177: C3 | J177: 5anset+ | K177: 16 | L177: 756.164 | M177: 60.49312 | N177: 32.267 | O177: 28.22612
A178: 1900-01-06 | B178: 2025-01-17 | C178: C1 | D178: plat | E178: DEAUVILLE | H178: Conditions | I178: C2 | J178: 3ans | K178: 5 | L178: 383.321 | M178: 30.66568 | N178: 53.604 | O178: -22.93832
A179: 1900-01-06 | B179: 2025-01-17 | C179: C2 | D179: plat | E179: DEAUVILLE | H179: Maiden | J179: 3ans | K179: 15 | L179: 769.91 | M179: 61.5928 | N179: 53.39 | O179: 8.2028
A180: 1900-01-06 | B180: 2025-01-17 | C180: C3 | D180: plat | E180: DEAUVILLE | H180: Maiden | J180: 3ans | K180: 10 | L180: 1003.353 | M180: 80.26824 | N180: 51.37 | O180: 28.89824
A181: 1900-01-06 | B181: 2025-01-17 | C181: C4 | D181: plat | E181: DEAUVILLE | H181: Hdcp | J181: 3ans | K181: 12 | L181: 971.306 | M181: 77.70448 | N181: 48.669 | O181: 29.03548
A182: 1900-01-06 | B182: 2025-01-17 | C182: C5 | D182: plat | E182: DEAUVILLE | H182: Conditions | I182: C3 | J182: 4anset+ | K182: 13 | L182: 868.297 | M182: 69.46376 | N182: 28.517 | O182: 40.94676
A183: 1900-01-06 | B183: 2025-01-17 | C183: C6 | D183: plat | E183: DEAUVILLE | H183: Hdcp | I183: C3 | J183: 4anset+ | K183: 16 | L183: 941.643 | M183: 75.33144 | N183: 44.164 | O183: 31.16744
A184: 1900-01-06 | B184: 2025-01-17 | C184: C7 | D184: plat | E184: DEAUVILLE | H184: Hdcp | I184: C3 | J184: 4anset+ | K184: 16 | L184: 616.55 | M184: 49.324 | N184: 35.621 | O184: 13.703
A185: 1900-01-06 | B185: 2025-01-17 | C185: C8 | D185: plat | E185: DEAUVILLE | F185: TQQ+ | H185: Hdcp | I185: C2 | J185: 4anset+ | K185: 16 | L185: 7754.16 | M185: 620.3328 | N185: 85.695 | O185: 534.6378
A186: 1900-01-07 | B186: 2025-01-18 | C186: C1 | D186: plat | E186: CAGNES-SUR-MER | H186: Réclamers | J186: 3ans | K186: 10 | L186: 363.891 | M186: 29.11128 | N186: 31.262 | O186: -2.15072
A187: 1900-01-07 | B187: 2025-01-18 | C187: C2 | D187: plat | E187: CAGNES-SUR-MER | H187: Maiden | J187: 3ans | K187: 8 | L187: 417.16 | M187: 33.3728 | N187: 45.479 | O187: -12.1062
A188: 1900-01-07 | B188: 2025-01-18 | C188: C3 | D188: plat | E188: CAGNES-SUR-MER | H188: Hdcp | I188: C4 | J188: 4anset+ | K188: 13 | L188: 616.917 | M188: 49.35336 | N188: 27.596 | O188: 21.75736
A189: 1900-01-07 | B189: 2025-01-18 | C189: C4 | D189: plat | E189: CAGNES-SUR-MER | H189: Hdcp | I189: C3 | J189: 4ans | K189: 10 | L189: 515.519 | M189: 41.24152 | N189: 31.611 | O189: 9.63052
A190: 1900-01-07 | B190: 2025-01-18 | C190: C5 | D190: plat | E190: CAGNES-SUR-MER | H190: Maiden | J190: 3ans | K190: 11 | L190: 691.382 | M190: 55.31056 | N190: 45.389 | O190: 9.92156
A191: 1900-01-07 | B191: 2025-01-18 | C191: C6 | D191: plat | E191: CAGNES-SUR-MER | H191: Hdcp | I191: C3 | J191: 4anset+ | K191: 11 | L191: 651.366 | M191: 52.10928 | N191: 38.406 | O191: 13.70328
A192: 1900-01-07 | B192: 2025-01-18 | C192: C7 | D192: plat | E192: CAGNES-SUR-MER | H192: Hdcp | I192: C3 | J192: 4anset+ | K192: 13 | L192: 798.45 | M192: 63.876 | N192: 31.819 | O192: 32.057
A193: 1900-01-07 | B193: 2025-01-18 | C193: C8 | D193: plat | E193: CAGNES-SUR-MER | H193: Hdcp | I193: C3 | J193: 4ans | K193: 12 | L193: 834.638 | M193: 66.77104 | N193: 32.978 | O193: 33.79304
A194: 1900-01-01 | B194: 2025-01-19 | C194: C1 | D194: plat | E194: PAU | H194: Maiden | J194: 3ans | K194: 9 | L194: 368.792 | M194: 29.50336 | N194: 34.34 | O194: -4.83664
A195: 1900-01-01 | B195: 2025-01-19 | C195: C2 | D195: obstacle | E195: PAU | H195: Conditions | I195: C1 | J195: 4ans | K195: 5 | L195: 228.557 | M195: 18.28456 | N195: 55.39 | O195: -37.10544
A196: 1900-01-01 | B196: 2025-01-19 | C196: C3 | D196: obstacle | E196: PAU | H196: Conditions | I196: C3 | J196: 4ans | K196: 6 | L196: 245.108 | M196: 19.60864 | N196: 46.263 | O196: -26.65436
A197: 1900-01-01 | B197: 2025-01-19 | C197: C4 | D197: obstacle | E197: PAU | H197: Conditions | I197: C2 | J197: 6anset+ | K197: 5 | L197: 188.635 | M197: 15.0908 | N197: 32.86 | O197: -17.7692
A198: 1900-01-01 | B198: 2025-01-19 | C198: C5 | D198: plat | E198: PAU | H198: Réclamers | I198: C4 | J198: 4anset+ | K198: 10 | L198: 525.929 | M198: 42.07432 | N198: 19.596 | O198: 22.47832
A199: 1900-01-01 | B199: 2025-01-19 | C199: C6 | D199: obstacle | E199: PAU | H199: Conditions | I199: C2 | J199: 5ans | K199: 15 | L199: 596.642 | M199: 47.73136 | N199: 46.418 | O199: 1.31336
A200: =WEEKDAY(B200) -> 1900-01-01 | B200: 2025-01-19 | C200: C7 | D200: plat | E200: PAU | H200: Hdcp | I200: C4 | J200: 4anset+ | K200: 10 | L200: 622.709 | M200: 49.81672 | N200: 22.936 | O200: =M200-N200 -> 26.88072
... 4884 more rows

Sheet base
A1: A:A | K1: =+L4/0.88 -> 1299655.913 | L1: =+L4-K1 -> -155958.7096 | M1: =+L1/5*12 -> -374300.903 | N1: =+M1*0.08 -> -29944.07224 | P1: =(L4-'2024 (2)'!L4)/'2024 (2)'!L4 -> 1.285294851
E2: Moyenne par partant | L2: =+L4/K4 -> 69.03049273 | M2: =+M4/K4 -> 5.522439418 | N2: =+N4/K4 -> 3.594230261 | O2: =+O4/K4 -> 1.928209157
E3: Moyenne/course | K3: =K4/H4 -> 11.18703579 | L3: =+L4/H4 -> 772.2465925 | M3: =+M4/H4 -> 61.7797274 | N3: =+N4/H4 -> 40.20878256 | O3: =+O4/H4 -> 21.57094484
B4: 0 | E4: Total | F4: =SUBTOTAL(3,F7:F5803) -> 53 | G4: =SUBTOTAL(3,G7:G5811) -> 0 | H4: =SUBTOTAL(3,H7:H5803) -> 1481 | K4: =SUBTOTAL(9,K7:K5803) -> 16568 | L4: =SUBTOTAL(9,L7:L5803) -> 1143697.204 | M4: =SUBTOTAL(9,M7:M5803) -> 91495.77628 | N4: =SUBTOTAL(9,N7:N5803) -> 59549.20697 | O4: =M4-N4 -> 31946.56931 | Q4: =SUBTOTAL(9,#REF!) ->  | S4: =SUM(#REF!) ->  | T4: =SUM(#REF!) ->  | U4: =(T4-S4)/S4 ->  | W4: Nombre de réunions | Y4: =MAX(#REF!) ->  | AE4: =SUM(#REF!) -> 
AE5: Programme
A6: Jour | B6: Date | C6: Course | D6: Discipline | E6: Hippodrome | F6: Jeu | G6: COND. | H6: conditions | I6: Cat | J6: Age | K6: Pts | L6: enjeux | M6: retour net | N6: alloc distrib. | O6: résultat | Q6: alloc etr | R6: res reun 2020 | S6: enj 2019 | T6: enj 2020 | U6: Ecart | V6: TQQ + 2018 | W6: ecart 2019/2018 | Y6: N° réunions | Z6: alloc 2019 | AA6: alloc 2018
A7: =WEEKDAY(B7) -> 1900-01-05 | B7: 2026-01-01 | C7: C1 | D7: obstacle | E7: CAGNES-SUR-MER | H7: Conditions | I7: C4 | J7: 5anset+ | K7: 7 | L7: 258.688 | M7: 20.69504 | N7: 36.795 | O7: =M7-N7 -> -16.09996
A8: 1900-01-05 | B8: 2026-01-01 | C8: C2 | D8: obstacle | E8: CAGNES-SUR-MER | H8: Réclamers | J8: 6anset+ | K8: 11 | L8: 379.06 | M8: 30.3248 | N8: 21.75 | O8: 8.5748
A9: 1900-01-05 | B9: 2026-01-01 | C9: C3 | D9: obstacle | E9: CAGNES-SUR-MER | H9: Conditions | I9: C2 | J9: 4ans | K9: 9 | L9: 367.225 | M9: 29.378 | N9: 42.096 | O9: -12.718
A10: 1900-01-05 | B10: 2026-01-01 | C10: C4 | D10: obstacle | E10: CAGNES-SUR-MER | H10: Réclamers | J10: 4ans | K10: 10 | L10: 417.267 | M10: 33.38136 | N10: 25.25 | O10: 8.13136
A11: 1900-01-05 | B11: 2026-01-01 | C11: C5 | D11: obstacle | E11: CAGNES-SUR-MER | H11: Conditions | I11: C4 | J11: 4ans | K11: 11 | L11: 489.714 | M11: 39.17712 | N11: 42.684 | O11: -3.50688
A12: 1900-01-05 | B12: 2026-01-01 | C12: C6 | D12: obstacle | E12: CAGNES-SUR-MER | H12: Réclamers | J12: 5ans | K12: 11 | L12: 526.087 | M12: 42.08696 | N12: 20.36 | O12: 21.72696
A13: 1900-01-05 | B13: 2026-01-01 | C13: C7 | D13: obstacle | E13: CAGNES-SUR-MER | H13: Conditions | I13: C3 | J13: 5anset+ | K13: 9 | L13: 455.151 | M13: 36.41208 | N13: 42.516 | O13: -6.10392
A14: 1900-01-06 | B14: 2026-01-02 | C14: C1 | D14: plat | E14: PAU | H14: Réclamers | J14: 3ans | K14: 12 | L14: 373.596 | M14: 29.88768 | N14: 22.4 | O14: 7.48768
A15: 1900-01-06 | B15: 2026-01-02 | C15: C2 | D15: plat | E15: PAU | H15: Réclamers | I15: C4 | J15: 5anset+ | K15: 11 | L15: 413.862 | M15: 33.10896 | N15: 18.75 | O15: 14.35896
A16: 1900-01-06 | B16: 2026-01-02 | C16: C3 | D16: plat | E16: PAU | H16: Réclamers | J16: 3ans | K16: 11 | L16: 493.61 | M16: 39.4888 | N16: 17.28 | O16: 22.2088
A17: 1900-01-06 | B17: 2026-01-02 | C17: C4 | D17: plat | E17: PAU | H17: Hdcp | I17: C4 | J17: 4anset+ | K17: 12 | L17: 540.732 | M17: 43.25856 | N17: 24.343 | O17: 18.91556
A18: 1900-01-06 | B18: 2026-01-02 | C18: C5 | D18: plat | E18: PAU | H18: Hdcp | I18: C3 | J18: 4anset+ | K18: 12 | L18: 517.24 | M18: 41.3792 | N18: 29.814 | O18: 11.5652
A19: 1900-01-06 | B19: 2026-01-02 | C19: C6 | D19: plat | E19: PAU | H19: Hdcp | I19: C3 | J19: 4ans | K19: 15 | L19: 701.226 | M19: 56.09808 | N19: 31.146 | O19: 24.95208
A20: 1900-01-06 | B20: 2026-01-02 | C20: C7 | D20: plat | E20: PAU | H20: Hdcp | I20: C3 | J20: 4anset+ | K20: 13 | L20: 754.126 | M20: 60.33008 | N20: 35.46 | O20: 24.87008
A21: 1900-01-06 | B21: 2026-01-02 | C21: C8 | D21: plat | E21: PAU | H21: Hdcp | I21: C3 | J21: 4anset+ | K21: 14 | L21: 940.144 | M21: 75.21152 | N21: 32.063 | O21: 43.14852
A22: 1900-01-06 | B22: 2026-01-02 | C22: C1 | D22: plat | E22: DEAUVILLE | H22: Conditions | I22: C3 | J22: 5anset+ | K22: 10 | L22: 902.024 | M22: 72.16192 | N22: 26.272 | O22: 45.88992
A23: 1900-01-06 | B23: 2026-01-02 | C23: C2 | D23: plat | E23: DEAUVILLE | H23: Réclamers | J23: 3ans | K23: 13 | L23: 940.254 | M23: 75.22032 | N23: 42.28 | O23: 32.94032
A24: 1900-01-06 | B24: 2026-01-02 | C24: C3 | D24: plat | E24: DEAUVILLE | H24: Hdcp | I24: C3 | J24: 4ans | K24: 15 | L24: 1009.066 | M24: 80.72528 | N24: 33.372 | O24: 47.35328
A25: 1900-01-06 | B25: 2026-01-02 | C25: C4 | D25: plat | E25: DEAUVILLE | H25: Hdcp | I25: C3 | J25: 4ans | K25: 14 | L25: 1006.271 | M25: 80.50168 | N25: 33.093 | O25: 47.40868
A26: 1900-01-06 | B26: 2026-01-02 | C26: C5 | D26: plat | E26: DEAUVILLE | H26: Hdcp | I26: C3 | J26: 4ans | K26: 10 | L26: 838.335 | M26: 67.0668 | N26: 42.279 | O26: 24.7878
A27: 1900-01-06 | B27: 2026-01-02 | C27: C6 | D27: plat | E27: DEAUVILLE | H27: Hdcp | I27: C3 | J27: 4ans | K27: 11 | L27: 800.884 | M27: 64.07072 | N27: 34.473 | O27: 29.59772
A28: 1900-01-06 | B28: 2026-01-02 | C28: C7 | D28: plat | E28: DEAUVILLE | H28: Hdcp | J28: 3ans | K28: 8 | L28: 466.77 | M28: 37.3416 | N28: 35.198 | O28: 2.1436
A29: 1900-01-06 | B29: 2026-01-02 | C29: C8 | D29: plat | E29: DEAUVILLE | F29: TQQ+ | H29: Hdcp | I29: C2 | J29: 4ans | K29: 15 | L29: 7507.08 | M29: 600.5664 | N29: 82.627 | O29: 517.9394
A30: 1900-01-07 | B30: 2026-01-03 | C30: C1 | D30: obstacle | E30: PAU | H30: Conditions | I30: C1 | J30: 4ans | K30: 6 | L30: 257.364 | M30: 20.58912 | N30: 48.206 | O30: -27.61688
A31: 1900-01-07 | B31: 2026-01-03 | C31: C2 | D31: obstacle | E31: PAU | H31: Conditions | I31: C2 | J31: 6anset+ | K31: 9 | L31: 428.376 | M31: 34.27008 | N31: 37.782 | O31: -3.51192
A32: 1900-01-07 | B32: 2026-01-03 | C32: C3 | D32: obstacle | E32: PAU | H32: Réclamers | J32: 4ans | K32: 9 | L32: 407.529 | M32: 32.60232 | N32: 22.04 | O32: 10.56232
A33: 1900-01-07 | B33: 2026-01-03 | C33: C4 | D33: obstacle | E33: PAU | H33: Réclamers | J33: 4ans | K33: 10 | L33: 438.733 | M33: 35.09864 | N33: 23.88 | O33: 11.21864
A34: 1900-01-07 | B34: 2026-01-03 | C34: C5 | D34: obstacle | E34: PAU | H34: Hdcp | J34: 5ans | K34: 9 | L34: 586.081 | M34: 46.88648 | N34: 71.995 | O34: -25.10852
A35: 1900-01-07 | B35: 2026-01-03 | C35: C6 | D35: obstacle | E35: PAU | H35: Conditions | I35: C3 | J35: 6ans | K35: 9 | L35: 658.291 | M35: 52.66328 | N35: 38.924 | O35: 13.73928
A36: 1900-01-07 | B36: 2026-01-03 | C36: C7 | D36: obstacle | E36: PAU | H36: Conditions | I36: C2 | J36: 4ans | K36: 9 | L36: 667.637 | M36: 53.41096 | N36: 42.273 | O36: 11.13796
A37: 1900-01-07 | B37: 2026-01-03 | C37: C8 | D37: obstacle | E37: PAU | H37: Conditions | I37: C3 | J37: 5ans | K37: 14 | L37: 718.499 | M37: 57.47992 | N37: 44.765 | O37: 12.71492
A38: 1900-01-07 | B38: 2026-01-03 | C38: C1 | D38: plat | E38: PORNICHET | H38: Maiden | J38: 4anset+ | K38: 13 | L38: 1013.07 | M38: 81.0456 | N38: 16.972 | O38: 64.0736
A39: 1900-01-07 | B39: 2026-01-03 | C39: C2 | D39: plat | E39: PORNICHET | H39: Conditions | I39: C4 | J39: 4ans | K39: 9 | L39: 643.236 | M39: 51.45888 | N39: 20.566 | O39: 30.89288
A40: 1900-01-07 | B40: 2026-01-03 | C40: C3 | D40: plat | E40: PORNICHET | H40: Maiden | J40: 4anset+ | K40: 11 | L40: 720.745 | M40: 57.6596 | N40: 19.051 | O40: 38.6086
A41: 1900-01-07 | B41: 2026-01-03 | C41: C4 | D41: plat | E41: PORNICHET | H41: Hdcp | I41: C4 | J41: 4anset+ | K41: 10 | L41: 756.39 | M41: 60.5112 | N41: 26.401 | O41: 34.1102
A42: 1900-01-07 | B42: 2026-01-03 | C42: C5 | D42: plat | E42: PORNICHET | H42: Maiden | J42: 3ans | K42: 10 | L42: 573.98 | M42: 45.9184 | N42: 37.965 | O42: 7.9534
A43: 1900-01-07 | B43: 2026-01-03 | C43: C6 | D43: plat | E43: PORNICHET | H43: Hdcp | I43: C4 | J43: 4anset+ | K43: 10 | L43: 602.133 | M43: 48.17064 | N43: 18.992 | O43: 29.17864
A44: 1900-01-07 | B44: 2026-01-03 | C44: C7 | D44: plat | E44: PORNICHET | H44: Maiden | J44: 3ans | K44: 9 | L44: 550.773 | M44: 44.06184 | N44: 34.4 | O44: 9.66184
A45: 1900-01-07 | B45: 2026-01-03 | C45: C8 | D45: plat | E45: PORNICHET | H45: Hdcp | I45: C4 | J45: 4anset+ | K45: 10 | L45: 402.524 | M45: 32.20192 | N45: 21.241 | O45: 10.96092
A46: 1900-01-01 | B46: 2026-01-04 | C46: C1 | D46: obstacle | E46: CAGNES-SUR-MER | H46: Conditions | I46: C2 | J46: 4ans | K46: 7 | L46: 377.761 | M46: 30.22088 | N46: 49.351 | O46: -19.13012
A47: 1900-01-01 | B47: 2026-01-04 | C47: C2 | D47: obstacle | E47: CAGNES-SUR-MER | H47: Réclamers | J47: 5anset+ | K47: 12 | L47: 450.443 | M47: 36.03544 | N47: 22.37 | O47: 13.66544
A48: 1900-01-01 | B48: 2026-01-04 | C48: C3 | D48: obstacle | E48: CAGNES-SUR-MER | H48: Listed | J48: 4ans | K48: 9 | L48: 456.398 | M48: 36.51184 | N48: 75.466 | O48: -38.95416
A49: 1900-01-01 | B49: 2026-01-04 | C49: C4 | D49: obstacle | E49: CAGNES-SUR-MER | H49: Hdcp | J49: 5ans | K49: 13 | L49: 523.093 | M49: 41.84744 | N49: 43.187 | O49: -1.33956
A50: 1900-01-01 | B50: 2026-01-04 | C50: C5 | D50: obstacle | E50: CAGNES-SUR-MER | H50: GROUPES | I50: III | J50: 5anset+ | K50: 12 | L50: 678.01 | M50: 54.2408 | N50: 163.62 | O50: -109.3792
A51: 1900-01-01 | B51: 2026-01-04 | C51: C6 | D51: obstacle | E51: CAGNES-SUR-MER | H51: Listed | J51: 5anset+ | K51: 10 | L51: 605.307 | M51: 48.42456 | N51: 96.177 | O51: -47.75244
A52: 1900-01-01 | B52: 2026-01-04 | C52: C7 | D52: obstacle | E52: CAGNES-SUR-MER | H52: Listed | J52: 4ans | K52: 12 | L52: 628.303 | M52: 50.26424 | N52: 90.564 | O52: -40.29976
A53: 1900-01-01 | B53: 2026-01-04 | C53: C1 | D53: plat | E53: MARSEILLE PONT DE VIVAUX | H53: Hdcp | I53: C4 | J53: 4anset+ | K53: 7 | L53: 525.101 | M53: 42.00808 | N53: 21.778 | O53: 20.23008
A54: 1900-01-01 | B54: 2026-01-04 | C54: C2 | D54: plat | E54: MARSEILLE PONT DE VIVAUX | H54: Hdcp | I54: C4 | J54: 4anset+ | K54: 9 | L54: 637.852 | M54: 51.02816 | N54: 25.036 | O54: 25.99216
A55: 1900-01-01 | B55: 2026-01-04 | C55: C3 | D55: plat | E55: MARSEILLE PONT DE VIVAUX | H55: Maiden | J55: 3ans | K55: 11 | L55: 587.985 | M55: 47.0388 | N55: 37.829 | O55: 9.2098
A56: 1900-01-01 | B56: 2026-01-04 | C56: C4 | D56: plat | E56: MARSEILLE PONT DE VIVAUX | H56: Réclamers | I56: C4 | J56: 5anset+ | K56: 6 | L56: 379.46 | M56: 30.3568 | N56: 20.07 | O56: 10.2868
A57: 1900-01-01 | B57: 2026-01-04 | C57: C5 | D57: plat | E57: MARSEILLE PONT DE VIVAUX | H57: Hdcp | I57: C3 | J57: 4anset+ | K57: 8 | L57: 477.015 | M57: 38.1612 | N57: 29.055 | O57: 9.1062
A58: 1900-01-01 | B58: 2026-01-04 | C58: C6 | D58: plat | E58: MARSEILLE PONT DE VIVAUX | H58: Réclamers | J58: 3ans | K58: 8 | L58: 334.023 | M58: 26.72184 | N58: 22.74 | O58: 3.98184
A59: 1900-01-01 | B59: 2026-01-04 | C59: C7 | D59: plat | E59: MARSEILLE PONT DE VIVAUX | H59: Hdcp | I59: C4 | J59: 4ans | K59: 10 | L59: 354.22 | M59: 28.3376 | N59: 26.657 | O59: 1.6806
A60: 1900-01-02 | B60: 2026-01-05 | C60: C1 | D60: plat | E60: MARSEILLE PONT DE VIVAUX | H60: Hdcp | I60: C3 | J60: 4anset+ | K60: 10 | L60: 763.343 | M60: 61.06744 | N60: 30.538 | O60: 30.52944
A61: 1900-01-02 | B61: 2026-01-05 | C61: C2 | D61: plat | E61: MARSEILLE PONT DE VIVAUX | H61: Hdcp | I61: C4 | J61: 4anset+ | K61: 10 | L61: 753.034 | M61: 60.24272 | N61: 25.081 | O61: 35.16172
A62: 1900-01-02 | B62: 2026-01-05 | C62: C3 | D62: plat | E62: MARSEILLE PONT DE VIVAUX | H62: Hdcp | I62: C4 | J62: 4anset+ | K62: 12 | L62: 732.389 | M62: 58.59112 | N62: 22.5 | O62: 36.09112
A63: 1900-01-02 | B63: 2026-01-05 | C63: C4 | D63: plat | E63: MARSEILLE PONT DE VIVAUX | H63: Hdcp | I63: C4 | J63: 4anset+ | K63: 11 | L63: 652.136 | M63: 52.17088 | N63: 24.995 | O63: 27.17588
A64: 1900-01-02 | B64: 2026-01-05 | C64: C5 | D64: plat | E64: MARSEILLE PONT DE VIVAUX | H64: Maiden | J64: 5anset+ | K64: 11 | L64: 670.194 | M64: 53.61552 | N64: 18.244 | O64: 35.37152
A65: 1900-01-02 | B65: 2026-01-05 | C65: C6 | D65: plat | E65: MARSEILLE PONT DE VIVAUX | H65: Réclamers | I65: C4 | J65: 5anset+ | K65: 10 | L65: 544.807 | M65: 43.58456 | N65: 17.38 | O65: 26.20456
A66: 1900-01-02 | B66: 2026-01-05 | C66: C7 | D66: plat | E66: MARSEILLE PONT DE VIVAUX | H66: Hdcp | J66: 3ans | K66: 9 | L66: 534.229 | M66: 42.73832 | N66: 37.209 | O66: 5.52932
A67: 1900-01-02 | B67: 2026-01-05 | C67: C8 | D67: plat | E67: MARSEILLE PONT DE VIVAUX | H67: Maiden | J67: 3ans | K67: 7 | L67: 339.042 | M67: 27.12336 | N67: 33.612 | O67: -6.48864
A68: 1900-01-03 | B68: 2026-01-06 | C68: C1 | D68: obstacle | E68: CAGNES-SUR-MER | H68: Réclamers | J68: 4ans | K68: 7 | L68: 302.475 | M68: 24.198 | N68: 23.44 | O68: 0.758
A69: 1900-01-03 | B69: 2026-01-06 | C69: C2 | D69: obstacle | E69: CAGNES-SUR-MER | H69: Réclamers | J69: 4ans | K69: 7 | L69: 335.773 | M69: 26.86184 | N69: 21.57 | O69: 5.29184
A70: 1900-01-03 | B70: 2026-01-06 | C70: C3 | D70: obstacle | E70: CAGNES-SUR-MER | H70: Conditions | I70: C3 | J70: 5anset+ | K70: 8 | L70: 430.568 | M70: 34.44544 | N70: 37.473 | O70: -3.02756
A71: =WEEKDAY(B71) -> 1900-01-03 | B71: 2026-01-06 | C71: C4 | D71: obstacle | E71: CAGNES-SUR-MER | H71: Conditions | I71: C4 | J71: 4ans | K71: 13 | L71: 531.553 | M71: 42.52424 | N71: 41.703 | O71: =M71-N71 -> 0.82124
A72: 1900-01-03 | B72: 2026-01-06 | C72: C5 | D72: obstacle | E72: CAGNES-SUR-MER | H72: Conditions | I72: C4 | J72: 5ans | K72: 10 | L72: 702.013 | M72: 56.16104 | N72: 39.905 | O72: 16.25604
A73: 1900-01-03 | B73: 2026-01-06 | C73: C6 | D73: obstacle | E73: CAGNES-SUR-MER | H73: Hdcp | J73: 5anset+ | K73: 12 | L73: 782.297 | M73: 62.58376 | N73: 42.52 | O73: 20.06376
A74: 1900-01-03 | B74: 2026-01-06 | C74: C7 | D74: obstacle | E74: CAGNES-SUR-MER | H74: Hdcp | J74: 6anset+ | K74: 12 | L74: 671.877 | M74: 53.75016 | N74: 42.362 | O74: 11.38816
A75: 1900-01-04 | B75: 2026-01-07 | C75: C1 | D75: plat | E75: PAU | H75: Maiden | J75: 3ans | K75: 9 | L75: 126.735 | M75: 10.1388 | N75: 34.34 | O75: -24.2012
A76: 1900-01-04 | B76: 2026-01-07 | C76: C2 | D76: obstacle | E76: PAU | F76: TQQ+ | H76: Hdcp | J76: 6anset+ | K76: 14 | L76: 4998.987 | M76: 399.91896 | N76: 95.031 | O76: 304.88796
A77: 1900-01-04 | B77: 2026-01-07 | C77: C3 | D77: obstacle | E77: PAU | H77: Hdcp | J77: 4ans | K77: 7 | L77: 607.224 | M77: 48.57792 | N77: 58.028 | O77: -9.45008
A78: 1900-01-04 | B78: 2026-01-07 | C78: C4 | D78: obstacle | E78: PAU | H78: Conditions | I78: C3 | J78: 6anset+ | K78: 5 | L78: 532.068 | M78: 42.56544 | N78: 35.423 | O78: 7.14244
A79: 1900-01-04 | B79: 2026-01-07 | C79: C5 | D79: obstacle | E79: PAU | H79: Conditions | I79: C4 | J79: 4et5ans | K79: 6 | L79: 585.418 | M79: 46.83344 | N79: 42.044 | O79: 4.78944
A80: 1900-01-04 | B80: 2026-01-07 | C80: C6 | D80: obstacle | E80: PAU | H80: Conditions | I80: C2 | J80: 5ans | K80: 7 | L80: 613.639 | M80: 49.09112 | N80: 38.462 | O80: 10.62912
A81: 1900-01-04 | B81: 2026-01-07 | C81: C7 | D81: obstacle | E81: PAU | H81: Hdcp | J81: 6anset+ | K81: 10 | L81: 755.569 | M81: 60.44552 | N81: 60.682 | O81: -0.23648
A82: 1900-01-04 | B82: 2026-01-07 | C82: C8 | D82: plat | E82: PAU | H82: Maiden | J82: 5anset+ | K82: 15 | L82: 991.511 | M82: 79.32088 | N82: 19.494 | O82: 59.82688
A83: 1900-01-04 | B83: 2026-01-07 | C83: C1 | D83: plat | E83: PORNICHET | H83: Hdcp | I83: C4 | J83: 5anset+ | K83: 13 | L83: 483.316 | M83: 38.66528 | N83: 18.625 | O83: 20.04028
A84: 1900-01-04 | B84: 2026-01-07 | C84: C2 | D84: plat | E84: PORNICHET | H84: Hdcp | I84: C4 | J84: 5anset+ | K84: 12 | L84: 440.778 | M84: 35.26224 | N84: 24.467 | O84: 10.79524
A85: 1900-01-04 | B85: 2026-01-07 | C85: C3 | D85: plat | E85: PORNICHET | H85: Hdcp | I85: C4 | J85: 4ans | K85: 13 | L85: 520.884 | M85: 41.67072 | N85: 26.455 | O85: 15.21572
A86: 1900-01-04 | B86: 2026-01-07 | C86: C4 | D86: plat | E86: PORNICHET | H86: Maiden | J86: 3ans | K86: 8 | L86: 762.518 | M86: 61.00144 | N86: 37.466 | O86: 23.53544
A87: 1900-01-04 | B87: 2026-01-07 | C87: C5 | D87: plat | E87: PORNICHET | H87: Réclamers | I87: C4 | J87: 5anset+ | K87: 13 | L87: 598.617 | M87: 47.88936 | N87: 18.74 | O87: 29.14936
A88: 1900-01-04 | B88: 2026-01-07 | C88: C6 | D88: plat | E88: PORNICHET | H88: Réclamers | J88: 3ans | K88: 6 | L88: 565.191 | M88: 45.21528 | N88: 22.43 | O88: 22.78528
A89: 1900-01-04 | B89: 2026-01-07 | C89: C7 | D89: plat | E89: PORNICHET | H89: Hdcp | I89: C4 | J89: 4anset+ | K89: 11 | L89: 676.811 | M89: 54.14488 | N89: 26.43 | O89: 27.71488
A90: 1900-01-04 | B90: 2026-01-07 | C90: C8 | D90: plat | E90: PORNICHET | H90: Hdcp | I90: C4 | J90: 4anset+ | K90: 9 | L90: 518.104 | M90: 41.44832 | N90: 23.566 | O90: 17.88232
A91: 1900-01-05 | B91: 2026-01-08 | C91: C1 | D91: plat | E91: DEAUVILLE | H91: Hdcp | I91: C4 | J91: 5anset+ | K91: 16 | L91: 820.945 | M91: 65.6756 | N91: 22.074 | O91: 43.6016
A92: 1900-01-05 | B92: 2026-01-08 | C92: C2 | D92: plat | E92: DEAUVILLE | H92: Hdcp | I92: C4 | J92: 5anset+ | K92: 16 | L92: 783.461 | M92: 62.67688 | N92: 28.078 | O92: 34.59888
A93: 1900-01-05 | B93: 2026-01-08 | C93: C3 | D93: plat | E93: DEAUVILLE | H93: Maiden | J93: 3ans | K93: 13 | L93: 821.272 | M93: 65.70176 | N93: 29.628 | O93: 36.07376
A94: 1900-01-05 | B94: 2026-01-08 | C94: C4 | D94: plat | E94: DEAUVILLE | H94: Conditions | I94: C3 | J94: 4anset+ | K94: 10 | L94: 893.795 | M94: 71.5036 | N94: 26.189 | O94: 45.3146
A95: 1900-01-05 | B95: 2026-01-08 | C95: C5 | D95: plat | E95: DEAUVILLE | H95: Conditions | I95: C4 | J95: 5anset+ | K95: 12 | L95: 683.42 | M95: 54.6736 | N95: 23.6 | O95: 31.0736
A96: 1900-01-05 | B96: 2026-01-08 | C96: C6 | D96: plat | E96: DEAUVILLE | H96: Réclamers | I96: C3 | J96: 5anset+ | K96: 8 | L96: 468.875 | M96: 37.51 | N96: 19.31 | O96: 18.2
A97: 1900-01-05 | B97: 2026-01-08 | C97: C7 | D97: plat | E97: DEAUVILLE | H97: Hdcp | I97: C3 | J97: 4anset+ | K97: 8 | L97: 393.049 | M97: 31.44392 | N97: 47.183 | O97: -15.73908
A98: 1900-01-05 | B98: 2026-01-08 | C98: C8 | D98: plat | E98: DEAUVILLE | H98: Maiden | J98: 3ans | K98: 8 | L98: 351.466 | M98: 28.11728 | N98: 31.13 | O98: -3.01272
A99: 1900-01-06 | B99: 2026-01-09 | C99: C1 | D99: obstacle | E99: PAU | H99: Conditions | J99: 5anset+ AA | K99: 8 | L99: 387.023 | M99: 30.96184 | N99: 50.011 | O99: -19.04916
A100: 1900-01-06 | B100: 2026-01-09 | C100: C2 | D100: obstacle | E100: PAU | H100: Conditions | J100: 4ans AA | K100: 10 | L100: 525.038 | M100: 42.00304 | N100: 49.374 | O100: -7.37096
A101: 1900-01-06 | B101: 2026-01-09 | C101: C3 | D101: obstacle | E101: PAU | H101: Conditions | I101: C3 | J101: 6anset+ | K101: 10 | L101: 439.56 | M101: =L101*0.08 -> 35.1648 | N101: 33.203 | O101: 1.9618
A102: 1900-01-06 | B102: 2026-01-09 | C102: C4 | D102: obstacle | E102: PAU | H102: Réclamers | J102: 4ans | K102: 9 | L102: 497.721 | M102: 39.81768 | N102: 22.23 | O102: =M102-N102 -> 17.58768
A103: 1900-01-06 | B103: 2026-01-09 | C103: C5 | D103: plat | E103: PAU | H103: Réclamers | I103: C4 | J103: 5anset+ | K103: 9 | L103: 593.125 | M103: 47.45 | N103: 24.65 | O103: 22.8
A104: 1900-01-06 | B104: 2026-01-09 | C104: C6 | D104: plat | E104: PAU | H104: Hdcp | I104: C4 | J104: 5anset+ | K104: 16 | L104: 785.006 | M104: 62.80048 | N104: 25.2 | O104: 37.60048
A105: 1900-01-06 | B105: 2026-01-09 | C105: C7 | D105: plat | E105: PAU | H105: Hdcp | I105: C3 | J105: 5anset+ | K105: 14 | L105: 805.956 | M105: 64.47648 | N105: 28.188 | O105: 36.28848
A106: 1900-01-06 | B106: 2026-01-09 | C106: C8 | D106: plat | E106: PAU | H106: Hdcp | I106: C3 | J106: 5anset+ | K106: 14 | L106: 845.772 | M106: 67.66176 | N106: 36.123 | O106: 31.53876
A107: 1900-01-06 | B107: 2026-01-09 | C107: C1 | D107: plat | E107: DEAUVILLE | H107: Conditions | I107: C4 | J107: 5anset+ | K107: 12 | L107: 1025.551 | M107: 82.04408 | N107: 23.862 | O107: 58.18208
A108: 1900-01-06 | B108: 2026-01-09 | C108: C2 | D108: plat | E108: DEAUVILLE | H108: Hdcp | I108: C4 | J108: 5anset+ | K108: 16 | L108: 860.169 | M108: 68.81352 | N108: 20.475 | O108: 48.33852
A109: 1900-01-06 | B109: 2026-01-09 | C109: C3 | D109: plat | E109: DEAUVILLE | H109: Hdcp | I109: C3 | J109: 5anset+ | K109: 14 | L109: 1007.192 | M109: 80.57536 | N109: 32.295 | O109: 48.28036
A110: 1900-01-06 | B110: 2026-01-09 | C110: C4 | D110: plat | E110: DEAUVILLE | H110: Hdcp | I110: C3 | J110: 5anset+ | K110: 14 | L110: 1134.188 | M110: 90.73504 | N110: 41.381 | O110: 49.35404
A111: 1900-01-06 | B111: 2026-01-09 | C111: C5 | D111: plat | E111: DEAUVILLE | H111: Maiden | J111: 5anset+ | K111: 12 | L111: 972.294 | M111: 77.78352 | N111: 23.79 | O111: 53.99352
A112: 1900-01-06 | B112: 2026-01-09 | C112: C6 | D112: plat | E112: DEAUVILLE | H112: Réclamers | J112: 3ans | K112: 9 | L112: 655.935 | M112: 52.4748 | N112: 43.16 | O112: 9.3148
A113: 1900-01-06 | B113: 2026-01-09 | C113: C7 | D113: plat | E113: DEAUVILLE | H113: Hdcp | I113: C3 | J113: 5anset+ | K113: 13 | L113: 654.576 | M113: 52.36608 | N113: 31.214 | O113: 21.15208
A114: 1900-01-06 | B114: 2026-01-09 | C114: C8 | D114: plat | E114: DEAUVILLE | F114: TQQ+ | H114: Hdcp | I114: C2 | J114: 5anset+ | K114: 16 | L114: 7435.888 | M114: 594.87104 | N114: 67.142 | O114: 527.72904
A115: 1900-01-06 | B115: 2026-01-09 | C115: C9 | D115: plat | E115: DEAUVILLE | H115: Hdcp | J115: 3ans | K115: 10 | L115: 503.853 | M115: 40.30824 | N115: 42.783 | O115: -2.47476
A116: 1900-01-07 | B116: 2026-01-10 | C116: C1 | D116: plat | E116: CHANTILLY | H116: Conditions | I116: C2 | J116: 3ans | K116: 7 | L116: 256.239 | M116: 20.49912 | N116: 45.757 | O116: -25.25788
A117: 1900-01-07 | B117: 2026-01-10 | C117: C2 | D117: plat | E117: CHANTILLY | H117: Conditions | I117: C3 | J117: 4anset+ | K117: 8 | L117: 530.479 | M117: 42.43832 | N117: 26.824 | O117: 15.61432
A118: 1900-01-07 | B118: 2026-01-10 | C118: C3 | D118: plat | E118: CHANTILLY | H118: Réclamers | I118: C4 | J118: 5anset+ | K118: 14 | L118: 742.467 | M118: 59.39736 | N118: 23.36 | O118: 36.03736
A119: 1900-01-07 | B119: 2026-01-10 | C119: C4 | D119: plat | E119: CHANTILLY | H119: Maiden | J119: 3ans | K119: 11 | L119: 804.16 | M119: 64.3328 | N119: 46.423 | O119: 17.9098
A120: 1900-01-07 | B120: 2026-01-10 | C120: C5 | D120: plat | E120: CHANTILLY | H120: Hdcp | J120: 3ans | K120: 12 | L120: 687.513 | M120: 55.00104 | N120: 47.457 | O120: 7.54404
A121: 1900-01-07 | B121: 2026-01-10 | C121: C6 | D121: plat | E121: CHANTILLY | H121: Maiden | J121: 3ans | K121: 13 | L121: 844.92 | M121: 67.5936 | N121: 41.728 | O121: 25.8656
A122: 1900-01-07 | B122: 2026-01-10 | C122: C7 | D122: plat | E122: CHANTILLY | H122: Hdcp | I122: C3 | J122: 4ans | K122: 16 | L122: 1050.13 | M122: 84.0104 | N122: 32.908 | O122: 51.1024
A123: 1900-01-07 | B123: 2026-01-10 | C123: C8 | D123: plat | E123: CHANTILLY | H123: Hdcp | I123: C3 | J123: 4ans | K123: 16 | L123: 1162.099 | M123: 92.96792 | N123: 36.181 | O123: 56.78692
A124: 1900-01-01 | B124: 2026-01-11 | C124: C1 | D124: obstacle | E124: PAU | H124: Conditions | J124: 5ans AA | K124: 4 | L124: 170.796 | M124: 13.66368 | N124: 39.925 | O124: -26.26132
A125: 1900-01-01 | B125: 2026-01-11 | C125: C2 | D125: plat | E125: PAU | H125: Inédits | J125: 3ans | K125: 7 | L125: 243.539 | M125: 19.48312 | N125: 37.942 | O125: -18.45888
A126: 1900-01-01 | B126: 2026-01-11 | C126: C3 | D126: obstacle | E126: PAU | H126: Conditions | I126: C2 | J126: 6ans | K126: 8 | L126: 457.46 | M126: =L126*0.08 -> 36.5968 | N126: 37.782 | O126: -1.1852
A127: 1900-01-01 | B127: 2026-01-11 | C127: C4 | D127: obstacle | E127: PAU | H127: Réclamers | J127: 5anset+ | K127: 9 | L127: 413.688 | M127: 33.09504 | N127: 21.75 | O127: 11.34504
A128: 1900-01-01 | B128: 2026-01-11 | C128: C5 | D128: plat | E128: PAU | H128: Hdcp | J128: 3ans | K128: 8 | L128: 506.043 | M128: 40.48344 | N128: 28.581 | O128: 11.90244
A129: 1900-01-01 | B129: 2026-01-11 | C129: C6 | D129: obstacle | E129: PAU | H129: Réclamers | J129: 6anset+ | K129: 10 | L129: 581.831 | M129: 46.54648 | N129: 21.75 | O129: 24.79648
A130: 1900-01-01 | B130: 2026-01-11 | C130: C7 | D130: plat | E130: PAU | H130: Conditions | I130: C3 | J130: 4anset+ | K130: 9 | L130: 580.362 | M130: 46.42896 | N130: 26.027 | O130: 20.40196
A131: 1900-01-01 | B131: 2026-01-11 | C131: C8 | D131: obstacle | E131: PAU | H131: Conditions | I131: C4 | J131: 4ans | K131: 11 | L131: 703.961 | M131: 56.31688 | N131: 42.684 | O131: 13.63288
A132: 1900-01-02 | B132: 2026-01-12 | C132: C1 | D132: plat | E132: CAGNES-SUR-MER | H132: Inédits | J132: 3ans | K132: 6 | L132: 307.906 | M132: 24.63248 | N132: 30.636 | O132: -6.00352
A133: 1900-01-02 | B133: 2026-01-12 | C133: C2 | D133: plat | E133: CAGNES-SUR-MER | F133: TQQ+ | H133: Hdcp | I133: C2 | J133: 4anset+ | K133: 16 | L133: 6520.153 | M133: 521.61224 | N133: 81.627 | O133: 439.98524
A134: 1900-01-02 | B134: 2026-01-12 | C134: C3 | D134: plat | E134: CAGNES-SUR-MER | H134: Inédits | J134: 3ans | K134: 7 | L134: 833.287 | M134: 66.66296 | N134: 39.675 | O134: 26.98796
A135: =WEEKDAY(B135) -> 1900-01-02 | B135: 2026-01-12 | C135: C4 | D135: plat | E135: CAGNES-SUR-MER | H135: Conditions | I135: C2 | J135: 3ans | K135: 9 | L135: 611.384 | M135: 48.91072 | N135: 43.72 | O135: =M135-N135 -> 5.19072
A136: 1900-01-02 | B136: 2026-01-12 | C136: C5 | D136: plat | E136: CAGNES-SUR-MER | H136: Conditions | I136: C2 | J136: 4ans | K136: 9 | L136: 740.012 | M136: 59.20096 | N136: 35.883 | O136: 23.31796
A137: 1900-01-02 | B137: 2026-01-12 | C137: C6 | D137: plat | E137: CAGNES-SUR-MER | H137: Hdcp | I137: C3 | J137: 4anset+ | K137: 12 | L137: 780.828 | M137: 62.46624 | N137: 32.011 | O137: 30.45524
A138: 1900-01-02 | B138: 2026-01-12 | C138: C7 | D138: plat | E138: CAGNES-SUR-MER | H138: Hdcp | I138: C3 | J138: 4anset+ | K138: 13 | L138: 918.181 | M138: 73.45448 | N138: 42.405 | O138: 31.04948
A139: 1900-01-03 | B139: 2026-01-13 | C139: C1 | D139: plat | E139: PAU | H139: Conditions | I139: C2 | J139: 3ans | K139: 5 | L139: 253.864 | M139: 20.30912 | N139: 37.932 | O139: -17.62288
A140: 1900-01-03 | B140: 2026-01-13 | C140: C2 | D140: obstacle | E140: PAU | H140: Conditions | I140: C1 | J140: 6anset+ | K140: 6 | L140: 284.212 | M140: 22.73696 | N140: 52.484 | O140: -29.74704
A141: 1900-01-03 | B141: 2026-01-13 | C141: C3 | D141: obstacle | E141: PAU | H141: Conditions | I141: C4 | J141: 4ans | K141: 13 | L141: 465.174 | M141: 37.21392 | N141: 37.116 | O141: 0.09792
A142: 1900-01-03 | B142: 2026-01-13 | C142: C4 | D142: obstacle | E142: PAU | H142: Conditions | I142: C3 | J142: 5anset+ | K142: 9 | L142: 529.732 | M142: 42.37856 | N142: 38.924 | O142: 3.45456
A143: 1900-01-03 | B143: 2026-01-13 | C143: C5 | D143: plat | E143: PAU | H143: Conditions | J143: 5anset+ PA | K143: 9 | L143: 945.308 | M143: 75.62464 | N143: 27.849 | O143: 47.77564
A144: 1900-01-03 | B144: 2026-01-13 | C144: C6 | D144: obstacle | E144: PAU | H144: Réclamers | J144: 5ans | K144: 11 | L144: 510.462 | M144: 40.83696 | N144: 23.09 | O144: 17.74696
A145: 1900-01-03 | B145: 2026-01-13 | C145: C7 | D145: plat | E145: PAU | H145: Hdcp | I145: C3 | J145: 4ans | K145: 11 | L145: 683.281 | M145: 54.66248 | N145: 36.203 | O145: 18.45948
A146: 1900-01-03 | B146: 2026-01-13 | C146: C8 | D146: obstacle | E146: PAU | H146: Conditions | I146: C2 | J146: 5ans AQPS | K146: 12 | L146: 703.525 | M146: 56.282 | N146: 45.569 | O146: 10.713
A147: 1900-01-04 | B147: 2026-01-14 | C147: C1 | D147: plat | E147: CAGNES-SUR-MER | H147: Maiden | J147: 3ans | K147: 10 | L147: 500.19 | M147: 40.0152 | N147: 41.207 | O147: -1.1918
A148: 1900-01-04 | B148: 2026-01-14 | C148: C2 | D148: plat | E148: CAGNES-SUR-MER | F148: TQQ+ | H148: Hdcp | I148: C2 | J148: 4anset+ | K148: 16 | L148: 6466.416 | M148: 517.31328 | N148: 83.308 | O148: 434.00528
A149: 1900-01-04 | B149: 2026-01-14 | C149: C3 | D149: plat | E149: CAGNES-SUR-MER | H149: Maiden | J149: 3ans | K149: 11 | L149: 710.879 | M149: 56.87032 | N149: 34.682 | O149: 22.18832
A150: 1900-01-04 | B150: 2026-01-14 | C150: C4 | D150: plat | E150: CAGNES-SUR-MER | H150: Conditions | I150: C2 | J150: 5anset+ | K150: 11 | L150: 775.239 | M150: 62.01912 | N150: 37.6 | O150: 24.41912
A151: 1900-01-04 | B151: 2026-01-14 | C151: C5 | D151: plat | E151: CAGNES-SUR-MER | H151: Hdcp | I151: C3 | J151: 4anset+ | K151: 14 | L151: 910.223 | M151: 72.81784 | N151: 37.858 | O151: 34.95984
A152: 1900-01-04 | B152: 2026-01-14 | C152: C6 | D152: plat | E152: CAGNES-SUR-MER | H152: Hdcp | I152: C3 | J152: 4anset+ | K152: 14 | L152: 939.191 | M152: 75.13528 | N152: 32.771 | O152: 42.36428
A153: 1900-01-04 | B153: 2026-01-14 | C153: C7 | D153: plat | E153: CAGNES-SUR-MER | H153: Hdcp | I153: C3 | J153: 4anset+ | K153: 12 | L153: 785.44 | M153: 62.8352 | N153: 38.985 | O153: 23.8502
A154: 1900-01-05 | B154: 2026-01-15 | C154: C1 | D154: plat | E154: CAGNES-SUR-MER | H154: Inédits | J154: 3ans | K154: 8 | L154: 313.354 | M154: 25.06832 | N154: 39.163 | O154: -14.09468
A155: 1900-01-05 | B155: 2026-01-15 | C155: C2 | D155: plat | E155: CAGNES-SUR-MER | H155: Inédits | J155: 3ans | K155: 13 | L155: 462.274 | M155: 36.98192 | N155: 28.318 | O155: 8.66392
A156: 1900-01-05 | B156: 2026-01-15 | C156: C3 | D156: plat | E156: CAGNES-SUR-MER | H156: Maiden | J156: 5anset+ | K156: 11 | L156: 490.341 | M156: 39.22728 | N156: 19.23 | O156: 19.99728
A157: 1900-01-05 | B157: 2026-01-15 | C157: C4 | D157: plat | E157: CAGNES-SUR-MER | H157: Réclamers | J157: 3ans | K157: 12 | L157: 475.389 | M157: 38.03112 | N157: 31.983 | O157: 6.04812
A158: 1900-01-05 | B158: 2026-01-15 | C158: C5 | D158: plat | E158: CAGNES-SUR-MER | H158: Réclamers | I158: C4 | J158: 4anset+ | K158: 12 | L158: 447.82 | M158: 35.8256 | N158: 22.522 | O158: 13.3036
A159: 1900-01-05 | B159: 2026-01-15 | C159: C6 | D159: plat | E159: CAGNES-SUR-MER | H159: Hdcp | I159: C3 | J159: 4anset+ | K159: 14 | L159: 800.229 | M159: 64.01832 | N159: 38.515 | O159: 25.50332
A160: 1900-01-05 | B160: 2026-01-15 | C160: C7 | D160: plat | E160: CAGNES-SUR-MER | H160: Hdcp | I160: C3 | J160: 4ans | K160: 14 | L160: 700.644 | M160: 56.05152 | N160: 30.623 | O160: 25.42852
A161: 1900-01-05 | B161: 2026-01-15 | C161: C8 | D161: plat | E161: CAGNES-SUR-MER | H161: Hdcp | I161: C3 | J161: 4ans | K161: 15 | L161: 805.969 | M161: 64.47752 | N161: 30.916 | O161: 33.56152
A162: 1900-01-06 | B162: 2026-01-16 | C162: C1 | D162: obstacle | E162: PAU | H162: Conditions | J162: 6anset+ AA | K162: 6 | L162: 201.86 | M162: =L162*0.08 -> 16.1488 | N162: 52.484 | O162: -36.3352
A163: 1900-01-06 | B163: 2026-01-16 | C163: C2 | D163: obstacle | E163: PAU | H163: Conditions | I163: C1 | J163: 4ans | K163: 7 | L163: 268.969 | M163: 21.51752 | N163: 51.957 | O163: -30.43948
A164: 1900-01-06 | B164: 2026-01-16 | C164: C3 | D164: obstacle | E164: PAU | H164: Conditions | I164: C2 | J164: 5ans | K164: 11 | L164: 407.782 | M164: 32.62256 | N164: 44.837 | O164: -12.21444
A165: 1900-01-06 | B165: 2026-01-16 | C165: C4 | D165: obstacle | E165: PAU | H165: Conditions | I165: C3 | J165: 4ans | K165: 11 | L165: 444.929 | M165: 35.59432 | N165: 39.437 | O165: -3.84268
A166: 1900-01-06 | B166: 2026-01-16 | C166: C5 | D166: obstacle | E166: PAU | H166: Conditions | I166: C3 | J166: 4ans AQPS | K166: 12 | L166: 536.961 | M166: 42.95688 | N166: 39.437 | O166: 3.51988
A167: 1900-01-06 | B167: 2026-01-16 | C167: C6 | D167: plat | E167: PAU | H167: Hdcp | I167: C4 | J167: 4anset+ | K167: 15 | L167: 621.787 | M167: 49.74296 | N167: 22.724 | O167: 27.01896
A168: 1900-01-06 | B168: 2026-01-16 | C168: C7 | D168: obstacle | E168: PAU | H168: Hdcp | J168: 5ans | K168: 12 | L168: 544.141 | M168: 43.53128 | N168: 73.278 | O168: -29.74672
A169: 1900-01-06 | B169: 2026-01-16 | C169: C8 | D169: plat | E169: PAU | H169: Hdcp | I169: C4 | J169: 4anset+ | K169: 14 | L169: 620.764 | M169: 49.66112 | N169: 28.124 | O169: 21.53712
A170: 1900-01-06 | B170: 2026-01-16 | C170: C1 | D170: plat | E170: DEAUVILLE | H170: Hdcp | I170: C3 | J170: 4anset+ | K170: 12 | L170: 859.287 | M170: 68.74296 | N170: 34.474 | O170: 34.26896
A171: 1900-01-06 | B171: 2026-01-16 | C171: C2 | D171: plat | E171: DEAUVILLE | H171: Hdcp | I171: C3 | J171: 4anset+ | K171: 13 | L171: 968.371 | M171: 77.46968 | N171: 42.042 | O171: 35.42768
A172: 1900-01-06 | B172: 2026-01-16 | C172: C3 | D172: plat | E172: DEAUVILLE | H172: Hdcp | I172: C3 | J172: 4ans | K172: 14 | L172: 864.97 | M172: 69.1976 | N172: 26.645 | O172: 42.5526
A173: 1900-01-06 | B173: 2026-01-16 | C173: C4 | D173: plat | E173: DEAUVILLE | H173: Hdcp | I173: C3 | J173: 4ans | K173: 14 | L173: 979.464 | M173: 78.35712 | N173: 35.172 | O173: 43.18512
A174: 1900-01-06 | B174: 2026-01-16 | C174: C5 | D174: plat | E174: DEAUVILLE | H174: Réclamers | J174: 3ans | K174: 8 | L174: 659.937 | M174: 52.79496 | N174: 35.983 | O174: 16.81196
A175: 1900-01-06 | B175: 2026-01-16 | C175: C6 | D175: plat | E175: DEAUVILLE | H175: Réclamers | I175: C3 | J175: 4anset+ | K175: 9 | L175: 664.014 | M175: 53.12112 | N175: 28.14 | O175: 24.98112
A176: 1900-01-06 | B176: 2026-01-16 | C176: C7 | D176: plat | E176: DEAUVILLE | H176: Conditions | I176: C2 | J176: 3ans | K176: 5 | L176: 373.767 | M176: 29.90136 | N176: 45.094 | O176: -15.19264
A177: 1900-01-06 | B177: 2026-01-16 | C177: C8 | D177: plat | E177: DEAUVILLE | F177: TQQ+ | H177: Hdcp | I177: C2 | J177: 4anset+ | K177: 16 | L177: 7451.027 | M177: 596.08216 | N177: 80.431 | O177: 515.65116
A178: 1900-01-07 | B178: 2026-01-17 | C178: C1 | D178: plat | E178: CAGNES-SUR-MER | H178: Réclamers | I178: C4 | J178: 5anset+ | K178: 10 | L178: 330.088 | M178: 26.40704 | N178: 18.034 | O178: 8.37304
A179: 1900-01-07 | B179: 2026-01-17 | C179: C2 | D179: plat | E179: CAGNES-SUR-MER | H179: Maiden | J179: 3ans | K179: 12 | L179: 472.354 | M179: 37.78832 | N179: 41.48 | O179: -3.69168
A180: 1900-01-07 | B180: 2026-01-17 | C180: C3 | D180: plat | E180: CAGNES-SUR-MER | H180: Maiden | J180: 3ans | K180: 15 | L180: 638.44 | M180: 51.0752 | N180: 39.7 | O180: 11.3752
A181: 1900-01-07 | B181: 2026-01-17 | C181: C4 | D181: plat | E181: CAGNES-SUR-MER | H181: Hdcp | I181: C4 | J181: 4anset+ | K181: 16 | L181: 441.992 | M181: 35.35936 | N181: 21.936 | O181: 13.42336
A182: 1900-01-07 | B182: 2026-01-17 | C182: C5 | D182: plat | E182: CAGNES-SUR-MER | H182: Hdcp | I182: C4 | J182: 4anset+ | K182: 16 | L182: 609.138 | M182: 48.73104 | N182: 26.699 | O182: 22.03204
A183: 1900-01-07 | B183: 2026-01-17 | C183: C6 | D183: plat | E183: CAGNES-SUR-MER | H183: Hdcp | I183: C3 | J183: 4anset+ | K183: 14 | L183: 651.556 | M183: 52.12448 | N183: 28.767 | O183: 23.35748
A184: 1900-01-07 | B184: 2026-01-17 | C184: C7 | D184: plat | E184: CAGNES-SUR-MER | H184: Hdcp | I184: C4 | J184: 4anset+ | K184: 13 | L184: 831.905 | M184: 66.5524 | N184: 21.14 | O184: 45.4124
A185: 1900-01-07 | B185: 2026-01-17 | C185: C8 | D185: plat | E185: CAGNES-SUR-MER | H185: Hdcp | I185: C3 | J185: 4anset+ | K185: 12 | L185: 666.64 | M185: 53.3312 | N185: 25.035 | O185: 28.2962
A186: 1900-01-01 | B186: 2026-01-18 | C186: C1 | D186: obstacle | E186: PAU | H186: Conditions | I186: C4 | J186: 4ans AQPS | K186: 6 | L186: 208.059 | M186: 16.64472 | N186: 36.56 | O186: -19.91528
A187: 1900-01-01 | B187: 2026-01-18 | C187: C2 | D187: obstacle | E187: PAU | H187: Conditions | I187: C2 | J187: 6anset+ | K187: 7 | L187: 317.22 | M187: =L187*0.08 -> 25.3776 | N187: 37.216 | O187: -11.8384
A188: 1900-01-01 | B188: 2026-01-18 | C188: C3 | D188: obstacle | E188: PAU | H188: Conditions | I188: C1 | J188: 4ans | K188: 6 | L188: 280.037 | M188: 22.40296 | N188: 49.561 | O188: -27.15804
A189: 1900-01-01 | B189: 2026-01-18 | C189: C4 | D189: plat | E189: PAU | H189: Maiden | J189: 3ans | K189: 9 | L189: 496.053 | M189: 39.68424 | N189: 32.711 | O189: 6.97324
A190: 1900-01-01 | B190: 2026-01-18 | C190: C5 | D190: obstacle | E190: PAU | H190: Conditions | I190: C1 | J190: 4ans | K190: 7 | L190: 255.371 | M190: 20.42968 | N190: 52.717 | O190: -32.28732
A191: 1900-01-01 | B191: 2026-01-18 | C191: C6 | D191: obstacle | E191: PAU | H191: Listed | J191: 5anset+ | K191: 7 | L191: 425.515 | M191: 34.0412 | N191: 96.177 | O191: -62.1358
A192: 1900-01-01 | B192: 2026-01-18 | C192: C7 | D192: plat | E192: PAU | H192: Hdcp | I192: C4 | J192: 4anset+ | K192: 11 | L192: 504.771 | M192: 40.38168 | N192: 21.949 | O192: 18.43268
A193: 1900-01-01 | B193: 2026-01-18 | C193: C8 | D193: plat | E193: PAU | H193: Maiden | J193: 3ans | K193: 12 | L193: 492.947 | M193: 39.43576 | N193: 36.026 | O193: 3.40976
A194: 1900-01-01 | B194: 2026-01-18 | C194: C9 | D194: obstacle | E194: PAU | H194: GROUPES | I194: III | J194: 5anset+ | K194: 8 | L194: 593.959 | M194: 47.51672 | N194: 159.638 | O194: -112.12128
A195: 1900-01-01 | B195: 2026-01-18 | C195: C10 | D195: plat | E195: PAU | H195: Hdcp | I195: C4 | J195: 4anset+ | K195: 13 | L195: 534.898 | M195: 42.79184 | N195: 21.949 | O195: 20.84284
A196: 1900-01-01 | B196: 2026-01-18 | C196: C11 | D196: plat | E196: PAU | H196: Hdcp | I196: C3 | J196: 5anset+ | K196: 13 | L196: 454.215 | M196: 36.3372 | N196: 34.732 | O196: 1.6052
A197: 1900-01-02 | B197: 2026-01-19 | C197: C1 | D197: plat | E197: CAGNES-SUR-MER | H197: Hdcp | J197: 3ans | K197: 9 | L197: 384.514 | M197: 30.76112 | N197: 53.186 | O197: -22.42488
A198: =WEEKDAY(B198) -> 1900-01-02 | B198: 2026-01-19 | C198: C2 | D198: plat | E198: CAGNES-SUR-MER | H198: Réclamers | I198: C4 | J198: 4anset+ | K198: 10 | L198: 420.827 | M198: 33.66616 | N198: 18.338 | O198: =M198-N198 -> 15.32816
A199: 1900-01-02 | B199: 2026-01-19 | C199: C3 | D199: plat | E199: CAGNES-SUR-MER | H199: Hdcp | J199: 3ans | K199: 9 | L199: 475.063 | M199: 38.00504 | N199: 47.261 | O199: -9.25596
A200: 1900-01-02 | B200: 2026-01-19 | C200: C4 | D200: plat | E200: CAGNES-SUR-MER | F200: TQQ+ | H200: Hdcp | I200: C2 | J200: 4ans | K200: 15 | L200: 5732.871 | M200: 458.62968 | N200: 82.461 | O200: 376.16868
... 1287 more rows

Sheet Courses sup 2026
F1: COURSES SUPPLEMENTAIRES 2026 | K1: moyen enj | L1: =L2/H2 -> 613.3054657 | N1: =N2/H2 -> 27.87328571 | O1: =O2/H2 -> 21.19115154
H2: =SUBTOTAL(3,H4:H52) -> 21 | L2: =SUBTOTAL(9,L4:L60) -> 12879.41478 | N2: =SUBTOTAL(9,N4:N60) -> 585.339 | O2: =SUBTOTAL(9,O4:O60) -> 445.0141824
A3: jour | B3: date | C3: course | D3: specialité | E3: hippodrome | H3: catégorie | J3: age | K3: partants | L3: enjeux | M3: ret net enj | N3: enc | O3: MB
A4: =WEEKDAY(B4) -> 1900-01-02 | B4: 2026-01-19 | C4: C7 | D4: plat | E4: CAGNES-SUR-MER | H4: Hdcp | I4: C3 | J4: 4ans | K4: 14 | L4: 684.903 | M4: 54.79224 | N4: 34.543 | O4: =M4-N4 -> 20.24924
A5: 1900-01-04 | B5: 2026-01-21 | C5: C3 | D5: plat | E5: CHANTILLY | H5: Hdcp | I5: C4 | J5: 5anset+ | K5: 14 | L5: 487.838 | M5: 39.02704 | N5: 28.18 | O5: 10.84704
A6: 1900-01-02 | B6: 2026-01-26 | C6: C1 | D6: plat | E6: CAGNES-SUR-MER | H6: Maiden | J6: 3ans | K6: 8 | L6: 415.824 | M6: 33.26592 | N6: 31.069 | O6: 2.19692
A7: 1900-01-03 | B7: 2026-01-27 | C7: C1 | D7: plat | E7: CAGNES-SUR-MER | H7: Hdcp | J7: 3ans | K7: 10 | L7: 356.899 | M7: 28.55192 | N7: 41.348 | O7: -12.79608
A8: 1900-01-06 | B8: 2026-02-06 | C8: C1 | D8: plat | E8: DEAUVILLE | H8: Hdcp | I8: C4 | J8: 5anset+ | K8: 14 | L8: 735.598 | M8: 58.84784 | N8: 27.921 | O8: 30.92684
A9: 1900-01-01 | B9: 2026-02-08 | C9: C5 | D9: plat | E9: PAU | H9: Hdcp | I9: C4 | J9: 4anset+ | K9: 16 | L9: 599.412 | M9: 47.95296 | N9: 25.086 | O9: 22.86696
A10: 1900-01-03 | B10: 2026-02-24 | C10: C5 | D10: plat | E10: CAGNES-SUR-MER | H10: Hdcp | I10: C4 | J10: 4anset+ | K10: 15 | L10: 638.623 | M10: 51.08984 | N10: 22.816 | O10: 28.27384
A11: 1900-01-06 | B11: 2026-02-27 | C11: C1 | D11: plat | E11: PORNICHET | H11: Hdcp | I11: C4 | J11: 4anset+ | K11: 15 | L11: 607.21 | M11: 48.5768 | N11: 20.32 | O11: 28.2568
A12: 1900-01-07 | B12: 2026-02-28 | C12: C4 | D12: plat | E12: FONTAINEBLEAU | H12: Hdcp | I12: C4 | J12: 4anset+ | K12: 15 | L12: 375.539 | M12: 30.04312 | N12: 28.338 | O12: 1.70512
A13: 1900-01-03 | B13: 2026-03-03 | C13: C6 | D13: plat | E13: CHANTILLY | H13: Hdcp | I13: C4 | J13: 4anset+ | K13: 13 | L13: 661.145 | M13: 52.8916 | N13: 28.236 | O13: 24.6556
A14: 1900-01-05 | B14: 2026-03-05 | C14: C3 | D14: plat | E14: SAINT-CLOUD | H14: Hdcp | J14: 3ans | K14: 14 | L14: 766.458 | M14: 61.31664 | N14: 39.161 | O14: 22.15564
A15: 1900-01-05 | B15: 2026-03-12 | C15: C9 | D15: plat | E15: CHANTILLY | H15: Hdcp | I15: C4 | J15: 4anset+ | K15: 14 | L15: 699.258 | M15: 55.94064 | N15: 27.691 | O15: 28.24964
A16: 1900-01-05 | B16: 2026-03-12 | C16: C2 | D16: plat | E16: MONT-DE-MARSAN | H16: Hdcp | I16: C4 | J16: 4anset+ | K16: 15 | L16: 418.654 | M16: 33.49232 | N16: 21.283 | O16: 12.20932
A17: 1900-01-07 | B17: 2026-03-21 | C17: C4 | D17: plat | E17: LA TESTE-BASSIN ARCACHON | H17: Hdcp | I17: C4 | J17: 4anset+ | K17: 16 | L17: 479.54227 | M17: 38.3633816 | N17: 20.872 | O17: 17.4913816
A18: 1900-01-03 | B18: 2026-03-24 | C18: C9 | D18: plat | E18: SAINT-CLOUD | H18: Hdcp | J18: 3ans | K18: 14 | L18: 731.54788 | M18: 58.5238304 | N18: 39.939 | O18: 18.5848304
A19: 1900-01-05 | B19: 2026-03-26 | C19: C5 | D19: plat | E19: CHANTILLY | H19: Hdcp | I19: C4 | J19: 4anset+ | K19: 14 | L19: 957.85663 | M19: 76.6285304 | N19: 26.584 | O19: 50.0445304
A20: 1900-01-04 | B20: 2026-04-01 | C20: C9 | D20: plat | E20: LA TESTE-BASSIN ARCACHON | H20: Hdcp | I20: C4 | J20: 4anset+ | K20: 16 | L20: 566.786 | M20: 45.34288 | N20: 21.262 | O20: 24.08088
A21: 1900-01-07 | B21: 2026-04-11 | C21: C7 | D21: plat | E21: BORDEAUX LE BOUSCAT | H21: Hdcp | I21: C4 | J21: 4anset+ | K21: 14 | L21: 800.084 | M21: 64.00672 | N21: 21.016 | O21: 42.99072
A22: 1900-01-03 | B22: 2026-04-14 | C22: C4 | D22: plat | E22: CHANTILLY | H22: Hdcp | I22: C3 | J22: 4anset+ | K22: 16 | L22: 736.413 | M22: 58.91304 | N22: 29.011 | O22: 29.90204
A23: 1900-01-04 | B23: 2026-04-15 | C23: C3 | D23: plat | E23: EVREUX-NAVARRE | H23: Hdcp | J23: 3ans | K23: 11 | L23: 537.222 | M23: 42.97776 | N23: 27.135 | O23: 15.84276
A24: 1900-01-06 | B24: 2026-04-24 | C24: C8 | D24: plat | E24: SAINT-CLOUD | H24: Hdcp | I24: C4 | J24: 4anset+ | K24: 16 | L24: 622.602 | M24: 49.80816 | N24: 23.528 | O24: 26.28016

Sheet Réunions PMH 26
E1: Moyenne par partant | L1: =+L3/K3 -> 0.8842134831 | M1: =+M3/K3 -> 0.07073707865 | N1: =+N3/K3 -> 2.319067416 | O1: =+O3/K3 -> -2.248330337
E2: Moyenne/course | K2: =K3/H3 -> 8.9 | L2: =+L3/H3 -> 7.8695 | M2: =+M3/H3 -> 0.62956 | N2: =+N3/H3 -> 20.6397 | O2: =+O3/H3 -> -20.01014
B3: 0 | E3: Total | F3: =SUBTOTAL(3,F6:F5139) -> 0 | G3: =SUBTOTAL(3,G6:G1986) -> 0 | H3: =SUBTOTAL(3,H6:H5139) -> 10 | K3: =SUBTOTAL(9,K6:K5139) -> 89 | L3: =SUBTOTAL(9,L6:L5139) -> 78.695 | M3: =SUBTOTAL(9,M6:M5139) -> 6.2956 | N3: =SUBTOTAL(9,N6:N5139) -> 206.397 | O3: =M3-N3 -> -200.1014
A5: Jour | B5: Date | C5: Course | D5: Discipline | E5: Hippodrome | F5: Jeu | G5: COND. | H5: conditions | I5: Cat | J5: Age | K5: Pts | L5: enjeux | M5: retour net | N5: alloc distrib. | O5: résultat
A6: =WEEKDAY(B6) -> 1900-01-01 | B6: 2026-04-05 | C6: C1 | D6: plat | E6: TARBES | H6: Inédits | J6: 3ans | K6: 13 | L6: 4.551 | M6: 0.36408 | N6: 37.905 | O6: =M6-N6 -> -37.54092
A7: 1900-01-01 | B7: 2026-04-05 | C7: C2 | D7: plat | E7: TARBES | H7: Conditions | J7: 3ans | K7: 10 | L7: 10.727 | M7: 0.85816 | N7: 20.057 | O7: -19.19884
A8: 1900-01-01 | B8: 2026-04-05 | C8: C3 | D8: plat | E8: TARBES | H8: Conditions | I8: C4 | J8: 4anset+ | K8: 8 | L8: 6.478 | M8: 0.51824 | N8: 23.814 | O8: -23.29576
A9: 1900-01-01 | B9: 2026-04-05 | C9: C4 | D9: plat | E9: TARBES | H9: Conditions | J9: 3ans | K9: 13 | L9: 13.834 | M9: 1.10672 | N9: 20.047 | O9: -18.94028
A10: 1900-01-01 | B10: 2026-04-05 | C10: C5 | D10: plat | E10: TARBES | H10: Réclamers | I10: C4 | J10: 4anset+ | K10: 7 | L10: 8.357 | M10: 0.66856 | N10: 20.042 | O10: -19.37344
A11: 1900-01-01 | B11: 2026-04-05 | C11: C6 | D11: plat | E11: TARBES | H11: Conditions | J11: 4anset+ | K11: 9 | L11: 4.753 | M11: 0.38024 | N11: 23.6 | O11: -23.21976
A12: 1900-01-01 | B12: 2026-04-05 | C12: C7 | D12: plat | E12: TARBES | H12: Réclamers | J12: 3ans | K12: 9 | L12: 8.04 | M12: =L12*0.08 -> 0.6432 | N12: 22.441 | O12: -21.7978
A13: 1900-01-02 | B13: 2026-04-06 | C13: C2 | D13: plat | E13: HYERES | H13: Réclamers | I13: C4 | J13: 4anset+ | K13: 5 | L13: 9.288 | M13: 0.74304 | N13: 11.464 | O13: -10.72096
A14: 1900-01-02 | B14: 2026-04-06 | C14: C4 | D14: plat | E14: HYERES | H14: Maiden | J14: 4anset+ | K14: 7 | L14: 5.557 | M14: 0.44456 | N14: 14.743 | O14: -14.29844
A15: 1900-01-02 | B15: 2026-04-06 | C15: C6 | D15: plat | E15: HYERES | H15: Conditions | I15: C4 | J15: 4anset+ | K15: 8 | L15: 7.11 | M15: 0.5688 | N15: 12.284 | O15: -11.7152

Sheet Réunions PMH 25
E1: Moyenne par partant | L1: =+L3/K3 -> 1.500886574 | M1: =+M3/K3 -> 0.1190257407 | N1: =+N3/K3 -> 2.97112037 | O1: =+O3/K3 -> -2.85209463
E2: Moyenne/course | K2: =K3/H3 -> 8.816326531 | L2: =+L3/H3 -> 13.23230612 | M2: =+M3/H3 -> 1.049369796 | N2: =+N3/H3 -> 26.19436735 | O2: =+O3/H3 -> -25.14499755
B3: 0 | E3: Total | F3: =SUBTOTAL(3,F6:F5189) -> 0 | G3: =SUBTOTAL(3,G6:G2036) -> 0 | H3: =SUBTOTAL(3,H6:H5189) -> 49 | K3: =SUBTOTAL(9,K6:K5189) -> 432 | L3: =SUBTOTAL(9,L6:L5189) -> 648.383 | M3: =SUBTOTAL(9,M6:M5189) -> 51.41912 | N3: =SUBTOTAL(9,N6:N5189) -> 1283.524 | O3: =M3-N3 -> -1232.10488
A5: Jour | B5: Date | C5: Course | D5: Discipline | E5: Hippodrome | F5: Jeu | G5: COND. | H5: conditions | I5: Cat | J5: Age | K5: Pts | L5: enjeux | M5: retour net | N5: alloc distrib. | O5: résultat
A6: =WEEKDAY(B6) -> 1900-01-07 | B6: 2025-12-13 | C6: C1 | D6: obstacle | E6: MOULINS | H6: Conditions | I6: C3 | J6: 3ans | K6: 14 | L6: 16.952 | M6: 1.35616 | N6: 26.332 | O6: =M6-N6 -> -24.97584
A7: 1900-01-07 | B7: 2025-12-13 | C7: C2 | D7: obstacle | E7: MOULINS | H7: Conditions | I7: C3 | J7: 3ans | K7: 12 | L7: 17.089 | M7: 1.36712 | N7: 26.332 | O7: -24.96488
A8: 1900-01-07 | B8: 2025-12-13 | C8: C3 | D8: obstacle | E8: MOULINS | H8: Conditions | I8: C3 | J8: 4ans | K8: 12 | L8: 23.652 | M8: 1.89216 | N8: 26.332 | O8: -24.43984
A9: 1900-01-07 | B9: 2025-12-13 | C9: C4 | D9: obstacle | E9: MOULINS | H9: Réclamers | J9: 4ans | K9: 10 | L9: 27.995 | M9: 2.2396 | N9: 0 | O9: 2.2396
A10: 1900-01-07 | B10: 2025-12-13 | C10: C5 | D10: obstacle | E10: MOULINS | H10: Conditions | I10: C3 | J10: 4ans | K10: 12 | L10: 22.558 | M10: 1.80464 | N10: 26.332 | O10: -24.52736
A11: 1900-01-07 | B11: 2025-12-13 | C11: C6 | D11: obstacle | E11: MOULINS | H11: Hdcp | J11: 5anset+ | K11: 14 | L11: 25.466 | M11: 2.03728 | N11: 27.478 | O11: -25.44072
A12: 1900-01-07 | B12: 2025-12-13 | C12: C7 | D12: obstacle | E12: MOULINS | H12: Conditions | I12: C3 | J12: 4et5ans | K12: 7 | L12: 20.261 | M12: 1.62088 | N12: 26.332 | O12: -24.71112
A13: 1900-01-07 | B13: 2025-12-13 | C13: C8 | D13: plat | E13: MOULINS | H13: Conditions | J13: 3ans | K13: 10 | L13: 17.888 | M13: 1.43104 | N13: 13.449 | O13: -12.01796
A14: 1900-01-01 | B14: 2025-12-07 | C14: C1 | D14: obstacle | E14: MONT-DE-MARSAN | H14: Conditions | I14: C3 | J14: 5anset+ AA | K14: 9 | L14: 5.766 | M14: 0.46128 | N14: 26.332 | O14: -25.87072
A15: 1900-01-01 | B15: 2025-12-07 | C15: C2 | D15: obstacle | E15: MONT-DE-MARSAN | H15: Hdcp | J15: 5anset+ | K15: 8 | L15: 16.807 | M15: 1.34456 | N15: 27.478 | O15: -26.13344
A16: 1900-01-01 | B16: 2025-12-07 | C16: C3 | D16: obstacle | E16: MONT-DE-MARSAN | H16: Conditions | I16: C3 | J16: 5anset+ | K16: 9 | L16: 15.799 | M16: =L16*0.08 -> 1.26392 | N16: 26.332 | O16: -25.06808
A17: 1900-01-01 | B17: 2025-12-07 | C17: C4 | D17: obstacle | E17: MONT-DE-MARSAN | H17: Conditions | I17: C3 | J17: 3ans | K17: 7 | L17: 8.271 | M17: 0.66168 | N17: 26.332 | O17: -25.67032
A18: 1900-01-01 | B18: 2025-12-07 | C18: C5 | D18: obstacle | E18: MONT-DE-MARSAN | H18: Conditions | I18: C3 | J18: 3ans | K18: 5 | L18: 9.259 | M18: 0.74072 | N18: 25.147 | O18: -24.40628
A19: 1900-01-01 | B19: 2025-12-07 | C19: C7 | D19: obstacle | E19: MONT-DE-MARSAN | H19: Hdcp | J19: 5anset+ | K19: 6 | L19: 6.504 | M19: 0.52032 | N19: 27.478 | O19: -26.95768
A20: 1900-01-01 | B20: 2025-11-09 | C20: C1 | D20: obstacle | E20: MOULINS | H20: Conditions | I20: C4 | J20: 3ans | K20: 13 | L20: 10.812 | M20: 0.86496 | N20: 22.899 | O20: -22.03404
A21: 1900-01-01 | B21: 2025-11-09 | C21: C2 | D21: obstacle | E21: MOULINS | H21: Conditions | I21: C3 | J21: 4ans | K21: 12 | L21: 3.962 | M21: 0.31696 | N21: 26.332 | O21: -26.01504
A22: 1900-01-01 | B22: 2025-11-09 | C22: C3 | D22: obstacle | E22: MOULINS | H22: Réclamers | J22: 4ans | K22: 7 | L22: 7.95 | M22: 0.636 | N22: 0 | O22: 0.636
A23: 1900-01-01 | B23: 2025-11-09 | C23: C4 | D23: obstacle | E23: MOULINS | H23: Conditions | I23: C3 | J23: 4ans | K23: 7 | L23: 8.614 | M23: 0.68912 | N23: 26.332 | O23: -25.64288
A24: 1900-01-01 | B24: 2025-11-09 | C24: C5 | D24: obstacle | E24: MOULINS | H24: Conditions | I24: C3 | J24: 5anset+ | K24: 7 | L24: 6.91 | M24: 0.5528 | N24: 26.332 | O24: -25.7792
A25: 1900-01-01 | B25: 2025-11-09 | C25: C6 | D25: obstacle | E25: MOULINS | H25: Conditions | I25: C3 | J25: 4et5ans | K25: 7 | L25: 5.644 | M25: 0 | N25: 28.624 | O25: -28.624
A26: 1900-01-01 | B26: 2025-11-09 | C26: C7 | D26: plat | E26: MOULINS | H26: Conditions | J26: 3ans | K26: 13 | L26: 10.102 | M26: 0.80816 | N26: 17.814 | O26: -17.00584
A27: 1900-01-03 | B27: 2025-11-11 | C27: C3 | D27: obstacle | E27: ANGERS | H27: Conditions | I27: C1 | J27: 5anset+ | K27: 8 | L27: 23.652 | M27: 1.89216 | N27: 70.988 | O27: -69.09584
A28: 1900-01-03 | B28: 2025-11-11 | C28: C5 | D28: obstacle | E28: ANGERS | H28: Conditions | I28: C3 | J28: 5anset+ | K28: 12 | L28: 22.558 | M28: 1.80464 | N28: 24.885 | O28: -23.08036
A29: 1900-01-03 | B29: 2025-11-11 | C29: C7 | D29: obstacle | E29: ANGERS | H29: Conditions | I29: C3 | J29: 3ans | K29: 11 | L29: 20.261 | M29: 1.62088 | N29: 25.188 | O29: -23.56712
A30: 1900-01-03 | B30: 2025-11-11 | C30: C8 | D30: obstacle | E30: ANGERS | H30: Conditions | I30: C4 | J30: 4et5ans AQPS | K30: 8 | L30: 17.888 | M30: 1.43104 | N30: 20.774 | O30: -19.34296
A31: 1900-01-02 | B31: 2025-10-06 | C31: C6 | D31: obstacle | E31: NANTES | H31: Inédits | J31: 3ans | K31: 9 | L31: 7.45 | M31: =L31*0.08 -> 0.596 | N31: 25.188 | O31: -24.592
A32: 1900-01-02 | B32: 2025-10-06 | C32: C7 | D32: obstacle | E32: NANTES | H32: Conditions | I32: C3 | J32: 4ans AQPS | K32: 8 | L32: 16.86 | M32: =L32*0.08 -> 1.3488 | N32: 25.188 | O32: -23.8392
A33: 1900-01-02 | B33: 2025-10-06 | C33: C8 | D33: obstacle | E33: NANTES | H33: Conditions | I33: C4 | J33: 5anset+ | K33: 6 | L33: 13.37 | M33: 1.0696 | N33: 21.208 | O33: -20.1384
A34: 1900-01-01 | B34: 2025-10-12 | C34: C1 | D34: plat | E34: TARBES | H34: Inédits | J34: 2ans | K34: 8 | L34: 6.712 | M34: 0.53696 | N34: 41.166 | O34: -40.62904
A35: 1900-01-01 | B35: 2025-10-12 | C35: C2 | D35: plat | E35: TARBES | H35: Inédits | J35: 2ans | K35: 10 | L35: 20.16 | M35: 1.6128 | N35: 36.795 | O35: -35.1822
A36: 1900-01-01 | B36: 2025-10-12 | C36: C3 | D36: plat | E36: TARBES | H36: Conditions | I36: C2 | J36: 3ans | K36: 8 | L36: 23.352 | M36: 1.86816 | N36: 38.284 | O36: -36.41584
A37: 1900-01-01 | B37: 2025-10-12 | C37: C4 | D37: plat | E37: TARBES | H37: Conditions | J37: 4anset+ PA | K37: 5 | L37: 6.959 | M37: 0.55672 | N37: 24.247 | O37: -23.69028
A38: 1900-01-01 | B38: 2025-10-12 | C38: C5 | D38: plat | E38: TARBES | H38: Conditions | I38: C1 | J38: 3ans | K38: 9 | L38: 24.367 | M38: 1.94936 | N38: 53.098 | O38: -51.14864
A39: 1900-01-01 | B39: 2025-10-12 | C39: C6 | D39: plat | E39: TARBES | H39: Conditions | J39: 5anset+ PA | K39: 10 | L39: 17.693 | M39: 1.41544 | N39: 20.66 | O39: -19.24456
A40: 1900-01-01 | B40: 2025-10-12 | C40: C7 | D40: plat | E40: TARBES | H40: Hdcp | I40: C4 | J40: 4anset+ | K40: 10 | L40: 10.585 | M40: 0.8468 | N40: 26.699 | O40: -25.8522
A41: 1900-01-01 | B41: 2025-10-19 | C41: C1 | D41: plat | E41: TARBES | H41: Réclamers | J41: 4et6ans AA | K41: 6 | L41: 7.563 | M41: 0.60504 | N41: 15.8 | O41: -15.19496
A42: 1900-01-01 | B42: 2025-10-19 | C42: C6 | D42: plat | E42: TARBES | H42: Conditions | J42: 4anset+ AA | K42: 10 | L42: 14.99 | M42: 1.1992 | N42: 38.819 | O42: -37.6198
A43: 1900-01-01 | B43: 2025-10-19 | C43: C7 | D43: plat | E43: TARBES | H43: Conditions | J43: 4et5ans AA | K43: 9 | L43: 19.111 | M43: 1.52888 | N43: 38.819 | O43: -37.29012
A44: 1900-01-01 | B44: 2025-09-21 | C44: C1 | D44: plat | E44: DAX | H44: Réclamers | J44: 2ans | K44: 10 | L44: 5.138 | M44: 0.41104 | N44: 22.44 | O44: -22.02896
A45: 1900-01-01 | B45: 2025-09-21 | C45: C2 | D45: obstacle | E45: DAX | H45: Conditions | I45: C3 | J45: 3ans AA | K45: 4 | L45: 8.222 | M45: 0.65776 | N45: 19.694 | O45: -19.03624
A46: 1900-01-01 | B46: 2025-09-21 | C46: C3 | D46: plat | E46: DAX | H46: Conditions | I46: C2 | J46: 2ans | K46: 8 | L46: 4.988 | M46: 0.39904 | N46: 48.467 | O46: -48.06796
A47: 1900-01-01 | B47: 2025-09-21 | C47: C4 | D47: obstacle | E47: DAX | H47: Conditions | I47: C3 | J47: 4et5ans AA | K47: 8 | L47: 10.548 | M47: 0.84384 | N47: 26.332 | O47: -25.48816
A48: 1900-01-01 | B48: 2025-09-21 | C48: C5 | D48: plat | E48: DAX | H48: Maiden | J48: 3ans | K48: 10 | L48: 9.367 | M48: 0.74936 | N48: 27.135 | O48: -26.38564
A49: 1900-01-01 | B49: 2025-09-21 | C49: C6 | D49: obstacle | E49: DAX | H49: Conditions | I49: C2 | J49: 5anset+ AA | K49: 5 | L49: 4.588 | M49: 0.36704 | N49: 37.782 | O49: -37.41496
A50: 1900-01-01 | B50: 2025-09-21 | C50: C7 | D50: plat | E50: DAX | H50: Réclamers | I50: C4 | J50: 4anset+ | K50: 6 | L50: 9.232 | M50: 0.73856 | N50: 15.5 | O50: -14.76144
A51: 1900-01-01 | B51: 2025-08-17 | C51: C1 | D51: plat | E51: CAVAILLON | H51: Maiden | J51: 3ans | K51: 12 | L51: 10.979 | M51: 0.87832 | N51: 19.928 | O51: -19.04968
A52: 1900-01-01 | B52: 2025-08-17 | C52: C3 | D52: plat | E52: CAVAILLON | H52: Maiden | J52: 4anset+ | K52: 6 | L52: 7.571 | M52: 0.60568 | N52: 13.432 | O52: -12.82632
A53: 1900-01-01 | B53: 2025-08-17 | C53: C5 | D53: plat | E53: CAVAILLON | H53: Conditions | I53: C4 | J53: 4anset+ | K53: 8 | L53: 7.425 | M53: 0.594 | N53: 13.965 | O53: -13.371
A54: 1900-01-01 | B54: 2025-08-17 | C54: C7 | D54: plat | E54: CAVAILLON | H54: Conditions | I54: C4 | J54: 4anset+ | K54: 7 | L54: 8.533 | M54: 0.68264 | N54: 11.024 | O54: -10.34136

Sheet Auteuil 071225
E1: BILAN Cagnes sur Mer 1/12 au 15/12
E2: Moyenne/course | K2: =K3/H3 -> 12.40540541 | L2: =+L3/H3 -> 779.1665135 | M2: =+M3/H3 -> 62.33332108 | N2: =+N3/H3 -> 41.79975676 | O2: =+O3/H3 -> 20.53356432
B3: 0 | E3: Total | F3: =SUBTOTAL(3,F6:F5080) -> 2 | G3: =SUBTOTAL(3,G6:G5080) -> 0 | H3: =SUBTOTAL(3,H6:H5080) -> 37 | K3: =SUBTOTAL(9,K6:K5080) -> 459 | L3: =SUBTOTAL(9,L6:L5080) -> 28829.161 | M3: =SUBTOTAL(9,M6:M5080) -> 2306.33288 | N3: =SUBTOTAL(9,N6:N5080) -> 1546.591 | O3: =SUBTOTAL(9,O6:O5080) -> 759.74188
A5: Jour | B5: Date | C5: Course | D5: Discipline | E5: Hippodrome | F5: Jeu | G5: COND. | H5: conditions | I5: Cat | J5: Age | K5: Pts | L5: enjeux | M5: retour net | N5: alloc distrib. | O5: résultat
A6: 1900-01-02 | B6: 2025-12-01 | C6: C1 | D6: obstacle | E6: CAGNES-SUR-MER | H6: Inédits | J6: 3ans | K6: 14 | L6: 349.622 | M6: 27.96976 | N6: 39.193 | O6: -11.22324
A7: 1900-01-02 | B7: 2025-12-01 | C7: C2 | D7: obstacle | E7: CAGNES-SUR-MER | H7: Inédits | J7: 3ans | K7: 13 | L7: 367.072 | M7: 29.36576 | N7: 39.193 | O7: -9.82724
A8: 1900-01-02 | B8: 2025-12-01 | C8: C3 | D8: obstacle | E8: CAGNES-SUR-MER | H8: Conditions | I8: C2 | J8: 3ans | K8: 11 | L8: 464.367 | M8: 37.14936 | N8: 45.361 | O8: -8.21164
A9: 1900-01-02 | B9: 2025-12-01 | C9: C4 | D9: obstacle | E9: CAGNES-SUR-MER | H9: Conditions | I9: C1 | J9: 3ans | K9: 13 | L9: 410.008 | M9: 32.80064 | N9: 56.269 | O9: -23.46836
A10: 1900-01-02 | B10: 2025-12-01 | C10: C5 | D10: obstacle | E10: CAGNES-SUR-MER | H10: Hdcp | J10: 4ans | K10: 15 | L10: 473.594 | M10: 37.88752 | N10: 42.042 | O10: -4.15448
A11: 1900-01-02 | B11: 2025-12-01 | C11: C6 | D11: obstacle | E11: CAGNES-SUR-MER | H11: Hdcp | J11: 4ans | K11: 15 | L11: 574.374 | M11: 45.94992 | N11: 58.107 | O11: -12.15708
A12: 1900-01-02 | B12: 2025-12-01 | C12: C7 | D12: obstacle | E12: CAGNES-SUR-MER | H12: Hdcp | J12: 5anset+ | K12: 13 | L12: 587.133 | M12: 46.97064 | N12: 45.221 | O12: 1.74964
A13: 1900-01-02 | B13: 2025-12-01 | C13: C8 | D13: obstacle | E13: CAGNES-SUR-MER | H13: Hdcp | J13: 5anset+ | K13: 16 | L13: 556.454 | M13: 44.51632 | N13: 42.333 | O13: 2.18332
A14: 1900-01-04 | B14: 2025-12-03 | C14: C1 | D14: obstacle | E14: CAGNES-SUR-MER | H14: Conditions | I14: C1 | J14: 5anset+ | K14: 7 | L14: 425.569 | M14: 34.04552 | N14: 68.699 | O14: -34.65348
A15: 1900-01-04 | B15: 2025-12-03 | C15: C2 | D15: obstacle | E15: CAGNES-SUR-MER | H15: Inédits | J15: 3ans | K15: 14 | L15: 422.308 | M15: 33.78464 | N15: 45.351 | O15: -11.56636
A16: 1900-01-04 | B16: 2025-12-03 | C16: C3 | D16: obstacle | E16: CAGNES-SUR-MER | H16: Conditions | I16: C4 | J16: 3ans | K16: 13 | L16: 491.47 | M16: 39.3176 | N16: 37.116 | O16: 2.2016
A17: 1900-01-04 | B17: 2025-12-03 | C17: C4 | D17: obstacle | E17: CAGNES-SUR-MER | H17: Conditions | I17: C3 | J17: 5anset+ | K17: 12 | L17: 533.428 | M17: 42.67424 | N17: 38.284 | O17: 4.39024
A18: 1900-01-04 | B18: 2025-12-03 | C18: C5 | D18: obstacle | E18: CAGNES-SUR-MER | H18: Conditions | I18: C2 | J18: 4ans | K18: 11 | L18: 584.275 | M18: 46.742 | N18: 42.621 | O18: 4.121
A19: 1900-01-04 | B19: 2025-12-03 | C19: C6 | D19: obstacle | E19: CAGNES-SUR-MER | H19: Conditions | I19: C4 | J19: 5ans | K19: 10 | L19: 656.313 | M19: 52.50504 | N19: 32.795 | O19: 19.71004
A20: 1900-01-04 | B20: 2025-12-03 | C20: C7 | D20: obstacle | E20: CAGNES-SUR-MER | H20: Hdcp | J20: 4anset+ | K20: 10 | L20: 626.253 | M20: 50.10024 | N20: 68.06 | O20: -17.95976
A21: 1900-01-02 | B21: 2025-12-08 | C21: C1 | D21: obstacle | E21: CAGNES-SUR-MER | H21: Réclamers | J21: 5anset+ | K21: 12 | L21: 416.632 | M21: 33.33056 | N21: 21.65 | O21: 11.68056
A22: 1900-01-02 | B22: 2025-12-08 | C22: C2 | D22: obstacle | E22: CAGNES-SUR-MER | H22: Réclamers | J22: 3ans | K22: 14 | L22: 471.712 | M22: 37.73696 | N22: 21.81 | O22: 15.92696
A23: 1900-01-02 | B23: 2025-12-08 | C23: C3 | D23: obstacle | E23: CAGNES-SUR-MER | H23: Conditions | I23: C3 | J23: 4ans | K23: 9 | L23: 449.416 | M23: 35.95328 | N23: 39.125 | O23: -3.17172
A24: 1900-01-02 | B24: 2025-12-08 | C24: C4 | D24: obstacle | E24: CAGNES-SUR-MER | F24: TQQ+ | H24: Hdcp | J24: 5anset+ | K24: 16 | L24: 5683.883 | M24: 454.71064 | N24: 94.731 | O24: 359.97964
A25: 1900-01-02 | B25: 2025-12-08 | C25: C5 | D25: obstacle | E25: CAGNES-SUR-MER | H25: Conditions | I25: C4 | J25: 3ans | K25: 16 | L25: 634.331 | M25: 50.74648 | N25: 42.684 | O25: 8.06248
A26: 1900-01-02 | B26: 2025-12-08 | C26: C6 | D26: obstacle | E26: CAGNES-SUR-MER | H26: Conditions | I26: C2 | J26: 4ans | K26: 15 | L26: 686.064 | M26: 54.88512 | N26: 44.243 | O26: 10.64212
A27: 1900-01-02 | B27: 2025-12-08 | C27: C7 | D27: obstacle | E27: CAGNES-SUR-MER | H27: Hdcp | J27: 5anset+ | K27: 15 | L27: 753.107 | M27: 60.24856 | N27: 60.682 | O27: -0.43344
A28: 1900-01-05 | B28: 2025-12-11 | C28: C1 | D28: obstacle | E28: CAGNES-SUR-MER | H28: Réclamers | J28: 3ans | K28: 7 | L28: 235.107 | M28: 18.80856 | N28: 0 | O28: 18.80856
A29: 1900-01-05 | B29: 2025-12-11 | C29: C2 | D29: obstacle | E29: CAGNES-SUR-MER | H29: Réclamers | J29: 3ans | K29: 11 | L29: 427.957 | M29: 34.23656 | N29: 0 | O29: 34.23656
A30: 1900-01-05 | B30: 2025-12-11 | C30: C3 | D30: obstacle | E30: CAGNES-SUR-MER | H30: Réclamers | J30: 4ans | K30: 10 | L30: 422.91 | M30: 33.8328 | N30: 0 | O30: 33.8328
A31: 1900-01-05 | B31: 2025-12-11 | C31: C4 | D31: obstacle | E31: CAGNES-SUR-MER | H31: Réclamers | J31: 4ans | K31: 13 | L31: 505.223 | M31: 40.41784 | N31: 0 | O31: 40.41784
A32: 1900-01-05 | B32: 2025-12-11 | C32: C5 | D32: obstacle | E32: CAGNES-SUR-MER | H32: Hdcp | J32: 3ans | K32: 14 | L32: 626.991 | M32: 50.15928 | N32: 52.394 | O32: -2.23472
A33: 1900-01-05 | B33: 2025-12-11 | C33: C6 | D33: obstacle | E33: CAGNES-SUR-MER | H33: Réclamers | J33: 5anset+ | K33: 14 | L33: 514.665 | M33: 41.1732 | N33: 0 | O33: 41.1732
A34: 1900-01-05 | B34: 2025-12-11 | C34: C7 | D34: obstacle | E34: CAGNES-SUR-MER | H34: Hdcp | J34: 5anset+ | K34: 12 | L34: 545.71 | M34: 43.6568 | N34: 70.773 | O34: -27.1162
A35: 1900-01-02 | B35: 2025-12-15 | C35: C1 | D35: obstacle | E35: CAGNES-SUR-MER | H35: Conditions | I35: C3 | J35: 3ans | K35: 10 | L35: 374.551 | M35: 29.96408 | N35: 39.437 | O35: -9.47292
A36: 1900-01-02 | B36: 2025-12-15 | C36: C2 | D36: obstacle | E36: CAGNES-SUR-MER | H36: Conditions | I36: C4 | J36: 3ans | K36: 10 | L36: 326.986 | M36: 26.15888 | N36: 41.723 | O36: -15.56412
A37: 1900-01-02 | B37: 2025-12-15 | C37: C3 | D37: obstacle | E37: CAGNES-SUR-MER | H37: Conditions | I37: C4 | J37: 3ans | K37: 14 | L37: 402.407 | M37: 32.19256 | N37: 33.834 | O37: -1.64144
A38: 1900-01-02 | B38: 2025-12-15 | C38: C4 | D38: obstacle | E38: CAGNES-SUR-MER | H38: Conditions | I38: C4 | J38: 3ans | K38: 12 | L38: 432.373 | M38: 34.58984 | N38: 38.591 | O38: -4.00116
A39: 1900-01-02 | B39: 2025-12-15 | C39: C5 | D39: obstacle | E39: CAGNES-SUR-MER | F39: TQQ+ | H39: Hdcp | J39: 4ans | K39: 14 | L39: 5507.022 | M39: 440.56176 | N39: 97.523 | O39: 343.03876
A40: 1900-01-02 | B40: 2025-12-15 | C40: C6 | D40: obstacle | E40: CAGNES-SUR-MER | H40: Conditions | I40: C4 | J40: 5anset+ | K40: 9 | L40: 594.62 | M40: 47.5696 | N40: 35.021 | O40: 12.5486
A41: 1900-01-02 | B41: 2025-12-15 | C41: C7 | D41: obstacle | E41: CAGNES-SUR-MER | H41: Hdcp | J41: 4ans | K41: 9 | L41: 560.017 | M41: 44.80136 | N41: 43.882 | O41: 0.91936
A42: 1900-01-02 | B42: 2025-12-15 | C42: C8 | D42: obstacle | E42: CAGNES-SUR-MER | H42: Hdcp | J42: 4ans | K42: 16 | L42: 735.237 | M42: 58.81896 | N42: 67.843 | O42: -9.02404

Sheet 48 H Obst 2025
E1: BILAN 48 H DE L'OBSTACLE 2025
E2: Moyenne par partant | L2: =+L4/K4 -> 93.42596891 | M2: =+M4/K4 -> 7.474077513 | N2: =+N4/K4 -> 17.60294301 | O2: =+O4/K4 -> -10.12886549
E3: Moyenne/course | K3: =K4/H4 -> 11.35294118 | L3: =+L4/H4 -> 1060.659529 | M3: =+M4/H4 -> 84.85276235 | N3: =+N4/H4 -> 199.8451765 | O3: =+O4/H4 -> -114.9924141
B4: 0 | E4: Total | F4: =SUBTOTAL(3,F7:F4836) -> 1 | G4: =SUBTOTAL(3,G7:G2044) -> 0 | H4: =SUBTOTAL(3,H7:H4836) -> 17 | K4: =SUBTOTAL(9,K7:K4836) -> 193 | L4: =SUBTOTAL(9,L7:L4836) -> 18031.212 | M4: =SUBTOTAL(9,M7:M4836) -> 1442.49696 | N4: =SUBTOTAL(9,N7:N4836) -> 3397.368 | O4: =M4-N4 -> -1954.87104
A6: Jour | B6: Date | C6: Course | D6: Discipline | E6: Hippodrome | F6: Jeu | G6: COND. | H6: conditions | I6: Cat | J6: Age | K6: Pts | L6: enjeux | M6: retour net | N6: alloc distrib. | O6: résultat
A7: =WEEKDAY(B7) -> 1900-01-07 | B7: 2025-11-15 | C7: C1 | D7: obstacle | E7: AUTEUIL | H7: Conditions | I7: C2 | J7: 4ans AQPS | K7: 7 | L7: 357.65 | M7: 28.612 | N7: 63.273 | O7: =M7-N7 -> -34.661
A8: 1900-01-07 | B8: 2025-11-15 | C8: C2 | D8: obstacle | E8: AUTEUIL | H8: Hdcp | J8: 3ans | K8: 10 | L8: 585.11 | M8: 46.8088 | N8: 108.646 | O8: -61.8372
A9: 1900-01-07 | B9: 2025-11-15 | C9: C3 | D9: obstacle | E9: AUTEUIL | H9: GROUPES | I9: II | J9: 3ans | K9: 10 | L9: 641.708 | M9: 51.33664 | N9: 246.67 | O9: -195.33336
A10: 1900-01-07 | B10: 2025-11-15 | C10: C4 | D10: obstacle | E10: AUTEUIL | H10: Conditions | I10: C2 | J10: 4ans | K10: 12 | L10: 647.093 | M10: 51.76744 | N10: 59.954 | O10: -8.18656
A11: 1900-01-07 | B11: 2025-11-15 | C11: C5 | D11: obstacle | E11: AUTEUIL | H11: Hdcp | J11: 5anset+ | K11: 12 | L11: 631.014 | M11: 50.48112 | N11: 67.808 | O11: -17.32688
A12: 1900-01-07 | B12: 2025-11-15 | C12: C6 | D12: obstacle | E12: AUTEUIL | H12: GROUPES | I12: II | J12: 3ans | K12: 11 | L12: 744.037 | M12: 59.52296 | N12: 214.285 | O12: -154.76204
A13: 1900-01-07 | B13: 2025-11-15 | C13: C7 | D13: obstacle | E13: AUTEUIL | F13: TQQ+ | H13: Hdcp | J13: 5anset+ | K13: 16 | L13: 7158.396 | M13: 572.67168 | N13: 130.589 | O13: 442.08268
A14: 1900-01-07 | B14: 2025-11-15 | C14: C8 | D14: obstacle | E14: AUTEUIL | H14: GROUPES | I14: I | J14: 5anset+ | K14: 9 | L14: 1175.304 | M14: 94.02432 | N14: 415.631 | O14: -321.60668
A15: 1900-01-07 | B15: 2025-11-15 | C15: C9 | D15: obstacle | E15: AUTEUIL | H15: Hdcp | J15: 5anset+ | K15: 14 | L15: 898.907 | M15: 71.91256 | N15: 68.699 | O15: 3.21356
A16: 1900-01-01 | B16: 2025-11-16 | C16: C1 | D16: obstacle | E16: AUTEUIL | H16: GROUPES | I16: III | J16: 5ans | K16: 7 | L16: 350.495 | M16: 28.0396 | N16: 155.173 | O16: -127.1334
A17: 1900-01-01 | B17: 2025-11-16 | C17: C2 | D17: obstacle | E17: AUTEUIL | H17: Listed | J17: 4anset+ | K17: 9 | L17: 549.712 | M17: 43.97696 | N17: 121.295 | O17: -77.31804
A18: 1900-01-01 | B18: 2025-11-16 | C18: C3 | D18: obstacle | E18: AUTEUIL | H18: Hdcp | J18: 5anset+ | K18: 13 | L18: 465.045 | M18: 37.2036 | N18: 113.947 | O18: -76.7434
A19: 1900-01-01 | B19: 2025-11-16 | C19: C4 | D19: obstacle | E19: AUTEUIL | H19: GROUPES | I19: I | J19: 3ans | K19: 11 | L19: 725.333 | M19: 58.02664 | N19: 297.214 | O19: -239.18736
A20: 1900-01-01 | B20: 2025-11-16 | C20: C5 | D20: obstacle | E20: AUTEUIL | H20: GROUPES | I20: I | J20: 4ans | K20: 16 | L20: 702.136 | M20: 56.17088 | N20: 382.8 | O20: -326.62912
A21: 1900-01-01 | B21: 2025-11-16 | C21: C6 | D21: obstacle | E21: AUTEUIL | H21: GROUPES | I21: I | J21: 4ans | K21: 10 | L21: 727.77 | M21: 58.2216 | N21: 301.6 | O21: -243.3784
A22: 1900-01-01 | B22: 2025-11-16 | C22: C7 | D22: obstacle | E22: AUTEUIL | H22: GROUPES | I22: I | J22: 5anset+ | K22: 12 | L22: 996.065 | M22: 79.6852 | N22: 602.842 | O22: -523.1568
A23: 1900-01-01 | B23: 2025-11-16 | C23: C8 | D23: obstacle | E23: AUTEUIL | H23: Hdcp | J23: 5anset+ | K23: 14 | L23: 675.437 | M23: 54.03496 | N23: 46.942 | O23: 7.09296

Sheet Courses sup 2025
F1: COURSES SUPPLEMENTAIRES 2025 | K1: moyen enj | L1: =L2/H2 -> 642.6513451 | N1: =N2/H2 -> 28.96446939
H2: =SUBTOTAL(3,H4:H102) -> 49 | L2: =SUBTOTAL(9,L4:L60) -> 31489.91591 | N2: =SUBTOTAL(9,N4:N60) -> 1419.259 | O2: =SUBTOTAL(9,O4:O60) -> 1099.934273
A3: jour | B3: date | C3: course | D3: specialité | E3: hippodrome | H3: catégorie | J3: age | K3: partants | L3: enjeux | M3: ret net enj | N3: enc | O3: MB
A4: =WEEKDAY(B4) -> 1900-01-02 | B4: 2025-01-20 | C4: C7 | D4: plat | E4: CAGNES-SUR-MER | H4: Hdcp | I4: C3 | J4: 5anset+ | K4: 16 | L4: 704.657 | M4: 56.37256 | N4: 31.422 | O4: =M4-N4 -> 24.95056
A5: 1900-01-07 | B5: 2025-02-01 | C5: C4 | D5: plat | E5: DEAUVILLE | H5: Hdcp | I5: C4 | J5: 4anset+ | K5: 15 | L5: 967.509 | M5: 77.40072 | N5: 23.708 | O5: 53.69272
A6: 1900-01-07 | B6: 2025-03-01 | C6: C3 | D6: plat | E6: FONTAINEBLEAU | H6: Hdcp | I6: C4 | J6: 4anset+ | K6: 14 | L6: 497.522 | M6: 39.80176 | N6: 29.489 | O6: 10.31276
A7: 1900-01-04 | B7: 2025-03-05 | C7: C7 | D7: plat | E7: BORDEAUX LE BOUSCAT | H7: Hdcp | I7: C4 | J7: 4anset+ | K7: 16 | L7: 671.937 | M7: 53.75496 | N7: 19.658 | O7: 34.09696
A8: 1900-01-02 | B8: 2025-03-10 | C8: C6 | D8: plat | E8: LE MANS | H8: Hdcp | I8: C4 | J8: 4anset+ | K8: 13 | L8: 603.222 | M8: 48.25776 | N8: 21.298 | O8: 26.95976
A9: 1900-01-05 | B9: 2025-03-13 | C9: C9 | D9: plat | E9: CHANTILLY | H9: Hdcp | I9: C4 | J9: 4anset+ | K9: 16 | L9: 698.626 | M9: 55.89008 | N9: 29.03 | O9: 26.86008
A10: 1900-01-03 | B10: 2025-03-18 | C10: C5 | D10: plat | E10: FONTAINEBLEAU | H10: Hdcp | I10: C4 | J10: 4anset+ | K10: 14 | L10: 602.234 | M10: 48.17872 | N10: 29.122 | O10: 19.05672
A11: 1900-01-06 | B11: 2025-03-28 | C11: C8 | D11: plat | E11: COMPIEGNE | H11: Hdcp | I11: C4 | J11: 4anset+ | K11: 16 | L11: 559.539 | M11: 44.76312 | N11: 24.358 | O11: 20.40512
A12: lundi | B12: 2025-04-14 | C12: C7 | D12: plat | E12: CHANTILLY | H12: Hdcp | I12: C3 | J12: 4anset+ | K12: 16 | L12: 950.989 | M12: 76.07912 | N12: 31.82 | O12: 44.25912
A13: =WEEKDAY(B13) -> 1900-01-07 | B13: 2025-04-19 | C13: C7 | D13: plat | E13: STRASBOURG | H13: Hdcp | I13: C4 | J13: 4anset+ | K13: 15 | L13: 585.854 | M13: 46.86832 | N13: 21.179 | O13: 25.68932
A14: 1900-01-05 | B14: 2025-04-24 | C14: C1 | D14: plat | E14: PARISLONGCHAMP | H14: Hdcp | I14: C4 | J14: 4anset+ | K14: 16 | L14: 651.574 | M14: 52.12592 | N14: 24.494 | O14: 27.63192
A15: 1900-01-07 | B15: 2025-04-26 | C15: C8 | D15: obstacle | E15: AUTEUIL | H15: Hdcp | J15: 5anset+ | K15: 17 | L15: 618.406 | M15: 49.47248 | N15: 48.087 | O15: 1.38548
A16: 1900-01-01 | B16: 2025-05-04 | C16: C10 | D16: plat | E16: PARISLONGCHAMP | H16: Hdcp | I16: C4 | J16: 4anset+ | K16: 15 | L16: 569.879 | M16: 45.59032 | N16: 24.544 | O16: 21.04632
A17: 1900-01-06 | B17: 2025-05-09 | C17: C5 | D17: plat | E17: SAINT-CLOUD | H17: Hdcp | I17: C4 | J17: 4anset+ | K17: 16 | L17: 856.23 | M17: 68.4984 | N17: 24.573 | O17: 43.9254
A18: 1900-01-07 | B18: 2025-05-31 | C18: C3 | D18: obstacle | E18: AUTEUIL | H18: Hdcp | J18: 5anset+ | K18: 11 | L18: 388.994 | M18: 31.11952 | N18: 44.094 | O18: -12.97448
A19: 1900-01-03 | B19: 2025-06-24 | C19: C9 | D19: plat | E19: CHANTILLY | H19: Hdcp | I19: C4 | J19: 4anset+ | K19: 15 | L19: 660.592 | M19: 52.84736 | N19: 26.497 | O19: 26.35036
A20: 1900-01-04 | B20: 2025-06-25 | C20: C7 | D20: plat | E20: CHATEAUBRIANT | H20: Hdcp | I20: C4 | J20: 4anset+ | K20: 16 | L20: 480.895 | M20: 38.4716 | N20: 21.273 | O20: 17.1986
A21: 1900-01-05 | B21: 2025-06-26 | C21: C5 | D21: plat | E21: ARGENTAN | H21: Hdcp | I21: C4 | J21: 4anset+ | K21: 12 | L21: 480.45 | M21: 38.436 | N21: 18.837 | O21: 19.599
A22: 1900-01-05 | B22: 2025-07-17 | C22: C3 | D22: plat | E22: VICHY | H22: Hdcp | I22: C3 | J22: 4anset+ | K22: 15 | L22: 697.111 | M22: 55.76888 | N22: 31.746 | O22: 24.02288
A23: 1900-01-07 | B23: 2025-07-26 | C23: C4 | D23: plat | E23: CLAIREFONTAINE | H23: Hdcp | I23: C4 | J23: 4anset+ | K23: 14 | L23: 521.258 | M23: 41.70064 | N23: 23.589 | O23: 18.11164
A24: 1900-01-03 | B24: 2025-08-05 | C24: C9 | D24: plat | E24: DEAUVILLE | H24: Hdcp | I24: C4 | J24: 4anset+ | K24: 13 | L24: 715.877 | M24: 57.27016 | N24: 28.899 | O24: 28.37116
A25: 1900-01-02 | B25: 2025-08-04 | C25: C7 | D25: plat | E25: VICHY | H25: Hdcp | I25: C4 | J25: 4anset+ | K25: 13 | L25: 507.673 | M25: 40.61384 | N25: 20.18 | O25: =M25-N25 -> 20.43384
A26: 1900-01-04 | B26: 2025-08-06 | C26: C5 | D26: plat | E26: CLAIREFONTAINE | H26: Hdcp | J26: 3ans | K26: 16 | L26: 834.965 | M26: 66.7972 | N26: 30.617 | O26: =M26-N26 -> 36.1802
A27: 1900-01-03 | B27: 2025-08-19 | C27: C3 | D27: plat | E27: DEAUVILLE | H27: Hdcp | I27: C4 | J27: 4anset+ | K27: 15 | L27: 564.432 | M27: 45.15456 | N27: 23.589 | O27: 21.56556
A28: =WEEKDAY(B28) -> 1900-01-01 | B28: 2025-08-24 | C28: C1 | D28: plat | E28: MONT-DE-MARSAN | H28: Conditions | J28: 3ans PA | K28: 14 | L28: 420.858 | M28: 33.66864 | N28: 39.549 | O28: =M28-N28 -> -5.88036
A29: 1900-01-07 | B29: 2025-08-30 | C29: C3 | D29: plat | E29: DEAUVILLE | H29: Hdcp | I29: C4 | J29: 4anset+ | K29: 16 | L29: 715.291 | M29: 57.22328 | N29: 23.119 | O29: 34.10428
A30: 1900-01-02 | B30: 2025-09-01 | C30: C3 | D30: plat | E30: CHANTILLY | H30: Hdcp | I30: C3 | J30: 4anset+ | K30: 16 | L30: 758.744 | M30: 60.69952 | N30: 31.269 | O30: 29.43052
A31: 1900-01-03 | B31: 2025-09-09 | C31: C9 | D31: obstacle | E31: AUTEUIL | H31: Hdcp | J31: 5anset+ | K31: 17 | L31: 552.771 | M31: 44.22168 | N31: 47.293 | O31: -3.07132
A32: 1900-01-03 | B32: 2025-09-16 | C32: C9 | D32: plat | E32: COMPIEGNE | H32: Hdcp | I32: C3 | J32: 4anset+ | K32: 13 | L32: 660.103 | M32: 52.80824 | N32: 32.767 | O32: 20.04124
A33: 1900-01-05 | B33: 2025-09-25 | C33: C4 | D33: plat | E33: CHANTILLY | H33: Hdcp | I33: C4 | J33: 4anset+ | K33: 15 | L33: 685.99 | M33: 54.8792 | N33: 27.294 | O33: 27.5852
A34: 1900-01-03 | B34: 2025-09-30 | C34: C5 | D34: plat | E34: CHANTILLY | H34: Hdcp | J34: 3ans | K34: 15 | L34: 772.444 | M34: 61.79552 | N34: 29.552 | O34: 32.24352
A35: 1900-01-04 | B35: 2025-10-08 | C35: C5 | D35: plat | E35: ARGENTAN | H35: Hdcp | I35: C4 | J35: 4anset+ | K35: 14 | L35: 559.679 | M35: 44.77432 | N35: 19.51 | O35: 25.26432
A36: 1900-01-05 | B36: 2025-10-09 | C36: C9 | D36: plat | E36: SAINT-CLOUD | H36: Hdcp | J36: 3ans | K36: 14 | L36: 783.729 | M36: 62.69832 | N36: 37.927 | O36: 24.77132
A37: 1900-01-05 | B37: 2025-10-09 | C37: C10 | D37: plat | E37: SAINT-CLOUD | H37: Hdcp | I37: C3 | J37: 4anset+ | K37: 15 | L37: 928.85 | M37: 74.308 | N37: 33.073 | O37: 41.235
A38: 1900-01-05 | B38: 2025-10-16 | C38: C9 | D38: plat | E38: SAINT-CLOUD | H38: Hdcp | I38: C3 | J38: 4anset+ | K38: 12 | L38: 950.39 | M38: 76.0312 | N38: 34.303 | O38: 41.7282
A39: 1900-01-06 | B39: 2025-10-24 | C39: C3 | D39: plat | E39: CLAIREFONTAINE | H39: Hdcp | I39: C4 | J39: 4anset+ | K39: 15 | L39: 484.198 | M39: 38.73584 | N39: 28.079 | O39: 10.65684
A40: dimanche | B40: 2025-10-26 | C40: C10 | D40: plat | E40: SAINT-CLOUD | H40: Hdcp | I40: C3 | J40: 3anset+ | K40: 14 | L40: 786.468 | M40: 62.91744 | N40: 38.106 | O40: 24.81144
A41: =WEEKDAY(B41) -> 1900-01-04 | B41: 2025-11-12 | C41: C2 | D41: plat | E41: NANTES | H41: Hdcp | I41: C4 | J41: 4anset+ | K41: 13 | L41: 380.725 | M41: 30.458 | N41: 21.296 | O41: 9.162
A42: dimanche | B42: 2025-11-16 | C42: C8 | D42: obstacle | E42: AUTEUIL | H42: Hdcp | J42: 5anset+ | K42: 14 | L42: 675.437 | M42: 54.03496 | N42: 46.942 | O42: 7.09296
A43: mardi | B43: 2025-11-18 | C43: C4 | D43: plat | E43: CHANTILLY | H43: Hdcp | I43: C4 | J43: 3anset+ | K43: 14 | L43: 528.197 | M43: 42.25576 | N43: 28.293 | O43: 13.96276
A44: =WEEKDAY(B44) -> 1900-01-06 | B44: 2025-11-28 | C44: C5 | D44: plat | E44: DEAUVILLE | H44: Hdcp | J44: 3ans | K44: 14 | L44: 720.17191 | M44: 57.6137528 | N44: 22.327 | O44: 35.2867528
A45: =WEEKDAY(B45) -> 1900-01-02 | B45: 2025-12-01 | C45: C2 | D45: obstacle | E45: CAGNES-SUR-MER | H45: Inédits | J45: 3ans | K45: 13 | L45: 367.072 | M45: 29.36576 | N45: 39.193 | O45: -9.82724
A46: 1900-01-03 | B46: 2025-12-09 | C46: C1 | D46: plat | E46: CHANTILLY | H46: Hdcp | I46: C4 | J46: 3anset+ | K46: 16 | L46: 443.859 | M46: 35.50872 | N46: 23.945 | O46: 11.56372
A47: 1900-01-07 | B47: 2025-12-13 | C47: C9 | D47: plat | E47: DEAUVILLE | H47: Hdcp | J47: 3ans | K47: 13 | L47: 365.853 | M47: 29.26824 | N47: 32.622 | O47: -3.35376 | P47: 20h30
A48: 1900-01-02 | B48: 2025-12-15 | C48: C4 | D48: obstacle | E48: CAGNES-SUR-MER | H48: Conditions | I48: C4 | J48: 3ans | K48: 12 | L48: 432.373 | M48: 34.58984 | N48: 38.591 | O48: -4.00116
A49: 1900-01-05 | B49: 2025-12-18 | C49: C5 | D49: plat | E49: DEAUVILLE | H49: Hdcp | I49: C4 | J49: 4anset+ | K49: 13 | L49: 720.601 | M49: 57.64808 | N49: 19.354 | O49: 38.29408
A50: 1900-01-07 | B50: 2025-12-20 | C50: C8 | D50: plat | E50: PAU | H50: Hdcp | I50: C4 | J50: 3anset+ | K50: 16 | L50: 767.213 | M50: 61.37704 | N50: 17.198 | O50: 44.17904
A51: 1900-01-02 | B51: 2025-12-22 | C51: C4 | D51: plat | E51: DEAUVILLE | H51: Hdcp | I51: C4 | J51: 3anset+ | K51: 16 | L51: 791.772 | M51: 63.34176 | N51: 23.178 | O51: 40.16376
A52: 1900-01-03 | B52: 2025-12-30 | C52: C4 | D52: plat | E52: DEAUVILLE | H52: Hdcp | J52: 3ans | K52: 15 | L52: 846.702 | M52: 67.73616 | N52: 32.376 | O52: 35.36016

Sheet CC 23-22
A1: 2023 | D1: 2023 | L1: 2022
A2: jour | B2: date | D2: spécialité | E2: hippodrome | H2: conditions | I2: cat | J2: age | K2: partants | L2: jour | M2: date | O2: discipline | P2: hippodrome | S2: conditions | T2: cat | U2: age | V2: partants
A3: 1900-01-05 | B3: 2023-03-16 | C3: C2 | D3: plat | E3: MARSEILLE BORELY | H3: Inédits | J3: 2ans | K3: 7 | L3: 1900-01-05 | M3: 2022-03-24 | N3: C3 | O3: plat | P3: SAINT-CLOUD | S3: Réclamers | U3: 2ans | V3: 6 | W3: 332.2323 | X3: 26.578584 | Y3: 45.512 | Z3: -18.933416
A4: 1900-01-05 | B4: 2023-04-20 | C4: C1 | D4: plat | E4: TARBES | H4: Inédits | J4: 2ans | K4: 7 | L4: 1900-01-02 | M4: 2022-04-04 | N4: C3 | O4: plat | P4: MARSEILLE BORELY | S4: Inédits | U4: 2ans | V4: 6 | W4: 302.51206 | X4: 24.2009648 | Y4: 32.226 | Z4: -8.0250352
A5: 1900-01-05 | B5: 2023-04-20 | C5: C2 | D5: plat | E5: TARBES | H5: Inédits | J5: 2ans | K5: 7 | L5: 1900-01-03 | M5: 2022-04-26 | N5: C1 | O5: plat | P5: LYON PARILLY | S5: Conditions | T5: C2 | U5: 2ans | V5: 5 | W5: 172.02801 | X5: 13.7622408 | Y5: 36.092 | Z5: -22.3297592
A6: 1900-01-07 | B6: 2023-04-22 | C6: C3 | D6: plat | E6: LYON PARILLY | H6: Conditions | I6: C2 | J6: 2ans | K6: 7 | L6: 1900-01-06 | M6: 2022-04-29 | N6: C1 | O6: plat | P6: MARSEILLE BORELY | S6: Maiden | U6: 2ans | V6: 5 | W6: 175.82654 | X6: 14.0661232 | Y6: 29.191 | Z6: -15.1248768
A7: 1900-01-02 | B7: 2023-04-24 | C7: C2 | D7: plat | E7: BORDEAUX LE BOUSCAT | H7: Maiden | J7: 2ans | K7: 6 | L7: 1900-01-07 | M7: 2022-04-30 | N7: C1 | O7: plat | P7: TARBES | S7: Inédits | U7: 2ans | V7: 7 | W7: 129.95285 | X7: 10.396228 | Y7: 34.007 | Z7: -23.610772
A8: 1900-01-03 | B8: 2023-05-09 | C8: C1 | D8: plat | E8: CHANTILLY | H8: Inédits | J8: 2ans | K8: 7 | L8: 1900-01-07 | M8: 2022-04-30 | N8: C2 | O8: plat | P8: TARBES | S8: Inédits | U8: 2ans | V8: 7 | W8: 168.62722 | X8: 13.4901776 | Y8: 34.634 | Z8: -21.1438224
A9: 1900-01-05 | B9: 2023-05-11 | C9: C1 | D9: plat | E9: PARISLONGCHAMP | H9: Conditions | I9: C2 | J9: 2ans | K9: 6 | L9: 1900-01-04 | M9: 2022-05-04 | N9: C2 | O9: plat | P9: PARISLONGCHAMP | S9: Conditions | T9: C2 | U9: 2ans | V9: 7 | W9: 713.77382 | X9: 57.1019056 | Y9: 59.877 | Z9: -2.7750944
A10: 1900-01-07 | B10: 2023-05-13 | C10: C1 | D10: plat | E10: TARBES | H10: Maiden | J10: 2ans | K10: 6 | L10: 1900-01-07 | M10: 2022-05-07 | N10: C2 | O10: plat | P10: LYON PARILLY | S10: Réclamers | U10: 2ans | V10: 6 | W10: 357.74823 | X10: 28.6198584 | Y10: 22.524 | Z10: 6.0958584
A11: 1900-01-02 | B11: 2023-05-15 | C11: C1 | D11: plat | E11: BORDEAUX LE BOUSCAT | H11: Conditions | I11: C2 | J11: 2ans | K11: 5 | L11: 1900-01-01 | M11: 2022-05-08 | N11: C1 | O11: plat | P11: BORDEAUX LE BOUSCAT | S11: Maiden | U11: 2ans | V11: 7 | W11: 380.75672 | X11: 30.4605376 | Y11: 34.982 | Z11: -4.5214624
A12: 1900-01-02 | B12: 2023-05-15 | C12: C2 | D12: plat | E12: BORDEAUX LE BOUSCAT | H12: Inédits | J12: 2ans | K12: 7 | L12: 1900-01-03 | M12: 2022-05-10 | N12: C3 | O12: plat | P12: CHANTILLY | S12: Inédits | U12: 2ans | V12: 7 | W12: 458.75343 | X12: 36.7002744 | Y12: 49.425 | Z12: -12.7247256
A13: 1900-01-04 | B13: 2023-05-17 | C13: C1 | D13: plat | E13: CHATEAUBRIANT | H13: Maiden | J13: 2ans | K13: 7 | L13: 1900-01-07 | M13: 2022-05-14 | N13: C1 | O13: plat | P13: BORDEAUX LE BOUSCAT | S13: Conditions | T13: C2 | U13: 2ans | V13: 7 | W13: 159.39892 | X13: 12.7519136 | Y13: 51.452 | Z13: -38.7000864
A14: 1900-01-04 | B14: 2023-05-17 | C14: C1 | D14: plat | E14: VICHY | H14: Listed | J14: 2ans | K14: 7 | L14: 1900-01-06 | M14: 2022-05-20 | N14: C2 | O14: plat | P14: VICHY | S14: Listed | U14: 2ans | V14: 5 | W14: 319.372 | X14: 25.54976 | Y14: 81.484 | Z14: -55.93424
A15: 1900-01-04 | B15: 2023-05-17 | C15: C2 | D15: plat | E15: VICHY | H15: Réclamers | J15: 2ans | K15: 6 | L15: 1900-01-06 | M15: 2022-05-20 | N15: C3 | O15: plat | P15: TOULOUSE | Q15: internet | S15: Maiden | U15: 2ans | V15: 6 | W15: 6.50982 | X15: 0.5207856 | Y15: 34.146 | Z15: -33.6252144
A16: 1900-01-06 | B16: 2023-05-19 | C16: C1 | D16: plat | E16: CHANTILLY | H16: Maiden | J16: 2ans | K16: 5 | L16: 1900-01-02 | M16: 2022-05-23 | N16: C1 | O16: plat | P16: MARSEILLE BORELY | S16: Conditions | T16: C2 | U16: 2ans | V16: 3 | W16: 150.50331 | X16: 12.0402648 | Y16: 43.26 | Z16: -31.2197352
A17: 1900-01-02 | B17: 2023-05-22 | C17: C6 | D17: plat | E17: MARSEILLE BORELY | H17: Réclamers | J17: 2ans | K17: 6 | L17: 1900-01-03 | M17: 2022-05-24 | N17: C3 | O17: plat | P17: SAINT-CLOUD | S17: Conditions | T17: C2 | U17: 2ans | V17: 5 | W17: 380.25511 | X17: 30.4204088 | Y17: 57.111 | Z17: -26.6905912
A18: 1900-01-03 | B18: 2023-05-23 | C18: C1 | D18: plat | E18: SAINT-CLOUD | H18: Inédits | J18: 2ans | K18: 6 | L18: 1900-01-06 | M18: 2022-05-27 | N18: C6 | O18: plat | P18: SALON-DE-PROVENCE | S18: Réclamers | U18: 2ans | V18: 6 | W18: 294.75493 | X18: 23.5803944 | Y18: 24.196 | Z18: -0.6156056
A19: 1900-01-04 | B19: 2023-05-24 | C19: C1 | D19: plat | E19: LE MANS | H19: Inédits | J19: 2ans | K19: 7 | L19: 1900-01-03 | M19: 2022-05-31 | N19: C3 | O19: plat | P19: ANGERS | S19: Conditions | T19: C2 | U19: 2ans | V19: 7 | W19: 485.71018 | X19: 38.8568144 | Y19: 45.849 | Z19: -6.9921856
A20: 1900-01-05 | B20: 2023-05-25 | C20: C7 | D20: plat | E20: PARISLONGCHAMP | H20: Maiden | J20: 2ans | K20: 6
A21: 1900-01-01 | B21: 2023-05-28 | C21: C1 | D21: plat | E21: SAINT-CLOUD | H21: Réclamers | J21: 2ans | K21: 5
A22: 1900-01-01 | B22: 2023-05-28 | C22: C2 | D22: plat | E22: SAINT-CLOUD | H22: Conditions | I22: C2 | J22: 2ans | K22: 5
A23: 1900-01-03 | B23: 2023-05-30 | C23: C7 | D23: plat | E23: ANGERS | H23: Réclamers | J23: 2ans | K23: 5
A25: 3 ans | L25: 3 ans
A26: 1900-01-04 | B26: 2023-03-01 | C26: C2 | D26: plat | E26: CHANTILLY | H26: Réclamers | J26: 3ans | K26: 7 | L26: 1900-01-04 | M26: 2022-03-02 | N26: C1 | O26: plat | P26: MARSEILLE PONT DE VIVAUX | S26: Réclamers | U26: 3ans | V26: 6 | W26: 260.76397 | X26: 20.8611176 | Y26: 20.491 | Z26: 0.3701176
A27: 1900-01-05 | B27: 2023-03-02 | C27: C3 | D27: plat | E27: LYON LA SOIE | H27: Réclamers | J27: 3ans | K27: 7 | L27: 1900-01-06 | M27: 2022-03-04 | N27: C1 | O27: plat | P27: BORDEAUX LE BOUSCAT | S27: Maiden | U27: 3ans | V27: 5 | W27: 257.17272 | X27: 20.5738176 | Y27: 33.341 | Z27: -12.7671824
A28: 1900-01-06 | B28: 2023-03-03 | C28: C1 | D28: plat | E28: BORDEAUX LE BOUSCAT | H28: Conditions | I28: C2 | J28: 3ans | K28: 6 | L28: 1900-01-07 | M28: 2022-03-05 | N28: C7 | O28: plat | P28: DEAUVILLE | S28: Conditions | T28: C2 | U28: 3ans | V28: 7 | W28: 401.72172 | X28: 32.1377376 | Y28: 36.098 | Z28: -3.9602624
A29: 1900-01-07 | B29: 2023-03-04 | C29: C7 | D29: plat | E29: MONT-DE-MARSAN | F29: internet | H29: Conditions | J29: 3ans | K29: 7 | L29: 1900-01-07 | M29: 2022-03-05 | N29: C8 | O29: plat | P29: DEAUVILLE | S29: Conditions | T29: C2 | U29: 3ans | V29: 7 | W29: 276.04528 | X29: 22.0836224 | Y29: 40.413 | Z29: -18.3293776
A30: 1900-01-02 | B30: 2023-03-06 | C30: C1 | D30: plat | E30: MARSEILLE BORELY | H30: Conditions | I30: C2 | J30: 3ans | K30: 4 | L30: 1900-01-02 | M30: 2022-03-07 | N30: C3 | O30: plat | P30: MARSEILLE PONT DE VIVAUX | S30: Réclamers | U30: 3ans | V30: 7 | W30: 463.08774 | X30: 37.0470192 | Y30: 22.996 | Z30: 14.0510192
A31: 1900-01-02 | B31: 2023-03-06 | C31: C2 | D31: plat | E31: MARSEILLE BORELY | H31: Réclamers | J31: 3ans | K31: 5 | L31: 1900-01-02 | M31: 2022-03-07 | N31: C4 | O31: plat | P31: MARSEILLE PONT DE VIVAUX | S31: Conditions | T31: C2 | U31: 3ans | V31: 7 | W31: 449.65568 | X31: 35.9724544 | Y31: 41.889 | Z31: -5.9165456
A32: 1900-01-02 | B32: 2023-03-06 | C32: C8 | D32: plat | E32: TOULOUSE | H32: Conditions | J32: 3ans | K32: 7 | L32: 1900-01-02 | M32: 2022-03-07 | N32: C5 | O32: plat | P32: MARSEILLE PONT DE VIVAUX | S32: Maiden | U32: 3ans | V32: 7 | W32: 453.55041 | X32: 36.2840328 | Y32: 36.632 | Z32: -0.3479672
A33: 1900-01-05 | B33: 2023-03-09 | C33: C2 | D33: plat | E33: SAINT-CLOUD | H33: Conditions | I33: C2 | J33: 3ans | K33: 6 | L33: 1900-01-01 | M33: 2022-03-13 | N33: C4 | O33: plat | P33: TOULOUSE | S33: Conditions | T33: C2 | U33: 3ans | V33: 7 | W33: 308.70714 | X33: 24.6965712 | Y33: 41.901 | Z33: -17.2044288
A34: 1900-01-07 | B34: 2023-03-11 | C34: C6 | D34: plat | E34: DEAUVILLE | H34: Conditions | I34: C1 | J34: 3ans | K34: 4 | L34: 1900-01-02 | M34: 2022-03-14 | N34: C3 | O34: plat | P34: CHANTILLY | S34: Conditions | T34: C2 | U34: 3ans | V34: 6 | W34: 526.32868 | X34: 42.1062944 | Y34: 50.222 | Z34: -8.1157056
A35: 1900-01-07 | B35: 2023-03-11 | C35: C7 | D35: plat | E35: DEAUVILLE | H35: Conditions | I35: C1 | J35: 3ans | K35: 5 | L35: 1900-01-06 | M35: 2022-03-18 | N35: C5 | O35: plat | P35: TOULOUSE | S35: Conditions | T35: C1 | U35: 3ans | V35: 6 | W35: 450.74101 | X35: 36.0592808 | Y35: 55.468 | Z35: -19.4087192
A36: 1900-01-01 | B36: 2023-03-12 | C36: C1 | D36: plat | E36: COMPIEGNE | H36: Conditions | I36: C1 | J36: 3ans | K36: 6 | L36: 1900-01-07 | M36: 2022-03-19 | N36: C1 | O36: plat | P36: SAINT-CLOUD | S36: Listed | U36: 3ans | V36: 6 | W36: 463.3303 | X36: 37.066424 | Y36: 96.77 | Z36: -59.703576
A37: 1900-01-01 | B37: 2023-03-12 | C37: C3 | D37: plat | E37: COMPIEGNE | H37: Maiden | J37: 3ans | K37: 7 | L37: 1900-01-01 | M37: 2022-03-20 | N37: C4 | O37: plat | P37: LYON PARILLY | S37: Conditions | T37: C2 | U37: 3ans | V37: 7 | W37: 286.84751 | X37: 22.9478008 | Y37: 39.412 | Z37: -16.4641992
A38: 1900-01-02 | B38: 2023-03-13 | C38: C2 | D38: plat | E38: CHANTILLY | H38: Conditions | I38: C2 | J38: 3ans | K38: 6 | L38: 1900-01-02 | M38: 2022-03-21 | N38: C8 | O38: plat | P38: MARSEILLE PONT DE VIVAUX | S38: Hdcp | U38: 3ans | V38: 7 | W38: 276.79822 | X38: 22.1438576 | Y38: 23.526 | Z38: -1.3821424
A39: 1900-01-02 | B39: 2023-03-13 | C39: C3 | D39: plat | E39: CHANTILLY | H39: Conditions | I39: C2 | J39: 3ans | K39: 7 | L39: 1900-01-03 | M39: 2022-03-22 | N39: C3 | O39: plat | P39: CHANTILLY | S39: Conditions | T39: C1 | U39: 3ans | V39: 7 | W39: 542.55452 | X39: 43.4043616 | Y39: 63.183 | Z39: -19.7786384
A40: 1900-01-04 | B40: 2023-03-15 | C40: C2 | D40: plat | E40: CHANTILLY | H40: Maiden | J40: 3ans | K40: 7 | L40: 1900-01-05 | M40: 2022-03-24 | N40: C4 | O40: plat | P40: LYON LA SOIE | S40: Maiden | U40: 3ans | V40: 7 | W40: 502.7229 | X40: 40.217832 | Y40: 23.481 | Z40: 16.736832
A41: 1900-01-04 | B41: 2023-03-15 | C41: C3 | D41: plat | E41: CHANTILLY | H41: Conditions | I41: C2 | J41: 3ans | K41: 6 | L41: 1900-01-06 | M41: 2022-03-25 | N41: C7 | O41: plat | P41: MARSEILLE PONT DE VIVAUX | S41: Réclamers | U41: 3ans | V41: 7 | W41: 261.69255 | X41: 20.935404 | Y41: 21.437 | Z41: -0.501596
A42: 1900-01-07 | B42: 2023-03-18 | C42: C3 | D42: plat | E42: TOULOUSE | H42: Inédits | J42: 3ans | K42: 6 | L42: 1900-01-07 | M42: 2022-03-26 | N42: C1 | O42: plat | P42: TOULOUSE | S42: Inédits | U42: 3ans | V42: 7 | W42: 103.44759 | X42: 8.2758072 | Y42: 30.103 | Z42: -21.8271928
A43: 1900-01-07 | B43: 2023-03-18 | C43: C6 | D43: plat | E43: TOULOUSE | H43: Conditions | I43: C1 | J43: 3ans | K43: 6 | L43: 1900-01-07 | M43: 2022-03-26 | N43: C6 | O43: plat | P43: TOULOUSE | S43: Conditions | T43: C1 | U43: 3ans | V43: 7 | W43: 250.32552 | X43: 20.0260416 | Y43: 54.863 | Z43: -34.8369584
A44: 1900-01-07 | B44: 2023-03-18 | C44: C7 | D44: plat | E44: TOULOUSE | H44: Réclamers | J44: 3ans | K44: 7 | L44: 1900-01-01 | M44: 2022-03-27 | N44: C2 | O44: plat | P44: PORNICHET | S44: Conditions | T44: C2 | U44: 3ans | V44: 7 | W44: 390.93464 | X44: 31.2747712 | Y44: 26.77 | Z44: 4.5047712
A45: 1900-01-01 | B45: 2023-03-19 | C45: C4 | D45: plat | E45: LYON PARILLY | H45: Conditions | I45: C2 | J45: 3ans | K45: 5 | L45: 1900-01-02 | M45: 2022-03-28 | N45: C3 | O45: plat | P45: FONTAINEBLEAU | S45: Maiden | U45: 3ans | V45: 6 | W45: 381.61345 | X45: 30.529076 | Y45: 48.151 | Z45: -17.621924
A46: 1900-01-02 | B46: 2023-03-20 | C46: C2 | D46: plat | E46: COMPIEGNE | H46: Réclamers | J46: 3ans | K46: 7 | L46: 1900-01-03 | M46: 2022-03-29 | N46: C2 | O46: plat | P46: SAINT-CLOUD | S46: Conditions | T46: C2 | U46: 3ans | V46: 5 | W46: 461.57977 | X46: 36.9263816 | Y46: 44.801 | Z46: -7.8746184
A47: 1900-01-03 | B47: 2023-03-21 | C47: C2 | D47: plat | E47: CHANTILLY | H47: Maiden | J47: 3ans | K47: 6 | L47: 1900-01-03 | M47: 2022-03-29 | N47: C4 | O47: plat | P47: SAINT-CLOUD | S47: Conditions | T47: C2 | U47: 3ans | V47: 6 | W47: 538.68691 | X47: 43.0949528 | Y47: 48.544 | Z47: -5.4490472
A48: 1900-01-03 | B48: 2023-03-21 | C48: C3 | D48: plat | E48: CHANTILLY | H48: Conditions | I48: C1 | J48: 3ans | K48: 5 | L48: 1900-01-07 | M48: 2022-04-02 | N48: C2 | O48: plat | P48: SAINT-CLOUD | S48: GROUPES | T48: III | U48: 3ans | V48: 7 | W48: 567.59738 | X48: 45.4077904 | Y48: 106.42 | Z48: -61.0122096
A49: 1900-01-04 | B49: 2023-03-22 | C49: C6 | D49: plat | E49: PORNICHET | H49: Conditions | I49: C2 | J49: 3ans | K49: 7 | L49: 1900-01-01 | M49: 2022-04-03 | N49: C6 | O49: plat | P49: LE LION D'ANGERS | S49: Conditions | T49: C2 | U49: 3ans | V49: 7 | W49: 247.92333 | X49: 19.8338664 | Y49: 41.487 | Z49: -21.6531336
A50: 1900-01-04 | B50: 2023-03-22 | C50: C4 | D50: plat | E50: TOULOUSE | H50: Conditions | I50: C1 | J50: 3ans | K50: 6 | L50: 1900-01-02 | M50: 2022-04-04 | N50: C4 | O50: plat | P50: MARSEILLE BORELY | S50: Conditions | T50: C1 | U50: 3ans | V50: 7 | W50: 385.93075 | X50: 30.87446 | Y50: 57.132 | Z50: -26.25754
A51: 1900-01-05 | B51: 2023-03-23 | C51: C5 | D51: plat | E51: LYON LA SOIE | H51: Maiden | J51: 3ans | K51: 7 | L51: 1900-01-02 | M51: 2022-04-04 | N51: C6 | O51: plat | P51: MARSEILLE BORELY | S51: Maiden | U51: 3ans | V51: 5 | W51: 310.38963 | X51: 24.8311704 | Y51: 36.705 | Z51: -11.8738296
A52: 1900-01-05 | B52: 2023-03-23 | C52: C7 | D52: plat | E52: LYON LA SOIE | H52: Maiden | J52: 3ans | K52: 5 | L52: 1900-01-03 | M52: 2022-04-05 | N52: C3 | O52: plat | P52: SAINT-CLOUD | S52: Conditions | T52: C1 | U52: 3ans | V52: 6 | W52: 425.38906 | X52: 34.0311248 | Y52: 62.04 | Z52: -28.0088752
A53: 1900-01-06 | B53: 2023-03-24 | C53: C5 | D53: plat | E53: LE CROISE-LAROCHE | H53: Réclamers | J53: 3ans | K53: 6 | L53: 1900-01-03 | M53: 2022-04-05 | N53: C5 | O53: plat | P53: SAINT-CLOUD | S53: Conditions | T53: C1 | U53: 3ans | V53: 6 | W53: 463.33852 | X53: 37.0670816 | Y53: 62.04 | Z53: -24.9729184
A54: 1900-01-07 | B54: 2023-03-25 | C54: C5 | D54: plat | E54: MARSEILLE PONT DE VIVAUX | H54: Maiden | J54: 3ans | K54: 5 | L54: 1900-01-04 | M54: 2022-04-06 | N54: C2 | O54: plat | P54: CHANTILLY | S54: Maiden | U54: 3ans | V54: 6 | W54: 403.31852 | X54: 32.2654816 | Y54: 49.425 | Z54: -17.1595184
A55: 1900-01-07 | B55: 2023-03-25 | C55: C7 | D55: plat | E55: MARSEILLE PONT DE VIVAUX | H55: Conditions | I55: C2 | J55: 3ans | K55: 4 | L55: 1900-01-05 | M55: 2022-04-07 | N55: C2 | O55: plat | P55: DEAUVILLE | S55: GROUPES | T55: III | U55: 3ans | V55: 7 | W55: 472.41267 | X55: 37.7930136 | Y55: 148.616 | Z55: -110.8229864
A56: 1900-01-02 | B56: 2023-03-27 | C56: C2 | D56: plat | E56: FONTAINEBLEAU | H56: Conditions | I56: C2 | J56: 3ans | K56: 7 | L56: 1900-01-06 | M56: 2022-04-08 | N56: C6 | O56: plat | P56: SAINT-CLOUD | S56: Maiden | U56: 3ans | V56: 7 | W56: 482.63834 | X56: 38.6110672 | Y56: 34.328 | Z56: 4.2830672
A57: 1900-01-02 | B57: 2023-03-27 | C57: C3 | D57: plat | E57: FONTAINEBLEAU | H57: Maiden | J57: 3ans | K57: 7 | L57: 1900-01-01 | M57: 2022-04-10 | N57: C4 | O57: plat | P57: PARISLONGCHAMP | S57: GROUPES | T57: III | U57: 3ans | V57: 7 | W57: 593.6375 | X57: 47.491 | Y57: 129.435 | Z57: -81.944
A58: 1900-01-03 | B58: 2023-03-28 | C58: C2 | D58: plat | E58: SAINT-CLOUD | H58: Conditions | I58: C2 | J58: 3ans | K58: 6 | L58: 1900-01-01 | M58: 2022-04-10 | N58: C5 | O58: plat | P58: PARISLONGCHAMP | S58: GROUPES | T58: III | U58: 3ans | V58: 6 | W58: 500.44121 | X58: 40.0352968 | Y58: 139.77 | Z58: -99.7347032
A59: 1900-01-03 | B59: 2023-03-28 | C59: C3 | D59: plat | E59: SAINT-CLOUD | H59: Conditions | I59: C2 | J59: 3ans | K59: 7 | L59: 1900-01-04 | M59: 2022-04-13 | N59: C3 | O59: plat | P59: CHANTILLY | S59: Conditions | T59: C2 | U59: 3ans | V59: 7 | W59: 496.38263 | X59: 39.7106104 | Y59: 52.773 | Z59: -13.0623896
A60: 1900-01-05 | B60: 2023-03-30 | C60: C3 | D60: plat | E60: CHANTILLY | H60: Conditions | I60: C2 | J60: 3ans | K60: 6 | L60: 1900-01-07 | M60: 2022-04-16 | N60: C1 | O60: plat | P60: TOULOUSE | S60: Réclamers | U60: 3ans | V60: 7 | W60: 160.7507 | X60: 12.860056 | Y60: 27.029 | Z60: -14.168944
A61: 1900-01-06 | B61: 2023-03-31 | C61: C2 | D61: plat | E61: CHANTILLY | H61: Hdcp | J61: 3ans | K61: 7 | L61: 1900-01-01 | M61: 2022-04-17 | N61: C1 | O61: plat | P61: PARISLONGCHAMP | S61: Conditions | T61: C2 | U61: 3ans | V61: 7 | W61: 479.09551 | X61: 38.3276408 | Y61: 47.573 | Z61: -9.2453592
A62: 1900-01-07 | B62: 2023-04-01 | C62: C1 | D62: plat | E62: SAINT-CLOUD | H62: Conditions | I62: C1 | J62: 3ans | K62: 5 | L62: 1900-01-01 | M62: 2022-04-17 | N62: C6 | O62: plat | P62: PARISLONGCHAMP | S62: GROUPES | T62: III | U62: 3ans | V62: 6 | W62: 445.07341 | X62: 35.6058728 | Y62: 153.319 | Z62: -117.7131272
A63: 1900-01-01 | B63: 2023-04-02 | C63: C1 | D63: plat | E63: BORDEAUX LE BOUSCAT | H63: Conditions | I63: C1 | J63: 3ans | K63: 7 | L63: 1900-01-02 | M63: 2022-04-18 | N63: C2 | O63: plat | P63: SAINT-CLOUD | S63: Inédits | U63: 3ans | V63: 7 | W63: 410.9445 | X63: 32.87556 | Y63: 35.915 | Z63: -3.03944
A64: 1900-01-02 | B64: 2023-04-03 | C64: C3 | D64: plat | E64: CHANTILLY | H64: Inédits | J64: 3ans | K64: 7 | L64: 1900-01-03 | M64: 2022-04-19 | N64: C3 | O64: plat | P64: MARSEILLE PONT DE VIVAUX | S64: Maiden | U64: 3ans | V64: 6 | W64: 199.44942 | X64: 15.9559536 | Y64: 34.398 | Z64: -18.4420464
A65: 1900-01-04 | B65: 2023-04-05 | C65: C6 | D65: plat | E65: CHANTILLY | H65: Réclamers | J65: 3ans | K65: 7 | L65: 1900-01-04 | M65: 2022-04-20 | N65: C6 | O65: plat | P65: CHANTILLY | S65: Conditions | T65: C2 | U65: 3ans | V65: 6 | W65: 335.9896 | X65: 26.879168 | Y65: 46.432 | Z65: -19.552832
A66: 1900-01-05 | B66: 2023-04-06 | C66: C2 | D66: plat | E66: DEAUVILLE | H66: Maiden | J66: 3ans | K66: 7 | L66: 1900-01-05 | M66: 2022-04-21 | N66: C2 | O66: plat | P66: PARISLONGCHAMP | S66: Maiden | U66: 3ans | V66: 7 | W66: 385.32875 | X66: 30.8263 | Y66: 34.642 | Z66: -3.8157
A67: 1900-01-05 | B67: 2023-04-06 | C67: C3 | D67: plat | E67: DEAUVILLE | H67: GROUPES | I67: III | J67: 3ans | K67: 5 | L67: 1900-01-07 | M67: 2022-04-23 | N67: C1 | O67: plat | P67: STRASBOURG | S67: Maiden | U67: 3ans | V67: 7 | W67: 242.91173 | X67: 19.4329384 | Y67: 22.04 | Z67: -2.6070616
A68: 1900-01-06 | B68: 2023-04-07 | C68: C1 | D68: plat | E68: SAINT-CLOUD | H68: Réclamers | J68: 3ans | K68: 7 | L68: 1900-01-07 | M68: 2022-04-23 | N68: C1 | O68: plat | P68: NANTES | S68: Hdcp | U68: 3ans | V68: 7 | W68: 184.31927 | X68: 14.7455416 | Y68: 28.9 | Z68: -14.1544584
A69: 1900-01-06 | B69: 2023-04-07 | C69: C2 | D69: plat | E69: SAINT-CLOUD | H69: Conditions | I69: C2 | J69: 3ans | K69: 6 | L69: 1900-01-07 | M69: 2022-04-23 | N69: C3 | O69: plat | P69: NANTES | S69: Conditions | T69: C2 | U69: 3ans | V69: 7 | W69: 206.08132 | X69: 16.4865056 | Y69: 32.135 | Z69: -15.6484944
A70: 1900-01-06 | B70: 2023-04-07 | C70: C2 | D70: plat | E70: MARSEILLE PONT DE VIVAUX | H70: Maiden | J70: 3ans | K70: 7 | L70: 1900-01-07 | M70: 2022-04-23 | N70: C1 | O70: plat | P70: LYON PARILLY | S70: Conditions | T70: C1 | U70: 3ans | V70: 6 | W70: 467.09589 | X70: 37.3676712 | Y70: 53.297 | Z70: -15.9293288
A71: 1900-01-06 | B71: 2023-04-07 | C71: C7 | D71: plat | E71: MARSEILLE PONT DE VIVAUX | H71: Réclamers | J71: 3ans | K71: 6 | L71: 1900-01-07 | M71: 2022-04-23 | N71: C2 | O71: plat | P71: LYON PARILLY | S71: Conditions | T71: C1 | U71: 3ans | V71: 7 | W71: 508.32673 | X71: 40.6661384 | Y71: 57.174 | Z71: -16.5078616
A72: 1900-01-07 | B72: 2023-04-08 | C72: C1 | D72: plat | E72: NANCY | H72: Réclamers | J72: 3ans | K72: 7 | L72: 1900-01-01 | M72: 2022-04-24 | N72: C1 | O72: plat | P72: TOULOUSE | S72: Conditions | U72: 3ans | V72: 7 | W72: 186.57855 | X72: 14.926284 | Y72: 32.449 | Z72: -17.522716
A73: 1900-01-07 | B73: 2023-04-08 | C73: C6 | D73: plat | E73: LYON LA SOIE | H73: Conditions | I73: C2 | J73: 3ans | K73: 6 | L73: 1900-01-01 | M73: 2022-04-24 | N73: C3 | O73: plat | P73: TOULOUSE | S73: Listed | U73: 3ans | V73: 7 | W73: 264.71493 | X73: 21.1771944 | Y73: 93.324 | Z73: -72.1468056
A74: 1900-01-07 | B74: 2023-04-08 | C74: C7 | D74: plat | E74: LYON LA SOIE | H74: Réclamers | J74: 3ans | K74: 7 | L74: 1900-01-02 | M74: 2022-04-25 | N74: C5 | O74: plat | P74: BORDEAUX LE BOUSCAT | S74: Conditions | T74: C2 | U74: 3ans | V74: 7 | W74: 351.64838 | X74: 28.1318704 | Y74: 41.092 | Z74: -12.9601296
A75: 1900-01-01 | B75: 2023-04-09 | C75: C1 | D75: plat | E75: PARISLONGCHAMP | H75: Inédits | J75: 3ans | K75: 7 | L75: 1900-01-03 | M75: 2022-04-26 | N75: C3 | O75: plat | P75: LYON PARILLY | S75: Maiden | U75: 3ans | V75: 7 | W75: 224.84679 | X75: 17.9877432 | Y75: 34.913 | Z75: -16.9252568
A76: 1900-01-01 | B76: 2023-04-09 | C76: C5 | D76: plat | E76: PARISLONGCHAMP | H76: GROUPES | I76: III | J76: 3ans | K76: 7 | L76: 1900-01-03 | M76: 2022-04-26 | N76: C4 | O76: plat | P76: LYON PARILLY | S76: Maiden | U76: 3ans | V76: 7 | W76: 279.26351 | X76: 22.3410808 | Y76: 23.481 | Z76: -1.1399192
A77: 1900-01-02 | B77: 2023-04-10 | C77: C1 | D77: plat | E77: ANGERS | H77: Conditions | I77: C1 | J77: 3ans | K77: 6 | L77: 1900-01-04 | M77: 2022-04-27 | N77: C4 | O77: plat | P77: LA TESTE DE BUCH | S77: Conditions | T77: C2 | U77: 3ans | V77: 7 | W77: 353.82497 | X77: 28.3059976 | Y77: 42.667 | Z77: -14.3610024
A78: 1900-01-03 | B78: 2023-04-11 | C78: C4 | D78: plat | E78: LA TESTE-BASSIN ARCACHON | H78: Conditions | I78: C2 | J78: 3ans | K78: 6 | L78: 1900-01-04 | M78: 2022-04-27 | N78: C2 | O78: plat | P78: FONTAINEBLEAU | S78: Conditions | T78: C2 | U78: 3ans | V78: 7 | W78: 445.86489 | X78: 35.6691912 | Y78: 52.274 | Z78: -16.6048088
A79: 1900-01-03 | B79: 2023-04-11 | C79: C2 | D79: plat | E79: CHANTILLY | H79: Conditions | I79: C2 | J79: 3ans | K79: 5 | L79: 1900-01-04 | M79: 2022-04-27 | N79: C3 | O79: plat | P79: FONTAINEBLEAU | S79: Conditions | T79: C2 | U79: 3ans | V79: 4 | W79: 258.42381 | X79: 20.6739048 | Y79: 47.104 | Z79: -26.4300952
A80: 1900-01-05 | B80: 2023-04-13 | C80: C1 | D80: plat | E80: MARSEILLE BORELY | H80: Conditions | I80: C1 | J80: 3ans | K80: 5 | L80: 1900-01-04 | M80: 2022-04-27 | N80: C6 | O80: plat | P80: FONTAINEBLEAU | S80: Maiden | U80: 3ans | V80: 6 | W80: 318.00839 | X80: 25.4406712 | Y80: 32.95 | Z80: -7.5093288
A81: 1900-01-05 | B81: 2023-04-13 | C81: C2 | D81: plat | E81: MARSEILLE BORELY | H81: Maiden | J81: 3ans | K81: 7 | L81: 1900-01-05 | M81: 2022-04-28 | N81: C1 | O81: plat | P81: LE MANS | S81: Conditions | T81: C2 | U81: 3ans | V81: 6 | W81: 154.49131 | X81: 12.3593048 | Y81: 31.451 | Z81: -19.0916952
A82: 1900-01-06 | B82: 2023-04-14 | C82: C3 | D82: plat | E82: SAINT-CLOUD | H82: Conditions | I82: C1 | J82: 3ans | K82: 7 | L82: 1900-01-05 | M82: 2022-04-28 | N82: C2 | O82: plat | P82: PARISLONGCHAMP | S82: Conditions | T82: C1 | U82: 3ans | V82: 5 | W82: 483.96286 | X82: 38.7170288 | Y82: 60.112 | Z82: -21.3949712
A83: 1900-01-06 | B83: 2023-04-14 | C83: C5 | D83: plat | E83: MARSEILLE PONT DE VIVAUX | H83: Réclamers | J83: 3ans | K83: 6 | L83: 1900-01-06 | M83: 2022-04-29 | N83: C2 | O83: plat | P83: MARSEILLE BORELY | S83: Conditions | T83: C2 | U83: 3ans | V83: 6 | W83: 291.71579 | X83: 23.3372632 | Y83: 41.898 | Z83: -18.5607368
A84: 1900-01-07 | B84: 2023-04-15 | C84: C3 | D84: plat | E84: FONTAINEBLEAU | H84: Inédits | J84: 3ans | K84: 6 | L84: 1900-01-06 | M84: 2022-04-29 | N84: C3 | O84: plat | P84: MARSEILLE BORELY | S84: Réclamers | U84: 3ans | V84: 7 | W84: 295.31801 | X84: 23.6254408 | Y84: 23.135 | Z84: 0.4904408
A85: 1900-01-07 | B85: 2023-04-15 | C85: C5 | D85: plat | E85: FONTAINEBLEAU | H85: Hdcp | I85: C1 | J85: 3ans | K85: 7 | L85: 1900-01-06 | M85: 2022-04-29 | N85: C4 | O85: plat | P85: MARSEILLE BORELY | S85: Conditions | T85: C1 | U85: 3ans | V85: 6 | W85: 352.38974 | X85: 28.1911792 | Y85: 54.027 | Z85: -25.8358208
A86: 1900-01-01 | B86: 2023-04-16 | C86: C2 | D86: plat | E86: PARISLONGCHAMP | H86: GROUPES | I86: III | J86: 3ans | K86: 7 | L86: 1900-01-06 | M86: 2022-04-29 | N86: C5 | O86: plat | P86: MARSEILLE BORELY | S86: Maiden | U86: 3ans | V86: 7 | W86: 421.66376 | X86: 33.7331008 | Y86: 36.926 | Z86: -3.1928992
A87: 1900-01-01 | B87: 2023-04-16 | C87: C4 | D87: plat | E87: PARISLONGCHAMP | H87: GROUPES | I87: III | J87: 3ans | K87: 5 | L87: 1900-01-06 | M87: 2022-04-29 | N87: C3 | O87: plat | P87: SAINT-CLOUD | S87: GROUPES | T87: III | U87: 3ans | V87: 6 | W87: 393.98079 | X87: 31.5184632 | Y87: 91.52 | Z87: -60.0015368
A88: 1900-01-02 | B88: 2023-04-17 | C88: C4 | D88: plat | E88: CHANTILLY | H88: Réclamers | J88: 3ans | K88: 7 | L88: 1900-01-01 | M88: 2022-05-01 | N88: C2 | O88: plat | P88: PARISLONGCHAMP | S88: Listed | U88: 3ans | V88: 5 | W88: 359.21616 | X88: 28.7372928 | Y88: 83.584 | Z88: -54.8467072
A89: 1900-01-03 | B89: 2023-04-18 | C89: C1 | D89: plat | E89: LYON PARILLY | H89: Conditions | I89: C1 | J89: 3ans | K89: 5 | L89: 1900-01-01 | M89: 2022-05-01 | N89: C3 | O89: plat | P89: PARISLONGCHAMP | S89: Listed | U89: 3ans | V89: 6 | W89: 346.33727 | X89: 27.7069816 | Y89: 104.129 | Z89: -76.4220184
A90: 1900-01-04 | B90: 2023-04-19 | C90: C4 | D90: plat | E90: COMPIEGNE | H90: Maiden | J90: 3ans | K90: 7 | L90: 1900-01-02 | M90: 2022-05-02 | N90: C2 | O90: plat | P90: NANTES | S90: Conditions | T90: C2 | U90: 3ans | V90: 7 | W90: 296.86002 | X90: 23.7488016 | Y90: 38.809 | Z90: -15.0601984
A91: 1900-01-05 | B91: 2023-04-20 | C91: C3 | D91: plat | E91: TARBES | H91: Inédits | J91: 3ans | K91: 5 | L91: 1900-01-03 | M91: 2022-05-03 | N91: C4 | O91: plat | P91: NANCY | S91: Conditions | T91: C2 | U91: 3ans | V91: 6 | W91: 336.937 | X91: 26.95496 | Y91: 39.409 | Z91: -12.45404
A92: 1900-01-05 | B92: 2023-04-20 | C92: C2 | D92: plat | E92: PARISLONGCHAMP | H92: Inédits | J92: 3ans | K92: 6 | L92: 1900-01-03 | M92: 2022-05-03 | N92: C3 | O92: plat | P92: CHANTILLY | S92: Maiden | U92: 3ans | V92: 6 | W92: 672.47489 | X92: 53.7979912 | Y92: 49.738 | Z92: 4.0599912
A93: 1900-01-05 | B93: 2023-04-20 | C93: C3 | D93: plat | E93: PARISLONGCHAMP | H93: Maiden | J93: 3ans | K93: 6 | L93: 1900-01-03 | M93: 2022-05-03 | N93: C4 | O93: plat | P93: CHANTILLY | S93: Listed | U93: 3ans | V93: 7 | W93: 544.0129 | X93: 43.521032 | Y93: 98.26 | Z93: -54.738968
A94: 1900-01-06 | B94: 2023-04-21 | C94: C1 | D94: plat | E94: SAINT-CLOUD | H94: Inédits | J94: 3ans | K94: 7 | L94: 1900-01-04 | M94: 2022-05-04 | N94: C3 | O94: plat | P94: PARISLONGCHAMP | S94: Conditions | T94: C1 | U94: 3ans | V94: 6 | W94: 424.95074 | X94: 33.9960592 | Y94: 37.634 | Z94: -3.6379408
A95: 1900-01-07 | B95: 2023-04-22 | C95: C2 | D95: plat | E95: NANTES | H95: Hdcp | J95: 3ans | K95: 7 | L95: 1900-01-04 | M95: 2022-05-04 | N95: C4 | O95: plat | P95: PARISLONGCHAMP | S95: Maiden | U95: 3ans | V95: 6 | W95: 425.92998 | X95: 34.0743984 | Y95: 48.549 | Z95: -14.4746016
A96: 1900-01-03 | B96: 2023-04-25 | C96: C2 | D96: plat | E96: LE MANS | H96: Conditions | I96: C2 | J96: 3ans | K96: 5 | L96: 1900-01-06 | M96: 2022-05-06 | N96: C4 | O96: plat | P96: CHANTILLY | S96: Conditions | T96: C2 | U96: 3ans | V96: 6 | W96: 579.52316 | X96: 46.3618528 | Y96: 36.418 | Z96: 9.9438528
A97: 1900-01-04 | B97: 2023-04-26 | C97: C4 | D97: plat | E97: LA TESTE-BASSIN ARCACHON | H97: Conditions | I97: C2 | J97: 3ans | K97: 7 | L97: 1900-01-06 | M97: 2022-05-06 | N97: C4 | O97: plat | P97: MARSEILLE BORELY | S97: Maiden | U97: 3ans | V97: 6 | W97: 559.85422 | X97: 44.7883376 | Y97: 36.926 | Z97: 7.8623376
A98: 1900-01-05 | B98: 2023-04-27 | C98: C2 | D98: plat | E98: MARSEILLE BORELY | H98: Réclamers | J98: 3ans | K98: 7 | L98: 1900-01-06 | M98: 2022-05-06 | N98: C6 | O98: plat | P98: MARSEILLE BORELY | S98: Hdcp | U98: 3ans | V98: 7 | W98: 446.14697 | X98: 35.6917576 | Y98: 34.704 | Z98: 0.9877576
A99: 1900-01-05 | B99: 2023-04-27 | C99: C2 | D99: plat | E99: PARISLONGCHAMP | H99: Conditions | I99: C2 | J99: 3ans | K99: 5 | L99: 1900-01-07 | M99: 2022-05-07 | N99: C8 | O99: plat | P99: DAX | Q99: internet | S99: Conditions | T99: aa | U99: 3ans | V99: 7 | W99: 11.95997 | X99: 0.9567976 | Y99: 23.6 | Z99: -22.6432024
A100: 1900-01-05 | B100: 2023-04-27 | C100: C3 | D100: plat | E100: PARISLONGCHAMP | H100: Conditions | I100: C2 | J100: 3ans | K100: 7 | L100: 1900-01-07 | M100: 2022-05-07 | N100: C3 | O100: plat | P100: LYON PARILLY | S100: Conditions | T100: C2 | U100: 3ans | V100: 7 | W100: 386.25152 | X100: 30.9001216 | Y100: 28.43 | Z100: 2.4701216
A101: 1900-01-06 | B101: 2023-04-28 | C101: C1 | D101: plat | E101: CHATEAUBRIANT | H101: Conditions | I101: C2 | J101: 3ans | K101: 6 | L101: 1900-01-01 | M101: 2022-05-08 | N101: C2 | O101: plat | P101: SAINT-CLOUD | S101: GROUPES | T101: II | U101: 3ans | V101: 6 | W101: 484.5018 | X101: 38.760144 | Y101: 155.407 | Z101: -116.646856
A102: 1900-01-07 | B102: 2023-04-29 | C102: C3 | D102: plat | E102: LE MANS | H102: Conditions | I102: C3 | J102: 3ans | K102: 7 | L102: 1900-01-01 | M102: 2022-05-08 | N102: C7 | O102: plat | P102: SAINT-CLOUD | S102: Maiden | U102: 3ans | V102: 6 | W102: 444.37008 | X102: 35.5496064 | Y102: 43.349 | Z102: -7.7993936
A103: 1900-01-01 | B103: 2023-04-30 | C103: C1 | D103: plat | E103: PARISLONGCHAMP | H103: Maiden | J103: 3ans | K103: 7 | L103: 1900-01-01 | M103: 2022-05-08 | N103: C4 | O103: plat | P103: BORDEAUX LE BOUSCAT | S103: Conditions | T103: C1 | U103: 3ans | V103: 6 | W103: 337.63954 | X103: 27.0111632 | Y103: 54.944 | Z103: -27.9328368
A104: 1900-01-01 | B104: 2023-04-30 | C104: C3 | D104: plat | E104: PARISLONGCHAMP | H104: Listed | J104: 3ans | K104: 6 | L104: 1900-01-02 | M104: 2022-05-09 | N104: C5 | O104: plat | P104: ANGERS | S104: Conditions | T104: C1 | U104: 3ans | V104: 6 | W104: 347.71914 | X104: 27.8175312 | Y104: 57.047 | Z104: -29.2294688
A105: 1900-01-02 | B105: 2023-05-01 | C105: C2 | D105: plat | E105: SAINT-CLOUD | H105: GROUPES | I105: III | J105: 3ans | K105: 5 | L105: 1900-01-03 | M105: 2022-05-10 | N105: C4 | O105: plat | P105: CHANTILLY | S105: GROUPES | T105: III | U105: 3ans | V105: 7 | W105: 543.35233 | X105: 43.4681864 | Y105: 133.519 | Z105: -90.0508136
A106: 1900-01-03 | B106: 2023-05-02 | C106: C2 | D106: plat | E106: COMPIEGNE | H106: Conditions | I106: C2 | J106: 3ans | K106: 4 | L106: 1900-01-04 | M106: 2022-05-11 | N106: C3 | O106: plat | P106: FONTAINEBLEAU | S106: Conditions | T106: C2 | U106: 3ans | V106: 6 | W106: 455.89986 | X106: 36.4719888 | Y106: 47.831 | Z106: -11.3590112
A107: 1900-01-04 | B107: 2023-05-03 | C107: C6 | D107: plat | E107: FONTAINEBLEAU | H107: Hdcp | J107: 3ans | K107: 7 | L107: 1900-01-06 | M107: 2022-05-13 | N107: C3 | O107: plat | P107: SAINT-CLOUD | S107: Conditions | T107: C2 | U107: 3ans | V107: 7 | W107: 557.91543 | X107: 44.6332344 | Y107: 53.431 | Z107: -8.7977656
A108: 1900-01-04 | B108: 2023-05-03 | C108: C7 | D108: plat | E108: FONTAINEBLEAU | H108: Réclamers | J108: 3ans | K108: 6 | L108: 1900-01-06 | M108: 2022-05-13 | N108: C4 | O108: plat | P108: MARSEILLE BORELY | S108: Maiden | U108: 3ans | V108: 7 | W108: 519.60673 | X108: 41.5685384 | Y108: 36.558 | Z108: 5.0105384
A109: 1900-01-06 | B109: 2023-05-05 | C109: C1 | D109: plat | E109: SAINT-CLOUD | H109: Réclamers | J109: 3ans | K109: 5 | L109: 1900-01-06 | M109: 2022-05-13 | N109: C5 | O109: plat | P109: MARSEILLE BORELY | S109: Maiden | U109: 3ans | V109: 7 | W109: 555.36643 | X109: 44.4293144 | Y109: 34.84 | Z109: 9.5893144
A110: 1900-01-06 | B110: 2023-05-05 | C110: C3 | D110: plat | E110: SAINT-CLOUD | H110: Conditions | I110: C2 | J110: 3ans | K110: 7 | L110: 1900-01-06 | M110: 2022-05-13 | N110: C6 | O110: plat | P110: MARSEILLE BORELY | S110: Réclamers | U110: 3ans | V110: 7 | W110: 412.13889 | X110: 32.9711112 | Y110: 22.857 | Z110: 10.1141112
A111: 1900-01-06 | B111: 2023-05-05 | C111: C2 | D111: plat | E111: MARSEILLE BORELY | H111: Conditions | I111: C2 | J111: 3ans | K111: 7 | L111: 1900-01-06 | M111: 2022-05-13 | N111: C8 | O111: plat | P111: MARSEILLE BORELY | S111: Hdcp | U111: 3ans | V111: 7 | W111: 234.6892 | X111: 18.775136 | Y111: 26.49 | Z111: -7.714864
A112: 1900-01-01 | B112: 2023-05-07 | C112: C1 | D112: plat | E112: PARISLONGCHAMP | H112: Listed | J112: 3ans | K112: 7 | L112: 1900-01-07 | M112: 2022-05-14 | N112: C4 | O112: plat | P112: LYON PARILLY | S112: Conditions | T112: C1 | U112: 3ans | V112: 6 | W112: 428.00883 | X112: 34.2407064 | Y112: 50.601 | Z112: -16.3602936
A113: 1900-01-01 | B113: 2023-05-07 | C113: C2 | D113: plat | E113: BORDEAUX LE BOUSCAT | H113: Conditions | I113: C1 | J113: 3ans | K113: 5 | L113: 1900-01-01 | M113: 2022-05-15 | N113: C1 | O113: plat | P113: NANCY | S113: Maiden | U113: 3ans | V113: 6 | W113: 176.11184 | X113: 14.0889472 | Y113: 21.546 | Z113: -7.4570528
A114: 1900-01-03 | B114: 2023-05-09 | C114: C4 | D114: plat | E114: CHANTILLY | H114: GROUPES | I114: III | J114: 3ans | K114: 7 | L114: 1900-01-01 | M114: 2022-05-15 | N114: C2 | O114: plat | P114: PARISLONGCHAMP | S114: Listed | U114: 3ans | V114: 6 | W114: 418.47569 | X114: 33.4780552 | Y114: 72.737 | Z114: -39.2589448
A115: 1900-01-04 | B115: 2023-05-10 | C115: C5 | D115: plat | E115: FONTAINEBLEAU | H115: Réclamers | J115: 3ans | K115: 7 | L115: 1900-01-03 | M115: 2022-05-17 | N115: C4 | O115: plat | P115: SAINT-CLOUD | S115: Conditions | T115: C1 | U115: 3ans | V115: 5 | W115: 392.90726 | X115: 31.4325808 | Y115: 63.621 | Z115: -32.1884192
A116: 1900-01-05 | B116: 2023-05-11 | C116: C4 | D116: plat | E116: PARISLONGCHAMP | H116: Conditions | I116: C2 | J116: 3ans | K116: 5 | L116: 1900-01-03 | M116: 2022-05-17 | N116: C6 | O116: plat | P116: SAINT-CLOUD | S116: Maiden | U116: 3ans | V116: 7 | W116: 531.109 | X116: 42.48872 | Y116: 42.076 | Z116: 0.41272
A117: 1900-01-06 | B117: 2023-05-12 | C117: C1 | D117: plat | E117: SAINT-CLOUD | H117: Inédits | J117: 3ans | K117: 7 | L117: 1900-01-04 | M117: 2022-05-18 | N117: C5 | O117: plat | P117: LE LION D'ANGERS | S117: Conditions | T117: C1 | U117: 3ans | V117: 6 | W117: 378.22404 | X117: 30.2579232 | Y117: 41.237 | Z117: -10.9790768
A118: 1900-01-06 | B118: 2023-05-12 | C118: C3 | D118: plat | E118: SAINT-CLOUD | H118: Conditions | I118: C2 | J118: 3ans | K118: 5 | L118: 1900-01-05 | M118: 2022-05-19 | N118: C1 | O118: plat | P118: VICHY | S118: Réclamers | U118: 3ans | V118: 7 | W118: 233.51826 | X118: 18.6814608 | Y118: 20.66 | Z118: -1.9785392
A119: 1900-01-06 | B119: 2023-05-12 | C119: C4 | D119: plat | E119: SAINT-CLOUD | H119: Conditions | I119: C2 | J119: 3ans | K119: 7 | L119: 1900-01-05 | M119: 2022-05-19 | N119: C5 | O119: plat | P119: VICHY | S119: Conditions | T119: C2 | U119: 3ans | V119: 7 | W119: 340.70601 | X119: 27.2564808 | Y119: 32.373 | Z119: -5.1165192
A120: 1900-01-06 | B120: 2023-05-12 | C120: C4 | D120: plat | E120: MARSEILLE BORELY | H120: Conditions | I120: C2 | J120: 3ans | K120: 6 | L120: 1900-01-05 | M120: 2022-05-19 | N120: C1 | O120: plat | P120: PARISLONGCHAMP | S120: Hdcp | T120: C1 | U120: 3ans | V120: 6 | W120: 371.73346 | X120: 29.7386768 | Y120: 63.193 | Z120: -33.4543232
A121: 1900-01-07 | B121: 2023-05-13 | C121: C1 | D121: plat | E121: LYON PARILLY | H121: Maiden | J121: 3ans | K121: 6 | L121: 1900-01-06 | M121: 2022-05-20 | N121: C1 | O121: plat | P121: VICHY | S121: Maiden | U121: 3ans | V121: 5 | W121: 271.88627 | X121: 21.7509016 | Y121: 22.585 | Z121: -0.8340984
A122: 1900-01-07 | B122: 2023-05-13 | C122: C7 | D122: plat | E122: LYON PARILLY | H122: Conditions | I122: C2 | J122: 3ans | K122: 6 | L122: 1900-01-06 | M122: 2022-05-20 | N122: C5 | O122: plat | P122: VICHY | S122: Maiden | U122: 3ans | V122: 7 | W122: 547.34984 | X122: 43.7879872 | Y122: 29.769 | Z122: 14.0189872
A123: 1900-01-03 | B123: 2023-05-16 | C123: C2 | D123: plat | E123: SAINT-CLOUD | H123: Maiden | J123: 3ans | K123: 7 | L123: 1900-01-06 | M123: 2022-05-20 | N123: C4 | O123: plat | P123: TOULOUSE | Q123: internet | S123: Conditions | T123: aa | U123: 3ans | V123: 5 | W123: 6.8303 | X123: 0.546424 | Y123: 20.649 | Z123: -20.102576
A124: 1900-01-04 | B124: 2023-05-17 | C124: C2 | D124: plat | E124: CHATEAUBRIANT | H124: Conditions | I124: C2 | J124: 3ans | K124: 5 | L124: 1900-01-06 | M124: 2022-05-20 | N124: C6 | O124: plat | P124: TOULOUSE | Q124: internet | S124: Conditions | T124: C1 | U124: 3ans | V124: 5 | W124: 11.90838 | X124: 0.9526704 | Y124: 54.23 | Z124: -53.2773296
A125: 1900-01-04 | B125: 2023-05-17 | C125: C6 | D125: plat | E125: VICHY | H125: Réclamers | J125: 3ans | K125: 7 | L125: 1900-01-06 | M125: 2022-05-20 | N125: C7 | O125: plat | P125: TOULOUSE | Q125: internet | S125: Réclamers | U125: 3ans | V125: 7 | W125: 11.87823 | X125: 0.9502584 | Y125: 21.01 | Z125: -20.0597416
A126: 1900-01-05 | B126: 2023-05-18 | C126: C5 | D126: plat | E126: LYON PARILLY | H126: Conditions | I126: C2 | J126: 3ans | K126: 5 | L126: 1900-01-01 | M126: 2022-05-22 | N126: C7 | O126: plat | P126: LE CROISE-LAROCHE | S126: Maiden | U126: 3ans | V126: 5 | W126: 174.85851 | X126: 13.9886808 | Y126: 36.485 | Z126: -22.4963192
A127: 1900-01-05 | B127: 2023-05-18 | C127: C4 | D127: plat | E127: LE LION D'ANGERS | H127: Conditions | I127: C1 | J127: 3ans | K127: 6 | L127: 1900-01-02 | M127: 2022-05-23 | N127: C2 | O127: plat | P127: MARSEILLE BORELY | S127: Réclamers | U127: 3ans | V127: 5 | W127: 192.61962 | X127: 15.4095696 | Y127: 23.182 | Z127: -7.7724304
A128: 1900-01-06 | B128: 2023-05-19 | C128: C2 | D128: plat | E128: CHANTILLY | H128: GROUPES | I128: III | J128: 3ans | K128: 7 | L128: 1900-01-02 | M128: 2022-05-23 | N128: C3 | O128: plat | P128: MARSEILLE BORELY | S128: Conditions | T128: C1 | U128: 3ans | V128: 6 | W128: 239.81581 | X128: 19.1852648 | Y128: 42.893 | Z128: -23.7077352
A129: 1900-01-06 | B129: 2023-05-19 | C129: C3 | D129: plat | E129: CHANTILLY | H129: Conditions | I129: C2 | J129: 3ans | K129: 6 | L129: 1900-01-02 | M129: 2022-05-23 | N129: C6 | O129: plat | P129: MARSEILLE BORELY | S129: Hdcp | U129: 3ans | V129: 7 | W129: 471.10582 | X129: 37.6884656 | Y129: 34.982 | Z129: 2.7064656
A130: 1900-01-06 | B130: 2023-05-19 | C130: C4 | D130: plat | E130: CHANTILLY | H130: Conditions | I130: C2 | J130: 3ans | K130: 5 | L130: 1900-01-03 | M130: 2022-05-24 | N130: C6 | O130: plat | P130: SAINT-CLOUD | S130: Conditions | T130: C1 | U130: 3ans | V130: 7 | W130: 379.99781 | X130: 30.3998248 | Y130: 59.914 | Z130: -29.5141752
A131: 1900-01-06 | B131: 2023-05-19 | C131: C5 | D131: plat | E131: CHANTILLY | H131: Maiden | J131: 3ans | K131: 7 | L131: 1900-01-03 | M131: 2022-05-24 | N131: C7 | O131: plat | P131: SAINT-CLOUD | S131: Conditions | T131: C1 | U131: 3ans | V131: 7 | W131: 487.66532 | X131: 39.0132256 | Y131: 55.441 | Z131: -16.4277744
A132: 1900-01-07 | B132: 2023-05-20 | C132: C4 | D132: plat | E132: LYON PARILLY | H132: Conditions | I132: C1 | J132: 3ans | K132: 6 | L132: 1900-01-04 | M132: 2022-05-25 | N132: C3 | O132: plat | P132: LA TESTE DE BUCH | S132: Conditions | T132: C2 | U132: 3ans | V132: 7 | W132: 484.08807 | X132: 38.7270456 | Y132: 28.701 | Z132: 10.0260456
A133: 1900-01-02 | B133: 2023-05-22 | C133: C1 | D133: plat | E133: LA TESTE-BASSIN ARCACHON | H133: Conditions | I133: C1 | J133: 3ans | K133: 5 | L133: 1900-01-05 | M133: 2022-05-26 | N133: C1 | O133: plat | P133: TOULOUSE | S133: Conditions | T133: pa | U133: 3ans | V133: 7 | W133: 351.17797 | X133: 28.0942376 | Y133: 30.908 | Z133: -2.8137624
A134: 1900-01-02 | B134: 2023-05-22 | C134: C3 | D134: plat | E134: LA TESTE-BASSIN ARCACHON | H134: Conditions | I134: C2 | J134: 3ans | K134: 5 | L134: 1900-01-05 | M134: 2022-05-26 | N134: C1 | O134: plat | P134: PARISLONGCHAMP | S134: Conditions | T134: C2 | U134: 3ans | V134: 7 | W134: 440.36763 | X134: 35.2294104 | Y134: 54.176 | Z134: -18.9465896
A135: 1900-01-02 | B135: 2023-05-22 | C135: C2 | D135: plat | E135: MARSEILLE BORELY | H135: Conditions | I135: C1 | J135: 3ans | K135: 6 | L135: 1900-01-05 | M135: 2022-05-26 | N135: C3 | O135: plat | P135: PARISLONGCHAMP | S135: Listed | U135: 3ans | V135: 6 | W135: 408.42499 | X135: 32.6739992 | Y135: 88.095 | Z135: -55.4210008
A136: 1900-01-03 | B136: 2023-05-23 | C136: C3 | D136: plat | E136: SAINT-CLOUD | H136: Inédits | J136: 3ans | K136: 5 | L136: 1900-01-05 | M136: 2022-05-26 | N136: C5 | O136: plat | P136: PARISLONGCHAMP | S136: GROUPES | T136: II | U136: 3ans | V136: 5 | W136: 325.93565 | X136: 26.074852 | Y136: 233.346 | Z136: -207.271148
A137: 1900-01-04 | B137: 2023-05-24 | C137: C3 | D137: plat | E137: LE MANS | H137: Maiden | J137: 3ans | K137: 7 | L137: 1900-01-06 | M137: 2022-05-27 | N137: C2 | O137: plat | P137: COMPIEGNE | S137: Maiden | U137: 3ans | V137: 7 | W137: 410.34824 | X137: 32.8278592 | Y137: 47.171 | Z137: -14.3431408
A138: 1900-01-05 | B138: 2023-05-25 | C138: C5 | D138: plat | E138: PARISLONGCHAMP | H138: GROUPES | I138: III | J138: 3ans | K138: 6 | L138: 1900-01-07 | M138: 2022-05-28 | N138: C5 | O138: plat | P138: MOULINS | S138: Maiden | U138: 3ans | V138: 7 | W138: 304.75109 | X138: 24.3800872 | Y138: 34.238 | Z138: -9.8579128
A139: 1900-01-06 | B139: 2023-05-26 | C139: C6 | D139: plat | E139: MARSEILLE PONT DE VIVAUX | H139: Réclamers | J139: 3ans | K139: 7 | L139: 1900-01-07 | M139: 2022-05-28 | N139: C5 | O139: plat | P139: BORDEAUX LE BOUSCAT | S139: Listed | U139: 3ans | V139: 5 | W139: 306.02279 | X139: 24.4818232 | Y139: 101.068 | Z139: -76.5861768
A140: 1900-01-07 | B140: 2023-05-27 | C140: C3 | D140: plat | E140: BORDEAUX LE BOUSCAT | H140: Listed | J140: 3ans | K140: 7 | L140: 1900-01-01 | M140: 2022-05-29 | N140: C7 | O140: plat | P140: VICHY | Q140: internet | S140: Conditions | T140: aqps | U140: 3ans | V140: 6 | W140: 8.41411 | X140: 0.6731288 | Y140: 19.469 | Z140: -18.7958712
A141: 1900-01-01 | B141: 2023-05-28 | C141: C6 | D141: plat | E141: VICHY | H141: Conditions | J141: 3ans | K141: 6 | L141: 1900-01-01 | M141: 2022-05-29 | N141: C4 | O141: plat | P141: PARISLONGCHAMP | S141: GROUPES | T141: I | U141: 3ans | V141: 6 | W141: 625.6534 | X141: 50.052272 | Y141: 269.976 | Z141: -219.923728
A142: 1900-01-01 | B142: 2023-05-28 | C142: C3 | D142: plat | E142: SAINT-CLOUD | H142: Conditions | I142: C1 | J142: 3ans | K142: 5 | L142: 1900-01-01 | M142: 2022-05-29 | N142: C6 | O142: plat | P142: PARISLONGCHAMP | S142: Conditions | T142: C2 | U142: 3ans | V142: 7 | W142: 438.52169 | X142: 35.0817352 | Y142: 51.971 | Z142: -16.8892648
A143: 1900-01-02 | B143: 2023-05-29 | C143: C4 | D143: plat | E143: PARISLONGCHAMP | H143: Conditions | I143: C1 | J143: 3ans | K143: 7 | L143: 1900-01-01 | M143: 2022-05-29 | N143: C8 | O143: plat | P143: PARISLONGCHAMP | S143: Conditions | T143: C2 | U143: 3ans | V143: 6 | W143: 404.51011 | X143: 32.3608088 | Y143: 36.006 | Z143: -3.6451912
A144: 1900-01-02 | B144: 2023-05-29 | C144: C3 | D144: plat | E144: SALON-DE-PROVENCE | H144: Hdcp | J144: 3ans | K144: 7 | L144: 1900-01-02 | M144: 2022-05-30 | N144: C6 | O144: plat | P144: CHATEAUBRIANT | S144: Maiden | U144: 3ans | V144: 5 | W144: 351.92944 | X144: 28.1543552 | Y144: 32.445 | Z144: -4.2906448
A145: 1900-01-03 | B145: 2023-05-30 | C145: C1 | D145: plat | E145: ANGERS | H145: Conditions | I145: C1 | J145: 3ans | K145: 5
A147: 4 ans | L147: 4 ans
A148: 1900-01-01 | B148: 2023-03-12 | C148: C2 | D148: plat | E148: COMPIEGNE | H148: Conditions | I148: C2 | J148: 4ans | K148: 5 | L148: 1900-01-03 | M148: 2022-03-08 | N148: C3 | O148: plat | P148: CHANTILLY | S148: Conditions | T148: C2 | U148: 4ans | V148: 7 | W148: 564.87734 | X148: 45.1901872 | Y148: 43.334 | Z148: 1.8561872
A149: 1900-01-03 | B149: 2023-03-14 | C149: C6 | D149: plat | E149: LYON LA SOIE | H149: Conditions | I149: C3 | J149: 4ans | K149: 5 | L149: 1900-01-04 | M149: 2022-03-09 | N149: C1 | O149: plat | P149: CHANTILLY | S149: Conditions | T149: C3 | U149: 4ans | V149: 7 | W149: 346.5956 | X149: 27.727648 | Y149: 25.336 | Z149: 2.391648
A150: 1900-01-02 | B150: 2023-03-20 | C150: C3 | D150: plat | E150: COMPIEGNE | H150: Conditions | I150: C2 | J150: 4ans | K150: 6 | L150: 1900-01-03 | M150: 2022-03-22 | N150: C4 | O150: plat | P150: CHANTILLY | S150: Conditions | T150: C3 | U150: 4ans | V150: 7 | W150: 534.5598 | X150: 42.764784 | Y150: 24.717 | Z150: 18.047784
A151: 1900-01-02 | B151: 2023-03-27 | C151: C5 | D151: plat | E151: FONTAINEBLEAU | H151: Conditions | I151: C2 | J151: 4ans | K151: 6 | L151: 1900-01-06 | M151: 2022-03-25 | N151: C8 | O151: plat | P151: MARSEILLE PONT DE VIVAUX | S151: Conditions | T151: C3 | U151: 4ans | V151: 7 | W151: 236.77468 | X151: 18.9419744 | Y151: 25.352 | Z151: -6.4100256
A152: 1900-01-03 | B152: 2023-04-04 | C152: C3 | D152: plat | E152: FONTAINEBLEAU | H152: Conditions | I152: C3 | J152: 4ans | K152: 6 | L152: 1900-01-07 | M152: 2022-04-02 | N152: C7 | O152: plat | P152: SAINT-CLOUD | S152: Conditions | T152: C2 | U152: 4ans | V152: 7 | W152: 467.79471 | X152: 37.4235768 | Y152: 46.223 | Z152: -8.7994232
A153: 1900-01-04 | B153: 2023-04-05 | C153: C8 | D153: plat | E153: CHANTILLY | H153: Conditions | I153: C3 | J153: 4ans | K153: 6 | L153: 1900-01-07 | M153: 2022-04-09 | N153: C8 | O153: plat | P153: LYON LA SOIE | S153: Conditions | T153: C3 | U153: 4ans | V153: 7 | W153: 488.04206 | X153: 39.0433648 | Y153: 19.813 | Z153: 19.2303648
A154: 1900-01-06 | B154: 2023-04-07 | C154: C8 | D154: plat | E154: MARSEILLE PONT DE VIVAUX | H154: Conditions | I154: C3 | J154: 4ans | K154: 7 | L154: 1900-01-03 | M154: 2022-04-12 | N154: C6 | O154: plat | P154: FONTAINEBLEAU | S154: Conditions | T154: C2 | U154: 4ans | V154: 7 | W154: 599.30082 | X154: 47.9440656 | Y154: 41.752 | Z154: 6.1920656
A155: 1900-01-03 | B155: 2023-04-11 | C155: C5 | D155: plat | E155: CHANTILLY | H155: Conditions | I155: C2 | J155: 4ans | K155: 6 | L155: 1900-01-01 | M155: 2022-04-17 | N155: C7 | O155: plat | P155: LE LION D'ANGERS | S155: Conditions | U155: 4ans | V155: 7 | W155: 211.63672 | X155: 16.9309376 | Y155: 12.98 | Z155: 3.9509376
A156: 1900-01-05 | B156: 2023-04-13 | C156: C5 | D156: plat | E156: MARSEILLE BORELY | H156: Conditions | I156: C3 | J156: 4ans | K156: 5 | L156: 1900-01-04 | M156: 2022-04-27 | N156: C5 | O156: plat | P156: LA TESTE DE BUCH | S156: GROUPES | T156: pa | U156: 4ans | V156: 6 | W156: 288.74118 | X156: 23.0992944 | Y156: 33.785 | Z156: -10.6857056
A157: 1900-01-06 | B157: 2023-04-14 | C157: C1 | D157: plat | E157: SAINT-CLOUD | H157: Conditions | I157: C2 | J157: 4ans | K157: 4 | L157: 1900-01-05 | M157: 2022-04-28 | N157: C4 | O157: plat | P157: PARISLONGCHAMP | S157: Conditions | T157: C2 | U157: 4ans | V157: 7 | W157: 432.95105 | X157: 34.636084 | Y157: 38.312 | Z157: -3.675916
A158: 1900-01-02 | B158: 2023-04-24 | C158: C8 | D158: plat | E158: LE CROISE-LAROCHE | H158: Conditions | I158: C3 | J158: 4ans | K158: 7 | L158: 1900-01-05 | M158: 2022-04-28 | N158: C5 | O158: plat | P158: PARISLONGCHAMP | S158: Conditions | T158: C3 | U158: 4ans | V158: 6 | W158: 493.99936 | X158: 39.5199488 | Y158: 22.779 | Z158: 16.7409488
A159: 1900-01-04 | B159: 2023-04-26 | C159: C3 | D159: plat | E159: LA TESTE-BASSIN ARCACHON | H159: GROUPES | J159: 4ans PA | K159: 6 | L159: 1900-01-05 | M159: 2022-05-26 | N159: C2 | O159: plat | P159: LE LION D'ANGERS | S159: Conditions | T159: C3 | U159: 4ans | V159: 7 | W159: 293.75805 | X159: 23.500644 | Y159: 17.998 | Z159: 5.502644
A160: 1900-01-07 | B160: 2023-05-06 | C160: C3 | D160: plat | E160: NANTES | H160: Conditions | J160: 4ans AQPS | K160: 6
A161: 1900-01-04 | B161: 2023-05-17 | C161: C5 | D161: plat | E161: VICHY | H161: Conditions | I161: C3 | J161: 4ans | K161: 5
A162: 1900-01-05 | B162: 2023-05-18 | C162: C6 | D162: plat | E162: LYON PARILLY | H162: Conditions | I162: C3 | J162: 4ans | K162: 7
A164: 5 ans et + | L164: 5 ans et +
A165: 1900-01-05 | B165: 2023-03-02 | C165: C6 | D165: plat | E165: LYON LA SOIE | H165: Réclamers | I165: C4 | J165: 5anset+ | K165: 6 | L165: 1900-01-03 | M165: 2022-03-01 | N165: C3 | O165: plat | P165: CHANTILLY | S165: Conditions | T165: C1 | U165: 4anset+ | V165: 7 | W165: 540.50577 | X165: 43.2404616 | Y165: 46.61 | Z165: -3.3695384
A166: 1900-01-06 | B166: 2023-03-03 | C166: C2 | D166: plat | E166: BORDEAUX LE BOUSCAT | H166: Conditions | I166: C2 | J166: 4anset+ | K166: 5 | L166: 1900-01-03 | M166: 2022-03-01 | N166: C5 | O166: plat | P166: CHANTILLY | S166: Conditions | T166: C1 | U166: 4anset+ | V166: 7 | W166: 585.06251 | X166: 46.8050008 | Y166: 37.451 | Z166: 9.3540008
A167: 1900-01-06 | B167: 2023-03-03 | C167: C1 | D167: plat | E167: FONTAINEBLEAU | H167: Réclamers | I167: C3 | J167: 4anset+ | K167: 7 | L167: 1900-01-04 | M167: 2022-03-02 | N167: C2 | O167: plat | P167: MARSEILLE PONT DE VIVAUX | S167: Conditions | T167: C3 | U167: 4anset+ | V167: 6 | W167: 304.23397 | X167: 24.3387176 | Y167: 23.117 | Z167: 1.2217176
A168: 1900-01-07 | B168: 2023-03-04 | C168: C8 | D168: plat | E168: MONT-DE-MARSAN | F168: internet | H168: Conditions | I168: C3 | J168: 4anset+ | K168: 5 | L168: 1900-01-04 | M168: 2022-03-02 | N168: C5 | O168: plat | P168: MARSEILLE PONT DE VIVAUX | S168: Réclamers | T168: C4 | U168: 4anset+ | V168: 7 | W168: 421.31347 | X168: 33.7050776 | Y168: 19.209 | Z168: 14.4960776
A169: 1900-01-07 | B169: 2023-03-04 | C169: C1 | D169: plat | E169: CHANTILLY | H169: Conditions | I169: C1 | J169: 4anset+ | K169: 5 | L169: 1900-01-06 | M169: 2022-03-04 | N169: C1 | O169: plat | P169: DEAUVILLE | S169: Conditions | T169: C3 | U169: 5anset+ | V169: 7 | W169: 519.76985 | X169: 41.581588 | Y169: 23.56 | Z169: 18.021588
A170: 1900-01-07 | B170: 2023-03-04 | C170: C2 | D170: plat | E170: CHANTILLY | H170: Conditions | I170: C1 | J170: 4anset+ | K170: 7 | L170: 1900-01-01 | M170: 2022-03-06 | N170: C6 | O170: plat | P170: PORNICHET | S170: Réclamers | T170: C4 | U170: 4anset+ | V170: 6 | W170: 277.7103 | X170: 22.216824 | Y170: 21.047 | Z170: 1.169824
A171: 1900-01-02 | B171: 2023-03-06 | C171: C3 | D171: plat | E171: MARSEILLE BORELY | H171: Conditions | I171: C4 | J171: 5anset+ | K171: 7 | L171: 1900-01-02 | M171: 2022-03-07 | N171: C1 | O171: plat | P171: MARSEILLE PONT DE VIVAUX | S171: Réclamers | T171: C4 | U171: 5anset+ | V171: 4 | W171: 163.4537 | X171: 13.076296 | Y171: 18.219 | Z171: -5.142704
A172: 1900-01-07 | B172: 2023-03-11 | C172: C8 | D172: plat | E172: DEAUVILLE | H172: Réclamers | I172: C3 | J172: 4anset+ | K172: 6 | L172: 1900-01-02 | M172: 2022-03-07 | N172: C2 | O172: plat | P172: MARSEILLE PONT DE VIVAUX | S172: Conditions | T172: C3 | U172: 5anset+ | V172: 6 | W172: 230.46693 | X172: 18.4373544 | Y172: 22.668 | Z172: -4.2306456
A173: 1900-01-03 | B173: 2023-03-14 | C173: C7 | D173: plat | E173: LYON LA SOIE | H173: Réclamers | I173: C4 | J173: 4anset+ | K173: 5 | L173: 1900-01-02 | M173: 2022-03-07 | N173: C8 | O173: plat | P173: TOULOUSE | S173: Conditions | T173: C3 | U173: 4anset+ | V173: 7 | W173: 221.24026 | X173: 17.6992208 | Y173: 22.826 | Z173: -5.1267792
A174: 1900-01-03 | B174: 2023-03-14 | C174: C8 | D174: plat | E174: LYON LA SOIE | H174: Conditions | I174: C3 | J174: 4anset+ | K174: 4 | L174: 1900-01-04 | M174: 2022-03-09 | N174: C2 | O174: plat | P174: CHANTILLY | S174: Conditions | T174: C2 | U174: 4anset+ | V174: 7 | W174: 358.0547 | X174: 28.644376 | Y174: 31.712 | Z174: -3.067624
A175: 1900-01-05 | B175: 2023-03-16 | C175: C1 | D175: plat | E175: MARSEILLE BORELY | H175: Réclamers | I175: C4 | J175: 4anset+ | K175: 6 | L175: 1900-01-01 | M175: 2022-03-13 | N175: C2 | O175: plat | P175: COMPIEGNE | S175: Conditions | T175: C3 | U175: 4anset+ | V175: 6 | W175: 354.42937 | X175: 28.3543496 | Y175: 25.276 | Z175: 3.0783496
A176: 1900-01-06 | B176: 2023-03-17 | C176: C1 | D176: plat | E176: FONTAINEBLEAU | H176: Réclamers | I176: C4 | J176: 4anset+ | K176: 6 | L176: 1900-01-03 | M176: 2022-03-15 | N176: C8 | O176: plat | P176: LYON LA SOIE | S176: Conditions | T176: C3 | U176: 4anset+ | V176: 7 | W176: 197.09656 | X176: 15.7677248 | Y176: 20.905 | Z176: -5.1372752
A177: 1900-01-06 | B177: 2023-03-17 | C177: C3 | D177: plat | E177: FONTAINEBLEAU | H177: Conditions | I177: C3 | J177: 5anset+ | K177: 7 | L177: 1900-01-06 | M177: 2022-03-18 | N177: C8 | O177: plat | P177: TOULOUSE | S177: Conditions | T177: C3 | U177: 5anset+ | V177: 6 | W177: 154.89198 | X177: 12.3913584 | Y177: 17.717 | Z177: -5.3256416
A178: 1900-01-01 | B178: 2023-03-19 | C178: C6 | D178: plat | E178: LYON PARILLY | H178: Conditions | I178: C2 | J178: 4anset+ | K178: 7 | L178: 1900-01-01 | M178: 2022-03-20 | N178: C6 | O178: plat | P178: LYON PARILLY | S178: Conditions | T178: C2 | U178: 4anset+ | V178: 7 | W178: 297.85268 | X178: 23.8282144 | Y178: 38.943 | Z178: -15.1147856
A179: 1900-01-02 | B179: 2023-03-20 | C179: C4 | D179: plat | E179: COMPIEGNE | H179: Réclamers | I179: C3 | J179: 5anset+ | K179: 6 | L179: 1900-01-02 | M179: 2022-03-21 | N179: C6 | O179: plat | P179: MARSEILLE PONT DE VIVAUX | S179: Conditions | T179: C2 | U179: 4anset+ | V179: 7 | W179: 359.92662 | X179: 28.7941296 | Y179: 32.303 | Z179: -3.5088704
A180: 1900-01-02 | B180: 2023-03-20 | C180: C8 | D180: plat | E180: MARSEILLE PONT DE VIVAUX | H180: Conditions | I180: C3 | J180: 5anset+ | K180: 6 | L180: 1900-01-03 | M180: 2022-03-22 | N180: C2 | O180: plat | P180: CHANTILLY | S180: Conditions | T180: C2 | U180: 4anset+ | V180: 7 | W180: 631.95425 | X180: 50.55634 | Y180: 43.034 | Z180: 7.52234
A181: 1900-01-03 | B181: 2023-03-21 | C181: C7 | D181: plat | E181: CHANTILLY | H181: Conditions | I181: C2 | J181: 4anset+ | K181: 6 | L181: 1900-01-05 | M181: 2022-03-24 | N181: C6 | O181: plat | P181: SAINT-CLOUD | S181: Listed | U181: 5anset+ | V181: 7 | W181: 494.13401 | X181: 39.5307208 | Y181: 88.228 | Z181: -48.6972792
A182: 1900-01-04 | B182: 2023-03-22 | C182: C3 | D182: plat | E182: TOULOUSE | H182: Conditions | I182: C3 | J182: 4anset+ | K182: 6 | L182: 1900-01-05 | M182: 2022-03-24 | N182: C2 | O182: plat | P182: LYON LA SOIE | S182: Conditions | T182: C3 | U182: 4anset+ | V182: 7 | W182: 363.5135 | X182: 29.08108 | Y182: 24.668 | Z182: 4.41308
A183: 1900-01-04 | B183: 2023-03-22 | C183: C6 | D183: plat | E183: TOULOUSE | H183: Conditions | I183: C3 | J183: 5anset+ | K183: 6 | L183: 1900-01-05 | M183: 2022-03-24 | N183: C5 | O183: plat | P183: LYON LA SOIE | S183: Réclamers | T183: C4 | U183: 5anset+ | V183: 7 | W183: 426.63221 | X183: 34.1305768 | Y183: 15.124 | Z183: 19.0065768
A184: 1900-01-04 | B184: 2023-03-22 | C184: C7 | D184: plat | E184: TOULOUSE | H184: Réclamers | I184: C4 | J184: 5anset+ | K184: 7 | L184: 1900-01-06 | M184: 2022-03-25 | N184: C5 | O184: plat | P184: MARSEILLE PONT DE VIVAUX | S184: Conditions | T184: C2 | U184: 4anset+ | V184: 6 | W184: 390.57991 | X184: 31.2463928 | Y184: 33.633 | Z184: -2.3866072
A185: 1900-01-05 | B185: 2023-03-23 | C185: C6 | D185: plat | E185: LYON LA SOIE | H185: Réclamers | I185: C4 | J185: 5anset+ | K185: 6 | L185: 1900-01-06 | M185: 2022-03-25 | N185: C6 | O185: plat | P185: MARSEILLE PONT DE VIVAUX | S185: Réclamers | T185: C4 | U185: 5anset+ | V185: 5 | W185: 253.03425 | X185: 20.24274 | Y185: 19.476 | Z185: 0.76674
A186: 1900-01-01 | B186: 2023-03-26 | C186: C4 | D186: plat | E186: LA TESTE-BASSIN ARCACHON | H186: Conditions | I186: C1 | J186: 4anset+ | K186: 7 | L186: 1900-01-07 | M186: 2022-03-26 | N186: C3 | O186: plat | P186: TOULOUSE | S186: Conditions | T186: C3 | U186: 4anset+ | V186: 6 | W186: 172.55334 | X186: 13.8042672 | Y186: 23.509 | Z186: -9.7047328
A187: 1900-01-02 | B187: 2023-03-27 | C187: C7 | D187: plat | E187: FONTAINEBLEAU | H187: Conditions | I187: C3 | J187: 4anset+ | K187: 7 | L187: 1900-01-01 | M187: 2022-03-27 | N187: C4 | O187: plat | P187: PORNICHET | S187: Réclamers | T187: C4 | U187: 4anset+ | V187: 7 | W187: 359.70784 | X187: 28.7766272 | Y187: 17.613 | Z187: 11.1636272
A188: 1900-01-03 | B188: 2023-03-28 | C188: C4 | D188: plat | E188: SAINT-CLOUD | H188: Conditions | I188: C2 | J188: 4anset+ | K188: 6 | L188: 1900-01-06 | M188: 2022-04-01 | N188: C2 | O188: plat | P188: CHANTILLY | S188: Conditions | T188: C3 | U188: 4anset+ | V188: 6 | W188: 429.85831 | X188: 34.3886648 | Y188: 26.686 | Z188: 7.7026648
A189: 1900-01-04 | B189: 2023-03-29 | C189: C1 | D189: plat | E189: LE MANS | H189: Conditions | I189: C2 | J189: 4anset+ | K189: 7 | L189: 1900-01-07 | M189: 2022-04-02 | N189: C5 | O189: plat | P189: SAINT-CLOUD | S189: GROUPES | T189: III | U189: 4anset+ | V189: 7 | W189: 642.50743 | X189: 51.4005944 | Y189: 90.76 | Z189: -39.3594056
A190: 1900-01-06 | B190: 2023-03-31 | C190: C1 | D190: plat | E190: CHANTILLY | H190: Conditions | I190: C3 | J190: 4anset+ | K190: 6 | L190: 1900-01-02 | M190: 2022-04-04 | N190: C8 | O190: plat | P190: MARSEILLE BORELY | S190: Conditions | T190: C3 | U190: 4anset+ | V190: 6 | W190: 204.07822 | X190: 16.3262576 | Y190: 23.483 | Z190: -7.1567424
A191: 1900-01-07 | B191: 2023-04-01 | C191: C6 | D191: plat | E191: SAINT-CLOUD | H191: GROUPES | I191: III | J191: 4anset+ | K191: 7 | L191: 1900-01-06 | M191: 2022-04-08 | N191: C2 | O191: plat | P191: SAINT-CLOUD | S191: Conditions | T191: C2 | U191: 4anset+ | V191: 7 | W191: 358.08825 | X191: 28.64706 | Y191: 44.45 | Z191: -15.80294
A192: 1900-01-06 | B192: 2023-04-07 | C192: C3 | D192: plat | E192: SAINT-CLOUD | H192: Conditions | I192: C2 | J192: 4anset+ | K192: 6 | L192: 1900-01-06 | M192: 2022-04-08 | N192: C3 | O192: plat | P192: SAINT-CLOUD | S192: Conditions | T192: C2 | U192: 4anset+ | V192: 7 | W192: 452.12222 | X192: 36.1697776 | Y192: 37.212 | Z192: -1.0422224
A193: 1900-01-06 | B193: 2023-04-07 | C193: C6 | D193: plat | E193: MARSEILLE PONT DE VIVAUX | H193: Réclamers | I193: C4 | J193: 4anset+ | K193: 6 | L193: 1900-01-07 | M193: 2022-04-09 | N193: C3 | O193: plat | P193: NANTES | S193: Conditions | T193: C2 | U193: 4anset+ | V193: 6 | W193: 257.12809 | X193: 20.5702472 | Y193: 32.149 | Z193: -11.5787528
A194: 1900-01-07 | B194: 2023-04-08 | C194: C2 | D194: plat | E194: LYON LA SOIE | H194: Conditions | I194: C1 | J194: 4anset+ | K194: 7 | L194: 1900-01-01 | M194: 2022-04-10 | N194: C6 | O194: plat | P194: PARISLONGCHAMP | S194: GROUPES | T194: II | U194: 4anset+ | V194: 6 | W194: 528.03861 | X194: 42.2430888 | Y194: 205.14 | Z194: -162.8969112
A195: 1900-01-01 | B195: 2023-04-09 | C195: C6 | D195: plat | E195: PARISLONGCHAMP | H195: GROUPES | I195: II | J195: 4anset+ | K195: 7 | L195: 1900-01-04 | M195: 2022-04-13 | N195: C5 | O195: plat | P195: CHANTILLY | S195: Conditions | T195: C2 | U195: 4anset+ | V195: 7 | W195: 546.59563 | X195: 43.7276504 | Y195: 40.984 | Z195: 2.7436504
A196: 1900-01-01 | B196: 2023-04-09 | C196: C7 | D196: plat | E196: LE LION D'ANGERS | H196: Conditions | I196: C3 | J196: 4anset+ | K196: 6 | L196: 1900-01-05 | M196: 2022-04-14 | N196: C3 | O196: plat | P196: LYON PARILLY | S196: Conditions | T196: C2 | U196: 4anset+ | V196: 6 | W196: 230.39516 | X196: 18.4316128 | Y196: 37.12 | Z196: -18.6883872
A197: 1900-01-04 | B197: 2023-04-12 | C197: C6 | D197: plat | E197: EVREUX-NAVARRE | H197: Conditions | I197: C3 | J197: 4anset+ | K197: 6 | L197: 1900-01-07 | M197: 2022-04-16 | N197: C2 | O197: plat | P197: CHATEAUBRIANT | S197: Conditions | T197: C2 | U197: 4anset+ | V197: 6 | W197: 256.68044 | X197: 20.5344352 | Y197: 30.911 | Z197: -10.3765648
A198: 1900-01-06 | B198: 2023-04-14 | C198: C6 | D198: plat | E198: MARSEILLE PONT DE VIVAUX | H198: Conditions | I198: C3 | J198: 4anset+ | K198: 7 | L198: 1900-01-07 | M198: 2022-04-16 | N198: C2 | O198: plat | P198: TOULOUSE | S198: Hdcp | T198: C3 | U198: 4anset+ | V198: 7 | W198: 172.29232 | X198: 13.7833856 | Y198: 24.297 | Z198: -10.5136144
A199: 1900-01-06 | B199: 2023-04-14 | C199: C7 | D199: plat | E199: MARSEILLE PONT DE VIVAUX | H199: Réclamers | I199: C4 | J199: 4anset+ | K199: 6 | L199: 1900-01-01 | M199: 2022-04-17 | N199: C7 | O199: plat | P199: PARISLONGCHAMP | S199: Listed | U199: 4anset+ | V199: 6 | W199: 330.81599 | X199: 26.4652792 | Y199: 64.938 | Z199: -38.4727208
A200: 1900-01-07 | B200: 2023-04-15 | C200: C8 | D200: plat | E200: FONTAINEBLEAU | H200: Conditions | I200: C2 | J200: 5anset+ | K200: 5 | L200: 1900-01-02 | M200: 2022-04-18 | N200: C6 | O200: plat | P200: SAINT-CLOUD | S200: Conditions | T200: C2 | U200: 5anset+ | V200: 5 | W200: 305.37926 | X200: 24.4303408 | Y200: 43.287 | Z200: -18.8566592
A201: 1900-01-01 | B201: 2023-04-16 | C201: C1 | D201: plat | E201: PARISLONGCHAMP | H201: Listed | J201: 4anset+ | K201: 7 | L201: 1900-01-03 | M201: 2022-04-19 | N201: C2 | O201: plat | P201: MARSEILLE PONT DE VIVAUX | S201: Réclamers | T201: C4 | U201: 4anset+ | V201: 7 | W201: 207.11874 | X201: 16.5694992 | Y201: 14.65 | Z201: 1.9194992
A202: 1900-01-02 | B202: 2023-04-17 | C202: C8 | D202: plat | E202: CHANTILLY | H202: Réclamers | I202: C3 | J202: 4anset+ | K202: 7 | L202: 1900-01-03 | M202: 2022-04-19 | N202: C4 | O202: plat | P202: MARSEILLE PONT DE VIVAUX | S202: Conditions | T202: C3 | U202: 4anset+ | V202: 7 | W202: 307.43049 | X202: 24.5944392 | Y202: 21.422 | Z202: 3.1724392
A203: 1900-01-04 | B203: 2023-04-19 | C203: C7 | D203: plat | E203: COMPIEGNE | H203: Hdcp | I203: C4 | J203: 4anset+ | K203: 6 | L203: 1900-01-05 | M203: 2022-04-21 | N203: C6 | O203: plat | P203: PARISLONGCHAMP | S203: Conditions | T203: C1 | U203: 4anset+ | V203: 7 | W203: 462.05223 | X203: 36.9641784 | Y203: 53.364 | Z203: -16.3998216
... 40 more rows

Sheet Pau 25-26
E2: Moyenne par partant | L2: 61.39500204 | M2: 4.911600163 | N2: 4.498144898 | O2: 0.4134552653
E3: Moyenne/course | K3: 10.20833333 | L3: 626.7406458 | M3: 50.13925167 | N3: 45.9185625 | O3: 4.220689167
B4: =SUBTOTAL(3,B7:B136) -> 130 | E4: Total | F4: =SUBTOTAL(3,F7:F136) -> 4 | G4: 0 | H4: =SUBTOTAL(3,H7:H136) -> 130 | K4: =SUBTOTAL(9,K7:K136) -> 1231 | L4: =SUBTOTAL(9,L7:L136) -> 82101.862 | M4: =SUBTOTAL(9,M7:M136) -> 6568.14896 | N4: =SUBTOTAL(9,N7:N136) -> 6096.592 | O4: =SUBTOTAL(9,O7:O136) -> 471.55696
A6: Jour | B6: Date | C6: Course | D6: Discipline | E6: Hippodrome | F6: Jeu | G6: COND. | H6: conditions | I6: Cat | J6: Age | K6: Pts | L6: enjeux | M6: retour net | N6: alloc distrib. | O6: résultat
A7: 1900-01-04 | B7: 2025-12-10 | C7: C1 | D7: obstacle | E7: PAU | H7: Conditions | I7: C1 | J7: 5anset+ | K7: 8 | L7: 381.08 | M7: 30.4864 | N7: 61.825 | O7: -31.3386
A8: 1900-01-04 | B8: 2025-12-10 | C8: C3 | D8: obstacle | E8: PAU | H8: Conditions | I8: C1 | J8: 5anset+ | K8: 6 | L8: 326.172 | M8: 26.09376 | N8: 45.113 | O8: -19.01924
A9: 1900-01-04 | B9: 2025-12-10 | C9: C5 | D9: obstacle | E9: PAU | H9: Inédits | J9: 3ans | K9: 12 | L9: 512.948 | M9: 41.03584 | N9: 45.351 | O9: -4.31516
A10: 1900-01-04 | B10: 2025-12-10 | C10: C6 | D10: obstacle | E10: PAU | H10: Conditions | I10: C2 | J10: 4ans | K10: 14 | L10: 821.182 | M10: 65.69456 | N10: 40.193 | O10: 25.50156
A11: 1900-01-04 | B11: 2025-12-10 | C11: C7 | D11: obstacle | E11: PAU | H11: Hdcp | J11: 4anset+ | K11: 9 | L11: 700.016 | M11: 56.00128 | N11: 68.699 | O11: -12.69772
A12: 1900-01-04 | B12: 2025-12-10 | C12: C8 | D12: obstacle | E12: PAU | H12: Hdcp | J12: 4ans | K12: 14 | L12: 819.059 | M12: 65.52472 | N12: 43.078 | O12: 22.44672
A13: 1900-01-01 | B13: 2025-12-14 | C13: C1 | D13: obstacle | E13: PAU | H13: Conditions | J13: 5anset+ AA | K13: 6 | L13: 221.501 | M13: 17.72008 | N13: 41.725 | O13: -24.00492
A14: 1900-01-01 | B14: 2025-12-14 | C14: C2 | D14: obstacle | E14: PAU | H14: Conditions | I14: C3 | J14: 5ans | K14: 6 | L14: 217.009 | M14: 17.36072 | N14: 39.364 | O14: -22.00328
A15: 1900-01-01 | B15: 2025-12-14 | C15: C3 | D15: obstacle | E15: PAU | H15: Conditions | I15: C1 | J15: 3ans | K15: 8 | L15: 431.524 | M15: 34.52192 | N15: 49.044 | O15: -14.52208
A16: 1900-01-01 | B16: 2025-12-14 | C16: C4 | D16: obstacle | E16: PAU | H16: Inédits | J16: 3ans | K16: 8 | L16: 393.756 | M16: 31.50048 | N16: 42.424 | O16: -10.92352
A17: 1900-01-01 | B17: 2025-12-14 | C17: C5 | D17: obstacle | E17: PAU | H17: Inédits | J17: 3ans | K17: 15 | L17: 477.014 | M17: 38.16112 | N17: 39.437 | O17: -1.27588
A18: 1900-01-01 | B18: 2025-12-14 | C18: C6 | D18: obstacle | E18: PAU | H18: Conditions | I18: C2 | J18: 4et5ans | K18: 11 | L18: 497.94 | M18: 39.8352 | N18: 34.833 | O18: 5.0022
A19: 1900-01-01 | B19: 2025-12-14 | C19: C7 | D19: obstacle | E19: PAU | H19: Conditions | J19: 3ans AA | K19: 11 | L19: 519.625 | M19: 41.57 | N19: 43.849 | O19: -2.279
A20: 1900-01-01 | B20: 2025-12-14 | C20: C8 | D20: obstacle | E20: PAU | H20: Hdcp | J20: 5anset+ | K20: 11 | L20: 765.745 | M20: 61.2596 | N20: 72.717 | O20: -11.4574
A21: 1900-01-03 | B21: 2025-12-16 | C21: C1 | D21: obstacle | E21: PAU | H21: Conditions | I21: C3 | J21: 5anset+ | K21: 7 | L21: 291.65 | M21: 23.332 | N21: 37.898 | O21: -14.566
A22: 1900-01-03 | B22: 2025-12-16 | C22: C2 | D22: obstacle | E22: PAU | H22: Conditions | I22: C4 | J22: 3ans | K22: 8 | L22: 404.555 | M22: 32.3644 | N22: 38.815 | O22: -6.4506
A23: 1900-01-03 | B23: 2025-12-16 | C23: C3 | D23: obstacle | E23: PAU | H23: Conditions | I23: C2 | J23: 5anset+ | K23: 11 | L23: 418.026 | M23: 33.44208 | N23: 37.782 | O23: -4.33992
A24: 1900-01-03 | B24: 2025-12-16 | C24: C4 | D24: obstacle | E24: PAU | F24: TQQ+ | H24: Hdcp | J24: 4ans | K24: 14 | L24: 5806.071 | M24: 464.48568 | N24: 95.529 | O24: 368.95668
A25: 1900-01-03 | B25: 2025-12-16 | C25: C5 | D25: obstacle | E25: PAU | H25: Conditions | I25: C4 | J25: 4ans | K25: 11 | L25: 659.072 | M25: 52.72576 | N25: 37.533 | O25: 15.19276
A26: 1900-01-03 | B26: 2025-12-16 | C26: C7 | D26: obstacle | E26: PAU | H26: Hdcp | J26: 5anset+ | K26: 11 | L26: 672.437 | M26: 53.79496 | N26: 43.187 | O26: 10.60796
A27: 1900-01-07 | B27: 2025-12-20 | C27: C1 | D27: obstacle | E27: PAU | H27: Conditions | J27: 4et5ans AA | K27: 8 | L27: 218.751 | M27: 17.50008 | N27: 42.512 | O27: -25.01192
A28: 1900-01-07 | B28: 2025-12-20 | C28: C2 | D28: obstacle | E28: PAU | H28: Conditions | I28: C2 | J28: 5ans | K28: 9 | L28: 334.91 | M28: 26.7928 | N28: 37.64 | O28: -10.8472
A29: 1900-01-07 | B29: 2025-12-20 | C29: C3 | D29: obstacle | E29: PAU | H29: Réclamers | J29: 3ans | K29: 12 | L29: 377.119 | M29: 30.16952 | N29: 23.83 | O29: 6.33952
A30: 1900-01-07 | B30: 2025-12-20 | C30: C4 | D30: obstacle | E30: PAU | H30: Conditions | I30: C1 | J30: 3ans | K30: 9 | L30: 412.624 | M30: 33.00992 | N30: 48.935 | O30: -15.92508
A31: 1900-01-07 | B31: 2025-12-20 | C31: C6 | D31: obstacle | E31: PAU | H31: Conditions | J31: 3ans AQPS | K31: 10 | L31: 476.367 | M31: 38.10936 | N31: 44.672 | O31: -6.56264
A32: 1900-01-07 | B32: 2025-12-20 | C32: C7 | D32: obstacle | E32: PAU | H32: Réclamers | J32: 5anset+ | K32: 9 | L32: 581.272 | M32: 46.50176 | N32: 22.795 | O32: 23.70676
A33: 1900-01-04 | B33: 2025-12-24 | C33: C1 | D33: obstacle | E33: PAU | H33: Inédits | J33: 3ans | K33: 9 | L33: 435.81 | M33: 34.8648 | N33: 45.351 | O33: -10.4862
A34: 1900-01-04 | B34: 2025-12-24 | C34: C2 | D34: obstacle | E34: PAU | H34: Conditions | I34: C1 | J34: 5anset+ | K34: 6 | L34: 400.49 | M34: 32.0392 | N34: 45.065 | O34: -13.0258
A35: 1900-01-04 | B35: 2025-12-24 | C35: C3 | D35: obstacle | E35: PAU | H35: Conditions | J35: 3ans AQPS | K35: 14 | L35: 607.997 | M35: 48.63976 | N35: 39.437 | O35: 9.20276
A36: 1900-01-04 | B36: 2025-12-24 | C36: C4 | D36: obstacle | E36: PAU | H36: Conditions | I36: C3 | J36: 4ans AQPS | K36: 9 | L36: 597.071 | M36: 47.76568 | N36: 41.566 | O36: 6.19968
A37: 1900-01-04 | B37: 2025-12-24 | C37: C5 | D37: obstacle | E37: PAU | H37: Conditions | I37: C3 | J37: 5anset+ AQPS | K37: 10 | L37: 651.481 | M37: 52.11848 | N37: 42.953 | O37: 9.16548
A38: 1900-01-04 | B38: 2025-12-24 | C38: C6 | D38: obstacle | E38: PAU | H38: Réclamers | J38: 5anset+ | K38: 13 | L38: 682.888 | M38: 54.63104 | N38: 21.5 | O38: 33.13104
A39: 1900-01-04 | B39: 2025-12-24 | C39: C7 | D39: obstacle | E39: PAU | H39: Conditions | I39: C4 | J39: 4ans AQPS | K39: 14 | L39: 750.484 | M39: 60.03872 | N39: 41.932 | O39: 18.10672
A40: 1900-01-04 | B40: 2025-12-24 | C40: C8 | D40: obstacle | E40: PAU | H40: Conditions | I40: C3 | J40: 5ans | K40: 14 | L40: 825.641 | M40: 66.05128 | N40: 41.43 | O40: 24.62128
A41: 1900-01-01 | B41: 2025-12-28 | C41: C1 | D41: obstacle | E41: PAU | H41: Conditions | I41: C2 | J41: 4ans | K41: 6 | L41: 238.572 | M41: 19.08576 | N41: 44.323 | O41: -25.23724
A42: 1900-01-01 | B42: 2025-12-28 | C42: C2 | D42: obstacle | E42: PAU | H42: Inédits | J42: 3ans | K42: 8 | L42: 279.921 | M42: 22.39368 | N42: 39.437 | O42: -17.04332
A43: 1900-01-01 | B43: 2025-12-28 | C43: C3 | D43: obstacle | E43: PAU | H43: Conditions | J43: 5anset+ AA | K43: 8 | L43: 381.013 | M43: 30.48104 | N43: 37.174 | O43: -6.69296
A44: 1900-01-01 | B44: 2025-12-28 | C44: C4 | D44: obstacle | E44: PAU | H44: Conditions | I44: C1 | J44: 5anset+ | K44: 8 | L44: 433.23 | M44: 34.6584 | N44: 68.699 | O44: -34.0406
A45: 1900-01-01 | B45: 2025-12-28 | C45: C5 | D45: obstacle | E45: PAU | H45: Listed | J45: 5anset+ | K45: 9 | L45: 417.677 | M45: 33.41416 | N45: 90.451 | O45: -57.03684
A46: 1900-01-01 | B46: 2025-12-28 | C46: C7 | D46: obstacle | E46: PAU | H46: Réclamers | J46: 4ans | K46: 11 | L46: 542.919 | M46: 43.43352 | N46: 22.235 | O46: 21.19852
A47: 1900-01-04 | B47: 2025-12-31 | C47: C1 | D47: obstacle | E47: PAU | H47: Conditions | I47: C3 | J47: 5anset+ | K47: 8 | L47: 410.805 | M47: 32.8644 | N47: 44.239 | O47: -11.3746
A48: 1900-01-04 | B48: 2025-12-31 | C48: C2 | D48: obstacle | E48: PAU | H48: Conditions | I48: C3 | J48: 3ans | K48: 9 | L48: 503.745 | M48: 40.2996 | N48: 39.614 | O48: 0.6856
A49: 1900-01-04 | B49: 2025-12-31 | C49: C3 | D49: obstacle | E49: PAU | H49: Réclamers | J49: 4ans | K49: 11 | L49: 526.276 | M49: 42.10208 | N49: 22.71 | O49: 19.39208
A50: 1900-01-04 | B50: 2025-12-31 | C50: C4 | D50: obstacle | E50: PAU | H50: Conditions | I50: C3 | J50: 4ans | K50: 12 | L50: 612.397 | M50: 48.99176 | N50: 41.063 | O50: 7.92876
A51: 1900-01-04 | B51: 2025-12-31 | C51: C5 | D51: obstacle | E51: PAU | H51: Conditions | I51: C1 | J51: 4ans | K51: 12 | L51: 626.801 | M51: 50.14408 | N51: 48.973 | O51: 1.17108
A52: 1900-01-04 | B52: 2025-12-31 | C52: C6 | D52: obstacle | E52: PAU | H52: Conditions | I52: C2 | J52: 3ans | K52: 12 | L52: 759.52 | M52: 60.7616 | N52: 49.351 | O52: 11.4106
A53: 1900-01-04 | B53: 2025-12-31 | C53: C7 | D53: obstacle | E53: PAU | H53: Hdcp | J53: 5anset+ | K53: 14 | L53: 767.685 | M53: 61.4148 | N53: 62.775 | O53: -1.3602
A54: 1900-01-04 | B54: 2025-12-31 | C54: C8 | D54: obstacle | E54: PAU | H54: Hdcp | J54: 5anset+ | K54: 15 | L54: 893.703 | M54: 71.49624 | N54: 95.033 | O54: -23.53676
A55: 1900-01-07 | B55: 2026-01-03 | C55: C1 | D55: obstacle | E55: PAU | H55: Conditions | I55: C1 | J55: 4ans | K55: 6 | L55: 257.364 | M55: 20.58912 | N55: 48.206 | O55: -27.61688
A56: 1900-01-07 | B56: 2026-01-03 | C56: C2 | D56: obstacle | E56: PAU | H56: Conditions | I56: C2 | J56: 6anset+ | K56: 9 | L56: 428.376 | M56: 34.27008 | N56: 37.782 | O56: -3.51192
A57: 1900-01-07 | B57: 2026-01-03 | C57: C3 | D57: obstacle | E57: PAU | H57: Réclamers | J57: 4ans | K57: 9 | L57: 407.529 | M57: 32.60232 | N57: 22.04 | O57: 10.56232
A58: 1900-01-07 | B58: 2026-01-03 | C58: C4 | D58: obstacle | E58: PAU | H58: Réclamers | J58: 4ans | K58: 10 | L58: 438.733 | M58: 35.09864 | N58: 23.88 | O58: 11.21864
A59: 1900-01-07 | B59: 2026-01-03 | C59: C5 | D59: obstacle | E59: PAU | H59: Hdcp | J59: 5ans | K59: 9 | L59: 586.081 | M59: 46.88648 | N59: 71.995 | O59: -25.10852
A60: 1900-01-07 | B60: 2026-01-03 | C60: C6 | D60: obstacle | E60: PAU | H60: Conditions | I60: C3 | J60: 6ans | K60: 9 | L60: 658.291 | M60: 52.66328 | N60: 38.924 | O60: 13.73928
A61: 1900-01-07 | B61: 2026-01-03 | C61: C7 | D61: obstacle | E61: PAU | H61: Conditions | I61: C2 | J61: 4ans | K61: 9 | L61: 667.637 | M61: 53.41096 | N61: 42.273 | O61: 11.13796
A62: 1900-01-07 | B62: 2026-01-03 | C62: C8 | D62: obstacle | E62: PAU | H62: Conditions | I62: C3 | J62: 5ans | K62: 14 | L62: 718.499 | M62: 57.47992 | N62: 44.765 | O62: 12.71492
A63: 1900-01-04 | B63: 2026-01-07 | C63: C2 | D63: obstacle | E63: PAU | F63: TQQ+ | H63: Hdcp | J63: 6anset+ | K63: 14 | L63: 4998.987 | M63: 399.91896 | N63: 95.031 | O63: 304.88796
A64: 1900-01-04 | B64: 2026-01-07 | C64: C3 | D64: obstacle | E64: PAU | H64: Hdcp | J64: 4ans | K64: 7 | L64: 607.224 | M64: 48.57792 | N64: 58.028 | O64: -9.45008
A65: 1900-01-04 | B65: 2026-01-07 | C65: C4 | D65: obstacle | E65: PAU | H65: Conditions | I65: C3 | J65: 6anset+ | K65: 5 | L65: 532.068 | M65: 42.56544 | N65: 35.423 | O65: 7.14244
A66: 1900-01-04 | B66: 2026-01-07 | C66: C5 | D66: obstacle | E66: PAU | H66: Conditions | I66: C4 | J66: 4et5ans | K66: 6 | L66: 585.418 | M66: 46.83344 | N66: 42.044 | O66: 4.78944
A67: 1900-01-04 | B67: 2026-01-07 | C67: C6 | D67: obstacle | E67: PAU | H67: Conditions | I67: C2 | J67: 5ans | K67: 7 | L67: 613.639 | M67: 49.09112 | N67: 38.462 | O67: 10.62912
A68: 1900-01-04 | B68: 2026-01-07 | C68: C7 | D68: obstacle | E68: PAU | H68: Hdcp | J68: 6anset+ | K68: 10 | L68: 755.569 | M68: 60.44552 | N68: 60.682 | O68: -0.23648
A69: 1900-01-06 | B69: 2026-01-09 | C69: C1 | D69: obstacle | E69: PAU | H69: Conditions | J69: 5anset+ AA | K69: 8 | L69: 387.023 | M69: 30.96184 | N69: 50.011 | O69: -19.04916
A70: 1900-01-06 | B70: 2026-01-09 | C70: C2 | D70: obstacle | E70: PAU | H70: Conditions | J70: 4ans AA | K70: 10 | L70: 525.038 | M70: 42.00304 | N70: 49.374 | O70: -7.37096
A71: 1900-01-06 | B71: 2026-01-09 | C71: C3 | D71: obstacle | E71: PAU | H71: Conditions | I71: C3 | J71: 6anset+ | K71: 10 | L71: 439.56 | M71: 35.1648 | N71: 33.203 | O71: 1.9618
A72: 1900-01-06 | B72: 2026-01-09 | C72: C4 | D72: obstacle | E72: PAU | H72: Réclamers | J72: 4ans | K72: 9 | L72: 497.721 | M72: 39.81768 | N72: 22.23 | O72: 17.58768
A73: 1900-01-01 | B73: 2026-01-11 | C73: C1 | D73: obstacle | E73: PAU | H73: Conditions | J73: 5ans AA | K73: 4 | L73: 170.796 | M73: 13.66368 | N73: 39.925 | O73: -26.26132
A74: 1900-01-01 | B74: 2026-01-11 | C74: C3 | D74: obstacle | E74: PAU | H74: Conditions | I74: C2 | J74: 6ans | K74: 8 | L74: 457.46 | M74: 36.5968 | N74: 37.782 | O74: -1.1852
A75: 1900-01-01 | B75: 2026-01-11 | C75: C4 | D75: obstacle | E75: PAU | H75: Réclamers | J75: 5anset+ | K75: 9 | L75: 413.688 | M75: 33.09504 | N75: 0 | O75: 33.09504
A76: 1900-01-01 | B76: 2026-01-11 | C76: C6 | D76: obstacle | E76: PAU | H76: Réclamers | J76: 6anset+ | K76: 10 | L76: 581.831 | M76: 46.54648 | N76: 21.75 | O76: 24.79648
A77: 1900-01-01 | B77: 2026-01-11 | C77: C8 | D77: obstacle | E77: PAU | H77: Conditions | I77: C4 | J77: 4ans | K77: 11 | L77: 703.961 | M77: 56.31688 | N77: 42.684 | O77: 13.63288
A78: 1900-01-03 | B78: 2026-01-13 | C78: C2 | D78: obstacle | E78: PAU | H78: Conditions | I78: C1 | J78: 6anset+ | K78: 6 | L78: 284.212 | M78: 22.73696 | N78: 52.484 | O78: -29.74704
A79: 1900-01-03 | B79: 2026-01-13 | C79: C3 | D79: obstacle | E79: PAU | H79: Conditions | I79: C4 | J79: 4ans | K79: 13 | L79: 465.174 | M79: 37.21392 | N79: 37.116 | O79: 0.09792
A80: 1900-01-03 | B80: 2026-01-13 | C80: C4 | D80: obstacle | E80: PAU | H80: Conditions | I80: C3 | J80: 5anset+ | K80: 9 | L80: 529.732 | M80: 42.37856 | N80: 38.924 | O80: 3.45456
A81: 1900-01-03 | B81: 2026-01-13 | C81: C6 | D81: obstacle | E81: PAU | H81: Réclamers | J81: 5ans | K81: 11 | L81: 510.462 | M81: 40.83696 | N81: 23.09 | O81: 17.74696
A82: 1900-01-03 | B82: 2026-01-13 | C82: C8 | D82: obstacle | E82: PAU | H82: Conditions | I82: C2 | J82: 5ans AQPS | K82: 12 | L82: 703.525 | M82: 56.282 | N82: 45.569 | O82: 10.713
A83: 1900-01-06 | B83: 2026-01-16 | C83: C1 | D83: obstacle | E83: PAU | H83: Conditions | J83: 6anset+ AA | K83: 6 | L83: 201.86 | M83: 16.1488 | N83: 52.484 | O83: -36.3352
A84: 1900-01-06 | B84: 2026-01-16 | C84: C2 | D84: obstacle | E84: PAU | H84: Conditions | I84: C1 | J84: 4ans | K84: 7 | L84: 268.969 | M84: 21.51752 | N84: 51.957 | O84: -30.43948
A85: 1900-01-06 | B85: 2026-01-16 | C85: C3 | D85: obstacle | E85: PAU | H85: Conditions | I85: C2 | J85: 5ans | K85: 11 | L85: 407.782 | M85: 32.62256 | N85: 44.837 | O85: -12.21444
A86: 1900-01-06 | B86: 2026-01-16 | C86: C4 | D86: obstacle | E86: PAU | H86: Conditions | I86: C3 | J86: 4ans | K86: 11 | L86: 444.929 | M86: 35.59432 | N86: 39.437 | O86: -3.84268
A87: 1900-01-06 | B87: 2026-01-16 | C87: C5 | D87: obstacle | E87: PAU | H87: Conditions | I87: C3 | J87: 4ans AQPS | K87: 12 | L87: 536.961 | M87: 42.95688 | N87: 39.437 | O87: 3.51988
A88: 1900-01-06 | B88: 2026-01-16 | C88: C7 | D88: obstacle | E88: PAU | H88: Hdcp | J88: 5ans | K88: 12 | L88: 544.141 | M88: 43.53128 | N88: 73.278 | O88: -29.74672
A89: 1900-01-01 | B89: 2026-01-18 | C89: C1 | D89: obstacle | E89: PAU | H89: Conditions | I89: C4 | J89: 4ans AQPS | K89: 6 | L89: 208.059 | M89: 16.64472 | N89: 36.56 | O89: -19.91528
A90: 1900-01-01 | B90: 2026-01-18 | C90: C2 | D90: obstacle | E90: PAU | H90: Conditions | I90: C2 | J90: 6anset+ | K90: 7 | L90: 317.22 | M90: 25.3776 | N90: 37.216 | O90: -11.8384
A91: 1900-01-01 | B91: 2026-01-18 | C91: C3 | D91: obstacle | E91: PAU | H91: Conditions | I91: C1 | J91: 4ans | K91: 6 | L91: 280.037 | M91: 22.40296 | N91: 49.561 | O91: -27.15804
A92: 1900-01-01 | B92: 2026-01-18 | C92: C5 | D92: obstacle | E92: PAU | H92: Conditions | I92: C1 | J92: 4ans | K92: 7 | L92: 255.371 | M92: 20.42968 | N92: 52.717 | O92: -32.28732
A93: 1900-01-01 | B93: 2026-01-18 | C93: C6 | D93: obstacle | E93: PAU | H93: Listed | J93: 5anset+ | K93: 7 | L93: 425.515 | M93: 34.0412 | N93: 96.177 | O93: -62.1358
A94: 1900-01-01 | B94: 2026-01-18 | C94: C9 | D94: obstacle | E94: PAU | H94: GROUPES | I94: III | J94: 5anset+ | K94: 8 | L94: 593.959 | M94: 47.51672 | N94: 159.638 | O94: -112.12128
A95: 1900-01-03 | B95: 2026-01-20 | C95: C2 | D95: obstacle | E95: PAU | F95: TQQ+ | H95: Hdcp | J95: 5anset+ | K95: 15 | L95: 5342.527 | M95: 427.40216 | N95: 95.031 | O95: 332.37116
A96: 1900-01-03 | B96: 2026-01-20 | C96: C3 | D96: obstacle | E96: PAU | H96: Conditions | I96: C3 | J96: 4ans | K96: 8 | L96: 483.232 | M96: 38.65856 | N96: 45.351 | O96: -6.69244
A97: 1900-01-03 | B97: 2026-01-20 | C97: C4 | D97: obstacle | E97: PAU | H97: Conditions | I97: C3 | J97: 5anset+ | K97: 10 | L97: 536.826 | M97: 42.94608 | N97: 39.1 | O97: 3.84608
A98: 1900-01-03 | B98: 2026-01-20 | C98: C5 | D98: obstacle | E98: PAU | H98: Conditions | I98: C3 | J98: 4ans | K98: 11 | L98: 516.609 | M98: 41.32872 | N98: 39.437 | O98: 1.89172
A99: 1900-01-03 | B99: 2026-01-20 | C99: C7 | D99: obstacle | E99: PAU | H99: Hdcp | J99: 5anset+ | K99: 13 | L99: 631.809 | M99: 50.54472 | N99: 60.682 | O99: -10.13728
A100: 1900-01-03 | B100: 2026-01-20 | C100: C8 | D100: obstacle | E100: PAU | H100: Hdcp | J100: 5ans | K100: 11 | L100: 795.996 | M100: 63.67968 | N100: 74.652 | O100: -10.97232
A101: 1900-01-06 | B101: 2026-01-23 | C101: C2 | D101: obstacle | E101: PAU | H101: Réclamers | J101: 5anset+ | K101: 12 | L101: 370.252 | M101: 29.62016 | N101: 23.673 | O101: 5.94716
A102: 1900-01-06 | B102: 2026-01-23 | C102: C3 | D102: obstacle | E102: PAU | H102: Conditions | I102: C3 | J102: 4et5ans | K102: 10 | L102: 435.506 | M102: 34.84048 | N102: 45.351 | O102: -10.51052
A103: 1900-01-06 | B103: 2026-01-23 | C103: C4 | D103: obstacle | E103: PAU | H103: Conditions | I103: C3 | J103: 5ans | K103: 11 | L103: 530.852 | M103: 42.46816 | N103: 39.684 | O103: 2.78416
A104: 1900-01-06 | B104: 2026-01-23 | C104: C6 | D104: obstacle | E104: PAU | H104: Conditions | I104: C3 | J104: 5ans | K104: 12 | L104: 447.29 | M104: 35.7832 | N104: 35.568 | O104: 0.2152
A105: 1900-01-06 | B105: 2026-01-23 | C105: C7 | D105: obstacle | E105: PAU | H105: Réclamers | J105: 4ans | K105: 13 | L105: 518.549 | M105: 41.48392 | N105: 22.037 | O105: 19.44692
A106: 1900-01-04 | B106: 2026-01-28 | C106: C1 | D106: obstacle | E106: PAU | F106: TQQ+ | H106: Hdcp | J106: 5anset+ | K106: 14 | L106: 5364.525 | M106: 429.162 | N106: 94.731 | O106: 334.431
A107: 1900-01-04 | B107: 2026-01-28 | C107: C2 | D107: obstacle | E107: PAU | H107: Conditions | I107: C3 | J107: 6ans AQPS | K107: 7 | L107: 420.038 | M107: 33.60304 | N107: 37.174 | O107: -3.57096
A108: 1900-01-04 | B108: 2026-01-28 | C108: C3 | D108: obstacle | E108: PAU | H108: Hdcp | J108: 4ans | K108: 9 | L108: 500.961 | M108: 40.07688 | N108: 58.101 | O108: -18.02412
A109: 1900-01-04 | B109: 2026-01-28 | C109: C4 | D109: obstacle | E109: PAU | H109: Conditions | I109: C2 | J109: 4ans | K109: 8 | L109: 525.975 | M109: 42.078 | N109: 48.611 | O109: -6.533
A110: 1900-01-04 | B110: 2026-01-28 | C110: C6 | D110: obstacle | E110: PAU | H110: Hdcp | J110: 5anset+ | K110: 14 | L110: 532.511 | M110: 42.60088 | N110: 61.001 | O110: -18.40012
A111: 1900-01-06 | B111: 2026-01-30 | C111: C1 | D111: obstacle | E111: PAU | H111: Conditions | J111: 5anset+ AA | K111: 7 | L111: 260.517 | M111: 20.84136 | N111: 38.924 | O111: -18.08264
A112: 1900-01-06 | B112: 2026-01-30 | C112: C2 | D112: obstacle | E112: PAU | H112: Conditions | I112: C2 | J112: 5ans | K112: 7 | L112: 219.549 | M112: 17.56392 | N112: 45.061 | O112: -27.49708
A113: 1900-01-06 | B113: 2026-01-30 | C113: C3 | D113: obstacle | E113: PAU | H113: Réclamers | J113: 4ans | K113: 7 | L113: 272.213 | M113: 21.77704 | N113: 24.416 | O113: -2.63896
A114: 1900-01-06 | B114: 2026-01-30 | C114: C4 | D114: obstacle | E114: PAU | H114: Conditions | J114: 4ans AA | K114: 8 | L114: 355.488 | M114: 28.43904 | N114: 44.17 | O114: -15.73096
A115: 1900-01-06 | B115: 2026-01-30 | C115: C5 | D115: obstacle | E115: PAU | H115: Conditions | I115: C3 | J115: 6anset+ | K115: 11 | L115: 454.293 | M115: 36.34344 | N115: 33.203 | O115: 3.14044
A116: 1900-01-06 | B116: 2026-01-30 | C116: C7 | D116: obstacle | E116: PAU | H116: Conditions | I116: C2 | J116: 4ans | K116: 10 | L116: 554.218 | M116: 44.33744 | N116: 42.273 | O116: 2.06444
A117: 1900-01-03 | B117: 2026-02-03 | C117: C1 | D117: obstacle | E117: PAU | H117: Conditions | I117: C3 | J117: 4ans | K117: 6 | L117: 237.328 | M117: 18.98624 | N117: 38.846 | O117: -19.85976
A118: 1900-01-03 | B118: 2026-02-03 | C118: C2 | D118: obstacle | E118: PAU | H118: Conditions | I118: C3 | J118: 5ans AQPS | K118: 9 | L118: 464.23 | M118: 37.1384 | N118: 41.553 | O118: -4.4146
A119: 1900-01-03 | B119: 2026-02-03 | C119: C3 | D119: obstacle | E119: PAU | H119: Conditions | I119: C1 | J119: 5ans | K119: 9 | L119: 435.95 | M119: 34.876 | N119: 55.327 | O119: -20.451
A120: 1900-01-03 | B120: 2026-02-03 | C120: C5 | D120: obstacle | E120: PAU | H120: Conditions | I120: C3 | J120: 4ans | K120: 7 | L120: 325.598 | M120: 26.04784 | N120: 38.846 | O120: -12.79816
A121: 1900-01-03 | B121: 2026-02-03 | C121: C6 | D121: obstacle | E121: PAU | H121: Conditions | I121: C3 | J121: 4ans AQPS | K121: 8 | L121: 589.133 | M121: 47.13064 | N121: 39.379 | O121: 7.75164
A122: 1900-01-03 | B122: 2026-02-03 | C122: C8 | D122: obstacle | E122: PAU | H122: Conditions | I122: C3 | J122: 5anset+ | K122: 11 | L122: 735.387 | M122: 58.83096 | N122: 38.46 | O122: 20.37096
A123: 1900-01-06 | B123: 2026-02-06 | C123: C1 | D123: obstacle | E123: PAU | H123: Conditions | J123: 4et5ans AA | K123: 4 | L123: 193.813 | M123: 15.50504 | N123: 32.34 | O123: -16.83496
A124: 1900-01-06 | B124: 2026-02-06 | C124: C2 | D124: obstacle | E124: PAU | H124: Conditions | J124: 5anset+ AA | K124: 5 | L124: 234.423 | M124: 18.75384 | N124: 37.174 | O124: -18.42016
A125: 1900-01-06 | B125: 2026-02-06 | C125: C3 | D125: obstacle | E125: PAU | H125: Conditions | I125: C3 | J125: 4ans AQPS | K125: 5 | L125: 260.511 | M125: 20.84088 | N125: 37.663 | O125: -16.82212
A126: 1900-01-06 | B126: 2026-02-06 | C126: C4 | D126: obstacle | E126: PAU | H126: Réclamers | J126: 4ans | K126: 7 | L126: 288.942 | M126: 23.11536 | N126: 22.812 | O126: 0.30336
A127: 1900-01-06 | B127: 2026-02-06 | C127: C5 | D127: obstacle | E127: PAU | H127: Hdcp | J127: 5ans | K127: 12 | L127: 624.357 | M127: 49.94856 | N127: 53.223 | O127: -3.27444
A128: 1900-01-06 | B128: 2026-02-06 | C128: C7 | D128: obstacle | E128: PAU | H128: Hdcp | J128: 5anset+ | K128: 12 | L128: 741.87 | M128: 59.3496 | N128: 43.187 | O128: 16.1626
A129: 1900-01-01 | B129: 2026-02-08 | C129: C1 | D129: obstacle | E129: PAU | H129: Conditions | J129: 6anset+ | K129: 7 | L129: 161.581 | M129: 12.92648 | N129: 31.709 | O129: -18.78252
A130: 1900-01-01 | B130: 2026-02-08 | C130: C3 | D130: obstacle | E130: PAU | H130: Conditions | J130: 4ans | K130: 9 | L130: 340.038 | M130: 27.20304 | N130: 36.727 | O130: -9.52396
A131: 1900-01-01 | B131: 2026-02-08 | C131: C2 | D131: obstacle | E131: PAU | H131: Listed | J131: 4ans | K131: 7 | L131: 371.312 | M131: 29.70496 | N131: 82.61 | O131: -52.90504
A132: 1900-01-01 | B132: 2026-02-08 | C132: C3 | D132: obstacle | E132: PAU | H132: Conditions | I132: C1 | J132: 5anset+ | K132: 9 | L132: 437.744 | M132: 35.01952 | N132: 57.247 | O132: -22.22748
A133: 1900-01-01 | B133: 2026-02-08 | C133: C4 | D133: obstacle | E133: PAU | H133: Listed | J133: 4ans | K133: 8 | L133: 464.903 | M133: 37.19224 | N133: 86.775 | O133: -49.58276
A134: 1900-01-01 | B134: 2026-02-08 | C134: C6 | D134: obstacle | E134: PAU | H134: Conditions | I134: C1 | J134: 5anset+ | K134: 8 | L134: 586.979 | M134: 46.95832 | N134: 54.672 | O134: -7.71368
A135: 1900-01-01 | B135: 2026-02-08 | C135: C8 | D135: obstacle | E135: PAU | H135: Listed | J135: 6anset+ | K135: 5 | L135: 437.625 | M135: 35.01 | N135: 86.382 | O135: -51.372
A136: 1900-01-01 | B136: 2026-02-08 | C136: C9 | D136: obstacle | E136: PAU | H136: Hdcp | J136: 6anset+ | K136: 11 | L136: 606.45 | M136: 48.516 | N136: 42.362 | O136: 6.154

Sheet Feuil7
E2: COURSES CREUSES 2023 VS 2022
B3: 2023 | K3: 2022
A4: 2 ANS | K4: 2 ANS | L4: 2022
A5: 1900-01-05 | B5: 2023-03-16 | C5: plat | D5: MARSEILLE BORELY | G5: Inédits | I5: 2ans | J5: 7 | K5: 1900-01-05 | L5: 2022-03-24 | M5: plat | N5: SAINT-CLOUD | Q5: Réclamers | S5: 2ans | T5: 6
A6: 1900-01-05 | B6: 2023-04-20 | C6: plat | D6: TARBES | G6: Inédits | I6: 2ans | J6: 7 | K6: 1900-01-02 | L6: 2022-04-04 | M6: plat | N6: MARSEILLE BORELY | Q6: Inédits | S6: 2ans | T6: 6
A7: 1900-01-05 | B7: 2023-04-20 | C7: plat | D7: TARBES | G7: Inédits | I7: 2ans | J7: 7 | K7: 1900-01-03 | L7: 2022-04-26 | M7: plat | N7: LYON PARILLY | Q7: Conditions | R7: C2 | S7: 2ans | T7: 5
A8: 1900-01-07 | B8: 2023-04-22 | C8: plat | D8: LYON PARILLY | G8: Conditions | H8: C2 | I8: 2ans | J8: 7 | K8: 1900-01-06 | L8: 2022-04-29 | M8: plat | N8: MARSEILLE BORELY | Q8: Maiden | S8: 2ans | T8: 5
A9: 1900-01-02 | B9: 2023-04-24 | C9: plat | D9: BORDEAUX LE BOUSCAT | G9: Maiden | I9: 2ans | J9: 6 | K9: 1900-01-07 | L9: 2022-04-30 | M9: plat | N9: TARBES | Q9: Inédits | S9: 2ans | T9: 7
A10: 1900-01-03 | B10: 2023-05-09 | C10: plat | D10: CHANTILLY | G10: Inédits | I10: 2ans | J10: 7 | K10: 1900-01-07 | L10: 2022-04-30 | M10: plat | N10: TARBES | Q10: Inédits | S10: 2ans | T10: 7
A11: 1900-01-05 | B11: 2023-05-11 | C11: plat | D11: PARISLONGCHAMP | G11: Conditions | H11: C2 | I11: 2ans | J11: 6 | K11: 1900-01-04 | L11: 2022-05-04 | M11: plat | N11: PARISLONGCHAMP | Q11: Conditions | R11: C2 | S11: 2ans | T11: 7
A12: 1900-01-07 | B12: 2023-05-13 | C12: plat | D12: TARBES | G12: Maiden | I12: 2ans | J12: 6 | K12: 1900-01-07 | L12: 2022-05-07 | M12: plat | N12: LYON PARILLY | Q12: Réclamers | S12: 2ans | T12: 6
A13: 1900-01-02 | B13: 2023-05-15 | C13: plat | D13: BORDEAUX LE BOUSCAT | G13: Conditions | H13: C2 | I13: 2ans | J13: 5 | K13: 1900-01-01 | L13: 2022-05-08 | M13: plat | N13: BORDEAUX LE BOUSCAT | Q13: Maiden | S13: 2ans | T13: 7
A14: 1900-01-02 | B14: 2023-05-15 | C14: plat | D14: BORDEAUX LE BOUSCAT | G14: Inédits | I14: 2ans | J14: 7 | K14: 1900-01-03 | L14: 2022-05-10 | M14: plat | N14: CHANTILLY | Q14: Inédits | S14: 2ans | T14: 7
A15: 1900-01-04 | B15: 2023-05-17 | C15: plat | D15: CHATEAUBRIANT | G15: Maiden | I15: 2ans | J15: 7 | K15: 1900-01-07 | L15: 2022-05-14 | M15: plat | N15: BORDEAUX LE BOUSCAT | Q15: Conditions | R15: C2 | S15: 2ans | T15: 7
A16: 1900-01-04 | B16: 2023-05-17 | C16: plat | D16: VICHY | G16: Réclamers | I16: 2ans | J16: 6 | K16: 1900-01-06 | L16: 2022-05-20 | M16: plat | N16: TOULOUSE | O16: internet | Q16: Maiden | S16: 2ans | T16: 6
A17: 1900-01-06 | B17: 2023-05-19 | C17: plat | D17: CHANTILLY | G17: Maiden | I17: 2ans | J17: 5 | K17: 1900-01-02 | L17: 2022-05-23 | M17: plat | N17: MARSEILLE BORELY | Q17: Conditions | R17: C2 | S17: 2ans | T17: 3
A18: 1900-01-02 | B18: 2023-05-22 | C18: plat | D18: MARSEILLE BORELY | G18: Réclamers | I18: 2ans | J18: 6 | K18: 1900-01-03 | L18: 2022-05-24 | M18: plat | N18: SAINT-CLOUD | Q18: Conditions | R18: C2 | S18: 2ans | T18: 5
A19: 1900-01-03 | B19: 2023-05-23 | C19: plat | D19: SAINT-CLOUD | G19: Inédits | I19: 2ans | J19: 6 | K19: 1900-01-06 | L19: 2022-05-27 | M19: plat | N19: SALON-DE-PROVENCE | Q19: Réclamers | S19: 2ans | T19: 6
A20: 1900-01-04 | B20: 2023-05-24 | C20: plat | D20: LE MANS | G20: Inédits | I20: 2ans | J20: 7 | K20: 1900-01-03 | L20: 2022-05-31 | M20: plat | N20: ANGERS | Q20: Conditions | R20: C2 | S20: 2ans | T20: 7
A21: 1900-01-05 | B21: 2023-05-25 | C21: plat | D21: PARISLONGCHAMP | G21: Maiden | I21: 2ans | J21: 6 | K21: 1900-01-01 | L21: 2022-06-05 | M21: plat | N21: CHANTILLY | Q21: Inédits | S21: 2ans | T21: 6
A22: 1900-01-01 | B22: 2023-05-28 | C22: plat | D22: SAINT-CLOUD | G22: Réclamers | I22: 2ans | J22: 5 | K22: 1900-01-02 | L22: 2022-06-06 | M22: plat | N22: SAINT-CLOUD | Q22: Conditions | R22: C2 | S22: 2ans | T22: 6
A23: 1900-01-01 | B23: 2023-05-28 | C23: plat | D23: SAINT-CLOUD | G23: Conditions | H23: C2 | I23: 2ans | J23: 5 | K23: 1900-01-02 | L23: 2022-06-06 | M23: plat | N23: SAINT-CLOUD | Q23: Réclamers | S23: 2ans | T23: 7
A24: 1900-01-03 | B24: 2023-05-30 | C24: plat | D24: ANGERS | G24: Réclamers | I24: 2ans | J24: 5 | K24: 1900-01-03 | L24: 2022-06-07 | M24: plat | N24: LA TESTE DE BUCH | Q24: Maiden | S24: 2ans | T24: 6
A25: 1900-01-05 | B25: 2023-06-01 | C25: plat | D25: PARISLONGCHAMP | G25: Maiden | I25: 2ans | J25: 7 | K25: 1900-01-05 | L25: 2022-06-09 | M25: plat | N25: PARISLONGCHAMP | Q25: Maiden | S25: 2ans | T25: 7
A26: 1900-01-07 | B26: 2023-06-03 | C26: plat | D26: LYON PARILLY | G26: Maiden | I26: 2ans | J26: 7 | K26: 1900-01-07 | L26: 2022-06-11 | M26: plat | N26: LYON PARILLY | Q26: Réclamers | S26: 2ans | T26: 6
A27: 1900-01-01 | B27: 2023-06-04 | C27: plat | D27: CHANTILLY | G27: Inédits | I27: 2ans | J27: 7 | K27: 1900-01-05 | L27: 2022-06-16 | M27: plat | N27: LA TESTE DE BUCH | Q27: Conditions | R27: C2 | S27: 2ans | T27: 7
A28: 1900-01-02 | B28: 2023-06-05 | C28: plat | D28: LA TESTE-BASSIN ARCACHON | G28: Maiden | I28: 2ans | J28: 7 | K28: 1900-01-06 | L28: 2022-06-17 | M28: plat | N28: LA TESTE DE BUCH | Q28: Maiden | S28: 2ans | T28: 7
A29: 1900-01-02 | B29: 2023-06-05 | C29: plat | D29: LA TESTE-BASSIN ARCACHON | G29: Maiden | I29: 2ans | J29: 5 | K29: 1900-01-06 | L29: 2022-06-17 | M29: plat | N29: DIEPPE | Q29: Conditions | R29: C2 | S29: 2ans | T29: 7
A30: 1900-01-03 | B30: 2023-06-06 | C30: plat | D30: SAINT-CLOUD | G30: Inédits | I30: 2ans | J30: 7 | K30: 1900-01-01 | L30: 2022-06-19 | M30: plat | N30: CHANTILLY | Q30: Inédits | S30: 2ans | T30: 5
A31: 1900-01-06 | B31: 2023-06-09 | C31: plat | D31: MARSEILLE BORELY | G31: Maiden | I31: 2ans | J31: 7 | K31: 1900-01-03 | L31: 2022-06-21 | M31: plat | N31: SAINT-CLOUD | Q31: Maiden | S31: 2ans | T31: 7
A32: 1900-01-01 | B32: 2023-06-11 | C32: plat | D32: TARBES | G32: Conditions | H32: C2 | I32: 2ans | J32: 6 | K32: 1900-01-03 | L32: 2022-06-21 | M32: plat | N32: SAINT-CLOUD | Q32: Maiden | S32: 2ans | T32: 7
A33: 1900-01-04 | B33: 2023-06-14 | C33: plat | D33: SAINT-CLOUD | G33: Maiden | I33: 2ans | J33: 7 | K33: 1900-01-04 | L33: 2022-06-22 | M33: plat | N33: SALON-DE-PROVENCE | Q33: Réclamers | S33: 2ans | T33: 6
A34: 1900-01-05 | B34: 2023-06-15 | C34: plat | D34: PARISLONGCHAMP | G34: Conditions | H34: C2 | I34: 2ans | J34: 4 | K34: 1900-01-05 | L34: 2022-06-23 | M34: plat | N34: CHATEAUBRIANT | Q34: Maiden | S34: 2ans | T34: 6
A35: 1900-01-06 | B35: 2023-06-16 | C35: plat | D35: DIEPPE | G35: Réclamers | I35: 2ans | J35: 7 | K35: 1900-01-05 | L35: 2022-06-23 | M35: plat | N35: CHANTILLY | Q35: Maiden | S35: 2ans | T35: 6
A36: 1900-01-01 | B36: 2023-06-18 | C36: plat | D36: CHANTILLY | G36: Inédits | I36: 2ans | J36: 7 | K36: 1900-01-05 | L36: 2022-06-23 | M36: plat | N36: CHANTILLY | Q36: Maiden | S36: 2ans | T36: 6
A37: 1900-01-03 | B37: 2023-06-20 | C37: plat | D37: NANTES | G37: Conditions | H37: C2 | I37: 2ans | J37: 6 | K37: 1900-01-06 | L37: 2022-06-24 | M37: plat | N37: SAINT-CLOUD | Q37: Inédits | S37: 2ans | T37: 7
A38: 1900-01-05 | B38: 2023-06-22 | C38: plat | D38: SENONNES-POUANCE | G38: Maiden | I38: 2ans | J38: 6 | K38: 1900-01-01 | L38: 2022-06-26 | M38: plat | N38: LYON PARILLY | Q38: Conditions | R38: C2 | S38: 2ans | T38: 6
A39: 1900-01-05 | B39: 2023-06-22 | C39: plat | D39: LA TESTE-BASSIN ARCACHON | G39: Inédits | I39: 2ans | J39: 7
A40: 1900-01-07 | B40: 2023-06-24 | C40: plat | D40: COMPIEGNE | G40: Inédits | I40: 2ans | J40: 7
A41: 1900-01-01 | B41: 2023-06-25 | C41: plat | D41: LYON PARILLY | G41: Conditions | H41: C2 | I41: 2ans | J41: 6
A42: 1900-01-02 | B42: 2023-06-26 | C42: plat | D42: LYON PARILLY | G42: Maiden | I42: 2ans | J42: 7
A43: 1900-01-04 | B43: 2023-06-28 | C43: plat | D43: CHANTILLY | G43: Maiden | I43: 2ans | J43: 7
A44: 1900-01-04 | B44: 2023-06-28 | C44: plat | D44: CHANTILLY | G44: Maiden | I44: 2ans | J44: 6
A46: 3 ANS
A47: 1900-01-04 | B47: 2023-03-01 | C47: plat | D47: CHANTILLY | G47: Réclamers | I47: 3ans | J47: 7 | K47: 1900-01-04 | L47: 2022-03-02 | M47: plat | N47: MARSEILLE PONT DE VIVAUX | Q47: Réclamers | S47: 3ans | T47: 6
A48: 1900-01-05 | B48: 2023-03-02 | C48: plat | D48: LYON LA SOIE | G48: Réclamers | I48: 3ans | J48: 7 | K48: 1900-01-06 | L48: 2022-03-04 | M48: plat | N48: BORDEAUX LE BOUSCAT | Q48: Maiden | S48: 3ans | T48: 5
A49: 1900-01-06 | B49: 2023-03-03 | C49: plat | D49: BORDEAUX LE BOUSCAT | G49: Conditions | H49: C2 | I49: 3ans | J49: 6 | K49: 1900-01-07 | L49: 2022-03-05 | M49: plat | N49: DEAUVILLE | Q49: Conditions | R49: C2 | S49: 3ans | T49: 7
A50: 1900-01-07 | B50: 2023-03-04 | C50: plat | D50: MONT-DE-MARSAN | E50: internet | G50: Conditions | I50: 3ans | J50: 7 | K50: 1900-01-07 | L50: 2022-03-05 | M50: plat | N50: DEAUVILLE | Q50: Conditions | R50: C2 | S50: 3ans | T50: 7
A51: 1900-01-02 | B51: 2023-03-06 | C51: plat | D51: MARSEILLE BORELY | G51: Conditions | H51: C2 | I51: 3ans | J51: 4 | K51: 1900-01-02 | L51: 2022-03-07 | M51: plat | N51: MARSEILLE PONT DE VIVAUX | Q51: Réclamers | S51: 3ans | T51: 7
A52: 1900-01-02 | B52: 2023-03-06 | C52: plat | D52: MARSEILLE BORELY | G52: Réclamers | I52: 3ans | J52: 5 | K52: 1900-01-02 | L52: 2022-03-07 | M52: plat | N52: MARSEILLE PONT DE VIVAUX | Q52: Conditions | R52: C2 | S52: 3ans | T52: 7
A53: 1900-01-02 | B53: 2023-03-06 | C53: plat | D53: TOULOUSE | G53: Conditions | I53: 3ans | J53: 7 | K53: 1900-01-02 | L53: 2022-03-07 | M53: plat | N53: MARSEILLE PONT DE VIVAUX | Q53: Maiden | S53: 3ans | T53: 7
A54: 1900-01-05 | B54: 2023-03-09 | C54: plat | D54: SAINT-CLOUD | G54: Conditions | H54: C2 | I54: 3ans | J54: 6 | K54: 1900-01-01 | L54: 2022-03-13 | M54: plat | N54: TOULOUSE | Q54: Conditions | R54: C2 | S54: 3ans | T54: 7
A55: 1900-01-07 | B55: 2023-03-11 | C55: plat | D55: DEAUVILLE | G55: Conditions | H55: C1 | I55: 3ans | J55: 4 | K55: 1900-01-02 | L55: 2022-03-14 | M55: plat | N55: CHANTILLY | Q55: Conditions | R55: C2 | S55: 3ans | T55: 6
A56: 1900-01-07 | B56: 2023-03-11 | C56: plat | D56: DEAUVILLE | G56: Conditions | H56: C1 | I56: 3ans | J56: 5 | K56: 1900-01-06 | L56: 2022-03-18 | M56: plat | N56: TOULOUSE | Q56: Conditions | R56: C1 | S56: 3ans | T56: 6
A57: 1900-01-01 | B57: 2023-03-12 | C57: plat | D57: COMPIEGNE | G57: Conditions | H57: C1 | I57: 3ans | J57: 6 | K57: 1900-01-01 | L57: 2022-03-20 | M57: plat | N57: LYON PARILLY | Q57: Conditions | R57: C2 | S57: 3ans | T57: 7
A58: 1900-01-01 | B58: 2023-03-12 | C58: plat | D58: COMPIEGNE | G58: Maiden | I58: 3ans | J58: 7 | K58: 1900-01-02 | L58: 2022-03-21 | M58: plat | N58: MARSEILLE PONT DE VIVAUX | Q58: Hdcp | S58: 3ans | T58: 7
A59: 1900-01-02 | B59: 2023-03-13 | C59: plat | D59: CHANTILLY | G59: Conditions | H59: C2 | I59: 3ans | J59: 6 | K59: 1900-01-03 | L59: 2022-03-22 | M59: plat | N59: CHANTILLY | Q59: Conditions | R59: C1 | S59: 3ans | T59: 7
A60: 1900-01-02 | B60: 2023-03-13 | C60: plat | D60: CHANTILLY | G60: Conditions | H60: C2 | I60: 3ans | J60: 7 | K60: 1900-01-05 | L60: 2022-03-24 | M60: plat | N60: LYON LA SOIE | Q60: Maiden | S60: 3ans | T60: 7
A61: 1900-01-04 | B61: 2023-03-15 | C61: plat | D61: CHANTILLY | G61: Maiden | I61: 3ans | J61: 7 | K61: 1900-01-06 | L61: 2022-03-25 | M61: plat | N61: MARSEILLE PONT DE VIVAUX | Q61: Réclamers | S61: 3ans | T61: 7
A62: 1900-01-04 | B62: 2023-03-15 | C62: plat | D62: CHANTILLY | G62: Conditions | H62: C2 | I62: 3ans | J62: 6 | K62: 1900-01-07 | L62: 2022-03-26 | M62: plat | N62: TOULOUSE | Q62: Inédits | S62: 3ans | T62: 7
A63: 1900-01-07 | B63: 2023-03-18 | C63: plat | D63: TOULOUSE | G63: Inédits | I63: 3ans | J63: 6 | K63: 1900-01-07 | L63: 2022-03-26 | M63: plat | N63: TOULOUSE | Q63: Conditions | R63: C1 | S63: 3ans | T63: 7
A64: 1900-01-07 | B64: 2023-03-18 | C64: plat | D64: TOULOUSE | G64: Conditions | H64: C1 | I64: 3ans | J64: 6 | K64: 1900-01-01 | L64: 2022-03-27 | M64: plat | N64: PORNICHET | Q64: Conditions | R64: C2 | S64: 3ans | T64: 7
A65: 1900-01-07 | B65: 2023-03-18 | C65: plat | D65: TOULOUSE | G65: Réclamers | I65: 3ans | J65: 7 | K65: 1900-01-02 | L65: 2022-03-28 | M65: plat | N65: FONTAINEBLEAU | Q65: Maiden | S65: 3ans | T65: 6
A66: 1900-01-01 | B66: 2023-03-19 | C66: plat | D66: LYON PARILLY | G66: Conditions | H66: C2 | I66: 3ans | J66: 5 | K66: 1900-01-03 | L66: 2022-03-29 | M66: plat | N66: SAINT-CLOUD | Q66: Conditions | R66: C2 | S66: 3ans | T66: 5
A67: 1900-01-02 | B67: 2023-03-20 | C67: plat | D67: COMPIEGNE | G67: Réclamers | I67: 3ans | J67: 7 | K67: 1900-01-03 | L67: 2022-03-29 | M67: plat | N67: SAINT-CLOUD | Q67: Conditions | R67: C2 | S67: 3ans | T67: 6
A68: 1900-01-03 | B68: 2023-03-21 | C68: plat | D68: CHANTILLY | G68: Maiden | I68: 3ans | J68: 6 | K68: 1900-01-01 | L68: 2022-04-03 | M68: plat | N68: LE LION D'ANGERS | Q68: Conditions | R68: C2 | S68: 3ans | T68: 7
A69: 1900-01-03 | B69: 2023-03-21 | C69: plat | D69: CHANTILLY | G69: Conditions | H69: C1 | I69: 3ans | J69: 5 | K69: 1900-01-02 | L69: 2022-04-04 | M69: plat | N69: MARSEILLE BORELY | Q69: Conditions | R69: C1 | S69: 3ans | T69: 7
A70: 1900-01-04 | B70: 2023-03-22 | C70: plat | D70: PORNICHET | G70: Conditions | H70: C2 | I70: 3ans | J70: 7 | K70: 1900-01-02 | L70: 2022-04-04 | M70: plat | N70: MARSEILLE BORELY | Q70: Maiden | S70: 3ans | T70: 5
A71: 1900-01-04 | B71: 2023-03-22 | C71: plat | D71: TOULOUSE | G71: Conditions | H71: C1 | I71: 3ans | J71: 6 | K71: 1900-01-03 | L71: 2022-04-05 | M71: plat | N71: SAINT-CLOUD | Q71: Conditions | R71: C1 | S71: 3ans | T71: 6
A72: 1900-01-05 | B72: 2023-03-23 | C72: plat | D72: LYON LA SOIE | G72: Maiden | I72: 3ans | J72: 7 | K72: 1900-01-03 | L72: 2022-04-05 | M72: plat | N72: SAINT-CLOUD | Q72: Conditions | R72: C1 | S72: 3ans | T72: 6
A73: 1900-01-05 | B73: 2023-03-23 | C73: plat | D73: LYON LA SOIE | G73: Maiden | I73: 3ans | J73: 5 | K73: 1900-01-04 | L73: 2022-04-06 | M73: plat | N73: CHANTILLY | Q73: Maiden | S73: 3ans | T73: 6
A74: 1900-01-06 | B74: 2023-03-24 | C74: plat | D74: LE CROISE-LAROCHE | G74: Réclamers | I74: 3ans | J74: 6 | K74: 1900-01-06 | L74: 2022-04-08 | M74: plat | N74: SAINT-CLOUD | Q74: Maiden | S74: 3ans | T74: 7
A75: 1900-01-07 | B75: 2023-03-25 | C75: plat | D75: MARSEILLE PONT DE VIVAUX | G75: Maiden | I75: 3ans | J75: 5 | K75: 1900-01-04 | L75: 2022-04-13 | M75: plat | N75: CHANTILLY | Q75: Conditions | R75: C2 | S75: 3ans | T75: 7
A76: 1900-01-07 | B76: 2023-03-25 | C76: plat | D76: MARSEILLE PONT DE VIVAUX | G76: Conditions | H76: C2 | I76: 3ans | J76: 4 | K76: 1900-01-07 | L76: 2022-04-16 | M76: plat | N76: TOULOUSE | Q76: Réclamers | S76: 3ans | T76: 7
A77: 1900-01-02 | B77: 2023-03-27 | C77: plat | D77: FONTAINEBLEAU | G77: Conditions | H77: C2 | I77: 3ans | J77: 7 | K77: 1900-01-01 | L77: 2022-04-17 | M77: plat | N77: PARISLONGCHAMP | Q77: Conditions | R77: C2 | S77: 3ans | T77: 7
A78: 1900-01-02 | B78: 2023-03-27 | C78: plat | D78: FONTAINEBLEAU | G78: Maiden | I78: 3ans | J78: 7 | K78: 1900-01-02 | L78: 2022-04-18 | M78: plat | N78: SAINT-CLOUD | Q78: Inédits | S78: 3ans | T78: 7
A79: 1900-01-03 | B79: 2023-03-28 | C79: plat | D79: SAINT-CLOUD | G79: Conditions | H79: C2 | I79: 3ans | J79: 6 | K79: 1900-01-03 | L79: 2022-04-19 | M79: plat | N79: MARSEILLE PONT DE VIVAUX | Q79: Maiden | S79: 3ans | T79: 6
A80: 1900-01-03 | B80: 2023-03-28 | C80: plat | D80: SAINT-CLOUD | G80: Conditions | H80: C2 | I80: 3ans | J80: 7 | K80: 1900-01-04 | L80: 2022-04-20 | M80: plat | N80: CHANTILLY | Q80: Conditions | R80: C2 | S80: 3ans | T80: 6
A81: 1900-01-05 | B81: 2023-03-30 | C81: plat | D81: CHANTILLY | G81: Conditions | H81: C2 | I81: 3ans | J81: 6 | K81: 1900-01-05 | L81: 2022-04-21 | M81: plat | N81: PARISLONGCHAMP | Q81: Maiden | S81: 3ans | T81: 7
A82: 1900-01-06 | B82: 2023-03-31 | C82: plat | D82: CHANTILLY | G82: Hdcp | I82: 3ans | J82: 7 | K82: 1900-01-07 | L82: 2022-04-23 | M82: plat | N82: STRASBOURG | Q82: Maiden | S82: 3ans | T82: 7
A83: 1900-01-07 | B83: 2023-04-01 | C83: plat | D83: SAINT-CLOUD | G83: Conditions | H83: C1 | I83: 3ans | J83: 5 | K83: 1900-01-07 | L83: 2022-04-23 | M83: plat | N83: NANTES | Q83: Hdcp | S83: 3ans | T83: 7
A84: 1900-01-01 | B84: 2023-04-02 | C84: plat | D84: BORDEAUX LE BOUSCAT | G84: Conditions | H84: C1 | I84: 3ans | J84: 7 | K84: 1900-01-07 | L84: 2022-04-23 | M84: plat | N84: NANTES | Q84: Conditions | R84: C2 | S84: 3ans | T84: 7
A85: 1900-01-02 | B85: 2023-04-03 | C85: plat | D85: CHANTILLY | G85: Inédits | I85: 3ans | J85: 7 | K85: 1900-01-07 | L85: 2022-04-23 | M85: plat | N85: LYON PARILLY | Q85: Conditions | R85: C1 | S85: 3ans | T85: 6
A86: 1900-01-04 | B86: 2023-04-05 | C86: plat | D86: CHANTILLY | G86: Réclamers | I86: 3ans | J86: 7 | K86: 1900-01-07 | L86: 2022-04-23 | M86: plat | N86: LYON PARILLY | Q86: Conditions | R86: C1 | S86: 3ans | T86: 7
A87: 1900-01-05 | B87: 2023-04-06 | C87: plat | D87: DEAUVILLE | G87: Maiden | I87: 3ans | J87: 7 | K87: 1900-01-01 | L87: 2022-04-24 | M87: plat | N87: TOULOUSE | Q87: Conditions | S87: 3ans | T87: 7
A88: 1900-01-06 | B88: 2023-04-07 | C88: plat | D88: SAINT-CLOUD | G88: Réclamers | I88: 3ans | J88: 7 | K88: 1900-01-02 | L88: 2022-04-25 | M88: plat | N88: BORDEAUX LE BOUSCAT | Q88: Conditions | R88: C2 | S88: 3ans | T88: 7
A89: 1900-01-06 | B89: 2023-04-07 | C89: plat | D89: SAINT-CLOUD | G89: Conditions | H89: C2 | I89: 3ans | J89: 6 | K89: 1900-01-03 | L89: 2022-04-26 | M89: plat | N89: LYON PARILLY | Q89: Maiden | S89: 3ans | T89: 7
A90: 1900-01-06 | B90: 2023-04-07 | C90: plat | D90: MARSEILLE PONT DE VIVAUX | G90: Maiden | I90: 3ans | J90: 7 | K90: 1900-01-03 | L90: 2022-04-26 | M90: plat | N90: LYON PARILLY | Q90: Maiden | S90: 3ans | T90: 7
A91: 1900-01-06 | B91: 2023-04-07 | C91: plat | D91: MARSEILLE PONT DE VIVAUX | G91: Réclamers | I91: 3ans | J91: 6 | K91: 1900-01-04 | L91: 2022-04-27 | M91: plat | N91: LA TESTE DE BUCH | Q91: Conditions | R91: C2 | S91: 3ans | T91: 7
A92: 1900-01-07 | B92: 2023-04-08 | C92: plat | D92: NANCY | G92: Réclamers | I92: 3ans | J92: 7 | K92: 1900-01-04 | L92: 2022-04-27 | M92: plat | N92: FONTAINEBLEAU | Q92: Conditions | R92: C2 | S92: 3ans | T92: 7
A93: 1900-01-07 | B93: 2023-04-08 | C93: plat | D93: LYON LA SOIE | G93: Conditions | H93: C2 | I93: 3ans | J93: 6 | K93: 1900-01-04 | L93: 2022-04-27 | M93: plat | N93: FONTAINEBLEAU | Q93: Conditions | R93: C2 | S93: 3ans | T93: 4
A94: 1900-01-07 | B94: 2023-04-08 | C94: plat | D94: LYON LA SOIE | G94: Réclamers | I94: 3ans | J94: 7 | K94: 1900-01-04 | L94: 2022-04-27 | M94: plat | N94: FONTAINEBLEAU | Q94: Maiden | S94: 3ans | T94: 6
A95: 1900-01-01 | B95: 2023-04-09 | C95: plat | D95: PARISLONGCHAMP | G95: Inédits | I95: 3ans | J95: 7 | K95: 1900-01-05 | L95: 2022-04-28 | M95: plat | N95: LE MANS | Q95: Conditions | R95: C2 | S95: 3ans | T95: 6
A96: 1900-01-02 | B96: 2023-04-10 | C96: plat | D96: ANGERS | G96: Conditions | H96: C1 | I96: 3ans | J96: 6 | K96: 1900-01-05 | L96: 2022-04-28 | M96: plat | N96: PARISLONGCHAMP | Q96: Conditions | R96: C1 | S96: 3ans | T96: 5
A97: 1900-01-03 | B97: 2023-04-11 | C97: plat | D97: LA TESTE-BASSIN ARCACHON | G97: Conditions | H97: C2 | I97: 3ans | J97: 6 | K97: 1900-01-06 | L97: 2022-04-29 | M97: plat | N97: MARSEILLE BORELY | Q97: Conditions | R97: C2 | S97: 3ans | T97: 6
A98: 1900-01-03 | B98: 2023-04-11 | C98: plat | D98: CHANTILLY | G98: Conditions | H98: C2 | I98: 3ans | J98: 5 | K98: 1900-01-06 | L98: 2022-04-29 | M98: plat | N98: MARSEILLE BORELY | Q98: Réclamers | S98: 3ans | T98: 7
A99: 1900-01-05 | B99: 2023-04-13 | C99: plat | D99: MARSEILLE BORELY | G99: Conditions | H99: C1 | I99: 3ans | J99: 5 | K99: 1900-01-06 | L99: 2022-04-29 | M99: plat | N99: MARSEILLE BORELY | Q99: Conditions | R99: C1 | S99: 3ans | T99: 6
A100: 1900-01-05 | B100: 2023-04-13 | C100: plat | D100: MARSEILLE BORELY | G100: Maiden | I100: 3ans | J100: 7 | K100: 1900-01-06 | L100: 2022-04-29 | M100: plat | N100: MARSEILLE BORELY | Q100: Maiden | S100: 3ans | T100: 7
A101: 1900-01-06 | B101: 2023-04-14 | C101: plat | D101: SAINT-CLOUD | G101: Conditions | H101: C1 | I101: 3ans | J101: 7 | K101: 1900-01-02 | L101: 2022-05-02 | M101: plat | N101: NANTES | Q101: Conditions | R101: C2 | S101: 3ans | T101: 7
A102: 1900-01-06 | B102: 2023-04-14 | C102: plat | D102: MARSEILLE PONT DE VIVAUX | G102: Réclamers | I102: 3ans | J102: 6 | K102: 1900-01-03 | L102: 2022-05-03 | M102: plat | N102: NANCY | Q102: Conditions | R102: C2 | S102: 3ans | T102: 6
A103: 1900-01-07 | B103: 2023-04-15 | C103: plat | D103: FONTAINEBLEAU | G103: Inédits | I103: 3ans | J103: 6 | K103: 1900-01-03 | L103: 2022-05-03 | M103: plat | N103: CHANTILLY | Q103: Maiden | S103: 3ans | T103: 6
A104: 1900-01-07 | B104: 2023-04-15 | C104: plat | D104: FONTAINEBLEAU | G104: Hdcp | H104: C1 | I104: 3ans | J104: 7 | K104: 1900-01-04 | L104: 2022-05-04 | M104: plat | N104: PARISLONGCHAMP | Q104: Conditions | R104: C1 | S104: 3ans | T104: 6
A105: 1900-01-02 | B105: 2023-04-17 | C105: plat | D105: CHANTILLY | G105: Réclamers | I105: 3ans | J105: 7 | K105: 1900-01-04 | L105: 2022-05-04 | M105: plat | N105: PARISLONGCHAMP | Q105: Maiden | S105: 3ans | T105: 6
A106: 1900-01-03 | B106: 2023-04-18 | C106: plat | D106: LYON PARILLY | G106: Conditions | H106: C1 | I106: 3ans | J106: 5 | K106: 1900-01-06 | L106: 2022-05-06 | M106: plat | N106: CHANTILLY | Q106: Conditions | R106: C2 | S106: 3ans | T106: 6
A107: 1900-01-04 | B107: 2023-04-19 | C107: plat | D107: COMPIEGNE | G107: Maiden | I107: 3ans | J107: 7 | K107: 1900-01-06 | L107: 2022-05-06 | M107: plat | N107: MARSEILLE BORELY | Q107: Maiden | S107: 3ans | T107: 6
A108: 1900-01-05 | B108: 2023-04-20 | C108: plat | D108: TARBES | G108: Inédits | I108: 3ans | J108: 5 | K108: 1900-01-06 | L108: 2022-05-06 | M108: plat | N108: MARSEILLE BORELY | Q108: Hdcp | S108: 3ans | T108: 7
A109: 1900-01-05 | B109: 2023-04-20 | C109: plat | D109: PARISLONGCHAMP | G109: Inédits | I109: 3ans | J109: 6 | K109: 1900-01-07 | L109: 2022-05-07 | M109: plat | N109: DAX | O109: internet | Q109: Conditions | R109: aa | S109: 3ans | T109: 7
A110: 1900-01-05 | B110: 2023-04-20 | C110: plat | D110: PARISLONGCHAMP | G110: Maiden | I110: 3ans | J110: 6 | K110: 1900-01-07 | L110: 2022-05-07 | M110: plat | N110: LYON PARILLY | Q110: Conditions | R110: C2 | S110: 3ans | T110: 7
A111: 1900-01-06 | B111: 2023-04-21 | C111: plat | D111: SAINT-CLOUD | G111: Inédits | I111: 3ans | J111: 7 | K111: 1900-01-01 | L111: 2022-05-08 | M111: plat | N111: SAINT-CLOUD | Q111: Maiden | S111: 3ans | T111: 6
A112: 1900-01-07 | B112: 2023-04-22 | C112: plat | D112: NANTES | G112: Hdcp | I112: 3ans | J112: 7 | K112: 1900-01-01 | L112: 2022-05-08 | M112: plat | N112: BORDEAUX LE BOUSCAT | Q112: Conditions | R112: C1 | S112: 3ans | T112: 6
A113: 1900-01-03 | B113: 2023-04-25 | C113: plat | D113: LE MANS | G113: Conditions | H113: C2 | I113: 3ans | J113: 5 | K113: 1900-01-02 | L113: 2022-05-09 | M113: plat | N113: ANGERS | Q113: Conditions | R113: C1 | S113: 3ans | T113: 6
A114: 1900-01-04 | B114: 2023-04-26 | C114: plat | D114: LA TESTE-BASSIN ARCACHON | G114: Conditions | H114: C2 | I114: 3ans | J114: 7 | K114: 1900-01-04 | L114: 2022-05-11 | M114: plat | N114: FONTAINEBLEAU | Q114: Conditions | R114: C2 | S114: 3ans | T114: 6
A115: 1900-01-05 | B115: 2023-04-27 | C115: plat | D115: MARSEILLE BORELY | G115: Réclamers | I115: 3ans | J115: 7 | K115: 1900-01-06 | L115: 2022-05-13 | M115: plat | N115: SAINT-CLOUD | Q115: Conditions | R115: C2 | S115: 3ans | T115: 7
A116: 1900-01-05 | B116: 2023-04-27 | C116: plat | D116: PARISLONGCHAMP | G116: Conditions | H116: C2 | I116: 3ans | J116: 5 | K116: 1900-01-06 | L116: 2022-05-13 | M116: plat | N116: MARSEILLE BORELY | Q116: Maiden | S116: 3ans | T116: 7
A117: 1900-01-05 | B117: 2023-04-27 | C117: plat | D117: PARISLONGCHAMP | G117: Conditions | H117: C2 | I117: 3ans | J117: 7 | K117: 1900-01-06 | L117: 2022-05-13 | M117: plat | N117: MARSEILLE BORELY | Q117: Maiden | S117: 3ans | T117: 7
